Workbook

Sheet As at 04 07 2019
A1: Date of Launch | B1: Date of Tender Closing | C1: Date of Award | D1: Location | E1: Type of Development Allowed | F1: Site Area (m2) | G1: Plot Ratio | H1: Maximum Permissible Gross Floor Area (GFA) (m2) | I1: Name of Successful Tenderer | J1: Successful Tender Price | K1: Price Psm Per Gross Plot Ratio | L1: Lease (Years) | M1: Land Owner
A2: 2022-02-22 | B2: 2022-04-19 | C2: 2022-05-27 | D2: Plot 4, Jalan Papan | E2: Business 2 | F2: 5594.9 | G2: 1.4 | H2: =F2*G2 -> 7832.86 | I2: Soon Li Heng Civil Engineering Pte Ltd | J2: 3399800 | K2: =J2/F2/G2 -> 434.0432486 | L2: 20 | M2: State
A3: 2021-11-30 | B3: 2022-01-11 | C3: 2022-03-18 | D3: Plot 9, Jalan Papan | E3: Business 2 | F3: 10125.3 | G3: 1.4 | H3: =F3*G3 -> 14175.42 | I3: Kok Tong Transport & Engineering Works Pte Ltd | J3: 6151000 | K3: =J3/F3/G3 -> 433.9201237 | L3: 20 | M3: State
A4: 2021-08-31 | B4: 2021-10-26 | C4: 2021-11-26 | D4: Plot 7, Jalan Papan | E4: Business 2 | F4: 8814 | G4: 1.4 | H4: =F4*G4 -> 12339.6 | I4: Trans-Euro Pte Ltd | J4: 5626857.6 | K4: =J4/F4/G4 -> 456 | L4: 20 | M4: State
A5: 2021-04-27 | B5: 2021-06-22 | C5: 2021-08-11 | D5: Plot D, Gul Avenue | E5: Business 2 | F5: 5832.6 | G5: 1.4 | H5: =F5*G5 -> 8165.64 | I5: Sing Teck Leong Marketing & Resources Pte Ltd | J5: 3470397 | K5: =J5/F5/G5 -> 425 | L5: 20 | M5: JTC
A6: 2020-08-25 | B6: 2020-10-06 | C6: 2020-12-10 | D6: 160 Gul Circle | E6: Business 2 | F6: 3686 | G6: 1.4 | H6: 5160.4 | I6: New Century Integration Pte Ltd | J6: 2200000 | K6: 426.3235408 | L6: 20 | M6: JTC
A7: 2020-02-25 | B7: 2020-07-14 | C7: 2020-08-13 | D7: Plot 1, Jalan Papan | E7: Business 2 | F7: 12266.6 | G7: 1.4 | H7: 17173.24 | I7: SH M&E Engineering Pte Ltd | J7: 7880000 | K7: 458.8534254 | L7: 20 | M7: State
A8: 2019-12-31 | B8: 2020-02-25 | C8: 2020-04-03 | D8: Plot 6, Jalan Papan | E8: Business 2 | F8: 6599.9 | G8: 1.4 | H8: 9239.86 | I8: China Jingye Construction Engineering (S) Pte Ltd | J8: 4010000 | K8: 433.9892596 | L8: 20 | M8: State
A9: 2019-12-31 | B9: 2020-02-11 | C9: 2020-03-04 | D9: Tuas Avenue 6 | E9: Business 2 | F9: 5454.1 | G9: 1.4 | H9: 7635.74 | I9: Bala Engineering & Used Auto Pte. Ltd. | J9: 2805000 | K9: 367.3514289 | L9: 20 | M9: JTC
A10: 2019-10-29 | B10: 2019-12-27 | C10: 2020-01-31 | D10: Plot B Tuas West Avenue | E10: Business 2 | F10: 9508.2 | G10: 1.4 | H10: 13311.48 | I10: Progressive Builders Pte Ltd | J10: 4200500 | K10: 315.5546941 | L10: 20 | M10: JTC
A11: 2019-06-25 | B11: 2019-08-06 | C11: 2019-10-11 | D11: Plot 19, Tuas South Link 3 | E11: Business 2 | F11: 4452 | G11: 1.4 | H11: =F11*G11 -> 6232.8 | I11: Asia Metal Engineering & Trading Pte Ltd | J11: 2102019 | K11: 337.2511552 | L11: 20 | M11: State
A12: 2019-03-26 | B12: 2019-05-07 | C12: 2019-06-26 | D12: Plot 2, Gambas Way | E12: Business 2 | F12: 11958.8 | G12: 2.5 | H12: 29897 | I12: Soilbuild Group Holdings Ltd | J12: 40019900 | K12: =J12/F12/G12 -> 1338.592501 | L12: 30 | M12: State
A13: 2019-01-29 | B13: 2019-03-26 | C13: 2019-05-17 | D13: Woodlands Industrial Park E2/E5 | E13: Business 2 | F13: 5000 | G13: 2.5 | H13: 12500 | I13: Whye Wah Development & Construction Pte Ltd | J13: 3375000 | K13: 270 | L13: 20 | M13: State
A14: 2018-12-26 | B14: 2019-02-13 | C14: 2019-04-05 | D14: Woodlands Avenue 12 | E14: Business 2 | F14: 20937 | G14: 2.5 | H14: 52342.5 | I14: Soon Hock Investment Group Pte Ltd | J14: 81999000 | K14: 1566.585471 | L14: 30 | M14: State
A15: 2018-11-27 | B15: 2019-01-22 | C15: 2019-03-29 | D15: Plot 20, Tuas South Link 3 | E15: Business 2 | F15: 4456.3 | G15: 1.4 | H15: 6238.82 | I15: Transmare-Chemie (S) Pte Ltd | J15: 2050000 | K15: 328.5877778 | L15: 20 | M15: State
A16: 2018-10-30 | B16: 2018-12-26 | C16: 2019-02-20 | D16: Plot B, Jalan Lam Huat | E16: Business 2 | F16: 7694.7 | G16: 2.5 | H16: 19236.75 | I16: Carros Project Management Pte Ltd | J16: 5068888 | K16: 263.5002274 | L16: 20 | M16: State
A17: 2018-09-25 | B17: 2018-11-20 | C17: 2019-01-03 | D17: Plot 27, Tuas South Link 3 | E17: Business 2 | F17: 5953.3 | G17: 1.4 | H17: =F17*G17 -> 8334.62 | I17: L.S. Construction Pte Ltd | J17: 2880000 | K17: 345.5466476 | L17: 20 | M17: State
A18: 2018-08-28 | B18: 2018-10-09 | C18: 2018-10-25 | D18: Corporation Drive | E18: Business 2 | F18: 12800.4 | G18: 2.5 | H18: =F18*G18 -> 32001 | I18: Soilbuild Group Holdings Ltd | J18: 44090319 | K18: 1377.779413 | L18: 30 | M18: JTC
A19: 2018-05-30 | B19: 2018-08-01 | C19: 2018-09-28 | D19: Braddell Road | E19: Business 1 | F19: 9716.2 | G19: 2.5 | H19: 24290.5 | I19: BP-SH1 Pte Ltd | J19: 53588888.88 | K19: 2206.166562 | L19: 30 | M19: State
A20: 2018-05-30 | B20: 2018-07-25 | C20: 2018-09-14 | D20: Plot 10, Tampines Industrial Drive | E20: Business 2 | F20: 4702.6 | G20: 1.4 | H20: 6583.64 | I20: Blu World Pte Ltd | J20: 3200000 | K20: 486.0533079 | L20: 20 | M20: State
A21: 2018-04-24 | B21: 2018-06-19 | C21: 2018-07-27 | D21: Plot 13, Tuas South Link 1 | E21: Business 2 | F21: 24129.5 | G21: 2 | H21: =F21*G21 -> 48259 | I21: Yee Lee Development Pte Ltd | J21: 26800000 | K21: 555.3368284 | L21: 30 | M21: JTC
A22: 2018-01-30 | B22: 2018-03-27 | C22: 2018-05-23 | D22: Plot 18, Tuas South Link 3 | E22: Business 2 | F22: 4299.9 | G22: 1.4 | H22: 6019.86 | I22: LNT Coating Pte Ltd | J22: 2038000 | K22: 338.5460791 | L22: 20 | M22: State
A23: 2018-01-30 | B23: 2018-03-13 | C23: 2018-04-27 | D23: Tuas Bay Close | E23: Business 2 | F23: 27177.6 | G23: 1.7 | H23: 46201.92 | I23: Soilbuild Group Holdings Ltd | J23: 29848888 | K23: 646.0529779 | L23: 30 | M23: JTC
A24: 2017-12-26 | B24: 2018-02-27 | C24: 2018-04-27 | D24: Plot 23, Tuas South Link 3 | E24: Business 2 | F24: 6276.5 | G24: 1.4 | H24: 8787.1 | I24: Bonco Enterprise Pte Ltd | J24: 2794298 | K24: 318.0000228 | L24: 20 | M24: State
A25: 2017-09-26 | B25: 2017-11-21 | C25: 2018-01-25 | D25: Plot 16, Tuas South Link 3 | E25: Business 2 | F25: 4993.1 | G25: 1.4 | H25: =F25*G25 -> 6990.34 | I25: Soilbuild Construction Group Ltd | J25: 2633800 | K25: 376.7770952 | L25: 20 | M25: State
A26: 2017-09-05 | B26: 2017-10-24 | C26: 2017-12-13 | D26: Plot 14, Tuas South Link 3 | E26: Business 2 | F26: 5736.4 | G26: 1.4 | H26: =F26*G26 -> 8030.96 | I26: Wee Hur Construction Pte Ltd | J26: 2680000 | K26: 333.7085479 | L26: 20 | M26: State
A27: 2017-07-25 | B27: 2017-09-19 | C27: 2017-11-03 | D27: Plot 25, Tuas South Link 3 | E27: Business 2 | F27: 4699.1 | G27: 1.4 | H27: 6578.74 | I27: G.T.H. Engineering & Construction Pte Ltd | J27: 2511000 | K27: 381.6840307 | L27: 20 | M27: State
A28: 2017-06-30 | B28: 2017-08-25 | C28: 2017-10-06 | D28: Plot 10, Tuas South Link 2 | E28: Business 2 | F28: 4802 | G28: 1.4 | H28: 6722.8 | I28: Zhao Yang Geotechnic Pte Ltd | J28: 2756348 | K28: 410 | L28: 20 | M28: JTC
A29: 2017-05-30 | B29: 2017-07-25 | C29: 2017-09-14 | D29: Plot A, Jalan Lam Huat | E29: Business 2 | F29: 8000.5 | G29: 2.5 | H29: 20001.25 | I29: JC Development Pte Ltd | J29: 6160000 | K29: 307.9807512 | L29: 20 | M29: State
A30: 2017-04-25 | B30: 2017-06-20 | C30: 2017-08-16 | D30: Plot 18, Tuas South Link 3 | E30: Business 2 | F30: 4299.9 | G30: 1.4 | H30: 6019.86 | I30: LNT Coating Pte Ltd | J30: 2450600 | K30: 407.0858791 | L30: 20 | M30: State
A31: 2017-03-28 | B31: 2017-05-23 | C31: 2017-07-20 | D31: Plot 24, Tuas South Link 3 | E31: Business 2 | F31: 4687.5 | G31: 1.4 | H31: 6562.5 | I31: Pan Asian Flow Technology Pte Ltd | J31: 2500000 | K31: 380.952381 | L31: 20 | M31: State
A32: 2017-02-28 | B32: 2017-04-25 | C32: 2017-06-02 | D32: Plot 3, Tampines North Drive 3 | E32: Business 2 | F32: 5804 | G32: 2.5 | H32: 14510 | I32: BHCC Construction Pte Ltd | J32: 7000000 | K32: 482.4259132 | L32: 20 | M32: State
A33: 2017-01-31 | B33: 2017-03-28 | C33: 2017-05-05 | D33: Plot 15, Tuas South Link 3 | E33: Business 2 | F33: 4994.6 | G33: 1.4 | H33: 6992.44 | I33: Soilbuild Construction Group Ltd | J33: 2711800 | K33: 387.8188444 | L33: 20 | M33: State
A34: 2016-12-27 | B34: 2017-02-21 | C34: 2017-04-05 | D34: Plot 17, Tuas South Link 3 | E34: Business 2 | F34: 4874.2 | G34: 1.4 | H34: 6823.88 | I34: Goh Sin Guan Huat Pte Ltd | J34: 2351314.08 | K34: 344.5714286 | L34: 20 | M34: State
A35: 2016-11-29 | B35: 2017-01-24 | C35: 2017-03-15 | D35: Plot 1, Tampines Industrial Drive | E35: Business 2 | F35: 5253.5 | G35: 1.4 | H35: 7354.9 | I35: Power Partners Private Limited | J35: 3320000 | K35: 451.3997471 | L35: 20 | M35: State
A36: 2016-10-25 | B36: 2016-12-20 | C36: 2017-02-08 | D36: Plot 22, Tuas South Link 3 | E36: Business 2 | F36: 5795.4 | G36: 1.4 | H36: 8113.56 | I36: Hexacon Construction Pte Ltd | J36: 2995055 | K36: 369.1419056 | L36: 20 | M36: State
A37: 2016-09-27 | B37: 2016-11-22 | C37: 2016-12-27 | D37: Plot 11, Tuas South Link 2 | E37: Business 2 | F37: 5016.5 | G37: 1.4 | H37: 7023.1 | I37: Zhao Yang Geo-Systems Pte Ltd | J37: 2688888 | K37: 382.8634079 | L37: 20 | M37: JTC
A38: 2016-08-30 | B38: 2016-10-25 | C38: 2016-11-17 | D38: Plot 6, Tuas South Link 2 | E38: Business 2 | F38: 5050 | G38: 1.4 | H38: 7070 | I38: Wellbuilt Pte Ltd | J38: 2829060 | K38: 400.1499293 | L38: 20 | M38: JTC
A39: 2016-07-26 | B39: 2016-10-04 | C39: 2016-11-17 | D39: Plot 3, Tampines Industrial Drive | E39: Business 2 | F39: 4885.7 | G39: 1.4 | H39: 6839.98 | I39: Kok Tong Transport & Engineering Works Pte Ltd | J39: 3105360 | K39: 454.0013275 | L39: 20 | M39: State
A40: 2016-06-28 | B40: 2016-08-23 | C40: 2016-09-29 | D40: Plot 8, Tuas South Link 2 | E40: Business 2 | F40: 5953.3 | G40: 1.4 | H40: 8334.62 | I40: Aik Leong Plumbing Construction Pte Ltd | J40: 3210000 | K40: 385.1405343 | L40: 20 | M40: JTC
A41: 2016-05-31 | B41: 2016-07-26 | C41: 2016-08-10 | D41: Plot 7, Tuas South Link 2 | E41: Business 2 | F41: 5332.7 | G41: 1.4 | H41: 7465.78 | I41: SE Global Group Pte Ltd | J41: 2680000 | K41: 358.9711993 | L41: 20 | M41: JTC
A42: 2016-03-29 | B42: 2016-05-24 | C42: 2016-06-22 | D42: Woodlands Sector 2 | E42: Business 2 | F42: 13542 | G42: 1.4 | H42: 18958.8 | I42: Yee Lee Development Pte Ltd | J42: 6180000 | K42: 325.9699981 | L42: 20 | M42: JTC
A43: 2016-02-23 | B43: 2016-04-05 | C43: 2016-05-06 | D43: Plot 1, Tuas South Link 1 | E43: Business 2 | F43: 33300.1 | G43: 2 | H43: 66600.2 | I43: Diamond Land Pte Ltd | J43: 37500000 | K43: 563.0613722 | L43: 30 | M43: JTC
A44: 2016-01-26 | B44: 2016-03-22 | C44: 2016-05-06 | D44: Plot 2, Tampines Industrial Drive | E44: Business 2 | F44: 4890.7 | G44: 1.4 | H44: 6846.98 | I44: Hock Lian Seng Holdings Limited | J44: 3708000 | K44: 541.5526261 | L44: 20 | M44: State
A45: 2015-12-29 | B45: 2016-02-23 | C45: 2016-04-07 | D45: Plot 5, Tampines Industrial Drive | E45: Business 2 | F45: 5077.8 | G45: 1.4 | H45: 7108.92 | I45: Precise Development Pte Ltd | J45: 3611331.36 | K45: 508 | L45: 20 | M45: State
A46: 2015-12-29 | B46: 2016-02-23 | C46: 2016-04-07 | D46: Plot 9, Tuas South Link 2 | E46: Business 2 | F46: 4802.1 | G46: 1.4 | H46: 6722.94 | I46: Texas Petrochemical Asia Pacific Pte Ltd | J46: 2200000 | K46: 327.2377858 | L46: 20 | M46: JTC
A47: 2015-11-24 | B47: 2016-01-19 | C47: 2016-04-07 | D47: Plot 7, Tampines Industrial Drive | E47: Business 2 | F47: 4112.5 | G47: 1.4 | H47: 5757.5 | I47: Chye Thiam Maintenance Pte Ltd | J47: 2982385 | K47: 518 | L47: 20 | M47: State
A48: 2015-09-29 | B48: 2015-11-24 | C48: 2016-01-14 | D48: Plot 5, Tuas South Link 2 | E48: Business 2 | F48: 5050 | G48: 1.4 | H48: 7070 | I48: Hiap Shing Construction Pte Ltd | J48: 3000000 | K48: 424.3281471 | L48: 20 | M48: JTC
A49: 2015-08-25 | B49: 2015-10-20 | C49: 2015-12-18 | D49: Plot 12, Tampines Industrial Drive | E49: Business 2 | F49: 4794.5 | G49: 1.4 | H49: 6712.3 | I49: Soon Lee Heng Trading & Transportation Pte Ltd | J49: 4900000 | K49: 730.0031286 | L49: 20 | M49: State
A50: 2015-08-25 | B50: 2015-10-20 | C50: 2015-11-27 | D50: Tanjong Penjuru | E50: Business 2 | F50: 16307.9 | G50: 2.5 | H50: 40769.75 | I50: Trans Eurokars Pte Ltd | J50: 13000000 | K50: 318.8638635 | L50: 20 | M50: JTC
A51: 2015-07-28 | B51: 2015-09-22 | C51: 2015-10-30 | D51: Plot 9, Tampines Industrial Drive | E51: Business 2 | F51: 5778.2 | G51: 1.4 | H51: 8089.48 | I51: Zulin (S.E.A) Pte Ltd | J51: 5850000 | K51: 723.1614393 | L51: 20 | M51: State
A52: 2015-06-30 | B52: 2015-08-25 | C52: 2015-10-02 | D52: Plot 6, Tampines Industrial Drive | E52: Business 2 | F52: 4732.5 | G52: 1.4 | H52: 6625.5 | I52: Lim Wen Heng Construction Pte Ltd | J52: 4935997.6 | K52: 745.0000151 | L52: 20 | M52: State
A53: 2015-05-26 | B53: 2015-07-21 | C53: 2015-09-02 | D53: Plot 11, Tampines Industrial Drive | E53: Business 2 | F53: 5283.6 | G53: 1.4 | H53: 7397.04 | I53: Wai Fong Construction Pte Ltd | J53: 5000006 | K53: 675.9468652 | L53: 20 | M53: State
A54: 2015-04-28 | B54: 2015-06-23 | C54: 2015-07-15 | D54: Plot 4, Tuas South Link 2 | E54: Business 2 | F54: 7900 | G54: 1.4 | H54: 11060 | I54: Mundipharma Manufacturing Pte Ltd | J54: 12500000 | K54: 1130.198915 | L54: 20 | M54: JTC
A55: 2015-03-31 | B55: 2015-05-26 | C55: 2015-06-26 | D55: Plot 4, Tampines Industrial Drive | E55: Business 2 | F55: 5686.3 | G55: 1.4 | H55: 7960.82 | I55: Sim Lian Construction Co (Pte) Ltd | J55: 5900000 | K55: 741.1296826 | L55: 20 years | M55: State
A56: 2015-02-24 | B56: 2015-04-21 | C56: 2015-05-15 | D56: Plot 46, Tuas South Street 6 | E56: Business 2 | F56: 6988 | G56: 1 | H56: 6988 | I56: Tean Chay Crane Rental Pte Ltd | J56: 5611365 | K56: 803.0001431 | L56: 20 years 3 months | M56: JTC
A57: 2015-01-27 | B57: 2015-03-24 | C57: 2015-04-27 | D57: Plot 43, Tuas South Street 11​ | E57: Business 2 | F57: 8409.8 | G57: 1 | H57: 8409.8 | I57: Ho Lee Construction Pte Ltd | J57: 6996953.6 | K57: 832 | L57: 20 years 4 months | M57: State
A58: 2014-12-29 | B58: 2015-02-09 | C58: 2015-03-25 | D58: Plot 53, Tuas South Street 7 | E58: Business 2 | F58: 5038.6 | G58: 1 | H58: 5038.6 | I58: L & P Blasting Pte Ltd | J58: 5506480 | K58: 1092.859128 | L58: 20 years 4 months | M58: State
A59: 2014-12-16 | B59: 2015-02-10 | C59: 2015-03-25 | D59: Plot 42, Tuas South Street 11​ | E59: Business 2 | F59: 8409.2 | G59: 1 | H59: 8409.2 | I59: Ho Lee Construction Pte Ltd | J59: 6744178.4 | K59: 802 | L59: 20 years 5 months | M59: State
A60: 2014-11-25 | B60: 2015-01-20 | C60: 2015-02-27 | D60: Plot 8, Tampines Industrial Drive | E60: Business 2 | F60: 5033.3 | G60: 1.4 | H60: 7046.62 | I60: Soilbuild Group Holdings Ltd | J60: 5800001 | K60: 823.0897934 | L60: 20 years | M60: State
A61: 2014-11-25 | B61: 2015-01-20 | C61: 2015-02-27 | D61: Plot 40, Tuas South Street 11 | E61: Business 2 | F61: 10000 | G61: 1 | H61: 10000 | I61: Tiong Seng Contractors (Pte) Ltd | J61: 8400000 | K61: 840 | L61: 20 years 6 months | M61: State
A62: 2014-10-28 | B62: 2014-12-23 | C62: 2015-01-19 | D62: Plot 52, Tuas South Street 9 | E62: Business 2 | F62: 8369 | G62: 1 | H62: 8369 | I62: Asiaone Logistics & Warehousing Pte Ltd | J62: 7038000 | K62: 840.9606883 | L62: 20 years 7 months | M62: JTC
A63: 2014-09-29 | B63: 2014-11-24 | C63: 2014-12-23 | D63: Plot 50, Tuas South Street 9 | E63: Business 2 | F63: 8369 | G63: 1 | H63: 8369 | I63: Prospaq Group Pte Ltd | J63: 6878000 | K63: 821.842514 | L63: 20 years 8 months | M63: JTC
A64: 2014-09-29 | B64: 2014-11-24 | C64: 2014-12-23 | D64: Plot 1, Tampines North Drive 1 | E64: Business 2 | F64: 27395.2 | G64: 2.5 | H64: 68488 | I64: Goldprime Land Pte Ltd | J64: 64388888 | K64: 940.148464 | L64: 30 | M64: State
A65: 2014-09-16 | B65: 2014-10-28 | C65: 2014-11-27 | D65: Plot 41, Tuas South Street 11 | E65: Business 2 | F65: 9000 | G65: 1 | H65: 9000 | I65: Jian Man Construction Pte Ltd | J65: 7510000 | K65: 834.4444444 | L65: 20 years 10 months | M65: State
A66: 2014-08-26 | B66: 2014-10-21 | C66: 2014-11-21 | D66: Plot 48, Tuas South Street 9 | E66: Business 2 | F66: 8369 | G66: 1 | H66: 8369 | I66: New Hope Singapore Pte Ltd | J66: 6963008 | K66: 832 | L66: 20 years 9 months | M66: JTC
A67: 2014-07-29 | B67: 2014-09-09 | C67: 2014-10-23 | D67: Plot 44, Tuas South Street 7 | E67: Business 2 | F67: 5038.6 | G67: 1 | H67: 5038.6 | I67: IG Tuas Pte Ltd | J67: 5201000 | K67: 1032.231175 | L67: 20 years 10 months | M67: State
A68: 2014-06-24 | B68: 2014-08-26 | C68: 2014-10-09 | D68: Plot 12, Off Tuas South Avenue 7 | E68: Business 2 | F68: 25700 | G68: 2 | H68: 51400 | I68: Hock Lian Seng Holdings Limited | J68: 30988000 | K68: 602.8793774 | L68: 30 | M68: JTC
A69: 2014-04-29 | B69: 2014-07-01 | C69: 2014-07-24 | D69: Tuas Avenue 11 | E69: Business 2 | F69: 8922 | G69: 1.4 | H69: 12490.8 | I69: Soon Hock Realty Pte Ltd | J69: 14388000 | K69: 1151.887789 | L69: 30 | M69: JTC
A70: 2014-04-29 | B70: 2014-07-01 | C70: 2014-07-24 | D70: Plot 39, Tuas South Street 11 | E70: Business 2 | F70: 10000 | G70: 1 | H70: 10000 | I70: Tiong Aik Construction Pte Ltd | J70: 8073000 | K70: 807.3 | L70: 20 years 10 months | M70: JTC
A71: 2014-03-25 | B71: 2014-05-06 | C71: 2014-06-02 | D71: Plot 49, Tuas South Street 9 | E71: Business 2 | F71: 8369 | G71: 1 | H71: 8369 | I71: Pan Marine Blasting Abrasives Pte Ltd | J71: 5925252 | K71: 708 | L71: 21 years 2 months | M71: JTC
A72: 2014-03-25 | B72: 2014-05-06 | C72: 2014-06-02 | D72: Plot 51, Tuas South Street 9 | E72: Business 2 | F72: 8369 | G72: 1 | H72: 8369 | I72: Asiagroup Leasing Pte Ltd | J72: 5948000 | K72: 710.7181264 | L72: 21 years 2 months | M72: JTC
A73: 2014-02-25 | B73: 2014-04-08 | C73: 2014-04-29 | D73: Plot 45, Tuas South Street 6 | E73: Business 2 | F73: 6988 | G73: 1 | H73: 6988 | I73: SH Design & Build Pte Ltd | J73: 5278000 | K73: 755.2947911 | L73: 21 years 3 months | M73: JTC
A74: 2014-02-25 | B74: 2014-04-08 | C74: 2014-04-29 | D74: Plot 47, Tuas South Street 6 | E74: Business 2 | F74: 6988 | G74: 1 | H74: 6988 | I74: Soon Hock Investment Group Pte Ltd | J74: 5115000 | K74: 731.9690899 | L74: 21 years 3 months | M74: JTC
A75: 2013-12-27 | B75: 2014-02-07 | C75: 2014-04-14 | D75: Plot 6, Tuas South Street 6 | E75: Business 2 | F75: 4551.4 | G75: 1 | H75: 4551.4 | I75: H P Construction & Engineering Pte Ltd | J75: 4100000 | K75: 900.8217252 | L75: 21 years 5 months | M75: State
A76: 2013-12-27 | B76: 2014-02-07 | C76: 2014-04-14 | D76: Plot 34, Tuas South Street 13 | E76: Business 2 | F76: 7447.4 | G76: 1 | H76: 7447.4 | I76: Evan Lim & Co. Pte. Ltd. | J76: 4850000 | K76: =J76/F76/G76 -> 651.2339877 | L76: 21 years 5 months | M76: State
A77: 2013-12-27 | B77: 2014-02-07 | C77: 2014-04-14 | D77: Plot 35, Tuas South Street 11 | E77: Business 2 | F77: 7432.1 | G77: 1 | H77: 7432.1 | I77: Toko Tan Equipment Pte Ltd | J77: 4293524.17 | K77: 577.7 | L77: 21 years 5 months | M77: State
A78: 2013-12-27 | B78: 2014-02-07 | C78: 2014-04-14 | D78: Plot 38, Tuas South Street 13 | E78: Business 2 | F78: 7176.5 | G78: 1 | H78: 7176.5 | I78: AEI (China) Holdings Pte. Ltd | J78: 5038888 | K78: 702.1372535 | L78: 21 years 5 months | M78: State
A79: 2013-11-29 | B79: 2014-01-10 | C79: 2014-03-10 | D79: Plot 33, Tuas South Street 11 | E79: Business 2 | F79: 7432.1 | G79: 1 | H79: 7432.1 | I79: United Hudson Investment Pte Ltd | J79: 4808000 | K79: 646.9234806 | L79: 21 years 6 months | M79: State
A80: 2013-11-29 | B80: 2014-01-10 | C80: 2014-03-10 | D80: Plot 36, Tuas South Street 13 | E80: Business 2 | F80: 7431.7 | G80: 1 | H80: 7431.7 | I80: Quek & Quek Civil Engineering Pte Ltd | J80: 7431700 | K80: 1000 | L80: 21 years 6 months | M80: State
A81: 2013-11-29 | B81: 2014-01-10 | C81: 2014-03-10 | D81: Plot 37, Tuas South Street 11 | E81: Business 2 | F81: 7177 | G81: 1 | H81: 7177 | I81: United Hudson Investment Pte Ltd | J81: 5029200 | K81: 700.7384701 | L81: 21 years 6 months | M81: State
A82: 2013-11-29 | B82: 2014-01-10 | C82: 2014-03-10 | D82: Woodlands Industrial Park E9 | E82: Business 2 (with an integrated Heavy Vehicle Park) | F82: 18394.1 | G82: 2.5 | H82: 45985.25 | I82: Vantage Properties Pte Ltd | J82: 56180000 | K82: 1221.696087 | L82: 30 | M82: State
A83: 2013-10-31 | B83: 2013-12-12 | C83: 2014-01-28 | D83: Plot 20, Tuas South Street 10 | E83: Business 2 | F83: 3036.2 | G83: 1 | H83: 3036.2 | I83: The Hi-Fi Company Pte Ltd | J83: 3104759 | K83: 1022.580528 | L83: 21 years 7 months | M83: State
A84: 2013-10-31 | B84: 2013-12-12 | C84: 2014-01-28 | D84: Plot 22, Tuas South Street 10 | E84: Business 2 | F84: 3036 | G84: 1 | H84: 3036 | I84: Brown Metal Engineering Pte Ltd | J84: 3235320 | K84: 1065.652174 | L84: 21 years 7 months | M84: State
A85: 2013-10-31 | B85: 2013-12-12 | C85: 2014-01-28 | D85: Plot 24, Tuas South Street 10 | E85: Business 2 | F85: 4551.2 | G85: 1 | H85: 4551.2 | I85: E C Builders Pte Ltd | J85: 4600000 | K85: 1010.722447 | L85: 21 years 7 months | M85: State
A86: 2013-09-27 | B86: 2013-11-22 | C86: 2013-12-20 | D86: Tai Seng Street | E86: Business 2 - White | F86: 11,780.0 (Principal Site) | G86: 3.5 (B1-2.5 W-1.0) | I86: Mapletree Trustee Pte Ltd | J86: 120078500 | L86: 30 | M86: JTC
A87: 2013-09-27 | B87: 2013-11-08 | C87: 2013-12-06 | D87: Plot 2, Tuas South Street 6 | E87: Business 2 | F87: 3036.6 | G87: 1 | H87: 3036.6 | I87: Tiong Lee Huat Machinery & Construction Pte Ltd | J87: 3000000 | K87: 987.947046 | L87: 21 years 8 months | M87: State
A88: 2013-09-27 | B88: 2013-11-08 | C88: 2013-12-06 | D88: Plot 29, Tuas South Street 7 | E88: Business 2 | F88: 5033.1 | G88: 1 | H88: 5033.1 | I88: Poh Meng Trading & Cleaning Services Pte Ltd | J88: 4991272.91 | K88: 991.6895969 | L88: 21 years 8 months | M88: State
A89: 2013-08-29 | B89: 2013-10-10 | C89: 2013-11-08 | D89: Plot 4, Tuas South Street 6 | E89: Business 2 | F89: 3036.7 | G89: 1 | H89: 3036.7 | I89: Derman Aluminum (S) Pte Ltd | J89: 2880917 | K89: 948.6999045 | L89: 21 years 9 months | M89: State
A90: 2013-08-29 | B90: 2013-10-10 | C90: 2013-11-08 | D90: Plot 28, Tuas South Street 7 | E90: Business 2 | F90: 5047.4 | G90: 1 | H90: =F90*G90 -> 5047.4 | I90: Reclaims Enterprise Pte Ltd | J90: 5330054.4 | K90: 1056 | L90: 21 years 9 months | M90: State
A91: 2013-06-26 | B91: 2013-08-07 | C91: 2013-09-06 | D91: Tuas South Avenue 3 | E91: Business 2 | F91: 39578.5 | G91: 1.4 | H91: 55409.9 | I91: Grow-Tech Properties Pte Ltd | J91: 66777000 | K91: 1205.145651 | L91: 30 | M91: State
A92: 2013-06-26 | B92: 2013-08-07 | C92: 2013-09-06 | D92: Plot 19, Tuas South Street 10 | E92: Business 2 | F92: 4526.7 | G92: 1 | H92: 4526.7 | I92: Kian Hock Engineering Pte Ltd | J92: 4485131.29 | K92: 990.8169947 | L92: 21 years 11 months | M92: State
A93: 2013-06-26 | B93: 2013-08-07 | C93: 2013-09-06 | D93: Plot 21, Tuas South Street 10 | E93: Business 2 | F93: 3035.8 | G93: 1 | H93: 3035.8 | I93: SWHL Pte Ltd | J93: 2783640 | K93: 916.9378747 | L93: 21 years 11 months | M93: State
A94: 2013-06-26 | B94: 2013-08-07 | C94: 2013-09-06 | D94: Plot 23, Tuas South Street 10 | E94: Business 2 | F94: 3036 | G94: 1 | H94: 3036 | I94: Jay Machinery Pte Ltd | J94: 2680000 | K94: 882.740448 | L94: 21 years 11 months | M94: State
A95: 2013-05-31 | B95: 2013-07-12 | C95: 2013-07-31 | D95: Mandai Link | E95: Business 2 (Food only) | F95: 6891.2 | G95: 2.5 | H95: 17228 | I95: Wealth Property Pte Ltd | J95: 21308888 | K95: 1236.875319 | L95: 30 | M95: JTC
A96: 2013-04-30 | B96: 2013-06-11 | C96: 2013-07-09 | D96: Plot 1, Tuas South Street 6 | E96: Business 2 | F96: 4550.9 | G96: 1 | H96: 4550.9 | I96: S.H. Stainless Steel Contractor Pte Ltd | J96: 4208000 | K96: 924.6522666 | L96: 22 years 1 month | M96: State
A97: 2013-04-30 | B97: 2013-06-11 | C97: 2013-07-09 | D97: Plot 3, Tuas South Street 6 | E97: Business 2 | F97: 3036.2 | G97: 1 | H97: 3036.2 | I97: Stallion Development Pte Ltd | J97: 2600000 | K97: 856.3335749 | L97: 22 years 1 month | M97: State
A98: 2013-04-30 | B98: 2013-06-11 | C98: 2013-07-09 | D98: Plot 5, Tuas South Street 6 | E98: Business 2 | F98: 3035.8 | G98: 1 | H98: 3035.8 | I98: Jin Choon Civil Engineering Pte Ltd | J98: 2490340 | K98: 820.324132 | L98: 22 years 1 month | M98: State
A99: 2013-03-28 | B99: 2013-05-09 | C99: 2013-06-07 | D99: Loyang Way | E99: Business 2 | F99: 20633 | G99: 2.5 | H99: 51582.5 | I99: OKH Global Ltd | J99: 61636000 | K99: 1194.901372 | L99: 30 | M99: JTC
A100: 2013-02-28 | B100: 2013-04-11 | C100: 2013-05-10 | D100: Tuas Bay Close | E100: Business 2 | F100: 24971 | G100: 1.7 | H100: 42450.7 | I100: Zacd Investments Pte Ltd, Bohai Investments (Sengkang) Pte Ltd | J100: 37100000 | K100: 873.9549642 | L100: 30 | M100: JTC
A101: 2013-01-31 | B101: 2013-03-28 | C101: 2013-04-23 | D101: Tuas Bay Walk | E101: Business 2 (Food only) | F101: 5808 | G101: 1.7 | H101: 9873.6 | I101: Yee Lee Development Pte Ltd | J101: 8988000 | K101: 910.3062713 | L101: 30 | M101: JTC
A102: 2013-01-31 | B102: 2013-03-28 | C102: 2013-04-23 | D102: Buroh Crescent | E102: Business 2 | F102: 17681 | G102: 2.5 | H102: 44202.5 | I102: OKH Holdings Pte Ltd | J102: 39017000 | K102: 882.6876308 | L102: 30 | M102: JTC
A103: 2012-12-27 | B103: 2013-02-07 | C103: 2013-03-21 | D103: Tuas South Avenue 10 | E103: Business 2 | F103: 39616 | G103: 1.4 | H103: 55462.4 | I103: Soon Hock Group Pte Ltd | J103: 60999000 | K103: 1099.826189 | L103: 30 | M103: State
A104: 2012-12-27 | B104: 2013-02-07 | C104: 2013-03-21 | D104: Plot 10, Tuas South Street 8 | E104: Business 2 | F104: 3035.6 | G104: 1 | H104: 3035.6 | I104: Boilermaster Holdings Pte Ltd | J104: 2400000 | K104: 790.6179997 | L104: 22 years 5 months | M104: State
A105: 2012-12-27 | B105: 2013-02-07 | C105: 2013-03-11 | D105: Ubi Avenue 4 | E105: Business 1 | F105: 3503.5 | G105: 2.5 | H105: 8758.75 | I105: BP-Ubi Industrial Pte Ltd | J105: 16216020 | K105: 1851.408021 | L105: 30 | M105: JTC
A106: 2012-11-20 | B106: 2013-01-02 | C106: 2013-02-01 | D106: Plot 30, Tuas South Street 6 | E106: Business 2 | F106: 8597.4 | G106: 1 | H106: 8597.4 | I106: Koh Brothers Building & Civil Engineering Contractor (Pte) Ltd | J106: 6570000 | K106: 764.1845209 | L106: 22 years 6 months | M106: State
A107: 2012-11-20 | B107: 2013-01-02 | C107: 2013-02-01 | D107: Plot 32, Tuas South Street 6 | E107: Business 2 | F107: 8732.2 | G107: 1 | H107: 8732.2 | I107: SH Design & Build Pte Ltd | J107: 6650000 | K107: 761.5492087 | L107: 22 years 6 months | M107: State
A108: 2012-11-20 | B108: 2013-01-02 | C108: 2013-01-29 | D108: Buroh Street | E108: Business 2 | F108: 27400 | G108: 2.5 | H108: 68500 | I108: Capital Development Pte Ltd and ZACD Investments Pte Ltd | J108: 82100000 | K108: 1198.540146 | L108: 30 | M108: JTC
A109: 2012-10-31 | B109: 2012-12-26 | C109: 2013-01-29 | D109: Off Woodlands Avenue 10 | E109: Business 2 | F109: 10705 | G109: 2.5 | H109: 26762.5 | I109: Bohai Investments (Sengkang) Pte Ltd and Punggol Drive Investments Pte Ltd | J109: 31700000 | K109: 1184.493227 | L109: 30 | M109: JTC
A110: 2012-10-31 | B110: 2012-12-12 | C110: 2013-01-08 | D110: Plot 8, Tuas South Street 8 | E110: Business 2 | F110: 3035.6 | G110: 1 | H110: 3035.6 | I110: T.M. Transport Contractor Pte Ltd | J110: 2222200 | K110: 732.0463829 | L110: 22 years 7 months | M110: State
A111: 2012-10-31 | B111: 2012-12-12 | C111: 2013-01-08 | D111: Plot 18, Tuas South Street 8 | E111: Business 2 | F111: 4526.9 | G111: 1 | H111: 4526.9 | I111: LNT Coating Pte Ltd | J111: 3800001 | K111: 839.42676 | L111: 22 years 7 months | M111: State
A112: 2012-09-28 | B112: 2012-11-23 | C112: 2012-12-19 | D112: Plot 14, Tuas South Street 8 | E112: Business 2 | F112: 3035.9 | G112: 1 | H112: 3035.9 | I112: Greenway Environmental Waste Management Pte Ltd | J112: 2160000 | K112: 711.4858856 | L112: 22 years 8 months | M112: State
A113: 2012-09-28 | B113: 2012-11-23 | C113: 2012-12-19 | D113: Plot 16, Tuas South Street 8 | E113: Business 2 | F113: 3036 | G113: 1 | H113: 3036 | I113: Chuan Heng Hardware Trading Pte Ltd | J113: 2076624 | K113: 684 | L113: 22 years 8 months | M113: State
A114: 2012-09-28 | B114: 2012-11-23 | C114: 2012-12-05 | D114: Serangoon North Avenue 5 | E114: Business 1 | F114: 7504 | G114: 2.5 | H114: 18760 | I114: Popular Warehouse and Distribution Pte Ltd | J114: 26999000 | K114: 1439.179104 | L114: 30 | M114: JTC
A115: 2012-08-31 | B115: 2012-10-12 | C115: 2012-11-09 | D115: Plot 12, Tuas South Sreet 8 | E115: Business 2 | F115: 4550.7 | G115: 1 | H115: 4550.7 | I115: Teck Leong Industries Pte Ltd | J115: 3200899 | K115: 703.3860725 | L115: 22 years 9 months | M115: State
A116: 2012-08-31 | B116: 2012-10-12 | C116: 2012-10-29 | D116: Sunview Road | E116: Business 2 (Clean and Light Uses) | F116: 28173 | G116: 2.5 | H116: 70432.5 | I116: Asendial Pte Ltd | J116: 76571635 | K116: 1087.163383 | L116: 30 | M116: JTC
A117: 2012-07-24 | B117: 2012-09-04 | C117: 2012-10-12 | D117: Plot 26, Tuas South Street 7 | E117: Business 2 | F117: 10094.9 | G117: 1 | H117: 10094.9 | I117: 800 Super Holdings Limited | J117: 6300000 | K117: 624.0775045 | L117: 22 | M117: State
A118: 2012-07-24 | B118: 2012-09-04 | C118: 2012-10-12 | D118: Plot 31, Tuas South Street 6 | E118: Business 2 | F118: 8569.3 | G118: 1 | H118: 8569.3 | I118: Kwong Lee Holdings Pte Ltd | J118: 4900068 | K118: 571.8166011 | L118: 22 | M118: State
A119: 2012-06-29 | B119: 2012-08-24 | C119: 2012-09-10 | D119: Plot 3, Tampines Industrial Crescent | E119: Business 2 (Clean Uses Only) | F119: 38800 | G119: 1.7 | H119: 65960 | I119: Oxley Bliss Pte Ltd | J119: 55000000 | K119: 833.8386901 | L119: 30 | M119: JTC
A120: 2012-06-29 | B120: 2012-08-10 | C120: 2012-08-27 | D120: Mandai Link | E120: Business 2 (Clean and Light Uses) | F120: 22366 | G120: 2.5 | H120: 55915 | I120: Soilbuild Group Holdings Ltd | J120: 45289000 | K120: 809.9615488 | L120: 30 | M120: JTC
A121: 2012-06-29 | B121: 2012-08-10 | C121: 2012-09-28 | D121: Plot 13, Tuas South Street 7 | E121: Business 2 | F121: 4551.1 | G121: 1 | H121: 4551.1 | I121: Chip Eng Seng Contractors (1988) Pte Ltd | J121: 3815188 | K121: 838.3001912 | L121: 23 | M121: State
A122: 2012-06-29 | B122: 2012-08-10 | C122: 2012-09-28 | D122: Plot 15, Tuas South Street 8 | E122: Business 2 | F122: 3036.1 | G122: 1 | H122: 3036.1 | I122: Transco-Pac Transport & Environmental Pte Ltd | J122: 1788262.9 | K122: 589 | L122: 23 | M122: State
A123: 2012-06-29 | B123: 2012-08-10 | C123: 2012-09-28 | D123: Plot 17, Tuas South Street 7 | E123: Business 2 | F123: 3036 | G123: 1 | H123: 3036 | I123: P-One (S) Pte Ltd | J123: 1489588 | K123: 490.6416337 | L123: 23 | M123: State
A124: 2012-06-15 | B124: 2012-07-27 | C124: 2012-09-28 | D124: Plot 7, Tuas South Street 9 | E124: Business 2 | F124: 4551.1 | G124: 1 | H124: 4551.1 | I124: Ben Ching Engineering Pte Ltd | J124: 2310001 | K124: 507.5698183 | L124: 23 | M124: State
A125: 2012-06-15 | B125: 2012-07-27 | C125: 2012-09-28 | D125: Plot 9, Tuas South Street 8 | E125: Business 2 | F125: 3035.8 | G125: 1 | H125: 3035.8 | I125: Eastman Lift Trucks Pte Ltd | J125: 1449291 | K125: 477.4000264 | L125: 23 | M125: State
A126: 2012-06-15 | B126: 2012-07-27 | C126: 2012-09-28 | D126: Plot 11, Tuas South Street 8 | E126: Business 2 | F126: 3035.7 | G126: 1 | H126: 3035.7 | I126: Westtech Pte Ltd | J126: 1130000 | K126: 372.2370458 | L126: 23 | M126: State
A127: 2012-06-15 | B127: 2012-07-27 | C127: 2012-09-28 | D127: Plot 25, Tuas South Street 7 | E127: Business 2 | F127: 5738.3 | G127: 1 | H127: 5738.3 | I127: 800 Super Holdings Ltd | J127: 6000800 | K127: 1045.745256 | L127: 23 | M127: State
A128: 2012-06-15 | B128: 2012-07-27 | C128: 2012-09-28 | D128: Plot 27, Tuas South Street 7 | E128: Business 2 | F128: 5047.6 | G128: 1 | H128: 5047.6 | I128: 800 Super Holdings Ltd | J128: 3500800 | K128: 693.5573342 | L128: 23 | M128: State
A129: 2012-04-24 | B129: 2012-06-19 | C129: 2012-07-13 | D129: Tai Seng Link | E129: Business 2 (Clean and Light Uses) | F129: 4336 | G129: 2.5 | H129: 10840 | I129: OKH (Woodlands) Pte Ltd | J129: 23300000 | K129: 2149.446494 | L129: 30 | M129: JTC
A130: 2012-01-31 | B130: 2012-03-13 | C130: 2012-04-04 | D130: Serangoon North Avenue 4 (Parcel 1) | E130: Business 1 | F130: 8076 | G130: 2.5 | H130: 20190 | I130: Soon Hock Property Development Pte Ltd | J130: 47088999 | K130: 2332.293165 | L130: 58 | M130: JTC
A131: 2011-08-31 | B131: 2011-10-27 | C131: 2011-11-28 | D131: Lavender Street/ Kallang Avenue | E131: Business 1 - White | F131: 28348 | G131: 3.0 (B1-2.5 W-0.5) | I131: PLC 8 Development Pte Ltd | J131: 218300000 | L131: 60 | M131: JTC
A132: 2011-03-25 | B132: 2011-05-20 | C132: 2011-06-08 | D132: Fusionopolis Link, Fusionopolis Phase 3 | E132: Business Park - White 40% (Office) | F132: 6253 | G132: 4 | H132: 25012 | I132: Ascendas Real Estate Investment Trust | J132: 110000000 | K132: 4397.889013 | L132: 60 | M132: JTC
A133: 2011-01-24 | B133: 2011-03-07 | C133: 2011-03-15 | D133: Ubi Road 1/ Ubi Avenue 4 | E133: Business 1 | F133: 12378 | G133: 2.5 | H133: 30945 | I133: Oxley Ascend Realty Pte Ltd | J133: 72200000 | K133: 2333.171756 | L133: 60 | M133: JTC
A134: 2010-10-29 | B134: 2010-12-10 | C134: 2011-01-17 | D134: Old Toh Tuck Road/ Toh Tuck Avenue | E134: Business 2 | F134: 10083 | G134: 1.6 | H134: 16132.8 | I134: Incorporated Builders Pte Ltd | J134: 8700000 | K134: 539.2740256 | L134: 30 | M134: JTC
A135: 2010-08-20 | B135: 2010-10-18 | C135: 2010-11-04 | D135: Yishun Street 23/ Yishun Avenue 9 | E135: Business 2 | F135: 46546.9 | G135: 2.5 | H135: 116367.25 | I135: Soilbuild Group Holdings Ltd | J135: 64011800 | K135: 550.0843236 | L135: 60 | M135: State
A136: 2010-03-31 | B136: 2010-05-12 | C136: 2010-06-01 | D136: Tampines Industrial Avenue 4 | E136: Business 2 | F136: 49999.9 | G136: 0.8 | H136: 39999.92 | I136: Soon Hock Tuas Development Pte Ltd | J136: 33130000 | K136: 828.2516565 | L136: 30 | M136: State
A137: 2007-09-28 | B137: 2007-11-09 | C137: 2007-11-29 | D137: Jalan Tepong | E137: Business 2 | F137: 20867 | G137: 1.4 | H137: 29213.8 | I137: EL Development Pte Ltd | J137: 9480000 | K137: 324.5041727 | L137: 23 | M137: JTC
A138: 2007-09-21 | B138: 2007-11-02 | C138: 2007-11-29 | D138: L1 Commonwealth Drive/ Lane | E138: Business 1 | F138: 11175 | G138: 2.5 | H138: 27937.5 | I138: WHB Pte Ltd | J138: 51228228 | K138: 1833.672591 | L138: 30 | M138: JTC
A139: 2007-09-06 | B139: 2007-10-18 | C139: 2007-11-12 | D139: L7 Pioneer Road/ Tuas Avenue 11 | E139: Business 2 | F139: 21871 | G139: 1.4 | H139: 30619.4 | I139: Soilbuild Group Holdings Ltd | J139: 12200000 | K139: 398.4402046 | L139: 30 | M139: JTC
A140: 2006-12-21 | B140: 2007-02-01 | C140: 2007-03-13 | D140: L1 Enterprise Road | E140: Business 2 | F140: 20122 | G140: 1.4 | H140: 28170.8 | I140: CTE Properties Pte Ltd | J140: 11400000 | K140: =J140/F140/G140 -> 404.6743436 | L140: 30 | M140: JTC
A141: 2006-11-17 | B141: 2006-12-28 | C141: 2007-01-24 | D141: L2 Serangoon North Avenue 4 | E141: Business 1 | F141: 9458 | G141: 1.4 | H141: 13241.2 | I141: First KNG Pte Ltd | J141: 8699000 | K141: 656.9646256 | L141: 60 | M141: JTC
A142: 2006-09-29 | B142: 2006-11-10 | C142: 2006-12-01 | D142: L14 Changi North Street 1 | E142: Business 2 | F142: 15000 | G142: 1 | H142: 15000 | I142: Global Orion Properties Ltd | J142: 4300228 | K142: 286.6818667 | L142: 30 | M142: JTC
A143: 2006-06-30 | B143: 2006-08-11 | C143: 2006-09-18 | D143: Ubi Road 2/ Ubi Avenue 3/ Ubi Avenue 4/ Ubi Link | E143: Business 1 | F143: 38577.5 | G143: 2.5 | H143: 96443.75 | I143: Sim Lian Development Pte Ltd | J143: 39999000 | K143: 414.7391614 | L143: 60 | M143: JTC
A144: 2006-05-16 | B144: 2006-07-04 | C144: 2006-09-18 | D144: Serangoon North Avenue 4 (end) | E144: Business 1 | F144: 29225 | G144: 2.5 | H144: 73062.5 | I144: Orion-One Development Pte Ltd | J144: 22800228 | K144: 312.0647117 | L144: 60 | M144: JTC
A145: 2005-09-27 | B145: 2005-11-22 | C145: 2006-01-05 | D145: Pioneer Road | E145: Business 2 | F145: 19858 | G145: 1 | H145: 19858 | I145: Soilbuild Group Holdings Ltd | J145: 3028000 | K145: 152.4826266 | L145: 30 | M145: JTC
A146: 2005-02-17 | B146: 2005-04-12 | C146: 2005-04-15 | D146: Penjuru Road | E146: Business 2 | F146: 20000 | G146: 1 | H146: =F146*G146 -> 20000 | I146: Stagis Pte Ltd | J146: 5300000 | K146: 265 | L146: 30 | M146: JTC

Sheet As at 01 07 2019
A1: Date of Launch | B1: Date of Tender Closing | C1: Date of Award | D1: Location | E1: Type of Development Allowed | F1: Site Area (m2) | G1: Plot Ratio | H1: Maximum Permissible Gross Floor Area (GFA) (m2) | I1: Name of Successful Tenderer | J1: Successful Tender Price | K1: Price Psm Per Gross Plot Ratio | L1: Lease (Years) | M1: Land Owner
A2: 2019-03-26 | B2: 2019-05-07 | C2: 2019-06-26 | D2: Plot 2 Gambas Way | E2: Business 2 | F2: 11958.8 | G2: 2.5 | H2: 29897 | I2: Soilbuild Group Holdings Ltd | J2: 40019900 | K2: 1338.59 | L2: 30 | M2: State
A3: 2019-01-29 | B3: 2019-03-26 | C3: 2019-05-17 | D3: Woodlands Industrial Park E2/E5 | E3: Business 2 | F3: 5000 | G3: 2.5 | H3: 12500 | I3: Whye Wah Development & Construction Pte Ltd | J3: 3375000 | K3: 270 | L3: 20 | M3: State
A4: 2018-12-26 | B4: 2019-02-13 | C4: 2019-04-05 | D4: Woodlands Avenue 12 | E4: Business 2 | F4: 20937 | G4: 2.5 | H4: 52342.5 | I4: Soon Hock Investment Group Pte Ltd | J4: 81999000 | K4: 1566.53 | L4: 30 | M4: State
A5: 2018-11-27 | B5: 2019-01-22 | C5: 2019-03-29 | D5: Plot 20, Tuas South Link 3 | E5: Business 2 | F5: 4456.3 | G5: 1.4 | H5: =F5*G5 -> 6238.82 | I5: Transmare-Chemie (S) Pte Ltd | J5: 2050000 | K5: 328.44 | L5: 20 | M5: State
A6: 2018-10-30 | B6: 2018-12-26 | C6: 2019-02-20 | D6: Jalan Lam Huat (Plot B) | E6: Business 2 | F6: 7694.7 | G6: 2.5 | H6: =F6*G6 -> 19236.75 | I6: Carros Project Management Pte Ltd | J6: 5068888 | K6: 263.5 | L6: 20 | M6: State
A7: 2018-09-25 | B7: 2018-11-20 | C7: 2019-01-03 | D7: Plot 27, Tuas South Link 3 | E7: Business 2 | F7: 5953.3 | G7: 1.4 | H7: =F7*G7 -> 8334.62 | I7: L.S. Construction Pte Ltd | J7: 2880000 | K7: 345.55 | L7: 20 | M7: State
A8: 2018-08-28 | B8: 2018-10-09 | C8: 2018-10-25 | D8: Corporation Drive | E8: Business 2 | F8: 12800.4 | G8: 2.5 | H8: =F8*G8 -> 32001 | I8: Soilbuild Group Holdings Ltd | J8: 44090319 | K8: =J8/H8 -> 1377.779413 | L8: 30 | M8: JTC
A9: 2018-05-30 | B9: 2018-08-01 | C9: 2018-09-28 | D9: Braddell Road | E9: Business 1 | F9: 9716.2 | G9: 2.5 | H9: =F9*G9 -> 24290.5 | I9: BP-SH1 Pte Ltd | J9: 53588888.88 | K9: =J9/H9 -> 2206.166562 | L9: 30 | M9: State
A10: 2018-05-30 | B10: 2018-07-25 | C10: 2018-09-14 | D10: Tampines Industrial Drive (Plot 10) | E10: Business 2 | F10: 4702.6 | G10: 1.4 | H10: 6583.64 | I10: Blu World Pte Ltd | J10: 3200000 | K10: 486.0533079 | L10: 20 | M10: State
A11: 2018-04-24 | B11: 2018-06-19 | C11: 2018-07-27 | D11: Plot 13, Tuas South Link 1 | E11: Business 2 | F11: 24129.5 | G11: 2 | H11: 48259 | I11: Yee Lee Development Pte Ltd | J11: 26800000 | K11: 555.3368284 | L11: 30 | M11: JTC
A12: 2018-01-30 | B12: 2018-03-27 | C12: 2018-05-23 | D12: Plot 18, Tuas South Link 3 | E12: Business 2 | F12: 4299.9 | G12: 1.4 | H12: 6019.86 | I12: LNT Coating Pte Ltd | J12: 2038000 | K12: 338.5460791 | L12: 20 | M12: State
A13: 2018-01-04 | B13: 2018-03-13 | C13: 2018-04-27 | D13: Tuas Bay Close | E13: Business 2 | F13: 27177.6 | G13: 1.7 | H13: 46201.92 | I13: Soilbuild Group Holdings Ltd | J13: 29848888 | K13: 646.0529779 | L13: 30 | M13: JTC
A14: 2017-12-26 | B14: 2018-02-27 | C14: 2018-04-27 | D14: Plot 23, Tuas South Link 3 | E14: Business 2 | F14: 6276.5 | G14: 1.4 | H14: 8787.1 | I14: Bonco Enterprise Pte Ltd | J14: 2794298 | K14: 318.0000228 | L14: 20 | M14: State
A15: 2017-09-26 | B15: 2017-11-21 | C15: 2018-01-25 | D15: Plot 16, Tuas South Link 3 | E15: Business 2 | F15: 4993.1 | G15: 1.4 | H15: 6990.34 | I15: Soilbuild Construction Group Ltd | J15: 2633800 | K15: 376.7770952 | L15: 20 | M15: State
A16: 2017-09-05 | B16: 2017-10-24 | C16: 2017-12-13 | D16: Plot 14, Tuas South Link 3 | E16: Business 2 | F16: 5736.4 | G16: 1.4 | H16: 8030.96 | I16: Wee Hur Construction Pte Ltd | J16: 2680000 | K16: 333.7085479 | L16: 20 | M16: State
A17: 2017-07-25 | B17: 2017-09-19 | C17: 2017-11-03 | D17: Plot 25, Tuas South Link 3 | E17: Business 2 | F17: 4699.1 | G17: 1.4 | H17: 6578.74 | I17: G.T.H. Engineering & Construction Pte Ltd | J17: 2511000 | K17: 381.6840307 | L17: 20 | M17: State
A18: 2017-06-30 | B18: 2017-08-25 | C18: 2017-10-06 | D18: Plot 10, Tuas South Link 2 | E18: Business 2 | F18: 4802 | G18: 1.4 | H18: 6722.8 | I18: Zhao Yang Geotechnic Pte Ltd | J18: 2756348 | K18: 410 | L18: 20 | M18: JTC
A19: 2017-05-30 | B19: 2017-07-25 | C19: 2017-09-14 | D19: Plot A, Jalan Lam Huat | E19: Business 2 | F19: 8000.5 | G19: 2.5 | H19: 20001.25 | I19: JC Development Pte Ltd | J19: 6160000 | K19: 307.9807512 | L19: 20 | M19: State
A20: 2017-04-25 | B20: 2017-06-20 | C20: 2017-08-16 | D20: Plot 18, Tuas South Link 3 | E20: Business 2 | F20: 4299.9 | G20: 1.4 | H20: 6019.86 | I20: LNT Coating Pte Ltd | J20: 2450600 | K20: 407.0858791 | L20: 20 | M20: State
A21: 2017-03-28 | B21: 2017-05-23 | C21: 2017-07-20 | D21: Plot 24, Tuas South Link 3 | E21: Business 2 | F21: 4687.5 | G21: 1.4 | H21: 6562.5 | I21: Pan Asian Flow Technology Pte Ltd | J21: 2500000 | K21: 380.952381 | L21: 20 | M21: State
A22: 2017-02-28 | B22: 2017-04-25 | C22: 2017-06-02 | D22: Plot 3, Tampines North Drive 3 | E22: Business 2 | F22: 5804 | G22: 2.5 | H22: 14510 | I22: BHCC Construction Pte Ltd | J22: 7000000 | K22: 482.4259132 | L22: 20 | M22: State
A23: 2017-01-31 | B23: 2017-03-28 | C23: 2017-05-05 | D23: Plot 15, Tuas South Link 3 | E23: Business 2 | F23: 4994.6 | G23: 1.4 | H23: 6992.44 | I23: Soilbuild Construction Group Ltd | J23: 2711800 | K23: 387.8188444 | L23: 20 | M23: State
A24: 2016-12-27 | B24: 2017-02-21 | C24: 2017-04-05 | D24: Plot 17, Tuas South Link 3 | E24: Business 2 | F24: 4874.2 | G24: 1.4 | H24: 6823.88 | I24: Goh Sin Guan Huat Pte Ltd | J24: 2351314.08 | K24: 344.5714286 | L24: 20 | M24: State
A25: 2016-11-29 | B25: 2017-01-24 | C25: 2017-03-15 | D25: Plot 1, Tampines Industrial Drive | E25: Business 2 | F25: 5253.5 | G25: 1.4 | H25: 7354.9 | I25: Power Partners Private Limited | J25: 3320000 | K25: 451.3997471 | L25: 20 | M25: State
A26: 2016-10-25 | B26: 2016-12-20 | C26: 2017-02-08 | D26: Plot 22, Tuas South Link 3 | E26: Business 2 | F26: 5795.4 | G26: 1.4 | H26: 8113.56 | I26: Hexacon Construction Pte Ltd | J26: 2995055 | K26: 369.1419056 | L26: 20 | M26: JTC
A27: 2016-09-27 | B27: 2016-11-22 | C27: 2016-12-27 | D27: Plot 11, Tuas South Link 2 | E27: Business 2 | F27: 5016.5 | G27: 1.4 | H27: 7023.1 | I27: Zhao Yang Geo-Systems Pte Ltd | J27: 2688888 | K27: 382.8634079 | L27: 20 | M27: JTC
A28: 2016-08-30 | B28: 2016-10-25 | C28: 2016-11-17 | D28: Plot 6, Tuas South Link 2 | E28: Business 2 | F28: 5050 | G28: 1.4 | H28: 7070 | I28: Wellbuilt Pte Ltd | J28: 2829060 | K28: 400.1499293 | L28: 20 | M28: JTC
A29: 2016-07-26 | B29: 2016-10-04 | C29: 2016-11-17 | D29: Plot 3, Tampines Industrial Drive | E29: Business 2 | F29: 4885.7 | G29: 1.4 | H29: 6839.98 | I29: Kok Tong Transport & Engineering Works Pte Ltd | J29: 3105360 | K29: 454.0013275 | L29: 20 | M29: State
A30: 2016-06-28 | B30: 2016-08-23 | C30: 2016-09-29 | D30: Plot 8, Tuas South Link 2 | E30: Business 2 | F30: 5953.3 | G30: 1.4 | H30: 8334.62 | I30: Aik Leong Plumbing Construction Pte Ltd | J30: 3210000 | K30: 385.1405343 | L30: 20 | M30: JTC
A31: 2016-05-31 | B31: 2016-07-26 | C31: 2016-08-10 | D31: Plot 7, Tuas South Link 2 | E31: Business 2 | F31: 5332.7 | G31: 1.4 | H31: 7465.78 | I31: SE Global Group Pte Ltd | J31: 2680000 | K31: 358.9711993 | L31: 20 | M31: JTC
A32: 2016-03-29 | B32: 2016-05-24 | C32: 2016-06-22 | D32: Woodlands Sector 2 | E32: Business 2 | F32: 13542 | G32: 1.4 | H32: 18958.8 | I32: Yee Lee Development Pte Ltd | J32: 6180000 | K32: 325.9699981 | L32: 20 | M32: JTC
A33: 2016-02-23 | B33: 2016-04-05 | C33: 2016-05-06 | D33: Plot 1, Tuas South Link 1 | E33: Business 2 | F33: 33300.1 | G33: 2 | H33: 66600.2 | I33: Diamond Land Pte Ltd | J33: 37500000 | K33: 563.0613722 | L33: 30 | M33: JTC
A34: 2016-01-26 | B34: 2016-03-22 | C34: 2016-05-06 | D34: Plot 2, Tampines Industrial Drive | E34: Business 2 | F34: 4890.7 | G34: 1.4 | H34: 6846.98 | I34: Hock Lian Seng Holdings Limited | J34: 3708000 | K34: 541.5526261 | L34: 20 | M34: State
A35: 2015-12-29 | B35: 2016-02-23 | C35: 2016-04-07 | D35: Plot 5, Tampines Industrial Drive | E35: Business 2 | F35: 5077.8 | G35: 1.4 | H35: 7108.92 | I35: Precise Development Pte Ltd | J35: 3611331.36 | K35: 508 | L35: 20 | M35: State
A36: 2015-12-29 | B36: 2016-02-23 | C36: 2016-04-07 | D36: Plot 9, Tuas South Link 2 | E36: Business 2 | F36: 4802.1 | G36: 1.4 | H36: 6722.94 | I36: Texas Petrochemical Asia Pacific Pte Ltd | J36: 2200000 | K36: 327.2377858 | L36: 20 | M36: JTC
A37: 2015-11-24 | B37: 2016-01-19 | C37: 2016-04-07 | D37: Plot 7, Tampines Industrial Drive | E37: Business 2 | F37: 4112.5 | G37: 1.4 | H37: 5757.5 | I37: Chye Thiam Maintenance Pte Ltd | J37: 2982385 | K37: 518 | L37: 20 | M37: State
A38: 2015-09-29 | B38: 2015-11-24 | C38: 2016-01-14 | D38: Plot 5, Tuas South Link 2 | E38: Business 2 | F38: 5050 | G38: 1.4 | H38: 7070 | I38: Hiap Shing Construction Pte Ltd | J38: 3000000 | K38: 424.3281471 | L38: 20 | M38: JTC
A39: 2015-08-25 | B39: 2015-10-20 | C39: 2015-12-18 | D39: Plot 12, Tampines Industrial Drive | E39: Business 2 | F39: 4794.5 | G39: 1.4 | H39: 6712.3 | I39: Soon Lee Heng Trading & Transportation Pte Ltd | J39: 4900000 | K39: 730.0031286 | L39: 20 | M39: State
A40: 2015-08-25 | B40: 2015-10-20 | C40: 2015-11-27 | D40: Tanjong Penjuru | E40: Business 2 | F40: 16307.9 | G40: 2.5 | H40: 40769.75 | I40: Trans Eurokars Pte Ltd | J40: 13000000 | K40: 318.8638635 | L40: 20 | M40: JTC
A41: 2015-07-28 | B41: 2015-09-22 | C41: 2015-10-30 | D41: Plot 9, Tampines Industrial Drive | E41: Business 2 | F41: 5778.2 | G41: 1.4 | H41: 8089.48 | I41: Zulin (S.E.A) Pte Ltd | J41: 5850000 | K41: 723.1614393 | L41: 20 | M41: State
A42: 2015-06-30 | B42: 2015-08-25 | C42: 2015-10-02 | D42: Plot 6, Tampines Industrial Drive | E42: Business 2 | F42: 4732.5 | G42: 1.4 | H42: 6625.5 | I42: Lim Wen Heng Construction Pte Ltd | J42: 4935997.6 | K42: 745.0000151 | L42: 20 | M42: State
A43: 2015-05-26 | B43: 2015-07-21 | C43: 2015-09-02 | D43: Plot 11, Tampines Industrial Drive | E43: Business 2 | F43: 5283.6 | G43: 1.4 | H43: 7397.04 | I43: Wai Fong Construction Pte Ltd | J43: 5000006 | K43: 675.9468652 | L43: 20 | M43: State
A44: 2015-04-28 | B44: 2015-06-23 | C44: 2015-07-15 | D44: Plot 4, Tuas South Link 2 | E44: Business 2 | F44: 7900 | G44: 1.4 | H44: 11060 | I44: Mundipharma Manufacturing Pte Ltd | J44: 12500000 | K44: 1130.198915 | L44: 20 | M44: JTC
A45: 2015-03-31 | B45: 2015-05-26 | C45: 2015-06-26 | D45: Plot 4, Tampines Industrial Drive | E45: Business 2 | F45: 5686.3 | G45: 1.4 | H45: 7960.82 | I45: Sim Lian Construction Co (Pte) Ltd | J45: 5900000 | K45: 741.1296826 | L45: 20 years | M45: State
A46: 2015-02-24 | B46: 2015-04-21 | C46: 2015-05-15 | D46: Plot 46, Tuas South Street 6 | E46: Business 2 | F46: 6988 | G46: 1 | H46: 6988 | I46: Tean Chay Crane Rental Pte Ltd | J46: 5611365 | K46: 803.0001431 | L46: 20 years 3 months | M46: JTC
A47: 2015-01-27 | B47: 2015-03-24 | C47: 2015-04-27 | D47: Plot 43, Tuas South Street 11​ | E47: Business 2 | F47: 8409.8 | G47: 1 | H47: 8409.8 | I47: Ho Lee Construction Pte Ltd | J47: 6996953.6 | K47: 832 | L47: 20 years 4 months | M47: State
A48: 2014-12-29 | B48: 2015-02-09 | C48: 2015-03-25 | D48: Plot 53, Tuas South Street 7 | E48: Business 2 | F48: 5038.6 | G48: 1 | H48: 5038.6 | I48: L & P Blasting Pte Ltd | J48: 5506480 | K48: 1092.859128 | L48: 20 years 4 months | M48: State
A49: 2014-12-16 | B49: 2015-02-10 | C49: 2015-03-25 | D49: Plot 42, Tuas South Street 11​ | E49: Business 2 | F49: 8409.2 | G49: 1 | H49: 8409.2 | I49: Ho Lee Construction Pte Ltd | J49: 6744178.4 | K49: 802 | L49: 20 years 5 months | M49: State
A50: 2014-11-25 | B50: 2015-01-20 | C50: 2015-02-27 | D50: Plot 8, Tampines Industrial Drive | E50: Business 2 | F50: 5033.3 | G50: 1.4 | H50: 7046.62 | I50: Soilbuild Group Holdings Ltd | J50: 5800001 | K50: 823.0897934 | L50: 20 years | M50: State
A51: 2014-11-25 | B51: 2015-01-20 | C51: 2015-02-27 | D51: Plot 40, Tuas South Street 11 | E51: Business 2 | F51: 10000 | G51: 1 | H51: 10000 | I51: Tiong Seng Contractors (Pte) Ltd | J51: 8400000 | K51: 840 | L51: 20 years 6 months | M51: State
A52: 2014-10-28 | B52: 2014-12-23 | C52: 2015-01-19 | D52: Plot 52, Tuas South Street 9 | E52: Business 2 | F52: 8369 | G52: 1 | H52: 8369 | I52: Asiaone Logistics & Warehousing Pte Ltd | J52: 7038000 | K52: 840.9606883 | L52: 20 years 7 months | M52: JTC
A53: 2014-09-29 | B53: 2014-11-24 | C53: 2014-12-23 | D53: Plot 50, Tuas South Street 9 | E53: Business 2 | F53: 8369 | G53: 1 | H53: 8369 | I53: Prospaq Group Pte Ltd | J53: 6878000 | K53: 821.842514 | L53: 20 years 8 months | M53: JTC
A54: 2014-09-29 | B54: 2014-11-24 | C54: 2014-12-23 | D54: Plot 1, Tampines North Drive 1 | E54: Business 2 | F54: 27395.2 | G54: 2.5 | H54: 68488 | I54: Goldprime Land Pte Ltd | J54: 64388888 | K54: 940.148464 | L54: 30 | M54: State
A55: 2014-09-16 | B55: 2014-10-28 | C55: 2014-11-27 | D55: Plot 41, Tuas South Street 11 | E55: Business 2 | F55: 9000 | G55: 1 | H55: 9000 | I55: Jian Man Construction Pte Ltd | J55: 7510000 | K55: 834.4444444 | L55: 20 years 10 months | M55: State
A56: 2014-08-26 | B56: 2014-10-21 | C56: 2014-11-21 | D56: Plot 48, Tuas South Street 9 | E56: Business 2 | F56: 8369 | G56: 1 | H56: 8369 | I56: New Hope Singapore Pte Ltd | J56: 6963008 | K56: 832 | L56: 20 years 9 months | M56: JTC
A57: 2014-07-29 | B57: 2014-09-09 | C57: 2014-10-23 | D57: Plot 44, Tuas South Street 7 | E57: Business 2 | F57: 5038.6 | G57: 1 | H57: 5038.6 | I57: IG Tuas Pte Ltd | J57: 5201000 | K57: 1032.231175 | L57: 20 years 10 months | M57: State
A58: 2014-06-24 | B58: 2014-08-26 | C58: 2014-10-09 | D58: Plot 12, Off Tuas South Avenue 7 | E58: Business 2 | F58: 25700 | G58: 2 | H58: 51400 | I58: Hock Lian Seng Holdings Limited | J58: 30988000 | K58: 602.8793774 | L58: 30 | M58: JTC
A59: 2014-04-29 | B59: 2014-07-01 | C59: 2014-07-24 | D59: Tuas Avenue 11 | E59: Business 2 | F59: 8922 | G59: 1.4 | H59: 12490.8 | I59: Soon Hock Realty Pte Ltd | J59: 14388000 | K59: 1151.887789 | L59: 30 | M59: JTC
A60: 2014-04-29 | B60: 2014-07-01 | C60: 2014-07-24 | D60: Plot 39, Tuas South Street 11 | E60: Business 2 | F60: 10000 | G60: 1 | H60: 10000 | I60: Tiong Aik Construction Pte Ltd | J60: 8073000 | K60: 807.3 | L60: 20 years 10 months | M60: JTC
A61: 2014-03-25 | B61: 2014-05-06 | C61: 2014-06-02 | D61: Plot 49, Tuas South Street 9 | E61: Business 2 | F61: 8369 | G61: 1 | H61: 8369 | I61: Pan Marine Blasting Abrasives Pte Ltd | J61: 5925252 | K61: 708 | L61: 21 years 2 months | M61: JTC
A62: 2014-03-25 | B62: 2014-05-06 | C62: 2014-06-02 | D62: Plot 51, Tuas South Street 9 | E62: Business 2 | F62: 8369 | G62: 1 | H62: 8369 | I62: Asiagroup Leasing Pte Ltd | J62: 5948000 | K62: 710.7181264 | L62: 21 years 2 months | M62: JTC
A63: 2014-02-25 | B63: 2014-04-08 | C63: 2014-04-29 | D63: Plot 45, Tuas South Street 6 | E63: Business 2 | F63: 6988 | G63: 1 | H63: 6988 | I63: SH Design & Build Pte Ltd | J63: 5278000 | K63: 755.2947911 | L63: 21 years 3 months | M63: JTC
A64: 2014-02-25 | B64: 2014-04-08 | C64: 2014-04-29 | D64: Plot 47, Tuas South Street 6 | E64: Business 2 | F64: 6988 | G64: 1 | H64: 6988 | I64: Soon Hock Investment Group Pte Ltd | J64: 5115000 | K64: 731.9690899 | L64: 21 years 3 months | M64: JTC
A65: 2013-12-27 | B65: 2014-02-07 | C65: 2014-04-14 | D65: Plot 6, Tuas South Street 6 | E65: Business 2 | F65: 4551.4 | G65: 1 | H65: 4551.4 | I65: H P Construction & Engineering Pte Ltd | J65: 4100000 | K65: 900.8217252 | L65: 21 years 5 months | M65: State
A66: 2013-12-27 | B66: 2014-02-07 | C66: 2014-04-14 | D66: Plot 34, Tuas South Street 13 | E66: Business 2 | F66: 7447.4 | G66: 1 | H66: 7447.4 | I66: Evan Lim & Co. Pte. Ltd. | J66: 4850000 | K66: 651.2339877 | L66: 21 years 5 months | M66: State
A67: 2013-12-27 | B67: 2014-02-07 | C67: 2014-04-14 | D67: Plot 35, Tuas South Street 11 | E67: Business 2 | F67: 7432.1 | G67: 1 | H67: 7432.1 | I67: Toko Tan Equipment Pte Ltd | J67: 4293524.17 | K67: 577.7 | L67: 21 years 5 months | M67: State
A68: 2013-12-27 | B68: 2014-02-07 | C68: 2014-04-14 | D68: Plot 38, Tuas South Street 13 | E68: Business 2 | F68: 7176.5 | G68: 1 | H68: 7176.5 | I68: AEI (China) Holdings Pte. Ltd | J68: 5038888 | K68: 702.1372535 | L68: 21 years 5 months | M68: State
A69: 2013-11-29 | B69: 2014-01-10 | C69: 2014-03-10 | D69: Plot 33, Tuas South Street 11 | E69: Business 2 | F69: 7432.1 | G69: 1 | H69: 7432.1 | I69: United Hudson Investment Pte Ltd | J69: 4808000 | K69: 646.92 | L69: 21 years 6 months | M69: State
A70: 2013-11-29 | B70: 2014-01-10 | C70: 2014-03-10 | D70: Plot 36, Tuas South Street 13 | E70: Business 2 | F70: 7431.7 | G70: 1 | H70: 7431.7 | I70: Quek & Quek Civil Engineering Pte Ltd | J70: 7431700 | K70: 1000 | L70: 21 years 6 months | M70: State
A71: 2013-11-29 | B71: 2014-01-10 | C71: 2014-03-10 | D71: Plot 37, Tuas South Street 11 | E71: Business 2 | F71: 7177 | G71: 1 | H71: 7177 | I71: United Hudson Investment Pte Ltd | J71: 5029200 | K71: 700.74 | L71: 21 years 6 months | M71: State
A72: 2013-11-29 | B72: 2014-01-10 | C72: 2014-03-10 | D72: Woodlands Industrial Park E9 | E72: Business 2 (with an integrated Heavy Vehicle Park) | F72: 18394.1 | G72: 2.5 | H72: 45985.25 | I72: Vantage Properties Pte Ltd | J72: 56180000 | K72: 1221.7 | L72: 30 | M72: State
A73: 2013-10-31 | B73: 2013-12-12 | C73: 2014-01-28 | D73: Plot 20, Tuas South Street 10 | E73: Business 2 | F73: 3036.2 | G73: 1 | H73: =F73*G73 -> 3036.2 | I73: The Hi-Fi Company Pte Ltd | J73: 3104759 | K73: 1022.58 | L73: 21 years 7 months | M73: State
A74: 2013-10-31 | B74: 2013-12-12 | C74: 2014-01-28 | D74: Plot 22, Tuas South Street 10 | E74: Business 2 | F74: 3036 | G74: 1 | H74: =F74*G74 -> 3036 | I74: Brown Metal Engineering Pte Ltd | J74: 3235320 | K74: 1065.65 | L74: 21 years 7 months | M74: State
A75: 2013-10-31 | B75: 2013-12-12 | C75: 2014-01-28 | D75: Plot 24, Tuas South Street 10 | E75: Business 2 | F75: 4551.2 | G75: 1 | H75: =F75*G75 -> 4551.2 | I75: E C Builders Pte Ltd | J75: 4600000 | K75: 1010.72 | L75: 21 years 7 months | M75: State
A76: 2013-09-27 | B76: 2013-11-22 | C76: 2013-12-20 | D76: Tai Seng Street | E76: Business 2 - White | F76: 11,780.0 (Principal Site) | G76: 3.5 (B1-2.5 W-1.0) | H76: =11780*3.5 -> 41230 | I76: Mapletree Trustee Pte Ltd | J76: 120078500 | K76: 2912.41 | L76: 30 | M76: JTC
A77: 2013-09-27 | B77: 2013-11-08 | C77: 2013-12-06 | D77: Plot 2, Tuas South Street 6 | E77: Business 2 | F77: 3036.6 | G77: 1 | H77: =F77*G77 -> 3036.6 | I77: Tiong Lee Huat Machinery & Construction Pte Ltd | J77: 3000000 | K77: 987.95 | L77: 21 years 8 months | M77: State
A78: 2013-09-27 | B78: 2013-11-08 | C78: 2013-12-06 | D78: Plot 29, Tuas South Street 7 | E78: Business 2 | F78: 5033.1 | G78: 1 | H78: 5033.1 | I78: Poh Meng Trading & Cleaning Services Pte Ltd | J78: 4991272.91 | K78: 991.69 | L78: 21 years 8 months | M78: State
A79: 2013-08-29 | B79: 2013-10-10 | C79: 2013-11-08 | D79: Plot 4, Tuas South Street 6 | E79: Business 2 | F79: 3036.7 | G79: 1 | H79: 3036.7 | I79: Derman Aluminum (S) Pte Ltd | J79: 2880917 | K79: 948.7 | L79: 21 years 9 months | M79: State
A80: 2013-08-29 | B80: 2013-10-10 | C80: 2013-11-08 | D80: Plot 28, Tuas South Street 7 | E80: Business 2 | F80: 5047.4 | G80: 1 | H80: 5047.4 | I80: Reclaims Enterprise Pte Ltd | J80: 5330054.4 | K80: 1056 | L80: 21 years 9 months | M80: State
A81: 2013-06-26 | B81: 2013-08-07 | C81: 2013-09-06 | D81: Tuas South Avenue 3 | E81: Business 2 | F81: 39578.5 | G81: 1.4 | H81: 55409.9 | I81: Grow-Tech Properties Pte Ltd | J81: 66777000 | K81: 1205.15 | L81: 30 | M81: State
A82: 2013-06-26 | B82: 2013-08-07 | C82: 2013-09-06 | D82: Plot 19, Tuas South Street 10 | E82: Business 2 | F82: 4526.7 | G82: 1 | H82: 4526.7 | I82: Kian Hock Engineering Pte Ltd | J82: 4485131.29 | K82: 990.82 | L82: 21 years 11 months | M82: State
A83: 2013-06-26 | B83: 2013-08-07 | C83: 2013-09-06 | D83: Plot 21, Tuas South Street 10 | E83: Business 2 | F83: 3035.8 | G83: 1 | H83: 3035.8 | I83: SWHL Pte Ltd | J83: 2783640 | K83: 916.94 | L83: 21 years 11 months | M83: State
A84: 2013-06-26 | B84: 2013-08-07 | C84: 2013-09-06 | D84: Plot 23, Tuas South Street 10 | E84: Business 2 | F84: 3036 | G84: 1 | H84: 3036 | I84: Jay Machinery Pte Ltd | J84: 2680000 | K84: 882.74 | L84: 21 years 11 months | M84: State
A85: 2013-05-31 | B85: 2013-07-12 | C85: 2013-07-31 | D85: Mandai Link | E85: Business 2 (Food only) | F85: 6891.2 | G85: 2.5 | H85: 17228 | I85: Wealth Property Pte Ltd | J85: 21308888 | K85: 1236.88 | L85: 30 | M85: JTC
A86: 2013-04-30 | B86: 2013-06-11 | C86: 2013-07-09 | D86: Plot 1, Tuas South Street 6 | E86: Business 2 | F86: 4550.9 | G86: 1 | H86: =F86*G86 -> 4550.9 | I86: S.H. Stainless Steel Contractor Pte Ltd | J86: 4208000 | K86: 924.65 | L86: 22 years 1 month | M86: State
A87: 2013-04-30 | B87: 2013-06-11 | C87: 2013-07-09 | D87: Plot 3, Tuas South Street 6 | E87: Business 2 | F87: 3036.2 | G87: 1 | H87: =F87*G87 -> 3036.2 | I87: Stallion Development Pte Ltd | J87: 2600000 | K87: 856.33 | L87: 22 years 1 month | M87: State
A88: 2013-04-30 | B88: 2013-06-11 | C88: 2013-07-09 | D88: Plot 5, Tuas South Street 6 | E88: Business 2 | F88: 3035.8 | G88: 1 | H88: =F88*G88 -> 3035.8 | I88: Jin Choon Civil Engineering Pte Ltd | J88: 2490340 | K88: 820.32 | L88: 22 years 1 month | M88: State
A89: 2013-03-28 | B89: 2013-05-09 | C89: 2013-06-07 | D89: Loyang Way | E89: Business 2 | F89: 20633 | G89: 2.5 | H89: =F89*G89 -> 51582.5 | I89: OKH Global Ltd | J89: 61636000 | K89: 1194.9 | L89: 30 | M89: JTC
A90: 2013-02-28 | B90: 2013-04-11 | C90: 2013-05-10 | D90: Tuas Bay Close | E90: Business 2 | F90: 24971 | G90: 1.7 | H90: =F90*G90 -> 42450.7 | I90: Zacd Investments Pte Ltd, Bohai Investments (Sengkang) Pte Ltd | J90: 37100000 | K90: 873.95 | L90: 30 | M90: JTC
A91: 2013-01-31 | B91: 2013-03-28 | C91: 2013-04-23 | D91: Tuas Bay Walk | E91: Business 2 (Food only) | F91: 5808 | G91: 1.7 | H91: 9873.6 | I91: Yee Lee Development Pte Ltd | J91: 8988000 | K91: 910.31 | L91: 30 | M91: JTC
A92: 2013-01-31 | B92: 2013-03-28 | C92: 2013-04-23 | D92: Buroh Crescent | E92: Business 2 | F92: 17681 | G92: 2.5 | H92: 44202.5 | I92: OKH Holdings Pte Ltd | J92: 39017000 | K92: 882.69 | L92: 30 | M92: JTC
A93: 2012-12-27 | B93: 2013-02-07 | C93: 2013-03-21 | D93: Tuas South Avenue 10 | E93: Business 2 | F93: 39616 | G93: 1.4 | H93: 55462.4 | I93: Soon Hock Group Pte Ltd | J93: 60999000 | K93: 1099.83 | L93: 30 | M93: State
A94: 2012-12-27 | B94: 2013-02-07 | C94: 2013-03-21 | D94: Plot 10, Tuas South Street 8 | E94: Business 2 | F94: 3035.6 | G94: 1 | H94: 3035.6 | I94: Boilermaster Holdings Pte Ltd | J94: 2400000 | K94: 790.62 | L94: 22 years 5 months | M94: State
A95: 2012-12-27 | B95: 2013-02-07 | C95: 2013-03-11 | D95: Ubi Avenue 4 | E95: Business 1 | F95: 3503.5 | G95: 2.5 | H95: 8758.75 | I95: BP-Ubi Industrial Pte Ltd | J95: 16216020 | K95: 1851.41 | L95: 30 | M95: JTC
A96: 2012-11-20 | B96: 2013-01-02 | C96: 2013-02-01 | D96: Plot 30, Tuas South Street 6 | E96: Business 2 | F96: 8597.4 | G96: 1 | H96: 8597.4 | I96: Koh Brothers Building & Civil Engineering Contractor (Pte) Ltd | J96: 6570000 | K96: 764.1845209 | L96: 22 years 6 months | M96: State
A97: 2012-11-20 | B97: 2013-01-02 | C97: 2013-02-01 | D97: Plot 32, Tuas South Street 6 | E97: Business 2 | F97: 8732.2 | G97: 1 | H97: 8732.2 | I97: SH Design & Build Pte Ltd | J97: 6650000 | K97: 761.5492087 | L97: 22 years 6 months | M97: State
A98: 2012-11-20 | B98: 2013-01-02 | C98: 2013-01-29 | D98: Buroh Street | E98: Business 2 | F98: 27400 | G98: 2.5 | H98: 68500 | I98: Capital Development Pte Ltd and ZACD Investments Pte Ltd | J98: 82100000 | K98: 1198.540146 | L98: 30 | M98: JTC
A99: 2012-10-31 | B99: 2012-12-26 | C99: 2013-01-29 | D99: Off Woodlands Avenue 10 | E99: Business 2 | F99: 10705 | G99: 2.5 | H99: 26762.5 | I99: Bohai Investments (Sengkang) Pte Ltd and Punggol Drive Investments Pte Ltd | J99: 31700000 | K99: 1184.493227 | L99: 30 | M99: JTC
A100: 2012-10-31 | B100: 2012-12-12 | C100: 2013-01-08 | D100: Plot 8, Tuas South Street 8 | E100: Business 2 | F100: 3035.6 | G100: 1 | H100: 3035.6 | I100: T.M. Transport Contractor Pte Ltd | J100: 2222200 | K100: 732.05 | L100: 22 years 7 months | M100: State
A101: 2012-10-31 | B101: 2012-12-12 | C101: 2013-01-08 | D101: Plot 18, Tuas South Street 8 | E101: Business 2 | F101: 4526.9 | G101: 1 | H101: 4526.9 | I101: LNT Coating Pte Ltd | J101: 3800001 | K101: 839.43 | L101: 22 years 7 months | M101: State
A102: 2012-09-28 | B102: 2012-11-23 | C102: 2012-12-19 | D102: Plot 14, Tuas South Street 8 | E102: Business 2 | F102: 3035.9 | G102: 1 | H102: 3035.9 | I102: Greenway Environmental Waste Management Pte Ltd | J102: 2160000 | K102: 711.49 | L102: 22 years 8 months | M102: State
A103: 2012-09-28 | B103: 2012-11-23 | C103: 2012-12-19 | D103: Plot 16, Tuas South Street 8 | E103: Business 2 | F103: 3036 | G103: 1 | H103: 3036 | I103: Chuan Heng Hardware Trading Pte Ltd | J103: 2076624 | K103: 684 | L103: 22 years 8 months | M103: State
A104: 2012-09-28 | B104: 2012-11-23 | C104: 2012-12-05 | D104: Serangoon North Avenue 5 | E104: Business 1 | F104: 7504 | G104: 2.5 | H104: 18760 | I104: Popular Warehouse and Distribution Pte Ltd | J104: 26999000 | K104: 1439.18 | L104: 30 | M104: JTC
A105: 2012-08-31 | B105: 2012-10-12 | C105: 2012-11-09 | D105: Plot 12, Tuas South Sreet 8 | E105: Business 2 | F105: 4550.7 | G105: 1 | H105: 4550.7 | I105: Teck Leong Industries Pte Ltd | J105: 3200899 | K105: 703.3861 | L105: 22 years 9 months | M105: State
A106: 2012-08-31 | B106: 2012-10-12 | C106: 2012-10-29 | D106: Sunview Road | E106: Business 2 (Clean and Light Uses) | F106: 28173 | G106: 2.5 | H106: 70432.5 | I106: Asendial Pte Ltd | J106: 76571635 | K106: 1087.16 | L106: 30 | M106: JTC
A107: 2012-07-24 | B107: 2012-09-04 | C107: 2012-10-12 | D107: Plot 26, Tuas South Street 7 | E107: Business 2 | F107: 10094.9 | G107: 1 | H107: 10094.9 | I107: 800 Super Holdings Limited | J107: 6300000 | K107: 624.08 | L107: 22 | M107: State
A108: 2012-07-24 | B108: 2012-09-04 | C108: 2012-10-12 | D108: Plot 31, Tuas South Street 6 | E108: Business 2 | F108: 8569.3 | G108: 1 | H108: 8569.3 | I108: Kwong Lee Holdings Pte Ltd | J108: 4900068 | K108: 571.82 | L108: 22 | M108: State
A109: 2012-06-29 | B109: 2012-08-24 | C109: 2012-09-10 | D109: Plot 3, Tampines Industrial Crescent | E109: Business 2 (Clean Uses Only) | F109: 38800 | G109: 1.7 | H109: =F109*G109 -> 65960 | I109: Oxley Bliss Pte Ltd | J109: 55000000 | K109: 833.84 | L109: 30 | M109: JTC
A110: 2012-06-29 | B110: 2012-08-10 | C110: 2012-08-27 | D110: Mandai Link | E110: Business 2 (Clean and Light Uses) | F110: 22366 | G110: 2.5 | H110: =F110*G110 -> 55915 | I110: Soilbuild Group Holdings Ltd | J110: 45289000 | K110: 809.96 | L110: 30 | M110: JTC
A111: 2012-06-29 | B111: 2012-08-10 | C111: 2012-09-28 | D111: Plot 13, Tuas South Street 7 | E111: Business 2 | F111: 4551.1 | G111: 1 | H111: 4551.1 | I111: Chip Eng Seng Contractors (1988) Pte Ltd | J111: 3815188 | K111: 838.3 | L111: 23 | M111: State
A112: 2012-06-29 | B112: 2012-08-10 | C112: 2012-09-28 | D112: Plot 15, Tuas South Street 8 | E112: Business 2 | F112: 3036.1 | G112: 1 | H112: 3036.1 | I112: Transco-Pac Transport & Environmental Pte Ltd | J112: 1788262.9 | K112: 589 | L112: 23 | M112: State
A113: 2012-06-29 | B113: 2012-08-10 | C113: 2012-09-28 | D113: Plot 17, Tuas South Street 7 | E113: Business 2 | F113: 3036 | G113: 1 | H113: 3036 | I113: P-One (S) Pte Ltd | J113: 1489588 | K113: 490.64 | L113: 23 | M113: State
A114: 2012-06-15 | B114: 2012-07-27 | C114: 2012-09-28 | D114: Plot 7, Tuas South Street 9 | E114: Business 2 | F114: 4551.1 | G114: 1 | H114: 4551.1 | I114: Ben Ching Engineering Pte Ltd | J114: 2310001 | K114: 507.57 | L114: 23 | M114: State
A115: 2012-06-15 | B115: 2012-07-27 | C115: 2012-09-28 | D115: Plot 9, Tuas South Street 8 | E115: Business 2 | F115: 3035.8 | G115: 1 | H115: 3035.8 | I115: Eastman Lift Trucks Pte Ltd | J115: 1449291 | K115: 477.4 | L115: 23 | M115: State
A116: 2012-06-15 | B116: 2012-07-27 | C116: 2012-09-28 | D116: Plot 11, Tuas South Street 8 | E116: Business 2 | F116: 3035.7 | G116: 1 | H116: 3035.7 | I116: Westtech Pte Ltd | J116: 1130000 | K116: 372.24 | L116: 23 | M116: State
A117: 2012-06-15 | B117: 2012-07-27 | C117: 2012-09-28 | D117: Plot 25, Tuas South Street 7 | E117: Business 2 | F117: 5738.3 | G117: 1 | H117: 5738.3 | I117: 800 Super Holdings Ltd | J117: 6000800 | K117: 1045.75 | L117: 23 | M117: State
A118: 2012-06-15 | B118: 2012-07-27 | C118: 2012-09-28 | D118: Plot 27, Tuas South Street 7 | E118: Business 2 | F118: 5047.6 | G118: 1 | H118: 5047.6 | I118: 800 Super Holdings Ltd | J118: 3500800 | K118: 693.56 | L118: 23 | M118: State
A119: 2012-04-24 | B119: 2012-06-19 | C119: 2012-07-13 | D119: Tai Seng Link | E119: Business 2 (Clean and Light Uses) | F119: 4336 | G119: 2.5 | H119: =F119*G119 -> 10840 | I119: OKH (Woodlands) Pte Ltd | J119: 23300000 | K119: 2149.45 | L119: 30 | M119: JTC
A120: 2012-01-31 | B120: 2012-03-13 | C120: 2012-04-04 | D120: Serangoon North Avenue 4 (Parcel 1) | E120: Business 1 | F120: 8076 | G120: 2.5 | H120: 20190 | I120: Soon Hock Property Development Pte Ltd | J120: 47088999 | K120: 2332.29 | L120: 58 | M120: JTC
A121: 2011-08-31 | B121: 2011-10-27 | C121: 2011-11-28 | D121: Lavender Street/ Kallang Avenue | E121: Business 1 - White | F121: 28348 | G121: 3.0 (B1-2.5 W-0.5) | H121: 85044 | I121: PLC 8 Development Pte Ltd | J121: 218300000 | K121: 2566.91 | L121: 60 | M121: JTC
A122: 2011-03-25 | B122: 2011-05-20 | C122: 2011-06-08 | D122: Fusionopolis Link, Fusionopolis Phase 3 | E122: Business Park - White 40% (Office) | F122: 6253 | G122: 4 | H122: 25012 | I122: Ascendas Real Estate Investment Trust | J122: 110000000 | K122: 4397.89 | L122: 60 | M122: JTC
A123: 2011-01-24 | B123: 2011-03-07 | C123: 2011-03-15 | D123: Ubi Road 1/ Ubi Avenue 4 | E123: Business 1 | F123: 12378 | G123: 2.5 | H123: 30945 | I123: Oxley Ascend Realty Pte Ltd | J123: 72200000 | K123: 2333.17 | L123: 60 | M123: JTC
A124: 2010-10-29 | B124: 2010-12-10 | C124: 2011-01-17 | D124: Old Toh Tuck Road/ Toh Tuck Avenue | E124: Business 2 | F124: 10083 | G124: 1.6 | H124: 16132.8 | I124: Incorporated Builders Pte Ltd | J124: 8700000 | K124: 539.27 | L124: 30 | M124: JTC
A125: 2010-08-20 | B125: 2010-10-18 | C125: 2010-11-04 | D125: Yishun Street 23/ Yishun Avenue 9 | E125: Business 2 | F125: 46546.9 | G125: 2.5 | H125: 116367.25 | I125: Soilbuild Group Holdings Ltd | J125: 64011800 | K125: 550.08 | L125: 60 | M125: State
A126: 2010-03-31 | B126: 2010-05-12 | C126: 2010-06-01 | D126: Tampines Industrial Avenue 4 | E126: Business 2 | F126: 49999.9 | G126: 0.8 | H126: 39999.92 | I126: Soon Hock Tuas Development Pte Ltd | J126: 33130000 | K126: 828.25 | L126: 30 | M126: State
A127: 2007-09-28 | B127: 2007-11-09 | C127: 2007-11-29 | D127: Jalan Tepong | E127: Business 2 | F127: 20867 | G127: 1.4 | H127: 29213.8 | I127: EL Development Pte Ltd | J127: 9480000 | K127: 324.5 | L127: 23 | M127: JTC
A128: 2007-09-21 | B128: 2007-11-02 | C128: 2007-11-29 | D128: L1 Commonwealth Drive/ Lane | E128: Business 1 | F128: 11175 | G128: 2.5 | H128: 27937.5 | I128: WHB Pte Ltd | J128: 51228228 | K128: 1833.67 | L128: 30 | M128: JTC
A129: 2007-09-06 | B129: 2007-10-18 | C129: 2007-11-12 | D129: L7 Pioneer Road/ Tuas Avenue 11 | E129: Business 2 | F129: 21871 | G129: 1.4 | H129: 30619.4 | I129: Soilbuild Group Holdings Ltd | J129: 12200000 | K129: 398.44 | L129: 30 | M129: JTC
A130: 2006-12-21 | B130: 2007-02-01 | C130: 2007-03-13 | D130: L1 Enterprise Road | E130: Business 2 | F130: 20122 | G130: 1.4 | H130: 28170.8 | I130: CTE Properties Pte Ltd | J130: 11400000 | K130: 404.67 | L130: 30 | M130: JTC
A131: 2006-11-17 | B131: 2006-12-28 | C131: 2007-01-24 | D131: L2 Serangoon North Avenue 4 | E131: Business 1 | F131: 9458 | G131: 1.4 | H131: 13241.2 | I131: First KNG Pte Ltd | J131: 8699000 | K131: 656.96 | L131: 60 | M131: JTC
A132: 2006-09-29 | B132: 2006-11-10 | C132: 2006-12-01 | D132: L14 Changi North Street 1 | E132: Business 2 | F132: 15000 | G132: 1 | H132: 15000 | I132: Global Orion Properties Ltd | J132: 4300228 | K132: 286.68 | L132: 30 | M132: JTC
A133: 2006-06-30 | B133: 2006-08-11 | C133: 2006-09-18 | D133: Ubi Road 2/ Ubi Avenue 3/ Ubi Avenue 4/ Ubi Link | E133: Business 1 | F133: 38577.5 | G133: 2.5 | H133: 96443.75 | I133: Sim Lian Development Pte Ltd | J133: 39999000 | K133: 414.74 | L133: 60 | M133: JTC
A134: 2006-05-16 | B134: 2006-07-04 | C134: 2006-09-18 | D134: Serangoon North Avenue 4 (end) | E134: Business 1 | F134: 29225 | G134: 2.5 | H134: 73062.5 | I134: Orion-One Development Pte Ltd | J134: 22800228 | K134: 312.06 | L134: 60 | M134: JTC
A135: 2005-09-27 | B135: 2005-11-22 | C135: 2006-01-05 | D135: Pioneer Road | E135: Business 2 | F135: 19858 | G135: 1 | H135: 19858 | I135: Soilbuild Group Holdings Ltd | J135: 3028000 | K135: 152.48 | L135: 30 | M135: JTC
A136: 2005-02-17 | B136: 2005-04-12 | C136: 2005-04-15 | D136: Penjuru Road | E136: Business 2 | F136: 20000 | G136: 1 | H136: 20000 | I136: Stagis Pte Ltd | J136: 5300000 | K136: 265 | L136: 30 | M136: JTC

Sheet As at 02 05 2018
A1: Date of Launch | B1: Date of Tender Closing | C1: Date of Award | D1: Location | E1: Type of Development Allowed | F1: Site Area (m2) | G1: Plot Ratio | H1: Maximum Permissible Gross Floor Area (GFA) (m2) | I1: Name of Successful Tenderer | J1: Successful Tender Price | K1: Price Psm Per Gross Plot Ratio | L1: Lease (Years) | M1: Land Owner
A2: 2018-11-27 | B2: 2019-01-22 | C2: 2019-03-29 | D2: Plot 20, Tuas South Link 3 | E2: Business 2 | F2: 4456.3 | G2: 1.4 | H2: =F2*G2 -> 6238.82 | I2: Transmare-Chemie (S) Pte Ltd | J2: 2050000 | K2: 328.44 | L2: 20 | M2: State
A3: 2018-10-30 | B3: 2018-12-26 | C3: 2019-02-20 | D3: Jalan Lam Huat (Plot B) | E3: Business 2 | F3: 7694.7 | G3: 2.5 | H3: =F3*G3 -> 19236.75 | I3: Carros Project Management Pte Ltd | J3: 5068888 | K3: 263.5 | L3: 20 | M3: State
A4: 2018-09-25 | B4: 2018-11-20 | C4: 2019-01-03 | D4: Plot 27, Tuas South Link 3 | E4: Business 2 | F4: 5953.3 | G4: 1.4 | H4: =F4*G4 -> 8334.62 | I4: L.S. Construction Pte Ltd | J4: 2880000 | K4: 345.55 | L4: 20 | M4: State
A5: 2018-08-28 | B5: 2018-10-09 | C5: 2018-10-25 | D5: Corporation Drive | E5: Business 2 | F5: 12800.4 | G5: 2.5 | H5: =F5*G5 -> 32001 | I5: Soilbuild Group Holdings Ltd | J5: 44090319 | K5: =J5/H5 -> 1377.779413 | L5: 30 | M5: JTC
A6: 2018-05-30 | B6: 2018-08-01 | C6: 2018-09-28 | D6: Braddell Road | E6: Business 1 | F6: 9716.2 | G6: 2.5 | H6: =F6*G6 -> 24290.5 | I6: BP-SH1 Pte Ltd | J6: 53588888.88 | K6: =J6/H6 -> 2206.166562 | L6: 30 | M6: State
A7: 2018-05-30 | B7: 2018-07-25 | C7: 2018-09-14 | D7: Tampines Industrial Drive (Plot 10) | E7: Business 2 | F7: 4702.6 | G7: 1.4 | H7: 6583.64 | I7: Blu World Pte Ltd | J7: 3200000 | K7: 486.0533079 | L7: 20 | M7: State
A8: 2018-04-24 | B8: 2018-06-19 | C8: 2018-07-27 | D8: Plot 13, Tuas South Link 1 | E8: Business 2 | F8: 24129.5 | G8: 2 | H8: 48259 | I8: Yee Lee Development Pte Ltd | J8: 26800000 | K8: 555.3368284 | L8: 30 | M8: JTC
A9: 2018-01-30 | B9: 2018-03-27 | C9: 2018-05-23 | D9: Plot 18, Tuas South Link 3 | E9: Business 2 | F9: 4299.9 | G9: 1.4 | H9: 6019.86 | I9: LNT Coating Pte Ltd | J9: 2038000 | K9: 338.5460791 | L9: 20 | M9: State
A10: 2018-01-04 | B10: 2018-03-13 | C10: 2018-04-27 | D10: Tuas Bay Close | E10: Business 2 | F10: 27177.6 | G10: 1.7 | H10: 46201.92 | I10: Soilbuild Group Holdings Ltd | J10: 29848888 | K10: 646.0529779 | L10: 30 | M10: JTC
A11: 2017-12-26 | B11: 2018-02-27 | C11: 2018-04-27 | D11: Plot 23, Tuas South Link 3 | E11: Business 2 | F11: 6276.5 | G11: 1.4 | H11: 8787.1 | I11: Bonco Enterprise Pte Ltd | J11: 2794298 | K11: 318.0000228 | L11: 20 | M11: State
A12: 2017-09-26 | B12: 2017-11-21 | C12: 2018-01-25 | D12: Plot 16, Tuas South Link 3 | E12: Business 2 | F12: 4993.1 | G12: 1.4 | H12: 6990.34 | I12: Soilbuild Construction Group Ltd | J12: 2633800 | K12: 376.7770952 | L12: 20 | M12: State
A13: 2017-09-05 | B13: 2017-10-24 | C13: 2017-12-13 | D13: Plot 14, Tuas South Link 3 | E13: Business 2 | F13: 5736.4 | G13: 1.4 | H13: 8030.96 | I13: Wee Hur Construction Pte Ltd | J13: 2680000 | K13: 333.7085479 | L13: 20 | M13: State
A14: 2017-07-25 | B14: 2017-09-19 | C14: 2017-11-03 | D14: Plot 25, Tuas South Link 3 | E14: Business 2 | F14: 4699.1 | G14: 1.4 | H14: =F14*G14 -> 6578.74 | I14: G.T.H. Engineering & Construction Pte Ltd | J14: 2511000 | K14: =J14/H14 -> 381.6840307 | L14: 20 | M14: State
A15: 2017-06-30 | B15: 2017-08-25 | C15: 2017-10-06 | D15: Plot 10, Tuas South Link 2 | E15: Business 2 | F15: 4802 | G15: 1.4 | H15: 6722.8 | I15: Zhao Yang Geotechnic Pte Ltd | J15: 2756348 | K15: 410 | L15: 20 | M15: JTC
A16: 2017-05-30 | B16: 2017-07-25 | C16: 2017-09-14 | D16: Plot A, Jalan Lam Huat | E16: Business 2 | F16: 8000.5 | G16: 2.5 | H16: 20001.25 | I16: JC Development Pte Ltd | J16: 6160000 | K16: 307.9807512 | L16: 20 | M16: State
A17: 2017-04-25 | B17: 2017-06-20 | C17: 2017-08-16 | D17: Plot 18, Tuas South Link 3 | E17: Business 2 | F17: 4299.9 | G17: 1.4 | H17: 6019.86 | I17: LNT Coating Pte Ltd | J17: 2450600 | K17: 407.0858791 | L17: 20 | M17: State
A18: 2017-03-28 | B18: 2017-05-23 | C18: 2017-07-20 | D18: Plot 24, Tuas South Link 3 | E18: Business 2 | F18: 4687.5 | G18: 1.4 | H18: 6562.5 | I18: Pan Asian Flow Technology Pte Ltd | J18: 2500000 | K18: 380.952381 | L18: 20 | M18: State
A19: 2017-02-28 | B19: 2017-04-25 | C19: 2017-06-02 | D19: Plot 3, Tampines North Drive 3 | E19: Business 2 | F19: 5804 | G19: 2.5 | H19: 14510 | I19: BHCC Construction Pte Ltd | J19: 7000000 | K19: 482.4259132 | L19: 20 | M19: State
A20: 2017-01-31 | B20: 2017-03-28 | C20: 2017-05-05 | D20: Plot 15, Tuas South Link 3 | E20: Business 2 | F20: 4994.6 | G20: 1.4 | H20: 6992.44 | I20: Soilbuild Construction Group Ltd | J20: 2711800 | K20: 387.8188444 | L20: 20 | M20: State
A21: 2016-12-27 | B21: 2017-02-21 | C21: 2017-04-05 | D21: Plot 17, Tuas South Link 3 | E21: Business 2 | F21: 4874.2 | G21: 1.4 | H21: 6823.88 | I21: Goh Sin Guan Huat Pte Ltd | J21: 2351314.08 | K21: 344.5714286 | L21: 20 | M21: State
A22: 2016-11-29 | B22: 2017-01-24 | C22: 2017-03-15 | D22: Plot 1, Tampines Industrial Drive | E22: Business 2 | F22: 5253.5 | G22: 1.4 | H22: 7354.9 | I22: Power Partners Private Limited | J22: 3320000 | K22: 451.3997471 | L22: 20 | M22: State
A23: 2016-10-25 | B23: 2016-12-20 | C23: 2017-02-08 | D23: Plot 22, Tuas South Link 3 | E23: Business 2 | F23: 5795.4 | G23: 1.4 | H23: 8113.56 | I23: Hexacon Construction Pte Ltd | J23: 2995055 | K23: 369.1419056 | L23: 20 | M23: JTC
A24: 2016-09-27 | B24: 2016-11-22 | C24: 2016-12-27 | D24: Plot 11, Tuas South Link 2 | E24: Business 2 | F24: 5016.5 | G24: 1.4 | H24: 7023.1 | I24: Zhao Yang Geo-Systems Pte Ltd | J24: 2688888 | K24: 382.8634079 | L24: 20 | M24: JTC
A25: 2016-08-30 | B25: 2016-10-25 | C25: 2016-11-17 | D25: Plot 6, Tuas South Link 2 | E25: Business 2 | F25: 5050 | G25: 1.4 | H25: 7070 | I25: Wellbuilt Pte Ltd | J25: 2829060 | K25: 400.1499293 | L25: 20 | M25: JTC
A26: 2016-07-26 | B26: 2016-10-04 | C26: 2016-11-17 | D26: Plot 3, Tampines Industrial Drive | E26: Business 2 | F26: 4885.7 | G26: 1.4 | H26: 6839.98 | I26: Kok Tong Transport & Engineering Works Pte Ltd | J26: 3105360 | K26: 454.0013275 | L26: 20 | M26: State
A27: 2016-06-28 | B27: 2016-08-23 | C27: 2016-09-29 | D27: Plot 8, Tuas South Link 2 | E27: Business 2 | F27: 5953.3 | G27: 1.4 | H27: 8334.62 | I27: Aik Leong Plumbing Construction Pte Ltd | J27: 3210000 | K27: 385.1405343 | L27: 20 | M27: JTC
A28: 2016-05-31 | B28: 2016-07-26 | C28: 2016-08-10 | D28: Plot 7, Tuas South Link 2 | E28: Business 2 | F28: 5332.7 | G28: 1.4 | H28: 7465.78 | I28: SE Global Group Pte Ltd | J28: 2680000 | K28: 358.9711993 | L28: 20 | M28: JTC
A29: 2016-03-29 | B29: 2016-05-24 | C29: 2016-06-22 | D29: Woodlands Sector 2 | E29: Business 2 | F29: 13542 | G29: 1.4 | H29: 18958.8 | I29: Yee Lee Development Pte Ltd | J29: 6180000 | K29: 325.9699981 | L29: 20 | M29: JTC
A30: 2016-02-23 | B30: 2016-04-05 | C30: 2016-05-06 | D30: Plot 1, Tuas South Link 1 | E30: Business 2 | F30: 33300.1 | G30: 2 | H30: 66600.2 | I30: Diamond Land Pte Ltd | J30: 37500000 | K30: 563.0613722 | L30: 30 | M30: JTC
A31: 2016-01-26 | B31: 2016-03-22 | C31: 2016-05-06 | D31: Plot 2, Tampines Industrial Drive | E31: Business 2 | F31: 4890.7 | G31: 1.4 | H31: 6846.98 | I31: Hock Lian Seng Holdings Limited | J31: 3708000 | K31: 541.5526261 | L31: 20 | M31: State
A32: 2015-12-29 | B32: 2016-02-23 | C32: 2016-04-07 | D32: Plot 5, Tampines Industrial Drive | E32: Business 2 | F32: 5077.8 | G32: 1.4 | H32: 7108.92 | I32: Precise Development Pte Ltd | J32: 3611331.36 | K32: 508 | L32: 20 | M32: State
A33: 2015-12-29 | B33: 2016-02-23 | C33: 2016-04-07 | D33: Plot 9, Tuas South Link 2 | E33: Business 2 | F33: 4802.1 | G33: 1.4 | H33: 6722.94 | I33: Texas Petrochemical Asia Pacific Pte Ltd | J33: 2200000 | K33: 327.2377858 | L33: 20 | M33: JTC
A34: 2015-11-24 | B34: 2016-01-19 | C34: 2016-04-07 | D34: Plot 7, Tampines Industrial Drive | E34: Business 2 | F34: 4112.5 | G34: 1.4 | H34: 5757.5 | I34: Chye Thiam Maintenance Pte Ltd | J34: 2982385 | K34: 518 | L34: 20 | M34: State
A35: 2015-09-29 | B35: 2015-11-24 | C35: 2016-01-14 | D35: Plot 5, Tuas South Link 2 | E35: Business 2 | F35: 5050 | G35: 1.4 | H35: 7070 | I35: Hiap Shing Construction Pte Ltd | J35: 3000000 | K35: 424.3281471 | L35: 20 | M35: JTC
A36: 2015-08-25 | B36: 2015-10-20 | C36: 2015-12-18 | D36: Plot 12, Tampines Industrial Drive | E36: Business 2 | F36: 4794.5 | G36: 1.4 | H36: 6712.3 | I36: Soon Lee Heng Trading & Transportation Pte Ltd | J36: 4900000 | K36: 730.0031286 | L36: 20 | M36: State
A37: 2015-08-25 | B37: 2015-10-20 | C37: 2015-11-27 | D37: Tanjong Penjuru | E37: Business 2 | F37: 16307.9 | G37: 2.5 | H37: 40769.75 | I37: Trans Eurokars Pte Ltd | J37: 13000000 | K37: 318.8638635 | L37: 20 | M37: JTC
A38: 2015-07-28 | B38: 2015-09-22 | C38: 2015-10-30 | D38: Plot 9, Tampines Industrial Drive | E38: Business 2 | F38: 5778.2 | G38: 1.4 | H38: 8089.48 | I38: Zulin (S.E.A) Pte Ltd | J38: 5850000 | K38: 723.1614393 | L38: 20 | M38: State
A39: 2015-06-30 | B39: 2015-08-25 | C39: 2015-10-02 | D39: Plot 6, Tampines Industrial Drive | E39: Business 2 | F39: 4732.5 | G39: 1.4 | H39: 6625.5 | I39: Lim Wen Heng Construction Pte Ltd | J39: 4935997.6 | K39: 745.0000151 | L39: 20 | M39: State
A40: 2015-05-26 | B40: 2015-07-21 | C40: 2015-09-02 | D40: Plot 11, Tampines Industrial Drive | E40: Business 2 | F40: 5283.6 | G40: 1.4 | H40: 7397.04 | I40: Wai Fong Construction Pte Ltd | J40: 5000006 | K40: 675.9468652 | L40: 20 | M40: State
A41: 2015-04-28 | B41: 2015-06-23 | C41: 2015-07-15 | D41: Plot 4, Tuas South Link 2 | E41: Business 2 | F41: 7900 | G41: 1.4 | H41: 11060 | I41: Mundipharma Manufacturing Pte Ltd | J41: 12500000 | K41: 1130.198915 | L41: 20 | M41: JTC
A42: 2015-03-31 | B42: 2015-05-26 | C42: 2015-06-26 | D42: Plot 4, Tampines Industrial Drive | E42: Business 2 | F42: 5686.3 | G42: 1.4 | H42: 7960.82 | I42: Sim Lian Construction Co (Pte) Ltd | J42: 5900000 | K42: 741.1296826 | L42: 20 years | M42: State
A43: 2015-02-24 | B43: 2015-04-21 | C43: 2015-05-15 | D43: Plot 46, Tuas South Street 6 | E43: Business 2 | F43: 6988 | G43: 1 | H43: 6988 | I43: Tean Chay Crane Rental Pte Ltd | J43: 5611365 | K43: 803.0001431 | L43: 20 years 3 months | M43: JTC
A44: 2015-01-27 | B44: 2015-03-24 | C44: 2015-04-27 | D44: Plot 43, Tuas South Street 11​ | E44: Business 2 | F44: 8409.8 | G44: 1 | H44: 8409.8 | I44: Ho Lee Construction Pte Ltd | J44: 6996953.6 | K44: 832 | L44: 20 years 4 months | M44: State
A45: 2014-12-29 | B45: 2015-02-09 | C45: 2015-03-25 | D45: Plot 53, Tuas South Street 7 | E45: Business 2 | F45: 5038.6 | G45: 1 | H45: 5038.6 | I45: L & P Blasting Pte Ltd | J45: 5506480 | K45: 1092.859128 | L45: 20 years 4 months | M45: State
A46: 2014-12-16 | B46: 2015-02-10 | C46: 2015-03-25 | D46: Plot 42, Tuas South Street 11​ | E46: Business 2 | F46: 8409.2 | G46: 1 | H46: 8409.2 | I46: Ho Lee Construction Pte Ltd | J46: 6744178.4 | K46: 802 | L46: 20 years 5 months | M46: State
A47: 2014-11-25 | B47: 2015-01-20 | C47: 2015-02-27 | D47: Plot 8, Tampines Industrial Drive | E47: Business 2 | F47: 5033.3 | G47: 1.4 | H47: 7046.62 | I47: Soilbuild Group Holdings Ltd | J47: 5800001 | K47: 823.0897934 | L47: 20 years | M47: State
A48: 2014-11-25 | B48: 2015-01-20 | C48: 2015-02-27 | D48: Plot 40, Tuas South Street 11 | E48: Business 2 | F48: 10000 | G48: 1 | H48: 10000 | I48: Tiong Seng Contractors (Pte) Ltd | J48: 8400000 | K48: 840 | L48: 20 years 6 months | M48: State
A49: 2014-10-28 | B49: 2014-12-23 | C49: 2015-01-19 | D49: Plot 52, Tuas South Street 9 | E49: Business 2 | F49: 8369 | G49: 1 | H49: 8369 | I49: Asiaone Logistics & Warehousing Pte Ltd | J49: 7038000 | K49: 840.9606883 | L49: 20 years 7 months | M49: JTC
A50: 2014-09-29 | B50: 2014-11-24 | C50: 2014-12-23 | D50: Plot 50, Tuas South Street 9 | E50: Business 2 | F50: 8369 | G50: 1 | H50: 8369 | I50: Prospaq Group Pte Ltd | J50: 6878000 | K50: 821.842514 | L50: 20 years 8 months | M50: JTC
A51: 2014-09-29 | B51: 2014-11-24 | C51: 2014-12-23 | D51: Plot 1, Tampines North Drive 1 | E51: Business 2 | F51: 27395.2 | G51: 2.5 | H51: 68488 | I51: Goldprime Land Pte Ltd | J51: 64388888 | K51: 940.148464 | L51: 30 | M51: State
A52: 2014-09-16 | B52: 2014-10-28 | C52: 2014-11-27 | D52: Plot 41, Tuas South Street 11 | E52: Business 2 | F52: 9000 | G52: 1 | H52: 9000 | I52: Jian Man Construction Pte Ltd | J52: 7510000 | K52: 834.4444444 | L52: 20 years 10 months | M52: State
A53: 2014-08-26 | B53: 2014-10-21 | C53: 2014-11-21 | D53: Plot 48, Tuas South Street 9 | E53: Business 2 | F53: 8369 | G53: 1 | H53: 8369 | I53: New Hope Singapore Pte Ltd | J53: 6963008 | K53: 832 | L53: 20 years 9 months | M53: JTC
A54: 2014-07-29 | B54: 2014-09-09 | C54: 2014-10-23 | D54: Plot 44, Tuas South Street 7 | E54: Business 2 | F54: 5038.6 | G54: 1 | H54: 5038.6 | I54: IG Tuas Pte Ltd | J54: 5201000 | K54: 1032.231175 | L54: 20 years 10 months | M54: State
A55: 2014-06-24 | B55: 2014-08-26 | C55: 2014-10-09 | D55: Plot 12, Off Tuas South Avenue 7 | E55: Business 2 | F55: 25700 | G55: 2 | H55: 51400 | I55: Hock Lian Seng Holdings Limited | J55: 30988000 | K55: 602.8793774 | L55: 30 | M55: JTC
A56: 2014-04-29 | B56: 2014-07-01 | C56: 2014-07-24 | D56: Tuas Avenue 11 | E56: Business 2 | F56: 8922 | G56: 1.4 | H56: 12490.8 | I56: Soon Hock Realty Pte Ltd | J56: 14388000 | K56: 1151.887789 | L56: 30 | M56: JTC
A57: 2014-04-29 | B57: 2014-07-01 | C57: 2014-07-24 | D57: Plot 39, Tuas South Street 11 | E57: Business 2 | F57: 10000 | G57: 1 | H57: 10000 | I57: Tiong Aik Construction Pte Ltd | J57: 8073000 | K57: 807.3 | L57: 20 years 10 months | M57: JTC
A58: 2014-03-25 | B58: 2014-05-06 | C58: 2014-06-02 | D58: Plot 49, Tuas South Street 9 | E58: Business 2 | F58: 8369 | G58: 1 | H58: 8369 | I58: Pan Marine Blasting Abrasives Pte Ltd | J58: 5925252 | K58: 708 | L58: 21 years 2 months | M58: JTC
A59: 2014-03-25 | B59: 2014-05-06 | C59: 2014-06-02 | D59: Plot 51, Tuas South Street 9 | E59: Business 2 | F59: 8369 | G59: 1 | H59: 8369 | I59: Asiagroup Leasing Pte Ltd | J59: 5948000 | K59: 710.7181264 | L59: 21 years 2 months | M59: JTC
A60: 2014-02-25 | B60: 2014-04-08 | C60: 2014-04-29 | D60: Plot 45, Tuas South Street 6 | E60: Business 2 | F60: 6988 | G60: 1 | H60: 6988 | I60: SH Design & Build Pte Ltd | J60: 5278000 | K60: 755.2947911 | L60: 21 years 3 months | M60: JTC
A61: 2014-02-25 | B61: 2014-04-08 | C61: 2014-04-29 | D61: Plot 47, Tuas South Street 6 | E61: Business 2 | F61: 6988 | G61: 1 | H61: 6988 | I61: Soon Hock Investment Group Pte Ltd | J61: 5115000 | K61: 731.9690899 | L61: 21 years 3 months | M61: JTC
A62: 2013-12-27 | B62: 2014-02-07 | C62: 2014-04-14 | D62: Plot 6, Tuas South Street 6 | E62: Business 2 | F62: 4551.4 | G62: 1 | H62: 4551.4 | I62: H P Construction & Engineering Pte Ltd | J62: 4100000 | K62: 900.8217252 | L62: 21 years 5 months | M62: State
A63: 2013-12-27 | B63: 2014-02-07 | C63: 2014-04-14 | D63: Plot 34, Tuas South Street 13 | E63: Business 2 | F63: 7447.4 | G63: 1 | H63: 7447.4 | I63: Evan Lim & Co. Pte. Ltd. | J63: 4850000 | K63: 651.2339877 | L63: 21 years 5 months | M63: State
A64: 2013-12-27 | B64: 2014-02-07 | C64: 2014-04-14 | D64: Plot 35, Tuas South Street 11 | E64: Business 2 | F64: 7432.1 | G64: 1 | H64: 7432.1 | I64: Toko Tan Equipment Pte Ltd | J64: 4293524.17 | K64: 577.7 | L64: 21 years 5 months | M64: State
A65: 2013-12-27 | B65: 2014-02-07 | C65: 2014-04-14 | D65: Plot 38, Tuas South Street 13 | E65: Business 2 | F65: 7176.5 | G65: 1 | H65: 7176.5 | I65: AEI (China) Holdings Pte. Ltd | J65: 5038888 | K65: 702.1372535 | L65: 21 years 5 months | M65: State
A66: 2013-11-29 | B66: 2014-01-10 | C66: 2014-03-10 | D66: Plot 33, Tuas South Street 11 | E66: Business 2 | F66: 7432.1 | G66: 1 | H66: 7432.1 | I66: United Hudson Investment Pte Ltd | J66: 4808000 | K66: 646.92 | L66: 21 years 6 months | M66: State
A67: 2013-11-29 | B67: 2014-01-10 | C67: 2014-03-10 | D67: Plot 36, Tuas South Street 13 | E67: Business 2 | F67: 7431.7 | G67: 1 | H67: 7431.7 | I67: Quek & Quek Civil Engineering Pte Ltd | J67: 7431700 | K67: 1000 | L67: 21 years 6 months | M67: State
A68: 2013-11-29 | B68: 2014-01-10 | C68: 2014-03-10 | D68: Plot 37, Tuas South Street 11 | E68: Business 2 | F68: 7177 | G68: 1 | H68: 7177 | I68: United Hudson Investment Pte Ltd | J68: 5029200 | K68: 700.74 | L68: 21 years 6 months | M68: State
A69: 2013-11-29 | B69: 2014-01-10 | C69: 2014-03-10 | D69: Woodlands Industrial Park E9 | E69: Business 2 (with an integrated Heavy Vehicle Park) | F69: 18394.1 | G69: 2.5 | H69: 45985.25 | I69: Vantage Properties Pte Ltd | J69: 56180000 | K69: 1221.7 | L69: 30 | M69: State
A70: 2013-10-31 | B70: 2013-12-12 | C70: 2014-01-28 | D70: Plot 20, Tuas South Street 10 | E70: Business 2 | F70: 3036.2 | G70: 1 | H70: 3036.2 | I70: The Hi-Fi Company Pte Ltd | J70: 3104759 | K70: 1022.58 | L70: 21 years 7 months | M70: State
A71: 2013-10-31 | B71: 2013-12-12 | C71: 2014-01-28 | D71: Plot 22, Tuas South Street 10 | E71: Business 2 | F71: 3036 | G71: 1 | H71: 3036 | I71: Brown Metal Engineering Pte Ltd | J71: 3235320 | K71: 1065.65 | L71: 21 years 7 months | M71: State
A72: 2013-10-31 | B72: 2013-12-12 | C72: 2014-01-28 | D72: Plot 24, Tuas South Street 10 | E72: Business 2 | F72: 4551.2 | G72: 1 | H72: 4551.2 | I72: E C Builders Pte Ltd | J72: 4600000 | K72: 1010.72 | L72: 21 years 7 months | M72: State
A73: 2013-09-27 | B73: 2013-11-22 | C73: 2013-12-20 | D73: Tai Seng Street | E73: Business 2 - White | F73: 11,780.0 (Principal Site) | G73: 3.5 (B1-2.5 W-1.0) | H73: =11780*3.5 -> 41230 | I73: Mapletree Trustee Pte Ltd | J73: 120078500 | K73: 2912.41 | L73: 30 | M73: JTC
A74: 2013-09-27 | B74: 2013-11-08 | C74: 2013-12-06 | D74: Plot 2, Tuas South Street 6 | E74: Business 2 | F74: 3036.6 | G74: 1 | H74: =F74*G74 -> 3036.6 | I74: Tiong Lee Huat Machinery & Construction Pte Ltd | J74: 3000000 | K74: 987.95 | L74: 21 years 8 months | M74: State
A75: 2013-09-27 | B75: 2013-11-08 | C75: 2013-12-06 | D75: Plot 29, Tuas South Street 7 | E75: Business 2 | F75: 5033.1 | G75: 1 | H75: 5033.1 | I75: Poh Meng Trading & Cleaning Services Pte Ltd | J75: 4991272.91 | K75: 991.69 | L75: 21 years 8 months | M75: State
A76: 2013-08-29 | B76: 2013-10-10 | C76: 2013-11-08 | D76: Plot 4, Tuas South Street 6 | E76: Business 2 | F76: 3036.7 | G76: 1 | H76: 3036.7 | I76: Derman Aluminum (S) Pte Ltd | J76: 2880917 | K76: 948.7 | L76: 21 years 9 months | M76: State
A77: 2013-08-29 | B77: 2013-10-10 | C77: 2013-11-08 | D77: Plot 28, Tuas South Street 7 | E77: Business 2 | F77: 5047.4 | G77: 1 | H77: 5047.4 | I77: Reclaims Enterprise Pte Ltd | J77: 5330054.4 | K77: 1056 | L77: 21 years 9 months | M77: State
A78: 2013-06-26 | B78: 2013-08-07 | C78: 2013-09-06 | D78: Tuas South Avenue 3 | E78: Business 2 | F78: 39578.5 | G78: 1.4 | H78: 55409.9 | I78: Grow-Tech Properties Pte Ltd | J78: 66777000 | K78: 1205.15 | L78: 30 | M78: State
A79: 2013-06-26 | B79: 2013-08-07 | C79: 2013-09-06 | D79: Plot 19, Tuas South Street 10 | E79: Business 2 | F79: 4526.7 | G79: 1 | H79: 4526.7 | I79: Kian Hock Engineering Pte Ltd | J79: 4485131.29 | K79: 990.82 | L79: 21 years 11 months | M79: State
A80: 2013-06-26 | B80: 2013-08-07 | C80: 2013-09-06 | D80: Plot 21, Tuas South Street 10 | E80: Business 2 | F80: 3035.8 | G80: 1 | H80: 3035.8 | I80: SWHL Pte Ltd | J80: 2783640 | K80: 916.94 | L80: 21 years 11 months | M80: State
A81: 2013-06-26 | B81: 2013-08-07 | C81: 2013-09-06 | D81: Plot 23, Tuas South Street 10 | E81: Business 2 | F81: 3036 | G81: 1 | H81: 3036 | I81: Jay Machinery Pte Ltd | J81: 2680000 | K81: 882.74 | L81: 21 years 11 months | M81: State
A82: 2013-05-31 | B82: 2013-07-12 | C82: 2013-07-31 | D82: Mandai Link | E82: Business 2 (Food only) | F82: 6891.2 | G82: 2.5 | H82: 17228 | I82: Wealth Property Pte Ltd | J82: 21308888 | K82: 1236.88 | L82: 30 | M82: JTC
A83: 2013-04-30 | B83: 2013-06-11 | C83: 2013-07-09 | D83: Plot 1, Tuas South Street 6 | E83: Business 2 | F83: 4550.9 | G83: 1 | H83: =F83*G83 -> 4550.9 | I83: S.H. Stainless Steel Contractor Pte Ltd | J83: 4208000 | K83: 924.65 | L83: 22 years 1 month | M83: State
A84: 2013-04-30 | B84: 2013-06-11 | C84: 2013-07-09 | D84: Plot 3, Tuas South Street 6 | E84: Business 2 | F84: 3036.2 | G84: 1 | H84: =F84*G84 -> 3036.2 | I84: Stallion Development Pte Ltd | J84: 2600000 | K84: 856.33 | L84: 22 years 1 month | M84: State
A85: 2013-04-30 | B85: 2013-06-11 | C85: 2013-07-09 | D85: Plot 5, Tuas South Street 6 | E85: Business 2 | F85: 3035.8 | G85: 1 | H85: =F85*G85 -> 3035.8 | I85: Jin Choon Civil Engineering Pte Ltd | J85: 2490340 | K85: 820.32 | L85: 22 years 1 month | M85: State
A86: 2013-03-28 | B86: 2013-05-09 | C86: 2013-06-07 | D86: Loyang Way | E86: Business 2 | F86: 20633 | G86: 2.5 | H86: =F86*G86 -> 51582.5 | I86: OKH Global Ltd | J86: 61636000 | K86: 1194.9 | L86: 30 | M86: JTC
A87: 2013-02-28 | B87: 2013-04-11 | C87: 2013-05-10 | D87: Tuas Bay Close | E87: Business 2 | F87: 24971 | G87: 1.7 | H87: =F87*G87 -> 42450.7 | I87: Zacd Investments Pte Ltd, Bohai Investments (Sengkang) Pte Ltd | J87: 37100000 | K87: 873.95 | L87: 30 | M87: JTC
A88: 2013-01-31 | B88: 2013-03-28 | C88: 2013-04-23 | D88: Tuas Bay Walk | E88: Business 2 (Food only) | F88: 5808 | G88: 1.7 | H88: 9873.6 | I88: Yee Lee Development Pte Ltd | J88: 8988000 | K88: 910.31 | L88: 30 | M88: JTC
A89: 2013-01-31 | B89: 2013-03-28 | C89: 2013-04-23 | D89: Buroh Crescent | E89: Business 2 | F89: 17681 | G89: 2.5 | H89: 44202.5 | I89: OKH Holdings Pte Ltd | J89: 39017000 | K89: 882.69 | L89: 30 | M89: JTC
A90: 2012-12-27 | B90: 2013-02-07 | C90: 2013-03-21 | D90: Tuas South Avenue 10 | E90: Business 2 | F90: 39616 | G90: 1.4 | H90: 55462.4 | I90: Soon Hock Group Pte Ltd | J90: 60999000 | K90: 1099.83 | L90: 30 | M90: State
A91: 2012-12-27 | B91: 2013-02-07 | C91: 2013-03-21 | D91: Plot 10, Tuas South Street 8 | E91: Business 2 | F91: 3035.6 | G91: 1 | H91: 3035.6 | I91: Boilermaster Holdings Pte Ltd | J91: 2400000 | K91: 790.62 | L91: 22 years 5 months | M91: State
A92: 2012-12-27 | B92: 2013-02-07 | C92: 2013-03-11 | D92: Ubi Avenue 4 | E92: Business 1 | F92: 3503.5 | G92: 2.5 | H92: 8758.75 | I92: BP-Ubi Industrial Pte Ltd | J92: 16216020 | K92: 1851.41 | L92: 30 | M92: JTC
A93: 2012-11-20 | B93: 2013-01-02 | C93: 2013-02-01 | D93: Plot 30, Tuas South Street 6 | E93: Business 2 | F93: 8597.4 | G93: 1 | H93: 8597.4 | I93: Koh Brothers Building & Civil Engineering Contractor (Pte) Ltd | J93: 6570000 | K93: 764.1845209 | L93: 22 years 6 months | M93: State
A94: 2012-11-20 | B94: 2013-01-02 | C94: 2013-02-01 | D94: Plot 32, Tuas South Street 6 | E94: Business 2 | F94: 8732.2 | G94: 1 | H94: 8732.2 | I94: SH Design & Build Pte Ltd | J94: 6650000 | K94: 761.5492087 | L94: 22 years 6 months | M94: State
A95: 2012-11-20 | B95: 2013-01-02 | C95: 2013-01-29 | D95: Buroh Street | E95: Business 2 | F95: 27400 | G95: 2.5 | H95: 68500 | I95: Capital Development Pte Ltd and ZACD Investments Pte Ltd | J95: 82100000 | K95: 1198.540146 | L95: 30 | M95: JTC
A96: 2012-10-31 | B96: 2012-12-26 | C96: 2013-01-29 | D96: Off Woodlands Avenue 10 | E96: Business 2 | F96: 10705 | G96: 2.5 | H96: 26762.5 | I96: Bohai Investments (Sengkang) Pte Ltd and Punggol Drive Investments Pte Ltd | J96: 31700000 | K96: 1184.493227 | L96: 30 | M96: JTC
A97: 2012-10-31 | B97: 2012-12-12 | C97: 2013-01-08 | D97: Plot 8, Tuas South Street 8 | E97: Business 2 | F97: 3035.6 | G97: 1 | H97: 3035.6 | I97: T.M. Transport Contractor Pte Ltd | J97: 2222200 | K97: 732.05 | L97: 22 years 7 months | M97: State
A98: 2012-10-31 | B98: 2012-12-12 | C98: 2013-01-08 | D98: Plot 18, Tuas South Street 8 | E98: Business 2 | F98: 4526.9 | G98: 1 | H98: 4526.9 | I98: LNT Coating Pte Ltd | J98: 3800001 | K98: 839.43 | L98: 22 years 7 months | M98: State
A99: 2012-09-28 | B99: 2012-11-23 | C99: 2012-12-19 | D99: Plot 14, Tuas South Street 8 | E99: Business 2 | F99: 3035.9 | G99: 1 | H99: 3035.9 | I99: Greenway Environmental Waste Management Pte Ltd | J99: 2160000 | K99: 711.49 | L99: 22 years 8 months | M99: State
A100: 2012-09-28 | B100: 2012-11-23 | C100: 2012-12-19 | D100: Plot 16, Tuas South Street 8 | E100: Business 2 | F100: 3036 | G100: 1 | H100: 3036 | I100: Chuan Heng Hardware Trading Pte Ltd | J100: 2076624 | K100: 684 | L100: 22 years 8 months | M100: State
A101: 2012-09-28 | B101: 2012-11-23 | C101: 2012-12-05 | D101: Serangoon North Avenue 5 | E101: Business 1 | F101: 7504 | G101: 2.5 | H101: 18760 | I101: Popular Warehouse and Distribution Pte Ltd | J101: 26999000 | K101: 1439.18 | L101: 30 | M101: JTC
A102: 2012-08-31 | B102: 2012-10-12 | C102: 2012-11-09 | D102: Plot 12, Tuas South Sreet 8 | E102: Business 2 | F102: 4550.7 | G102: 1 | H102: 4550.7 | I102: Teck Leong Industries Pte Ltd | J102: 3200899 | K102: 703.3861 | L102: 22 years 9 months | M102: State
A103: 2012-08-31 | B103: 2012-10-12 | C103: 2012-10-29 | D103: Sunview Road | E103: Business 2 (Clean and Light Uses) | F103: 28173 | G103: 2.5 | H103: 70432.5 | I103: Asendial Pte Ltd | J103: 76571635 | K103: 1087.16 | L103: 30 | M103: JTC
A104: 2012-07-24 | B104: 2012-09-04 | C104: 2012-10-12 | D104: Plot 26, Tuas South Street 7 | E104: Business 2 | F104: 10094.9 | G104: 1 | H104: 10094.9 | I104: 800 Super Holdings Limited | J104: 6300000 | K104: 624.08 | L104: 22 | M104: State
A105: 2012-07-24 | B105: 2012-09-04 | C105: 2012-10-12 | D105: Plot 31, Tuas South Street 6 | E105: Business 2 | F105: 8569.3 | G105: 1 | H105: 8569.3 | I105: Kwong Lee Holdings Pte Ltd | J105: 4900068 | K105: 571.82 | L105: 22 | M105: State
A106: 2012-06-29 | B106: 2012-08-24 | C106: 2012-09-10 | D106: Plot 3, Tampines Industrial Crescent | E106: Business 2 (Clean Uses Only) | F106: 38800 | G106: 1.7 | H106: =F106*G106 -> 65960 | I106: Oxley Bliss Pte Ltd | J106: 55000000 | K106: 833.84 | L106: 30 | M106: JTC
A107: 2012-06-29 | B107: 2012-08-10 | C107: 2012-08-27 | D107: Mandai Link | E107: Business 2 (Clean and Light Uses) | F107: 22366 | G107: 2.5 | H107: =F107*G107 -> 55915 | I107: Soilbuild Group Holdings Ltd | J107: 45289000 | K107: 809.96 | L107: 30 | M107: JTC
A108: 2012-06-29 | B108: 2012-08-10 | C108: 2012-09-28 | D108: Plot 13, Tuas South Street 7 | E108: Business 2 | F108: 4551.1 | G108: 1 | H108: 4551.1 | I108: Chip Eng Seng Contractors (1988) Pte Ltd | J108: 3815188 | K108: 838.3 | L108: 23 | M108: State
A109: 2012-06-29 | B109: 2012-08-10 | C109: 2012-09-28 | D109: Plot 15, Tuas South Street 8 | E109: Business 2 | F109: 3036.1 | G109: 1 | H109: 3036.1 | I109: Transco-Pac Transport & Environmental Pte Ltd | J109: 1788262.9 | K109: 589 | L109: 23 | M109: State
A110: 2012-06-29 | B110: 2012-08-10 | C110: 2012-09-28 | D110: Plot 17, Tuas South Street 7 | E110: Business 2 | F110: 3036 | G110: 1 | H110: 3036 | I110: P-One (S) Pte Ltd | J110: 1489588 | K110: 490.64 | L110: 23 | M110: State
A111: 2012-06-15 | B111: 2012-07-27 | C111: 2012-09-28 | D111: Plot 7, Tuas South Street 9 | E111: Business 2 | F111: 4551.1 | G111: 1 | H111: 4551.1 | I111: Ben Ching Engineering Pte Ltd | J111: 2310001 | K111: 507.57 | L111: 23 | M111: State
A112: 2012-06-15 | B112: 2012-07-27 | C112: 2012-09-28 | D112: Plot 9, Tuas South Street 8 | E112: Business 2 | F112: 3035.8 | G112: 1 | H112: 3035.8 | I112: Eastman Lift Trucks Pte Ltd | J112: 1449291 | K112: 477.4 | L112: 23 | M112: State
A113: 2012-06-15 | B113: 2012-07-27 | C113: 2012-09-28 | D113: Plot 11, Tuas South Street 8 | E113: Business 2 | F113: 3035.7 | G113: 1 | H113: 3035.7 | I113: Westtech Pte Ltd | J113: 1130000 | K113: 372.24 | L113: 23 | M113: State
A114: 2012-06-15 | B114: 2012-07-27 | C114: 2012-09-28 | D114: Plot 25, Tuas South Street 7 | E114: Business 2 | F114: 5738.3 | G114: 1 | H114: 5738.3 | I114: 800 Super Holdings Ltd | J114: 6000800 | K114: 1045.75 | L114: 23 | M114: State
A115: 2012-06-15 | B115: 2012-07-27 | C115: 2012-09-28 | D115: Plot 27, Tuas South Street 7 | E115: Business 2 | F115: 5047.6 | G115: 1 | H115: 5047.6 | I115: 800 Super Holdings Ltd | J115: 3500800 | K115: 693.56 | L115: 23 | M115: State
A116: 2012-04-24 | B116: 2012-06-19 | C116: 2012-07-13 | D116: Tai Seng Link | E116: Business 2 (Clean and Light Uses) | F116: 4336 | G116: 2.5 | H116: =F116*G116 -> 10840 | I116: OKH (Woodlands) Pte Ltd | J116: 23300000 | K116: 2149.45 | L116: 30 | M116: JTC
A117: 2012-01-31 | B117: 2012-03-13 | C117: 2012-04-04 | D117: Serangoon North Avenue 4 (Parcel 1) | E117: Business 1 | F117: 8076 | G117: 2.5 | H117: 20190 | I117: Soon Hock Property Development Pte Ltd | J117: 47088999 | K117: 2332.29 | L117: 58 | M117: JTC
A118: 2011-08-31 | B118: 2011-10-27 | C118: 2011-11-28 | D118: Lavender Street/ Kallang Avenue | E118: Business 1 - White | F118: 28348 | G118: 3.0 (B1-2.5 W-0.5) | H118: 85044 | I118: PLC 8 Development Pte Ltd | J118: 218300000 | K118: 2566.91 | L118: 60 | M118: JTC
A119: 2011-03-25 | B119: 2011-05-20 | C119: 2011-06-08 | D119: Fusionopolis Link, Fusionopolis Phase 3 | E119: Business Park - White 40% (Office) | F119: 6253 | G119: 4 | H119: 25012 | I119: Ascendas Real Estate Investment Trust | J119: 110000000 | K119: 4397.89 | L119: 60 | M119: JTC
A120: 2011-01-24 | B120: 2011-03-07 | C120: 2011-03-15 | D120: Ubi Road 1/ Ubi Avenue 4 | E120: Business 1 | F120: 12378 | G120: 2.5 | H120: 30945 | I120: Oxley Ascend Realty Pte Ltd | J120: 72200000 | K120: 2333.17 | L120: 60 | M120: JTC
A121: 2010-10-29 | B121: 2010-12-10 | C121: 2011-01-17 | D121: Old Toh Tuck Road/ Toh Tuck Avenue | E121: Business 2 | F121: 10083 | G121: 1.6 | H121: 16132.8 | I121: Incorporated Builders Pte Ltd | J121: 8700000 | K121: 539.27 | L121: 30 | M121: JTC
A122: 2010-08-20 | B122: 2010-10-18 | C122: 2010-11-04 | D122: Yishun Street 23/ Yishun Avenue 9 | E122: Business 2 | F122: 46546.9 | G122: 2.5 | H122: 116367.25 | I122: Soilbuild Group Holdings Ltd | J122: 64011800 | K122: 550.08 | L122: 60 | M122: State
A123: 2010-03-31 | B123: 2010-05-12 | C123: 2010-06-01 | D123: Tampines Industrial Avenue 4 | E123: Business 2 | F123: 49999.9 | G123: 0.8 | H123: 39999.92 | I123: Soon Hock Tuas Development Pte Ltd | J123: 33130000 | K123: 828.25 | L123: 30 | M123: State
A124: 2007-09-28 | B124: 2007-11-09 | C124: 2007-11-29 | D124: Jalan Tepong | E124: Business 2 | F124: 20867 | G124: 1.4 | H124: 29213.8 | I124: EL Development Pte Ltd | J124: 9480000 | K124: 324.5 | L124: 23 | M124: JTC
A125: 2007-09-21 | B125: 2007-11-02 | C125: 2007-11-29 | D125: L1 Commonwealth Drive/ Lane | E125: Business 1 | F125: 11175 | G125: 2.5 | H125: 27937.5 | I125: WHB Pte Ltd | J125: 51228228 | K125: 1833.67 | L125: 30 | M125: JTC
A126: 2007-09-06 | B126: 2007-10-18 | C126: 2007-11-12 | D126: L7 Pioneer Road/ Tuas Avenue 11 | E126: Business 2 | F126: 21871 | G126: 1.4 | H126: 30619.4 | I126: Soilbuild Group Holdings Ltd | J126: 12200000 | K126: 398.44 | L126: 30 | M126: JTC
A127: 2006-12-21 | B127: 2007-02-01 | C127: 2007-03-13 | D127: L1 Enterprise Road | E127: Business 2 | F127: 20122 | G127: 1.4 | H127: 28170.8 | I127: CTE Properties Pte Ltd | J127: 11400000 | K127: 404.67 | L127: 30 | M127: JTC
A128: 2006-11-17 | B128: 2006-12-28 | C128: 2007-01-24 | D128: L2 Serangoon North Avenue 4 | E128: Business 1 | F128: 9458 | G128: 1.4 | H128: 13241.2 | I128: First KNG Pte Ltd | J128: 8699000 | K128: 656.96 | L128: 60 | M128: JTC
A129: 2006-09-29 | B129: 2006-11-10 | C129: 2006-12-01 | D129: L14 Changi North Street 1 | E129: Business 2 | F129: 15000 | G129: 1 | H129: 15000 | I129: Global Orion Properties Ltd | J129: 4300228 | K129: 286.68 | L129: 30 | M129: JTC
A130: 2006-06-30 | B130: 2006-08-11 | C130: 2006-09-18 | D130: Ubi Road 2/ Ubi Avenue 3/ Ubi Avenue 4/ Ubi Link | E130: Business 1 | F130: 38577.5 | G130: 2.5 | H130: 96443.75 | I130: Sim Lian Development Pte Ltd | J130: 39999000 | K130: 414.74 | L130: 60 | M130: JTC
A131: 2006-05-16 | B131: 2006-07-04 | C131: 2006-09-18 | D131: Serangoon North Avenue 4 (end) | E131: Business 1 | F131: 29225 | G131: 2.5 | H131: 73062.5 | I131: Orion-One Development Pte Ltd | J131: 22800228 | K131: 312.06 | L131: 60 | M131: JTC
A132: 2005-09-27 | B132: 2005-11-22 | C132: 2006-01-05 | D132: Pioneer Road | E132: Business 2 | F132: 19858 | G132: 1 | H132: 19858 | I132: Soilbuild Group Holdings Ltd | J132: 3028000 | K132: 152.48 | L132: 30 | M132: JTC
A133: 2005-02-17 | B133: 2005-04-12 | C133: 2005-04-15 | D133: Penjuru Road | E133: Business 2 | F133: 20000 | G133: 1 | H133: 20000 | I133: Stagis Pte Ltd | J133: 5300000 | K133: 265 | L133: 30 | M133: JTC

Sheet As at 21 12 2017
A1: Date of Launch | B1: Date of Tender Closing | C1: Date of Award | D1: Location | E1: Type of Development Allowed | F1: Site Area (m2) | G1: Plot Ratio | H1: Maximum Permissible Gross Floor Area (GFA) (m2) | I1: Name of Successful Tenderer | J1: Successful Tender Price | K1: Price Psm Per Gross Plot Ratio | L1: Lease (Years) | M1: Land Owner
A2: 2018-01-04 | B2: 2018-03-13 | C2: 2018-04-27 | D2: Tuas Bay Close | E2: Business 2 | F2: 27177.6 | G2: 1.7 | H2: =F2*G2 -> 46201.92 | I2: Soilbuild Group Holdings Ltd | J2: 29848888 | K2: =J2/H2 -> 646.0529779 | L2: 30 | M2: JTC
A3: 2017-12-26 | B3: 2018-02-27 | C3: 2018-04-27 | D3: Plot 23, Tuas South Link 3 | E3: Business 2 | F3: 6276.5 | G3: 1.4 | H3: =F3*G3 -> 8787.1 | I3: Bonco Enterprise Pte Ltd | J3: 2794298 | K3: =J3/H3 -> 318.0000228 | L3: 20 | M3: State
A4: 2017-09-26 | B4: 2017-11-21 | C4: 2018-01-25 | D4: Plot 16, Tuas South Link 3 | E4: Business 2 | F4: 4993.1 | G4: 1.4 | H4: =F4*G4 -> 6990.34 | I4: Soilbuild Construction Group Ltd | J4: 2633800 | K4: =J4/H4 -> 376.7770952 | L4: 20 | M4: State
A5: 2017-09-05 | B5: 2017-10-24 | C5: 2017-12-13 | D5: Plot 14, Tuas South Link 3 | E5: Business 2 | F5: 5736.4 | G5: 1.4 | H5: =F5*G5 -> 8030.96 | I5: Wee Hur Construction Pte Ltd | J5: 2680000 | K5: =J5/H5 -> 333.7085479 | L5: 20 | M5: State
A6: 2017-07-25 | B6: 2017-09-19 | C6: 2017-11-03 | D6: Plot 25, Tuas South Link 3 | E6: Business 2 | F6: 4699.1 | G6: 1.4 | H6: =F6*G6 -> 6578.74 | I6: G.T.H. Engineering & Construction Pte Ltd | J6: 2511000 | K6: =J6/H6 -> 381.6840307 | L6: 20 | M6: State
A7: 2017-06-30 | B7: 2017-08-25 | C7: 2017-10-06 | D7: Plot 10, Tuas South Link 2 | E7: Business 2 | F7: 4802 | G7: 1.4 | H7: 6722.8 | I7: Zhao Yang Geotechnic Pte Ltd | J7: 2756348 | K7: 410 | L7: 20 | M7: JTC
A8: 2017-05-30 | B8: 2017-07-25 | C8: 2017-09-14 | D8: Plot A, Jalan Lam Huat | E8: Business 2 | F8: 8000.5 | G8: 2.5 | H8: 20001.25 | I8: JC Development Pte Ltd | J8: 6160000 | K8: 307.9807512 | L8: 20 | M8: State
A9: 2017-04-25 | B9: 2017-06-20 | C9: 2017-08-16 | D9: Plot 18, Tuas South Link 3 | E9: Business 2 | F9: 4299.9 | G9: 1.4 | H9: 6019.86 | I9: LNT Coating Pte Ltd | J9: 2450600 | K9: 407.0858791 | L9: 20 | M9: State
A10: 2017-03-28 | B10: 2017-05-23 | C10: 2017-07-20 | D10: Plot 24, Tuas South Link 3 | E10: Business 2 | F10: 4687.5 | G10: 1.4 | H10: 6562.5 | I10: Pan Asian Flow Technology Pte Ltd | J10: 2500000 | K10: 380.952381 | L10: 20 | M10: State
A11: 2017-02-28 | B11: 2017-04-25 | C11: 2017-06-02 | D11: Plot 3, Tampines North Drive 3 | E11: Business 2 | F11: 5804 | G11: 2.5 | H11: 14510 | I11: BHCC Construction Pte Ltd | J11: 7000000 | K11: 482.4259132 | L11: 20 | M11: State
A12: 2017-01-31 | B12: 2017-03-28 | C12: 2017-05-05 | D12: Plot 15, Tuas South Link 3 | E12: Business 2 | F12: 4994.6 | G12: 1.4 | H12: 6992.44 | I12: Soilbuild Construction Group Ltd | J12: 2711800 | K12: 387.8188444 | L12: 20 | M12: State
A13: 2016-12-27 | B13: 2017-02-21 | C13: 2017-04-05 | D13: Plot 17, Tuas South Link 3 | E13: Business 2 | F13: 4874.2 | G13: 1.4 | H13: 6823.88 | I13: Goh Sin Guan Huat Pte Ltd | J13: 2351314.08 | K13: 344.5714286 | L13: 20 | M13: State
A14: 2016-11-29 | B14: 2017-01-24 | C14: 2017-03-15 | D14: Plot 1, Tampines Industrial Drive | E14: Business 2 | F14: 5253.5 | G14: 1.4 | H14: 7354.9 | I14: Power Partners Private Limited | J14: 3320000 | K14: 451.3997471 | L14: 20 | M14: State
A15: 2016-10-25 | B15: 2016-12-20 | C15: 2017-02-08 | D15: Plot 22, Tuas South Link 3 | E15: Business 2 | F15: 5795.4 | G15: 1.4 | H15: 8113.56 | I15: Hexacon Construction Pte Ltd | J15: 2995055 | K15: 369.1419056 | L15: 20 | M15: JTC
A16: 2016-09-27 | B16: 2016-11-22 | C16: 2016-12-27 | D16: Plot 11, Tuas South Link 2 | E16: Business 2 | F16: 5016.5 | G16: 1.4 | H16: 7023.1 | I16: Zhao Yang Geo-Systems Pte Ltd | J16: 2688888 | K16: 382.8634079 | L16: 20 | M16: JTC
A17: 2016-08-30 | B17: 2016-10-25 | C17: 2016-11-17 | D17: Plot 6, Tuas South Link 2 | E17: Business 2 | F17: 5050 | G17: 1.4 | H17: 7070 | I17: Wellbuilt Pte Ltd | J17: 2829060 | K17: 400.1499293 | L17: 20 | M17: JTC
A18: 2016-07-26 | B18: 2016-10-04 | C18: 2016-11-17 | D18: Plot 3, Tampines Industrial Drive | E18: Business 2 | F18: 4885.7 | G18: 1.4 | H18: 6839.98 | I18: Kok Tong Transport & Engineering Works Pte Ltd | J18: 3105360 | K18: 454.0013275 | L18: 20 | M18: State
A19: 2016-06-28 | B19: 2016-08-23 | C19: 2016-09-29 | D19: Plot 8, Tuas South Link 2 | E19: Business 2 | F19: 5953.3 | G19: 1.4 | H19: 8334.62 | I19: Aik Leong Plumbing Construction Pte Ltd | J19: 3210000 | K19: 385.1405343 | L19: 20 | M19: JTC
A20: 2016-05-31 | B20: 2016-07-26 | C20: 2016-08-10 | D20: Plot 7, Tuas South Link 2 | E20: Business 2 | F20: 5332.7 | G20: 1.4 | H20: 7465.78 | I20: SE Global Group Pte Ltd | J20: 2680000 | K20: 358.9711993 | L20: 20 | M20: JTC
A21: 2016-03-29 | B21: 2016-05-24 | C21: 2016-06-22 | D21: Woodlands Sector 2 | E21: Business 2 | F21: 13542 | G21: 1.4 | H21: 18958.8 | I21: Yee Lee Development Pte Ltd | J21: 6180000 | K21: 325.9699981 | L21: 20 | M21: JTC
A22: 2016-02-23 | B22: 2016-04-05 | C22: 2016-05-06 | D22: Plot 1, Tuas South Link 1 | E22: Business 2 | F22: 33300.1 | G22: 2 | H22: 66600.2 | I22: Diamond Land Pte Ltd | J22: 37500000 | K22: 563.0613722 | L22: 30 | M22: JTC
A23: 2016-01-26 | B23: 2016-03-22 | C23: 2016-05-06 | D23: Plot 2, Tampines Industrial Drive | E23: Business 2 | F23: 4890.7 | G23: 1.4 | H23: 6846.98 | I23: Hock Lian Seng Holdings Limited | J23: 3708000 | K23: 541.5526261 | L23: 20 | M23: State
A24: 2015-12-29 | B24: 2016-02-23 | C24: 2016-04-07 | D24: Plot 5, Tampines Industrial Drive | E24: Business 2 | F24: 5077.8 | G24: 1.4 | H24: 7108.92 | I24: Precise Development Pte Ltd | J24: 3611331.36 | K24: 508 | L24: 20 | M24: State
A25: 2015-12-29 | B25: 2016-02-23 | C25: 2016-04-07 | D25: Plot 9, Tuas South Link 2 | E25: Business 2 | F25: 4802.1 | G25: 1.4 | H25: 6722.94 | I25: Texas Petrochemical Asia Pacific Pte Ltd | J25: 2200000 | K25: 327.2377858 | L25: 20 | M25: JTC
A26: 2015-11-24 | B26: 2016-01-19 | C26: 2016-04-07 | D26: Plot 7, Tampines Industrial Drive | E26: Business 2 | F26: 4112.5 | G26: 1.4 | H26: 5757.5 | I26: Chye Thiam Maintenance Pte Ltd | J26: 2982385 | K26: 518 | L26: 20 | M26: State
A27: 2015-09-29 | B27: 2015-11-24 | C27: 2016-01-14 | D27: Plot 5, Tuas South Link 2 | E27: Business 2 | F27: 5050 | G27: 1.4 | H27: 7070 | I27: Hiap Shing Construction Pte Ltd | J27: 3000000 | K27: 424.3281471 | L27: 20 | M27: JTC
A28: 2015-08-25 | B28: 2015-10-20 | C28: 2015-12-18 | D28: Plot 12, Tampines Industrial Drive | E28: Business 2 | F28: 4794.5 | G28: 1.4 | H28: 6712.3 | I28: Soon Lee Heng Trading & Transportation Pte Ltd | J28: 4900000 | K28: 730.0031286 | L28: 20 | M28: State
A29: 2015-08-25 | B29: 2015-10-20 | C29: 2015-11-27 | D29: Tanjong Penjuru | E29: Business 2 | F29: 16307.9 | G29: 2.5 | H29: 40769.75 | I29: Trans Eurokars Pte Ltd | J29: 13000000 | K29: 318.8638635 | L29: 20 | M29: JTC
A30: 2015-07-28 | B30: 2015-09-22 | C30: 2015-10-30 | D30: Plot 9, Tampines Industrial Drive | E30: Business 2 | F30: 5778.2 | G30: 1.4 | H30: 8089.48 | I30: Zulin (S.E.A) Pte Ltd | J30: 5850000 | K30: 723.1614393 | L30: 20 | M30: State
A31: 2015-06-30 | B31: 2015-08-25 | C31: 2015-10-02 | D31: Plot 6, Tampines Industrial Drive | E31: Business 2 | F31: 4732.5 | G31: 1.4 | H31: 6625.5 | I31: Lim Wen Heng Construction Pte Ltd | J31: 4935997.6 | K31: 745.0000151 | L31: 20 | M31: State
A32: 2015-05-26 | B32: 2015-07-21 | C32: 2015-09-02 | D32: Plot 11, Tampines Industrial Drive | E32: Business 2 | F32: 5283.6 | G32: 1.4 | H32: 7397.04 | I32: Wai Fong Construction Pte Ltd | J32: 5000006 | K32: 675.9468652 | L32: 20 | M32: State
A33: 2015-04-28 | B33: 2015-06-23 | C33: 2015-07-15 | D33: Plot 4, Tuas South Link 2 | E33: Business 2 | F33: 7900 | G33: 1.4 | H33: 11060 | I33: Mundipharma Manufacturing Pte Ltd | J33: 12500000 | K33: 1130.198915 | L33: 20 | M33: JTC
A34: 2015-03-31 | B34: 2015-05-26 | C34: 2015-06-26 | D34: Plot 4, Tampines Industrial Drive | E34: Business 2 | F34: 5686.3 | G34: 1.4 | H34: 7960.82 | I34: Sim Lian Construction Co (Pte) Ltd | J34: 5900000 | K34: 741.1296826 | L34: 20 years | M34: State
A35: 2015-02-24 | B35: 2015-04-21 | C35: 2015-05-15 | D35: Plot 46, Tuas South Street 6 | E35: Business 2 | F35: 6988 | G35: 1 | H35: 6988 | I35: Tean Chay Crane Rental Pte Ltd | J35: 5611365 | K35: 803.0001431 | L35: 20 years 3 months | M35: JTC
A36: 2015-01-27 | B36: 2015-03-24 | C36: 2015-04-27 | D36: Plot 43, Tuas South Street 11​ | E36: Business 2 | F36: 8409.8 | G36: 1 | H36: 8409.8 | I36: Ho Lee Construction Pte Ltd | J36: 6996953.6 | K36: 832 | L36: 20 years 4 months | M36: State
A37: 2014-12-29 | B37: 2015-02-09 | C37: 2015-03-25 | D37: Plot 53, Tuas South Street 7 | E37: Business 2 | F37: 5038.6 | G37: 1 | H37: 5038.6 | I37: L & P Blasting Pte Ltd | J37: 5506480 | K37: 1092.859128 | L37: 20 years 4 months | M37: State
A38: 2014-12-16 | B38: 2015-02-10 | C38: 2015-03-25 | D38: Plot 42, Tuas South Street 11​ | E38: Business 2 | F38: 8409.2 | G38: 1 | H38: 8409.2 | I38: Ho Lee Construction Pte Ltd | J38: 6744178.4 | K38: 802 | L38: 20 years 5 months | M38: State
A39: 2014-11-25 | B39: 2015-01-20 | C39: 2015-02-27 | D39: Plot 8, Tampines Industrial Drive | E39: Business 2 | F39: 5033.3 | G39: 1.4 | H39: 7046.62 | I39: Soilbuild Group Holdings Ltd | J39: 5800001 | K39: 823.0897934 | L39: 20 years | M39: State
A40: 2014-11-25 | B40: 2015-01-20 | C40: 2015-02-27 | D40: Plot 40, Tuas South Street 11 | E40: Business 2 | F40: 10000 | G40: 1 | H40: 10000 | I40: Tiong Seng Contractors (Pte) Ltd | J40: 8400000 | K40: 840 | L40: 20 years 6 months | M40: State
A41: 2014-10-28 | B41: 2014-12-23 | C41: 2015-01-19 | D41: Plot 52, Tuas South Street 9 | E41: Business 2 | F41: 8369 | G41: 1 | H41: 8369 | I41: Asiaone Logistics & Warehousing Pte Ltd | J41: 7038000 | K41: 840.9606883 | L41: 20 years 7 months | M41: JTC
A42: 2014-09-29 | B42: 2014-11-24 | C42: 2014-12-23 | D42: Plot 50, Tuas South Street 9 | E42: Business 2 | F42: 8369 | G42: 1 | H42: 8369 | I42: Prospaq Group Pte Ltd | J42: 6878000 | K42: 821.842514 | L42: 20 years 8 months | M42: JTC
A43: 2014-09-29 | B43: 2014-11-24 | C43: 2014-12-23 | D43: Plot 1, Tampines North Drive 1 | E43: Business 2 | F43: 27395.2 | G43: 2.5 | H43: 68488 | I43: Goldprime Land Pte Ltd | J43: 64388888 | K43: 940.148464 | L43: 30 | M43: State
A44: 2014-09-16 | B44: 2014-10-28 | C44: 2014-11-27 | D44: Plot 41, Tuas South Street 11 | E44: Business 2 | F44: 9000 | G44: 1 | H44: 9000 | I44: Jian Man Construction Pte Ltd | J44: 7510000 | K44: 834.4444444 | L44: 20 years 10 months | M44: State
A45: 2014-08-26 | B45: 2014-10-21 | C45: 2014-11-21 | D45: Plot 48, Tuas South Street 9 | E45: Business 2 | F45: 8369 | G45: 1 | H45: 8369 | I45: New Hope Singapore Pte Ltd | J45: 6963008 | K45: 832 | L45: 20 years 9 months | M45: JTC
A46: 2014-07-29 | B46: 2014-09-09 | C46: 2014-10-23 | D46: Plot 44, Tuas South Street 7 | E46: Business 2 | F46: 5038.6 | G46: 1 | H46: 5038.6 | I46: IG Tuas Pte Ltd | J46: 5201000 | K46: 1032.231175 | L46: 20 years 10 months | M46: State
A47: 2014-06-24 | B47: 2014-08-26 | C47: 2014-10-09 | D47: Plot 12, Off Tuas South Avenue 7 | E47: Business 2 | F47: 25700 | G47: 2 | H47: 51400 | I47: Hock Lian Seng Holdings Limited | J47: 30988000 | K47: 602.8793774 | L47: 30 | M47: JTC
A48: 2014-04-29 | B48: 2014-07-01 | C48: 2014-07-24 | D48: Tuas Avenue 11 | E48: Business 2 | F48: 8922 | G48: 1.4 | H48: 12490.8 | I48: Soon Hock Realty Pte Ltd | J48: 14388000 | K48: 1151.887789 | L48: 30 | M48: JTC
A49: 2014-04-29 | B49: 2014-07-01 | C49: 2014-07-24 | D49: Plot 39, Tuas South Street 11 | E49: Business 2 | F49: 10000 | G49: 1 | H49: 10000 | I49: Tiong Aik Construction Pte Ltd | J49: 8073000 | K49: 807.3 | L49: 20 years 10 months | M49: JTC
A50: 2014-03-25 | B50: 2014-05-06 | C50: 2014-06-02 | D50: Plot 49, Tuas South Street 9 | E50: Business 2 | F50: 8369 | G50: 1 | H50: 8369 | I50: Pan Marine Blasting Abrasives Pte Ltd | J50: 5925252 | K50: 708 | L50: 21 years 2 months | M50: JTC
A51: 2014-03-25 | B51: 2014-05-06 | C51: 2014-06-02 | D51: Plot 51, Tuas South Street 9 | E51: Business 2 | F51: 8369 | G51: 1 | H51: 8369 | I51: Asiagroup Leasing Pte Ltd | J51: 5948000 | K51: 710.7181264 | L51: 21 years 2 months | M51: JTC
A52: 2014-02-25 | B52: 2014-04-08 | C52: 2014-04-29 | D52: Plot 45, Tuas South Street 6 | E52: Business 2 | F52: 6988 | G52: 1 | H52: 6988 | I52: SH Design & Build Pte Ltd | J52: 5278000 | K52: 755.2947911 | L52: 21 years 3 months | M52: JTC
A53: 2014-02-25 | B53: 2014-04-08 | C53: 2014-04-29 | D53: Plot 47, Tuas South Street 6 | E53: Business 2 | F53: 6988 | G53: 1 | H53: 6988 | I53: Soon Hock Investment Group Pte Ltd | J53: 5115000 | K53: 731.9690899 | L53: 21 years 3 months | M53: JTC
A54: 2013-12-27 | B54: 2014-02-07 | C54: 2014-04-14 | D54: Plot 6, Tuas South Street 6 | E54: Business 2 | F54: 4551.4 | G54: 1 | H54: 4551.4 | I54: H P Construction & Engineering Pte Ltd | J54: 4100000 | K54: 900.8217252 | L54: 21 years 5 months | M54: State
A55: 2013-12-27 | B55: 2014-02-07 | C55: 2014-04-14 | D55: Plot 34, Tuas South Street 13 | E55: Business 2 | F55: 7447.4 | G55: 1 | H55: 7447.4 | I55: Evan Lim & Co. Pte. Ltd. | J55: 4850000 | K55: 651.2339877 | L55: 21 years 5 months | M55: State
A56: 2013-12-27 | B56: 2014-02-07 | C56: 2014-04-14 | D56: Plot 35, Tuas South Street 11 | E56: Business 2 | F56: 7432.1 | G56: 1 | H56: 7432.1 | I56: Toko Tan Equipment Pte Ltd | J56: 4293524.17 | K56: 577.7 | L56: 21 years 5 months | M56: State
A57: 2013-12-27 | B57: 2014-02-07 | C57: 2014-04-14 | D57: Plot 38, Tuas South Street 13 | E57: Business 2 | F57: 7176.5 | G57: 1 | H57: 7176.5 | I57: AEI (China) Holdings Pte. Ltd | J57: 5038888 | K57: 702.1372535 | L57: 21 years 5 months | M57: State
A58: 2013-11-29 | B58: 2014-01-10 | C58: 2014-03-10 | D58: Plot 33, Tuas South Street 11 | E58: Business 2 | F58: 7432.1 | G58: 1 | H58: 7432.1 | I58: United Hudson Investment Pte Ltd | J58: 4808000 | K58: 646.92 | L58: 21 years 6 months | M58: State
A59: 2013-11-29 | B59: 2014-01-10 | C59: 2014-03-10 | D59: Plot 36, Tuas South Street 13 | E59: Business 2 | F59: 7431.7 | G59: 1 | H59: 7431.7 | I59: Quek & Quek Civil Engineering Pte Ltd | J59: 7431700 | K59: 1000 | L59: 21 years 6 months | M59: State
A60: 2013-11-29 | B60: 2014-01-10 | C60: 2014-03-10 | D60: Plot 37, Tuas South Street 11 | E60: Business 2 | F60: 7177 | G60: 1 | H60: 7177 | I60: United Hudson Investment Pte Ltd | J60: 5029200 | K60: 700.74 | L60: 21 years 6 months | M60: State
A61: 2013-11-29 | B61: 2014-01-10 | C61: 2014-03-10 | D61: Woodlands Industrial Park E9 | E61: Business 2 (with an integrated Heavy Vehicle Park) | F61: 18394.1 | G61: 2.5 | H61: 45985.25 | I61: Vantage Properties Pte Ltd | J61: 56180000 | K61: 1221.7 | L61: 30 | M61: State
A62: 2013-10-31 | B62: 2013-12-12 | C62: 2014-01-28 | D62: Plot 20, Tuas South Street 10 | E62: Business 2 | F62: 3036.2 | G62: 1 | H62: 3036.2 | I62: The Hi-Fi Company Pte Ltd | J62: 3104759 | K62: 1022.58 | L62: 21 years 7 months | M62: State
A63: 2013-10-31 | B63: 2013-12-12 | C63: 2014-01-28 | D63: Plot 22, Tuas South Street 10 | E63: Business 2 | F63: 3036 | G63: 1 | H63: 3036 | I63: Brown Metal Engineering Pte Ltd | J63: 3235320 | K63: 1065.65 | L63: 21 years 7 months | M63: State
A64: 2013-10-31 | B64: 2013-12-12 | C64: 2014-01-28 | D64: Plot 24, Tuas South Street 10 | E64: Business 2 | F64: 4551.2 | G64: 1 | H64: 4551.2 | I64: E C Builders Pte Ltd | J64: 4600000 | K64: 1010.72 | L64: 21 years 7 months | M64: State
A65: 2013-09-27 | B65: 2013-11-22 | C65: 2013-12-20 | D65: Tai Seng Street | E65: Business 2 - White | F65: 11,780.0 (Principal Site) | G65: 3.5 (B1-2.5 W-1.0) | H65: =11780*3.5 -> 41230 | I65: Mapletree Trustee Pte Ltd | J65: 120078500 | K65: 2912.41 | L65: 30 | M65: JTC
A66: 2013-09-27 | B66: 2013-11-08 | C66: 2013-12-06 | D66: Plot 2, Tuas South Street 6 | E66: Business 2 | F66: 3036.6 | G66: 1 | H66: =F66*G66 -> 3036.6 | I66: Tiong Lee Huat Machinery & Construction Pte Ltd | J66: 3000000 | K66: 987.95 | L66: 21 years 8 months | M66: State
A67: 2013-09-27 | B67: 2013-11-08 | C67: 2013-12-06 | D67: Plot 29, Tuas South Street 7 | E67: Business 2 | F67: 5033.1 | G67: 1 | H67: 5033.1 | I67: Poh Meng Trading & Cleaning Services Pte Ltd | J67: 4991272.91 | K67: 991.69 | L67: 21 years 8 months | M67: State
A68: 2013-08-29 | B68: 2013-10-10 | C68: 2013-11-08 | D68: Plot 4, Tuas South Street 6 | E68: Business 2 | F68: 3036.7 | G68: 1 | H68: 3036.7 | I68: Derman Aluminum (S) Pte Ltd | J68: 2880917 | K68: 948.7 | L68: 21 years 9 months | M68: State
A69: 2013-08-29 | B69: 2013-10-10 | C69: 2013-11-08 | D69: Plot 28, Tuas South Street 7 | E69: Business 2 | F69: 5047.4 | G69: 1 | H69: 5047.4 | I69: Reclaims Enterprise Pte Ltd | J69: 5330054.4 | K69: 1056 | L69: 21 years 9 months | M69: State
A70: 2013-06-26 | B70: 2013-08-07 | C70: 2013-09-06 | D70: Tuas South Avenue 3 | E70: Business 2 | F70: 39578.5 | G70: 1.4 | H70: 55409.9 | I70: Grow-Tech Properties Pte Ltd | J70: 66777000 | K70: 1205.15 | L70: 30 | M70: State
A71: 2013-06-26 | B71: 2013-08-07 | C71: 2013-09-06 | D71: Plot 19, Tuas South Street 10 | E71: Business 2 | F71: 4526.7 | G71: 1 | H71: 4526.7 | I71: Kian Hock Engineering Pte Ltd | J71: 4485131.29 | K71: 990.82 | L71: 21 years 11 months | M71: State
A72: 2013-06-26 | B72: 2013-08-07 | C72: 2013-09-06 | D72: Plot 21, Tuas South Street 10 | E72: Business 2 | F72: 3035.8 | G72: 1 | H72: 3035.8 | I72: SWHL Pte Ltd | J72: 2783640 | K72: 916.94 | L72: 21 years 11 months | M72: State
A73: 2013-06-26 | B73: 2013-08-07 | C73: 2013-09-06 | D73: Plot 23, Tuas South Street 10 | E73: Business 2 | F73: 3036 | G73: 1 | H73: 3036 | I73: Jay Machinery Pte Ltd | J73: 2680000 | K73: 882.74 | L73: 21 years 11 months | M73: State
A74: 2013-05-31 | B74: 2013-07-12 | C74: 2013-07-31 | D74: Mandai Link | E74: Business 2 (Food only) | F74: 6891.2 | G74: 2.5 | H74: 17228 | I74: Wealth Property Pte Ltd | J74: 21308888 | K74: 1236.88 | L74: 30 | M74: JTC
A75: 2013-04-30 | B75: 2013-06-11 | C75: 2013-07-09 | D75: Plot 1, Tuas South Street 6 | E75: Business 2 | F75: 4550.9 | G75: 1 | H75: =F75*G75 -> 4550.9 | I75: S.H. Stainless Steel Contractor Pte Ltd | J75: 4208000 | K75: 924.65 | L75: 22 years 1 month | M75: State
A76: 2013-04-30 | B76: 2013-06-11 | C76: 2013-07-09 | D76: Plot 3, Tuas South Street 6 | E76: Business 2 | F76: 3036.2 | G76: 1 | H76: =F76*G76 -> 3036.2 | I76: Stallion Development Pte Ltd | J76: 2600000 | K76: 856.33 | L76: 22 years 1 month | M76: State
A77: 2013-04-30 | B77: 2013-06-11 | C77: 2013-07-09 | D77: Plot 5, Tuas South Street 6 | E77: Business 2 | F77: 3035.8 | G77: 1 | H77: =F77*G77 -> 3035.8 | I77: Jin Choon Civil Engineering Pte Ltd | J77: 2490340 | K77: 820.32 | L77: 22 years 1 month | M77: State
A78: 2013-03-28 | B78: 2013-05-09 | C78: 2013-06-07 | D78: Loyang Way | E78: Business 2 | F78: 20633 | G78: 2.5 | H78: =F78*G78 -> 51582.5 | I78: OKH Global Ltd | J78: 61636000 | K78: 1194.9 | L78: 30 | M78: JTC
A79: 2013-02-28 | B79: 2013-04-11 | C79: 2013-05-10 | D79: Tuas Bay Close | E79: Business 2 | F79: 24971 | G79: 1.7 | H79: =F79*G79 -> 42450.7 | I79: Zacd Investments Pte Ltd, Bohai Investments (Sengkang) Pte Ltd | J79: 37100000 | K79: 873.95 | L79: 30 | M79: JTC
A80: 2013-01-31 | B80: 2013-03-28 | C80: 2013-04-23 | D80: Tuas Bay Walk | E80: Business 2 (Food only) | F80: 5808 | G80: 1.7 | H80: 9873.6 | I80: Yee Lee Development Pte Ltd | J80: 8988000 | K80: 910.31 | L80: 30 | M80: JTC
A81: 2013-01-31 | B81: 2013-03-28 | C81: 2013-04-23 | D81: Buroh Crescent | E81: Business 2 | F81: 17681 | G81: 2.5 | H81: 44202.5 | I81: OKH Holdings Pte Ltd | J81: 39017000 | K81: 882.69 | L81: 30 | M81: JTC
A82: 2012-12-27 | B82: 2013-02-07 | C82: 2013-03-21 | D82: Tuas South Avenue 10 | E82: Business 2 | F82: 39616 | G82: 1.4 | H82: 55462.4 | I82: Soon Hock Group Pte Ltd | J82: 60999000 | K82: 1099.83 | L82: 30 | M82: State
A83: 2012-12-27 | B83: 2013-02-07 | C83: 2013-03-21 | D83: Plot 10, Tuas South Street 8 | E83: Business 2 | F83: 3035.6 | G83: 1 | H83: 3035.6 | I83: Boilermaster Holdings Pte Ltd | J83: 2400000 | K83: 790.62 | L83: 22 years 5 months | M83: State
A84: 2012-12-27 | B84: 2013-02-07 | C84: 2013-03-11 | D84: Ubi Avenue 4 | E84: Business 1 | F84: 3503.5 | G84: 2.5 | H84: 8758.75 | I84: BP-Ubi Industrial Pte Ltd | J84: 16216020 | K84: 1851.41 | L84: 30 | M84: JTC
A85: 2012-11-20 | B85: 2013-01-02 | C85: 2013-02-01 | D85: Plot 30, Tuas South Street 6 | E85: Business 2 | F85: 8597.4 | G85: 1 | H85: 8597.4 | I85: Koh Brothers Building & Civil Engineering Contractor (Pte) Ltd | J85: 6570000 | K85: 764.1845209 | L85: 22 years 6 months | M85: State
A86: 2012-11-20 | B86: 2013-01-02 | C86: 2013-02-01 | D86: Plot 32, Tuas South Street 6 | E86: Business 2 | F86: 8732.2 | G86: 1 | H86: 8732.2 | I86: SH Design & Build Pte Ltd | J86: 6650000 | K86: 761.5492087 | L86: 22 years 6 months | M86: State
A87: 2012-11-20 | B87: 2013-01-02 | C87: 2013-01-29 | D87: Buroh Street | E87: Business 2 | F87: 27400 | G87: 2.5 | H87: 68500 | I87: Capital Development Pte Ltd and ZACD Investments Pte Ltd | J87: 82100000 | K87: 1198.540146 | L87: 30 | M87: JTC
A88: 2012-10-31 | B88: 2012-12-26 | C88: 2013-01-29 | D88: Off Woodlands Avenue 10 | E88: Business 2 | F88: 10705 | G88: 2.5 | H88: 26762.5 | I88: Bohai Investments (Sengkang) Pte Ltd and Punggol Drive Investments Pte Ltd | J88: 31700000 | K88: 1184.493227 | L88: 30 | M88: JTC
A89: 2012-10-31 | B89: 2012-12-12 | C89: 2013-01-08 | D89: Plot 8, Tuas South Street 8 | E89: Business 2 | F89: 3035.6 | G89: 1 | H89: 3035.6 | I89: T.M. Transport Contractor Pte Ltd | J89: 2222200 | K89: 732.05 | L89: 22 years 7 months | M89: State
A90: 2012-10-31 | B90: 2012-12-12 | C90: 2013-01-08 | D90: Plot 18, Tuas South Street 8 | E90: Business 2 | F90: 4526.9 | G90: 1 | H90: 4526.9 | I90: LNT Coating Pte Ltd | J90: 3800001 | K90: 839.43 | L90: 22 years 7 months | M90: State
A91: 2012-09-28 | B91: 2012-11-23 | C91: 2012-12-19 | D91: Plot 14, Tuas South Street 8 | E91: Business 2 | F91: 3035.9 | G91: 1 | H91: 3035.9 | I91: Greenway Environmental Waste Management Pte Ltd | J91: 2160000 | K91: 711.49 | L91: 22 years 8 months | M91: State
A92: 2012-09-28 | B92: 2012-11-23 | C92: 2012-12-19 | D92: Plot 16, Tuas South Street 8 | E92: Business 2 | F92: 3036 | G92: 1 | H92: 3036 | I92: Chuan Heng Hardware Trading Pte Ltd | J92: 2076624 | K92: 684 | L92: 22 years 8 months | M92: State
A93: 2012-09-28 | B93: 2012-11-23 | C93: 2012-12-05 | D93: Serangoon North Avenue 5 | E93: Business 1 | F93: 7504 | G93: 2.5 | H93: 18760 | I93: Popular Warehouse and Distribution Pte Ltd | J93: 26999000 | K93: 1439.18 | L93: 30 | M93: JTC
A94: 2012-08-31 | B94: 2012-10-12 | C94: 2012-11-09 | D94: Plot 12, Tuas South Sreet 8 | E94: Business 2 | F94: 4550.7 | G94: 1 | H94: 4550.7 | I94: Teck Leong Industries Pte Ltd | J94: 3200899 | K94: 703.3861 | L94: 22 years 9 months | M94: State
A95: 2012-08-31 | B95: 2012-10-12 | C95: 2012-10-29 | D95: Sunview Road | E95: Business 2 (Clean and Light Uses) | F95: 28173 | G95: 2.5 | H95: 70432.5 | I95: Asendial Pte Ltd | J95: 76571635 | K95: 1087.16 | L95: 30 | M95: JTC
A96: 2012-07-24 | B96: 2012-09-04 | C96: 2012-10-12 | D96: Plot 26, Tuas South Street 7 | E96: Business 2 | F96: 10094.9 | G96: 1 | H96: 10094.9 | I96: 800 Super Holdings Limited | J96: 6300000 | K96: 624.08 | L96: 22 | M96: State
A97: 2012-07-24 | B97: 2012-09-04 | C97: 2012-10-12 | D97: Plot 31, Tuas South Street 6 | E97: Business 2 | F97: 8569.3 | G97: 1 | H97: 8569.3 | I97: Kwong Lee Holdings Pte Ltd | J97: 4900068 | K97: 571.82 | L97: 22 | M97: State
A98: 2012-06-29 | B98: 2012-08-24 | C98: 2012-09-10 | D98: Plot 3, Tampines Industrial Crescent | E98: Business 2 (Clean Uses Only) | F98: 38800 | G98: 1.7 | H98: =F98*G98 -> 65960 | I98: Oxley Bliss Pte Ltd | J98: 55000000 | K98: 833.84 | L98: 30 | M98: JTC
A99: 2012-06-29 | B99: 2012-08-10 | C99: 2012-08-27 | D99: Mandai Link | E99: Business 2 (Clean and Light Uses) | F99: 22366 | G99: 2.5 | H99: =F99*G99 -> 55915 | I99: Soilbuild Group Holdings Ltd | J99: 45289000 | K99: 809.96 | L99: 30 | M99: JTC
A100: 2012-06-29 | B100: 2012-08-10 | C100: 2012-09-28 | D100: Plot 13, Tuas South Street 7 | E100: Business 2 | F100: 4551.1 | G100: 1 | H100: 4551.1 | I100: Chip Eng Seng Contractors (1988) Pte Ltd | J100: 3815188 | K100: 838.3 | L100: 23 | M100: State
A101: 2012-06-29 | B101: 2012-08-10 | C101: 2012-09-28 | D101: Plot 15, Tuas South Street 8 | E101: Business 2 | F101: 3036.1 | G101: 1 | H101: 3036.1 | I101: Transco-Pac Transport & Environmental Pte Ltd | J101: 1788262.9 | K101: 589 | L101: 23 | M101: State
A102: 2012-06-29 | B102: 2012-08-10 | C102: 2012-09-28 | D102: Plot 17, Tuas South Street 7 | E102: Business 2 | F102: 3036 | G102: 1 | H102: 3036 | I102: P-One (S) Pte Ltd | J102: 1489588 | K102: 490.64 | L102: 23 | M102: State
A103: 2012-06-15 | B103: 2012-07-27 | C103: 2012-09-28 | D103: Plot 7, Tuas South Street 9 | E103: Business 2 | F103: 4551.1 | G103: 1 | H103: 4551.1 | I103: Ben Ching Engineering Pte Ltd | J103: 2310001 | K103: 507.57 | L103: 23 | M103: State
A104: 2012-06-15 | B104: 2012-07-27 | C104: 2012-09-28 | D104: Plot 9, Tuas South Street 8 | E104: Business 2 | F104: 3035.8 | G104: 1 | H104: 3035.8 | I104: Eastman Lift Trucks Pte Ltd | J104: 1449291 | K104: 477.4 | L104: 23 | M104: State
A105: 2012-06-15 | B105: 2012-07-27 | C105: 2012-09-28 | D105: Plot 11, Tuas South Street 8 | E105: Business 2 | F105: 3035.7 | G105: 1 | H105: 3035.7 | I105: Westtech Pte Ltd | J105: 1130000 | K105: 372.24 | L105: 23 | M105: State
A106: 2012-06-15 | B106: 2012-07-27 | C106: 2012-09-28 | D106: Plot 25, Tuas South Street 7 | E106: Business 2 | F106: 5738.3 | G106: 1 | H106: 5738.3 | I106: 800 Super Holdings Ltd | J106: 6000800 | K106: 1045.75 | L106: 23 | M106: State
A107: 2012-06-15 | B107: 2012-07-27 | C107: 2012-09-28 | D107: Plot 27, Tuas South Street 7 | E107: Business 2 | F107: 5047.6 | G107: 1 | H107: 5047.6 | I107: 800 Super Holdings Ltd | J107: 3500800 | K107: 693.56 | L107: 23 | M107: State
A108: 2012-04-24 | B108: 2012-06-19 | C108: 2012-07-13 | D108: Tai Seng Link | E108: Business 2 (Clean and Light Uses) | F108: 4336 | G108: 2.5 | H108: =F108*G108 -> 10840 | I108: OKH (Woodlands) Pte Ltd | J108: 23300000 | K108: 2149.45 | L108: 30 | M108: JTC
A109: 2012-01-31 | B109: 2012-03-13 | C109: 2012-04-04 | D109: Serangoon North Avenue 4 (Parcel 1) | E109: Business 1 | F109: 8076 | G109: 2.5 | H109: 20190 | I109: Soon Hock Property Development Pte Ltd | J109: 47088999 | K109: 2332.29 | L109: 58 | M109: JTC
A110: 2011-08-31 | B110: 2011-10-27 | C110: 2011-11-28 | D110: Lavender Street/ Kallang Avenue | E110: Business 1 - White | F110: 28348 | G110: 3.0 (B1-2.5 W-0.5) | H110: 85044 | I110: PLC 8 Development Pte Ltd | J110: 218300000 | K110: 2566.91 | L110: 60 | M110: JTC
A111: 2011-03-25 | B111: 2011-05-20 | C111: 2011-06-08 | D111: Fusionopolis Link, Fusionopolis Phase 3 | E111: Business Park - White 40% (Office) | F111: 6253 | G111: 4 | H111: 25012 | I111: Ascendas Real Estate Investment Trust | J111: 110000000 | K111: 4397.89 | L111: 60 | M111: JTC
A112: 2011-01-24 | B112: 2011-03-07 | C112: 2011-03-15 | D112: Ubi Road 1/ Ubi Avenue 4 | E112: Business 1 | F112: 12378 | G112: 2.5 | H112: 30945 | I112: Oxley Ascend Realty Pte Ltd | J112: 72200000 | K112: 2333.17 | L112: 60 | M112: JTC
A113: 2010-10-29 | B113: 2010-12-10 | C113: 2011-01-17 | D113: Old Toh Tuck Road/ Toh Tuck Avenue | E113: Business 2 | F113: 10083 | G113: 1.6 | H113: 16132.8 | I113: Incorporated Builders Pte Ltd | J113: 8700000 | K113: 539.27 | L113: 30 | M113: JTC
A114: 2010-08-20 | B114: 2010-10-18 | C114: 2010-11-04 | D114: Yishun Street 23/ Yishun Avenue 9 | E114: Business 2 | F114: 46546.9 | G114: 2.5 | H114: 116367.25 | I114: Soilbuild Group Holdings Ltd | J114: 64011800 | K114: 550.08 | L114: 60 | M114: State
A115: 2010-03-31 | B115: 2010-05-12 | C115: 2010-06-01 | D115: Tampines Industrial Avenue 4 | E115: Business 2 | F115: 49999.9 | G115: 0.8 | H115: 39999.92 | I115: Soon Hock Tuas Development Pte Ltd | J115: 33130000 | K115: 828.25 | L115: 30 | M115: State
A116: 2007-09-28 | B116: 2007-11-09 | C116: 2007-11-29 | D116: Jalan Tepong | E116: Business 2 | F116: 20867 | G116: 1.4 | H116: 29213.8 | I116: EL Development Pte Ltd | J116: 9480000 | K116: 324.5 | L116: 23 | M116: JTC
A117: 2007-09-21 | B117: 2007-11-02 | C117: 2007-11-29 | D117: L1 Commonwealth Drive/ Lane | E117: Business 1 | F117: 11175 | G117: 2.5 | H117: 27937.5 | I117: WHB Pte Ltd | J117: 51228228 | K117: 1833.67 | L117: 30 | M117: JTC
A118: 2007-09-06 | B118: 2007-10-18 | C118: 2007-11-12 | D118: L7 Pioneer Road/ Tuas Avenue 11 | E118: Business 2 | F118: 21871 | G118: 1.4 | H118: 30619.4 | I118: Soilbuild Group Holdings Ltd | J118: 12200000 | K118: 398.44 | L118: 30 | M118: JTC
A119: 2006-12-21 | B119: 2007-02-01 | C119: 2007-03-13 | D119: L1 Enterprise Road | E119: Business 2 | F119: 20122 | G119: 1.4 | H119: 28170.8 | I119: CTE Properties Pte Ltd | J119: 11400000 | K119: 404.67 | L119: 30 | M119: JTC
A120: 2006-11-17 | B120: 2006-12-28 | C120: 2007-01-24 | D120: L2 Serangoon North Avenue 4 | E120: Business 1 | F120: 9458 | G120: 1.4 | H120: 13241.2 | I120: First KNG Pte Ltd | J120: 8699000 | K120: 656.96 | L120: 60 | M120: JTC
A121: 2006-09-29 | B121: 2006-11-10 | C121: 2006-12-01 | D121: L14 Changi North Street 1 | E121: Business 2 | F121: 15000 | G121: 1 | H121: 15000 | I121: Global Orion Properties Ltd | J121: 4300228 | K121: 286.68 | L121: 30 | M121: JTC
A122: 2006-06-30 | B122: 2006-08-11 | C122: 2006-09-18 | D122: Ubi Road 2/ Ubi Avenue 3/ Ubi Avenue 4/ Ubi Link | E122: Business 1 | F122: 38577.5 | G122: 2.5 | H122: 96443.75 | I122: Sim Lian Development Pte Ltd | J122: 39999000 | K122: 414.74 | L122: 60 | M122: JTC
A123: 2006-05-16 | B123: 2006-07-04 | C123: 2006-09-18 | D123: Serangoon North Avenue 4 (end) | E123: Business 1 | F123: 29225 | G123: 2.5 | H123: 73062.5 | I123: Orion-One Development Pte Ltd | J123: 22800228 | K123: 312.06 | L123: 60 | M123: JTC
A124: 2005-09-27 | B124: 2005-11-22 | C124: 2006-01-05 | D124: Pioneer Road | E124: Business 2 | F124: 19858 | G124: 1 | H124: 19858 | I124: Soilbuild Group Holdings Ltd | J124: 3028000 | K124: 152.48 | L124: 30 | M124: JTC
A125: 2005-02-17 | B125: 2005-04-12 | C125: 2005-04-15 | D125: Penjuru Road | E125: Business 2 | F125: 20000 | G125: 1 | H125: 20000 | I125: Stagis Pte Ltd | J125: 5300000 | K125: 265 | L125: 30 | M125: JTC

Sheet As at 20 07 2015
A1: Date of Launch | B1: Date of Tender Closing | C1: Date of Award | D1: Location | E1: Type of Development Allowed | F1: Site Area (m2) | G1: Plot Ratio | H1: Maximum Permissible Gross Floor Area (GFA) (m2) | I1: Name of Successful Tenderer | J1: Successful Tender Price | K1: Price Psm Per Gross Plot Ratio | L1: Lease (Years) | M1: Land Owner
A2: 2017-09-05 | B2: 2017-10-24 | C2: 2017-12-13 | D2: Plot 14, Tuas South Link 3 | E2: Business 2 | F2: 5736.4 | G2: 1.4 | H2: =F2*G2 -> 8030.96 | I2: Wee Hur Construction Pte Ltd | J2: 2680000 | K2: =J2/H2 -> 333.7085479 | L2: 20 | M2: State
A3: 2017-07-25 | B3: 2017-09-19 | C3: 2017-11-03 | D3: Plot 25, Tuas South Link 3 | E3: Business 2 | F3: 4699.1 | G3: 1.4 | H3: =F3*G3 -> 6578.74 | I3: G.T.H. Engineering & Construction Pte Ltd | J3: 2511000 | K3: =J3/H3 -> 381.6840307 | L3: 20 | M3: State
A4: 2017-06-30 | B4: 2017-08-25 | C4: 2017-10-06 | D4: Plot 10, Tuas South Link 2 | E4: Business 2 | F4: 4802 | G4: 1.4 | H4: 6722.8 | I4: Zhao Yang Geotechnic Pte Ltd | J4: 2756348 | K4: 410 | L4: 20 | M4: JTC
A5: 2017-05-30 | B5: 2017-07-25 | C5: 2017-09-14 | D5: Plot A, Jalan Lam Huat | E5: Business 2 | F5: 8000.5 | G5: 2.5 | H5: 20001.25 | I5: JC Development Pte Ltd | J5: 6160000 | K5: 307.9807512 | L5: 20 | M5: State
A6: 2017-04-25 | B6: 2017-06-20 | C6: 2017-08-16 | D6: Plot 18, Tuas South Link 3 | E6: Business 2 | F6: 4299.9 | G6: 1.4 | H6: 6019.86 | I6: LNT Coating Pte Ltd | J6: 2450600 | K6: 407.0858791 | L6: 20 | M6: State
A7: 2017-03-28 | B7: 2017-05-23 | C7: 2017-07-20 | D7: Plot 24, Tuas South Link 3 | E7: Business 2 | F7: 4687.5 | G7: 1.4 | H7: 6562.5 | I7: Pan Asian Flow Technology Pte Ltd | J7: 2500000 | K7: 380.952381 | L7: 20 | M7: State
A8: 2017-02-28 | B8: 2017-04-25 | C8: 2017-06-02 | D8: Plot 3, Tampines North Drive 3 | E8: Business 2 | F8: 5804 | G8: 2.5 | H8: 14510 | I8: BHCC Construction Pte Ltd | J8: 7000000 | K8: 482.4259132 | L8: 20 | M8: State
A9: 2017-01-31 | B9: 2017-03-28 | C9: 2017-05-05 | D9: Plot 15, Tuas South Link 3 | E9: Business 2 | F9: 4994.6 | G9: 1.4 | H9: 6992.44 | I9: Soilbuild Construction Group Ltd | J9: 2711800 | K9: 387.8188444 | L9: 20 | M9: State
A10: 2016-12-27 | B10: 2017-02-21 | C10: 2017-04-05 | D10: Plot 17, Tuas South Link 3 | E10: Business 2 | F10: 4874.2 | G10: 1.4 | H10: 6823.88 | I10: Goh Sin Guan Huat Pte Ltd | J10: 2351314.08 | K10: =J10/H10 -> 344.5714286 | L10: 20 | M10: State
A11: 2016-11-29 | B11: 2017-01-24 | C11: 2017-03-15 | D11: Plot 1, Tampines Industrial Drive | E11: Business 2 | F11: 5253.5 | G11: 1.4 | H11: =F11*G11 -> 7354.9 | I11: Power Partners Private Limited | J11: 3320000 | K11: 451.3997471 | L11: 20 | M11: State
A12: 2016-10-25 | B12: 2016-12-20 | C12: 2017-02-08 | D12: Plot 22, Tuas South Link 3 | E12: Business 2 | F12: 5795.4 | G12: 1.4 | H12: 8113.56 | I12: Hexacon Construction Pte Ltd | J12: 2995055 | K12: 369.1419056 | L12: 20 | M12: JTC
A13: 2016-09-27 | B13: 2016-11-22 | C13: 2016-12-27 | D13: Plot 11, Tuas South Link 2 | E13: Business 2 | F13: 5016.5 | G13: 1.4 | H13: 7023.1 | I13: Zhao Yang Geo-Systems Pte Ltd | J13: 2688888 | K13: 382.8634079 | L13: 20 | M13: JTC
A14: 2016-08-30 | B14: 2016-10-25 | C14: 2016-11-17 | D14: Plot 6, Tuas South Link 2 | E14: Business 2 | F14: 5050 | G14: 1.4 | H14: 7070 | I14: Wellbuilt Pte Ltd | J14: 2829060 | K14: 400.1499293 | L14: 20 | M14: JTC
A15: 2016-07-26 | B15: 2016-10-04 | C15: 2016-11-17 | D15: Plot 3, Tampines Industrial Drive | E15: Business 2 | F15: 4885.7 | G15: 1.4 | H15: 6839.98 | I15: Kok Tong Transport & Engineering Works Pte Ltd | J15: 3105360 | K15: 454.0013275 | L15: 20 | M15: State
A16: 2016-06-28 | B16: 2016-08-23 | C16: 2016-09-29 | D16: Plot 8, Tuas South Link 2 | E16: Business 2 | F16: 5953.3 | G16: 1.4 | H16: 8334.62 | I16: Aik Leong Plumbing Construction Pte Ltd | J16: 3210000 | K16: 385.1405343 | L16: 20 | M16: JTC
A17: 2016-05-31 | B17: 2016-07-26 | C17: 2016-08-10 | D17: Plot 7, Tuas South Link 2 | E17: Business 2 | F17: 5332.7 | G17: 1.4 | H17: 7465.78 | I17: SE Global Group Pte Ltd | J17: 2680000 | K17: 358.9711993 | L17: 20 | M17: JTC
A18: 2016-03-29 | B18: 2016-05-24 | C18: 2016-06-22 | D18: Woodlands Sector 2 | E18: Business 2 | F18: 13542 | G18: 1.4 | H18: 18958.8 | I18: Yee Lee Development Pte Ltd | J18: 6180000 | K18: 325.9699981 | L18: 20 | M18: JTC
A19: 2016-02-23 | B19: 2016-04-05 | C19: 2016-05-06 | D19: Plot 1, Tuas South Link 1 | E19: Business 2 | F19: 33300.1 | G19: 2 | H19: 66600.2 | I19: Diamond Land Pte Ltd | J19: 37500000 | K19: 563.0613722 | L19: 30 | M19: JTC
A20: 2016-01-26 | B20: 2016-03-22 | C20: 2016-05-06 | D20: Plot 2, Tampines Industrial Drive | E20: Business 2 | F20: 4890.7 | G20: 1.4 | H20: 6846.98 | I20: Hock Lian Seng Holdings Limited | J20: 3708000 | K20: 541.5526261 | L20: 20 | M20: State
A21: 2015-12-29 | B21: 2016-02-23 | C21: 2016-04-07 | D21: Plot 5, Tampines Industrial Drive | E21: Business 2 | F21: 5077.8 | G21: 1.4 | H21: 7108.92 | I21: Precise Development Pte Ltd | J21: 3611331.36 | K21: 508 | L21: 20 | M21: State
A22: 2015-12-29 | B22: 2016-02-23 | C22: 2016-04-07 | D22: Plot 9, Tuas South Link 2 | E22: Business 2 | F22: 4802.1 | G22: 1.4 | H22: 6722.94 | I22: Texas Petrochemical Asia Pacific Pte Ltd | J22: 2200000 | K22: 327.2377858 | L22: 20 | M22: JTC
A23: 2015-11-24 | B23: 2016-01-19 | C23: 2016-04-07 | D23: Plot 7, Tampines Industrial Drive | E23: Business 2 | F23: 4112.5 | G23: 1.4 | H23: =F23*G23 -> 5757.5 | I23: Chye Thiam Maintenance Pte Ltd | J23: 2982385 | K23: =J23/H23 -> 518 | L23: 20 | M23: State
A24: 2015-09-29 | B24: 2015-11-24 | C24: 2016-01-14 | D24: Plot 5, Tuas South Link 2 | E24: Business 2 | F24: 5050 | G24: 1.4 | H24: 7070 | I24: Hiap Shing Construction Pte Ltd | J24: 3000000 | K24: 424.3281471 | L24: 20 | M24: JTC
A25: 2015-08-25 | B25: 2015-10-20 | C25: 2015-12-18 | D25: Plot 12, Tampines Industrial Drive | E25: Business 2 | F25: 4794.5 | G25: 1.4 | H25: 6712.3 | I25: Soon Lee Heng Trading & Transportation Pte Ltd | J25: 4900000 | K25: 730.0031286 | L25: 20 | M25: State
A26: 2015-08-25 | B26: 2015-10-20 | C26: 2015-11-27 | D26: Tanjong Penjuru | E26: Business 2 | F26: 16307.9 | G26: 2.5 | H26: 40769.75 | I26: Trans Eurokars Pte Ltd | J26: 13000000 | K26: 318.8638635 | L26: 20 | M26: JTC
A27: 2015-07-28 | B27: 2015-09-22 | C27: 2015-10-30 | D27: Plot 9, Tampines Industrial Drive | E27: Business 2 | F27: 5778.2 | G27: 1.4 | H27: 8089.48 | I27: Zulin (S.E.A) Pte Ltd | J27: 5850000 | K27: 723.1614393 | L27: 20 | M27: State
A28: 2015-06-30 | B28: 2015-08-25 | C28: 2015-10-02 | D28: Plot 6, Tampines Industrial Drive | E28: Business 2 | F28: 4732.5 | G28: 1.4 | H28: 6625.5 | I28: Lim Wen Heng Construction Pte Ltd | J28: 4935997.6 | K28: 745.0000151 | L28: 20 | M28: State
A29: 2015-05-26 | B29: 2015-07-21 | C29: 2015-09-02 | D29: Plot 11, Tampines Industrial Drive | E29: Business 2 | F29: 5283.6 | G29: 1.4 | H29: 7397.04 | I29: Wai Fong Construction Pte Ltd | J29: 5000006 | K29: 675.9468652 | L29: 20 | M29: State
A30: 2015-04-28 | B30: 2015-06-23 | C30: 2015-07-15 | D30: Plot 4, Tuas South Link 2 | E30: Business 2 | F30: 7900 | G30: 1.4 | H30: 11060 | I30: Mundipharma Manufacturing Pte Ltd | J30: 12500000 | K30: 1130.198915 | L30: 20 | M30: JTC
A31: 2015-03-31 | B31: 2015-05-26 | C31: 2015-06-26 | D31: Plot 4, Tampines Industrial Drive | E31: Business 2 | F31: 5686.3 | G31: 1.4 | H31: 7960.82 | I31: Sim Lian Construction Co (Pte) Ltd | J31: 5900000 | K31: 741.1296826 | L31: 20 years | M31: State
A32: 2015-02-24 | B32: 2015-04-21 | C32: 2015-05-15 | D32: Plot 46, Tuas South Street 6 | E32: Business 2 | F32: 6988 | G32: 1 | H32: 6988 | I32: Tean Chay Crane Rental Pte Ltd | J32: 5611365 | K32: 803.0001431 | L32: 20 years 3 months | M32: JTC
A33: 2015-01-27 | B33: 2015-03-24 | C33: 2015-04-27 | D33: Plot 43, Tuas South Street 11​ | E33: Business 2 | F33: 8409.8 | G33: 1 | H33: 8409.8 | I33: Ho Lee Construction Pte Ltd | J33: 6996953.6 | K33: 832 | L33: 20 years 4 months | M33: State
A34: 2014-12-29 | B34: 2015-02-09 | C34: 2015-03-25 | D34: Plot 53, Tuas South Street 7 | E34: Business 2 | F34: 5038.6 | G34: 1 | H34: =F34*G34 -> 5038.6 | I34: L & P Blasting Pte Ltd | J34: 5506480 | K34: 1092.859128 | L34: 20 years 4 months | M34: State
A35: 2014-12-16 | B35: 2015-02-10 | C35: 2015-03-25 | D35: Plot 42, Tuas South Street 11​ | E35: Business 2 | F35: 8409.2 | G35: 1 | H35: 8409.2 | I35: Ho Lee Construction Pte Ltd | J35: 6744178.4 | K35: 802 | L35: 20 years 5 months | M35: State
A36: 2014-11-25 | B36: 2015-01-20 | C36: 2015-02-27 | D36: Plot 8, Tampines Industrial Drive | E36: Business 2 | F36: 5033.3 | G36: 1.4 | H36: 7046.62 | I36: Soilbuild Group Holdings Ltd | J36: 5800001 | K36: 823.0897934 | L36: 20 years | M36: State
A37: 2014-11-25 | B37: 2015-01-20 | C37: 2015-02-27 | D37: Plot 40, Tuas South Street 11 | E37: Business 2 | F37: 10000 | G37: 1 | H37: 10000 | I37: Tiong Seng Contractors (Pte) Ltd | J37: 8400000 | K37: =J37/H37 -> 840 | L37: 20 years 6 months | M37: State
A38: 2014-10-28 | B38: 2014-12-23 | C38: 2015-01-19 | D38: Plot 52, Tuas South Street 9 | E38: Business 2 | F38: 8369 | G38: 1 | H38: 8369 | I38: Asiaone Logistics & Warehousing Pte Ltd | J38: 7038000 | K38: 840.9606883 | L38: 20 years 7 months | M38: JTC
A39: 2014-09-29 | B39: 2014-11-24 | C39: 2014-12-23 | D39: Plot 50, Tuas South Street 9 | E39: Business 2 | F39: 8369 | G39: 1 | H39: 8369 | I39: Prospaq Group Pte Ltd | J39: 6878000 | K39: 821.842514 | L39: 20 years 8 months | M39: JTC
A40: 2014-09-29 | B40: 2014-11-24 | C40: 2014-12-23 | D40: Plot 1, Tampines North Drive 1 | E40: Business 2 | F40: 27395.2 | G40: 2.5 | H40: 68488 | I40: Goldprime Land Pte Ltd | J40: 64388888 | K40: 940.148464 | L40: 30 | M40: State
A41: 2014-09-16 | B41: 2014-10-28 | C41: 2014-11-27 | D41: Plot 41, Tuas South Street 11 | E41: Business 2 | F41: 9000 | G41: 1 | H41: 9000 | I41: Jian Man Construction Pte Ltd | J41: 7510000 | K41: 834.4444444 | L41: 20 years 10 months | M41: State
A42: 2014-08-26 | B42: 2014-10-21 | C42: 2014-11-21 | D42: Plot 48, Tuas South Street 9 | E42: Business 2 | F42: 8369 | G42: 1 | H42: 8369 | I42: New Hope Singapore Pte Ltd | J42: 6963008 | K42: 832 | L42: 20 years 9 months | M42: JTC
A43: 2014-07-29 | B43: 2014-09-09 | C43: 2014-10-23 | D43: Plot 44, Tuas South Street 7 | E43: Business 2 | F43: 5038.6 | G43: 1 | H43: 5038.6 | I43: IG Tuas Pte Ltd | J43: 5201000 | K43: 1032.231175 | L43: 20 years 10 months | M43: State
A44: 2014-06-24 | B44: 2014-08-26 | C44: 2014-10-09 | D44: Plot 12, Off Tuas South Avenue 7 | E44: Business 2 | F44: 25700 | G44: 2 | H44: 51400 | I44: Hock Lian Seng Holdings Limited | J44: 30988000 | K44: 602.8793774 | L44: 30 | M44: JTC
A45: 2014-04-29 | B45: 2014-07-01 | C45: 2014-07-24 | D45: Tuas Avenue 11 | E45: Business 2 | F45: 8922 | G45: 1.4 | H45: 12490.8 | I45: Soon Hock Realty Pte Ltd | J45: 14388000 | K45: 1151.887789 | L45: 30 | M45: JTC
A46: 2014-04-29 | B46: 2014-07-01 | C46: 2014-07-24 | D46: Plot 39, Tuas South Street 11 | E46: Business 2 | F46: 10000 | G46: 1 | H46: 10000 | I46: Tiong Aik Construction Pte Ltd | J46: 8073000 | K46: 807.3 | L46: 20 years 10 months | M46: JTC
A47: 2014-03-25 | B47: 2014-05-06 | C47: 2014-06-02 | D47: Plot 49, Tuas South Street 9 | E47: Business 2 | F47: 8369 | G47: 1 | H47: 8369 | I47: Pan Marine Blasting Abrasives Pte Ltd | J47: 5925252 | K47: 708 | L47: 21 years 2 months | M47: JTC
A48: 2014-03-25 | B48: 2014-05-06 | C48: 2014-06-02 | D48: Plot 51, Tuas South Street 9 | E48: Business 2 | F48: 8369 | G48: 1 | H48: 8369 | I48: Asiagroup Leasing Pte Ltd | J48: 5948000 | K48: 710.7181264 | L48: 21 years 2 months | M48: JTC
A49: 2014-02-25 | B49: 2014-04-08 | C49: 2014-04-29 | D49: Plot 45, Tuas South Street 6 | E49: Business 2 | F49: 6988 | G49: 1 | H49: 6988 | I49: SH Design & Build Pte Ltd | J49: 5278000 | K49: 755.2947911 | L49: 21 years 3 months | M49: JTC
A50: 2014-02-25 | B50: 2014-04-08 | C50: 2014-04-29 | D50: Plot 47, Tuas South Street 6 | E50: Business 2 | F50: 6988 | G50: 1 | H50: 6988 | I50: Soon Hock Investment Group Pte Ltd | J50: 5115000 | K50: 731.9690899 | L50: 21 years 3 months | M50: JTC
A51: 2013-12-27 | B51: 2014-02-07 | C51: 2014-04-14 | D51: Plot 6, Tuas South Street 6 | E51: Business 2 | F51: 4551.4 | G51: 1 | H51: 4551.4 | I51: H P Construction & Engineering Pte Ltd | J51: 4100000 | K51: 900.8217252 | L51: 21 years 5 months | M51: State
A52: 2013-12-27 | B52: 2014-02-07 | C52: 2014-04-14 | D52: Plot 34, Tuas South Street 13 | E52: Business 2 | F52: 7447.4 | G52: 1 | H52: 7447.4 | I52: Evan Lim & Co. Pte. Ltd. | J52: 4850000 | K52: 651.2339877 | L52: 21 years 5 months | M52: State
A53: 2013-12-27 | B53: 2014-02-07 | C53: 2014-04-14 | D53: Plot 35, Tuas South Street 11 | E53: Business 2 | F53: 7432.1 | G53: 1 | H53: 7432.1 | I53: Toko Tan Equipment Pte Ltd | J53: 4293524.17 | K53: 577.7 | L53: 21 years 5 months | M53: State
A54: 2013-12-27 | B54: 2014-02-07 | C54: 2014-04-14 | D54: Plot 38, Tuas South Street 13 | E54: Business 2 | F54: 7176.5 | G54: 1 | H54: 7176.5 | I54: AEI (China) Holdings Pte. Ltd | J54: 5038888 | K54: 702.1372535 | L54: 21 years 5 months | M54: State
A55: 2013-11-29 | B55: 2014-01-10 | C55: 2014-03-10 | D55: Plot 33, Tuas South Street 11 | E55: Business 2 | F55: 7432.1 | G55: 1 | H55: 7432.1 | I55: United Hudson Investment Pte Ltd | J55: 4808000 | K55: 646.92 | L55: 21 years 6 months | M55: State
A56: 2013-11-29 | B56: 2014-01-10 | C56: 2014-03-10 | D56: Plot 36, Tuas South Street 13 | E56: Business 2 | F56: 7431.7 | G56: 1 | H56: 7431.7 | I56: Quek & Quek Civil Engineering Pte Ltd | J56: 7431700 | K56: 1000 | L56: 21 years 6 months | M56: State
A57: 2013-11-29 | B57: 2014-01-10 | C57: 2014-03-10 | D57: Plot 37, Tuas South Street 11 | E57: Business 2 | F57: 7177 | G57: 1 | H57: 7177 | I57: United Hudson Investment Pte Ltd | J57: 5029200 | K57: 700.74 | L57: 21 years 6 months | M57: State
A58: 2013-11-29 | B58: 2014-01-10 | C58: 2014-03-10 | D58: Woodlands Industrial Park E9 | E58: Business 2 (with an integrated Heavy Vehicle Park) | F58: 18394.1 | G58: 2.5 | H58: 45985.25 | I58: Vantage Properties Pte Ltd | J58: 56180000 | K58: 1221.7 | L58: 30 | M58: State
A59: 2013-10-31 | B59: 2013-12-12 | C59: 2014-01-28 | D59: Plot 20, Tuas South Street 10 | E59: Business 2 | F59: 3036.2 | G59: 1 | H59: 3036.2 | I59: The Hi-Fi Company Pte Ltd | J59: 3104759 | K59: 1022.58 | L59: 21 years 7 months | M59: State
A60: 2013-10-31 | B60: 2013-12-12 | C60: 2014-01-28 | D60: Plot 22, Tuas South Street 10 | E60: Business 2 | F60: 3036 | G60: 1 | H60: 3036 | I60: Brown Metal Engineering Pte Ltd | J60: 3235320 | K60: 1065.65 | L60: 21 years 7 months | M60: State
A61: 2013-10-31 | B61: 2013-12-12 | C61: 2014-01-28 | D61: Plot 24, Tuas South Street 10 | E61: Business 2 | F61: 4551.2 | G61: 1 | H61: 4551.2 | I61: E C Builders Pte Ltd | J61: 4600000 | K61: 1010.72 | L61: 21 years 7 months | M61: State
A62: 2013-09-27 | B62: 2013-11-22 | C62: 2013-12-20 | D62: Tai Seng Street | E62: Business 2 - White | F62: 11,780.0 (Principal Site) | G62: 3.5 (B1-2.5 W-1.0) | H62: =11780*3.5 -> 41230 | I62: Mapletree Trustee Pte Ltd | J62: 120078500 | K62: 2912.41 | L62: 30 | M62: JTC
A63: 2013-09-27 | B63: 2013-11-08 | C63: 2013-12-06 | D63: Plot 2, Tuas South Street 6 | E63: Business 2 | F63: 3036.6 | G63: 1 | H63: =F63*G63 -> 3036.6 | I63: Tiong Lee Huat Machinery & Construction Pte Ltd | J63: 3000000 | K63: 987.95 | L63: 21 years 8 months | M63: State
A64: 2013-09-27 | B64: 2013-11-08 | C64: 2013-12-06 | D64: Plot 29, Tuas South Street 7 | E64: Business 2 | F64: 5033.1 | G64: 1 | H64: 5033.1 | I64: Poh Meng Trading & Cleaning Services Pte Ltd | J64: 4991272.91 | K64: 991.69 | L64: 21 years 8 months | M64: State
A65: 2013-08-29 | B65: 2013-10-10 | C65: 2013-11-08 | D65: Plot 4, Tuas South Street 6 | E65: Business 2 | F65: 3036.7 | G65: 1 | H65: 3036.7 | I65: Derman Aluminum (S) Pte Ltd | J65: 2880917 | K65: 948.7 | L65: 21 years 9 months | M65: State
A66: 2013-08-29 | B66: 2013-10-10 | C66: 2013-11-08 | D66: Plot 28, Tuas South Street 7 | E66: Business 2 | F66: 5047.4 | G66: 1 | H66: 5047.4 | I66: Reclaims Enterprise Pte Ltd | J66: 5330054.4 | K66: 1056 | L66: 21 years 9 months | M66: State
A67: 2013-06-26 | B67: 2013-08-07 | C67: 2013-09-06 | D67: Tuas South Avenue 3 | E67: Business 2 | F67: 39578.5 | G67: 1.4 | H67: 55409.9 | I67: Grow-Tech Properties Pte Ltd | J67: 66777000 | K67: 1205.15 | L67: 30 | M67: State
A68: 2013-06-26 | B68: 2013-08-07 | C68: 2013-09-06 | D68: Plot 19, Tuas South Street 10 | E68: Business 2 | F68: 4526.7 | G68: 1 | H68: 4526.7 | I68: Kian Hock Engineering Pte Ltd | J68: 4485131.29 | K68: 990.82 | L68: 21 years 11 months | M68: State
A69: 2013-06-26 | B69: 2013-08-07 | C69: 2013-09-06 | D69: Plot 21, Tuas South Street 10 | E69: Business 2 | F69: 3035.8 | G69: 1 | H69: 3035.8 | I69: SWHL Pte Ltd | J69: 2783640 | K69: 916.94 | L69: 21 years 11 months | M69: State
A70: 2013-06-26 | B70: 2013-08-07 | C70: 2013-09-06 | D70: Plot 23, Tuas South Street 10 | E70: Business 2 | F70: 3036 | G70: 1 | H70: 3036 | I70: Jay Machinery Pte Ltd | J70: 2680000 | K70: 882.74 | L70: 21 years 11 months | M70: State
A71: 2013-05-31 | B71: 2013-07-12 | C71: 2013-07-31 | D71: Mandai Link | E71: Business 2 (Food only) | F71: 6891.2 | G71: 2.5 | H71: 17228 | I71: Wealth Property Pte Ltd | J71: 21308888 | K71: 1236.88 | L71: 30 | M71: JTC
A72: 2013-04-30 | B72: 2013-06-11 | C72: 2013-07-09 | D72: Plot 1, Tuas South Street 6 | E72: Business 2 | F72: 4550.9 | G72: 1 | H72: =F72*G72 -> 4550.9 | I72: S.H. Stainless Steel Contractor Pte Ltd | J72: 4208000 | K72: 924.65 | L72: 22 years 1 month | M72: State
A73: 2013-04-30 | B73: 2013-06-11 | C73: 2013-07-09 | D73: Plot 3, Tuas South Street 6 | E73: Business 2 | F73: 3036.2 | G73: 1 | H73: =F73*G73 -> 3036.2 | I73: Stallion Development Pte Ltd | J73: 2600000 | K73: 856.33 | L73: 22 years 1 month | M73: State
A74: 2013-04-30 | B74: 2013-06-11 | C74: 2013-07-09 | D74: Plot 5, Tuas South Street 6 | E74: Business 2 | F74: 3035.8 | G74: 1 | H74: =F74*G74 -> 3035.8 | I74: Jin Choon Civil Engineering Pte Ltd | J74: 2490340 | K74: 820.32 | L74: 22 years 1 month | M74: State
A75: 2013-03-28 | B75: 2013-05-09 | C75: 2013-06-07 | D75: Loyang Way | E75: Business 2 | F75: 20633 | G75: 2.5 | H75: =F75*G75 -> 51582.5 | I75: OKH Global Ltd | J75: 61636000 | K75: 1194.9 | L75: 30 | M75: JTC
A76: 2013-02-28 | B76: 2013-04-11 | C76: 2013-05-10 | D76: Tuas Bay Close | E76: Business 2 | F76: 24971 | G76: 1.7 | H76: =F76*G76 -> 42450.7 | I76: Zacd Investments Pte Ltd, Bohai Investments (Sengkang) Pte Ltd | J76: 37100000 | K76: 873.95 | L76: 30 | M76: JTC
A77: 2013-01-31 | B77: 2013-03-28 | C77: 2013-04-23 | D77: Tuas Bay Walk | E77: Business 2 (Food only) | F77: 5808 | G77: 1.7 | H77: 9873.6 | I77: Yee Lee Development Pte Ltd | J77: 8988000 | K77: 910.31 | L77: 30 | M77: JTC
A78: 2013-01-31 | B78: 2013-03-28 | C78: 2013-04-23 | D78: Buroh Crescent | E78: Business 2 | F78: 17681 | G78: 2.5 | H78: 44202.5 | I78: OKH Holdings Pte Ltd | J78: 39017000 | K78: 882.69 | L78: 30 | M78: JTC
A79: 2012-12-27 | B79: 2013-02-07 | C79: 2013-03-21 | D79: Tuas South Avenue 10 | E79: Business 2 | F79: 39616 | G79: 1.4 | H79: 55462.4 | I79: Soon Hock Group Pte Ltd | J79: 60999000 | K79: 1099.83 | L79: 30 | M79: State
A80: 2012-12-27 | B80: 2013-02-07 | C80: 2013-03-21 | D80: Plot 10, Tuas South Street 8 | E80: Business 2 | F80: 3035.6 | G80: 1 | H80: 3035.6 | I80: Boilermaster Holdings Pte Ltd | J80: 2400000 | K80: 790.62 | L80: 22 years 5 months | M80: State
A81: 2012-12-27 | B81: 2013-02-07 | C81: 2013-03-11 | D81: Ubi Avenue 4 | E81: Business 1 | F81: 3503.5 | G81: 2.5 | H81: 8758.75 | I81: BP-Ubi Industrial Pte Ltd | J81: 16216020 | K81: 1851.41 | L81: 30 | M81: JTC
A82: 2012-11-20 | B82: 2013-01-02 | C82: 2013-02-01 | D82: Plot 30, Tuas South Street 6 | E82: Business 2 | F82: 8597.4 | G82: 1 | H82: 8597.4 | I82: Koh Brothers Building & Civil Engineering Contractor (Pte) Ltd | J82: 6570000 | K82: 764.1845209 | L82: 22 years 6 months | M82: State
A83: 2012-11-20 | B83: 2013-01-02 | C83: 2013-02-01 | D83: Plot 32, Tuas South Street 6 | E83: Business 2 | F83: 8732.2 | G83: 1 | H83: 8732.2 | I83: SH Design & Build Pte Ltd | J83: 6650000 | K83: 761.5492087 | L83: 22 years 6 months | M83: State
A84: 2012-11-20 | B84: 2013-01-02 | C84: 2013-01-29 | D84: Buroh Street | E84: Business 2 | F84: 27400 | G84: 2.5 | H84: 68500 | I84: Capital Development Pte Ltd and ZACD Investments Pte Ltd | J84: 82100000 | K84: 1198.540146 | L84: 30 | M84: JTC
A85: 2012-10-31 | B85: 2012-12-26 | C85: 2013-01-29 | D85: Off Woodlands Avenue 10 | E85: Business 2 | F85: 10705 | G85: 2.5 | H85: 26762.5 | I85: Bohai Investments (Sengkang) Pte Ltd and Punggol Drive Investments Pte Ltd | J85: 31700000 | K85: 1184.493227 | L85: 30 | M85: JTC
A86: 2012-10-31 | B86: 2012-12-12 | C86: 2013-01-08 | D86: Plot 8, Tuas South Street 8 | E86: Business 2 | F86: 3035.6 | G86: 1 | H86: 3035.6 | I86: T.M. Transport Contractor Pte Ltd | J86: 2222200 | K86: 732.05 | L86: 22 years 7 months | M86: State
A87: 2012-10-31 | B87: 2012-12-12 | C87: 2013-01-08 | D87: Plot 18, Tuas South Street 8 | E87: Business 2 | F87: 4526.9 | G87: 1 | H87: 4526.9 | I87: LNT Coating Pte Ltd | J87: 3800001 | K87: 839.43 | L87: 22 years 7 months | M87: State
A88: 2012-09-28 | B88: 2012-11-23 | C88: 2012-12-19 | D88: Plot 14, Tuas South Street 8 | E88: Business 2 | F88: 3035.9 | G88: 1 | H88: 3035.9 | I88: Greenway Environmental Waste Management Pte Ltd | J88: 2160000 | K88: 711.49 | L88: 22 years 8 months | M88: State
A89: 2012-09-28 | B89: 2012-11-23 | C89: 2012-12-19 | D89: Plot 16, Tuas South Street 8 | E89: Business 2 | F89: 3036 | G89: 1 | H89: 3036 | I89: Chuan Heng Hardware Trading Pte Ltd | J89: 2076624 | K89: 684 | L89: 22 years 8 months | M89: State
A90: 2012-09-28 | B90: 2012-11-23 | C90: 2012-12-05 | D90: Serangoon North Avenue 5 | E90: Business 1 | F90: 7504 | G90: 2.5 | H90: 18760 | I90: Popular Warehouse and Distribution Pte Ltd | J90: 26999000 | K90: 1439.18 | L90: 30 | M90: JTC
A91: 2012-08-31 | B91: 2012-10-12 | C91: 2012-11-09 | D91: Plot 12, Tuas South Sreet 8 | E91: Business 2 | F91: 4550.7 | G91: 1 | H91: 4550.7 | I91: Teck Leong Industries Pte Ltd | J91: 3200899 | K91: 703.3861 | L91: 22 years 9 months | M91: State
A92: 2012-08-31 | B92: 2012-10-12 | C92: 2012-10-29 | D92: Sunview Road | E92: Business 2 (Clean and Light Uses) | F92: 28173 | G92: 2.5 | H92: 70432.5 | I92: Asendial Pte Ltd | J92: 76571635 | K92: 1087.16 | L92: 30 | M92: JTC
A93: 2012-07-24 | B93: 2012-09-04 | C93: 2012-10-12 | D93: Plot 26, Tuas South Street 7 | E93: Business 2 | F93: 10094.9 | G93: 1 | H93: 10094.9 | I93: 800 Super Holdings Limited | J93: 6300000 | K93: 624.08 | L93: 22 | M93: State
A94: 2012-07-24 | B94: 2012-09-04 | C94: 2012-10-12 | D94: Plot 31, Tuas South Street 6 | E94: Business 2 | F94: 8569.3 | G94: 1 | H94: 8569.3 | I94: Kwong Lee Holdings Pte Ltd | J94: 4900068 | K94: 571.82 | L94: 22 | M94: State
A95: 2012-06-29 | B95: 2012-08-24 | C95: 2012-09-10 | D95: Plot 3, Tampines Industrial Crescent | E95: Business 2 (Clean Uses Only) | F95: 38800 | G95: 1.7 | H95: =F95*G95 -> 65960 | I95: Oxley Bliss Pte Ltd | J95: 55000000 | K95: 833.84 | L95: 30 | M95: JTC
A96: 2012-06-29 | B96: 2012-08-10 | C96: 2012-08-27 | D96: Mandai Link | E96: Business 2 (Clean and Light Uses) | F96: 22366 | G96: 2.5 | H96: =F96*G96 -> 55915 | I96: Soilbuild Group Holdings Ltd | J96: 45289000 | K96: 809.96 | L96: 30 | M96: JTC
A97: 2012-06-29 | B97: 2012-08-10 | C97: 2012-09-28 | D97: Plot 13, Tuas South Street 7 | E97: Business 2 | F97: 4551.1 | G97: 1 | H97: 4551.1 | I97: Chip Eng Seng Contractors (1988) Pte Ltd | J97: 3815188 | K97: 838.3 | L97: 23 | M97: State
A98: 2012-06-29 | B98: 2012-08-10 | C98: 2012-09-28 | D98: Plot 15, Tuas South Street 8 | E98: Business 2 | F98: 3036.1 | G98: 1 | H98: 3036.1 | I98: Transco-Pac Transport & Environmental Pte Ltd | J98: 1788262.9 | K98: 589 | L98: 23 | M98: State
A99: 2012-06-29 | B99: 2012-08-10 | C99: 2012-09-28 | D99: Plot 17, Tuas South Street 7 | E99: Business 2 | F99: 3036 | G99: 1 | H99: 3036 | I99: P-One (S) Pte Ltd | J99: 1489588 | K99: 490.64 | L99: 23 | M99: State
A100: 2012-06-15 | B100: 2012-07-27 | C100: 2012-09-28 | D100: Plot 7, Tuas South Street 9 | E100: Business 2 | F100: 4551.1 | G100: 1 | H100: 4551.1 | I100: Ben Ching Engineering Pte Ltd | J100: 2310001 | K100: 507.57 | L100: 23 | M100: State
A101: 2012-06-15 | B101: 2012-07-27 | C101: 2012-09-28 | D101: Plot 9, Tuas South Street 8 | E101: Business 2 | F101: 3035.8 | G101: 1 | H101: 3035.8 | I101: Eastman Lift Trucks Pte Ltd | J101: 1449291 | K101: 477.4 | L101: 23 | M101: State
A102: 2012-06-15 | B102: 2012-07-27 | C102: 2012-09-28 | D102: Plot 11, Tuas South Street 8 | E102: Business 2 | F102: 3035.7 | G102: 1 | H102: 3035.7 | I102: Westtech Pte Ltd | J102: 1130000 | K102: 372.24 | L102: 23 | M102: State
A103: 2012-06-15 | B103: 2012-07-27 | C103: 2012-09-28 | D103: Plot 25, Tuas South Street 7 | E103: Business 2 | F103: 5738.3 | G103: 1 | H103: 5738.3 | I103: 800 Super Holdings Ltd | J103: 6000800 | K103: 1045.75 | L103: 23 | M103: State
A104: 2012-06-15 | B104: 2012-07-27 | C104: 2012-09-28 | D104: Plot 27, Tuas South Street 7 | E104: Business 2 | F104: 5047.6 | G104: 1 | H104: 5047.6 | I104: 800 Super Holdings Ltd | J104: 3500800 | K104: 693.56 | L104: 23 | M104: State
A105: 2012-04-24 | B105: 2012-06-19 | C105: 2012-07-13 | D105: Tai Seng Link | E105: Business 2 (Clean and Light Uses) | F105: 4336 | G105: 2.5 | H105: =F105*G105 -> 10840 | I105: OKH (Woodlands) Pte Ltd | J105: 23300000 | K105: 2149.45 | L105: 30 | M105: JTC
A106: 2012-01-31 | B106: 2012-03-13 | C106: 2012-04-04 | D106: Serangoon North Avenue 4 (Parcel 1) | E106: Business 1 | F106: 8076 | G106: 2.5 | H106: 20190 | I106: Soon Hock Property Development Pte Ltd | J106: 47088999 | K106: 2332.29 | L106: 58 | M106: JTC
A107: 2011-08-31 | B107: 2011-10-27 | C107: 2011-11-28 | D107: Lavender Street/ Kallang Avenue | E107: Business 1 - White | F107: 28348 | G107: 3.0 (B1-2.5 W-0.5) | H107: 85044 | I107: PLC 8 Development Pte Ltd | J107: 218300000 | K107: 2566.91 | L107: 60 | M107: JTC
A108: 2011-03-25 | B108: 2011-05-20 | C108: 2011-06-08 | D108: Fusionopolis Link, Fusionopolis Phase 3 | E108: Business Park - White 40% (Office) | F108: 6253 | G108: 4 | H108: 25012 | I108: Ascendas Real Estate Investment Trust | J108: 110000000 | K108: 4397.89 | L108: 60 | M108: JTC
A109: 2011-01-24 | B109: 2011-03-07 | C109: 2011-03-15 | D109: Ubi Road 1/ Ubi Avenue 4 | E109: Business 1 | F109: 12378 | G109: 2.5 | H109: 30945 | I109: Oxley Ascend Realty Pte Ltd | J109: 72200000 | K109: 2333.17 | L109: 60 | M109: JTC
A110: 2010-10-29 | B110: 2010-12-10 | C110: 2011-01-17 | D110: Old Toh Tuck Road/ Toh Tuck Avenue | E110: Business 2 | F110: 10083 | G110: 1.6 | H110: 16132.8 | I110: Incorporated Builders Pte Ltd | J110: 8700000 | K110: 539.27 | L110: 30 | M110: JTC
A111: 2010-08-20 | B111: 2010-10-18 | C111: 2010-11-04 | D111: Yishun Street 23/ Yishun Avenue 9 | E111: Business 2 | F111: 46546.9 | G111: 2.5 | H111: 116367.25 | I111: Soilbuild Group Holdings Ltd | J111: 64011800 | K111: 550.08 | L111: 60 | M111: State
A112: 2010-03-31 | B112: 2010-05-12 | C112: 2010-06-01 | D112: Tampines Industrial Avenue 4 | E112: Business 2 | F112: 49999.9 | G112: 0.8 | H112: 39999.92 | I112: Soon Hock Tuas Development Pte Ltd | J112: 33130000 | K112: 828.25 | L112: 30 | M112: State
A113: 2007-09-28 | B113: 2007-11-09 | C113: 2007-11-29 | D113: Jalan Tepong | E113: Business 2 | F113: 20867 | G113: 1.4 | H113: 29213.8 | I113: EL Development Pte Ltd | J113: 9480000 | K113: 324.5 | L113: 23 | M113: JTC
A114: 2007-09-21 | B114: 2007-11-02 | C114: 2007-11-29 | D114: L1 Commonwealth Drive/ Lane | E114: Business 1 | F114: 11175 | G114: 2.5 | H114: 27937.5 | I114: WHB Pte Ltd | J114: 51228228 | K114: 1833.67 | L114: 30 | M114: JTC
A115: 2007-09-06 | B115: 2007-10-18 | C115: 2007-11-12 | D115: L7 Pioneer Road/ Tuas Avenue 11 | E115: Business 2 | F115: 21871 | G115: 1.4 | H115: 30619.4 | I115: Soilbuild Group Holdings Ltd | J115: 12200000 | K115: 398.44 | L115: 30 | M115: JTC
A116: 2006-12-21 | B116: 2007-02-01 | C116: 2007-03-13 | D116: L1 Enterprise Road | E116: Business 2 | F116: 20122 | G116: 1.4 | H116: 28170.8 | I116: CTE Properties Pte Ltd | J116: 11400000 | K116: 404.67 | L116: 30 | M116: JTC
A117: 2006-11-17 | B117: 2006-12-28 | C117: 2007-01-24 | D117: L2 Serangoon North Avenue 4 | E117: Business 1 | F117: 9458 | G117: 1.4 | H117: 13241.2 | I117: First KNG Pte Ltd | J117: 8699000 | K117: 656.96 | L117: 60 | M117: JTC
A118: 2006-09-29 | B118: 2006-11-10 | C118: 2006-12-01 | D118: L14 Changi North Street 1 | E118: Business 2 | F118: 15000 | G118: 1 | H118: 15000 | I118: Global Orion Properties Ltd | J118: 4300228 | K118: 286.68 | L118: 30 | M118: JTC
A119: 2006-06-30 | B119: 2006-08-11 | C119: 2006-09-18 | D119: Ubi Road 2/ Ubi Avenue 3/ Ubi Avenue 4/ Ubi Link | E119: Business 1 | F119: 38577.5 | G119: 2.5 | H119: 96443.75 | I119: Sim Lian Development Pte Ltd | J119: 39999000 | K119: 414.74 | L119: 60 | M119: JTC
A120: 2006-05-16 | B120: 2006-07-04 | C120: 2006-09-18 | D120: Serangoon North Avenue 4 (end) | E120: Business 1 | F120: 29225 | G120: 2.5 | H120: 73062.5 | I120: Orion-One Development Pte Ltd | J120: 22800228 | K120: 312.06 | L120: 60 | M120: JTC
A121: 2005-09-27 | B121: 2005-11-22 | C121: 2006-01-05 | D121: Pioneer Road | E121: Business 2 | F121: 19858 | G121: 1 | H121: 19858 | I121: Soilbuild Group Holdings Ltd | J121: 3028000 | K121: 152.48 | L121: 30 | M121: JTC
A122: 2005-02-17 | B122: 2005-04-12 | C122: 2005-04-15 | D122: Penjuru Road | E122: Business 2 | F122: 20000 | G122: 1 | H122: 20000 | I122: Stagis Pte Ltd | J122: 5300000 | K122: 265 | L122: 30 | M122: JTC

Sheet As at 06 07 2015
A1: Date of Launch | B1: Date of Tender Closing | C1: Date of Award | D1: Location | E1: Type of Development Allowed | F1: Site Area (m2) | G1: Plot Ratio | H1: Maximum Permissible Gross Floor Area (GFA) (m2) | I1: Name of Successful Tenderer | J1: Successful Tender Price | K1: Price Psm Per Gross Plot Ratio | L1: Lease (Years) | M1: Land Owner
A2: 2015-03-31 | B2: 2015-05-26 | C2: 2015-06-26 | D2: Plot 4, Tampines Industrial Drive | E2: Business 2 | F2: 5686.3 | G2: 1.4 | H2: =F2*G2 -> 7960.82 | I2: Sim Lian Construction Co (Pte) Ltd | J2: 5900000 | K2: 741.13 | L2: 20 years | M2: State
A3: 2015-02-24 | B3: 2015-04-21 | C3: 2015-05-15 | D3: Plot 46, Tuas South Street 6 | E3: Business 2 | F3: 6988 | G3: 1 | H3: =F3*G3 -> 6988 | I3: Tean Chay Crane Rental Pte Ltd | J3: 5611365 | K3: 803 | L3: 20 years 3 months | M3: JTC
A4: 2015-01-27 | B4: 2015-03-24 | C4: 2015-04-27 | D4: Plot 43, Tuas South Street 11​ | E4: Business 2 | F4: 8409.8 | G4: 1 | H4: =F4*G4 -> 8409.8 | I4: Ho Lee Construction Pte Ltd | J4: 6996953.6 | K4: 832 | L4: 20 years 4 months | M4: State
A5: 2014-12-29 | B5: 2015-02-09 | C5: 2015-03-25 | D5: Plot 53, Tuas South Street 7 | E5: Business 2 | F5: 5038.6 | G5: 1 | H5: =F5*G5 -> 5038.6 | I5: L & P Blasting Pte Ltd | J5: 5506480 | K5: 1092.86 | L5: 20 years 4 months | M5: State
A6: 2014-12-16 | B6: 2015-02-10 | C6: 2015-03-25 | D6: Plot 42, Tuas South Street 11​ | E6: Business 2 | F6: 8409.2 | G6: 1 | H6: 8409.2 | I6: Ho Lee Construction Pte Ltd | J6: 6744178.4 | K6: 802 | L6: 20 years 5 months | M6: State
A7: 2014-11-25 | B7: 2015-01-20 | C7: 2015-02-27 | D7: Plot 8, Tampines Industrial Drive | E7: Business 2 | F7: 5033 | G7: 1.4 | H7: 7046.2 | I7: Soilbuild Group Holdings Ltd | J7: 5800001 | K7: =J7/H7 -> 823.138855 | L7: 20 years | M7: State
A8: 2014-11-25 | B8: 2015-01-20 | C8: 2015-02-27 | D8: Plot 40, Tuas South Street 11 | E8: Business 2 | F8: 10000 | G8: 1 | H8: 10000 | I8: Tiong Seng Contractors (Pte) Ltd | J8: 8400000 | K8: 840 | L8: 20 years 6 months | M8: State
A9: 2014-10-28 | B9: 2014-12-23 | C9: 2015-01-19 | D9: Plot 52, Tuas South Street 9 | E9: Business 2 | F9: 8369 | G9: 1 | H9: 8369 | I9: Asiaone Logistics & Warehousing Pte Ltd | J9: 7038000 | K9: 840.9606883 | L9: 20 years 7 months | M9: JTC
A10: 2014-09-29 | B10: 2014-11-24 | C10: 2014-12-23 | D10: Plot 50, Tuas South Street 9 | E10: Business 2 | F10: 8369 | G10: 1 | H10: 8369 | I10: Prospaq Group Pte Ltd | J10: 6878000 | K10: 821.842514 | L10: 20 years 8 months | M10: JTC
A11: 2014-09-29 | B11: 2014-11-24 | C11: 2014-12-23 | D11: Plot 1, Tampines North Drive 1 | E11: Business 2 | F11: 27395.2 | G11: 2.5 | H11: 68488 | I11: Goldprime Land Pte Ltd | J11: 64388888 | K11: 940.148464 | L11: 30 | M11: State
A12: 2014-09-16 | B12: 2014-10-28 | C12: 2014-11-27 | D12: Plot 41, Tuas South Street 11 | E12: Business 2 | F12: 9000 | G12: 1 | H12: 9000 | I12: Jian Man Construction Pte Ltd | J12: 7510000 | K12: 834.4444444 | L12: 20 years 10 months | M12: State
A13: 2014-08-26 | B13: 2014-10-21 | C13: 2014-11-21 | D13: Plot 48, Tuas South Street 9 | E13: Business 2 | F13: 8369 | G13: 1 | H13: 8369 | I13: New Hope Singapore Pte Ltd | J13: 6963008 | K13: 832 | L13: 20 years 9 months | M13: JTC
A14: 2014-07-29 | B14: 2014-09-09 | C14: 2014-10-23 | D14: Plot 44, Tuas South Street 7 | E14: Business 2 | F14: 5038.6 | G14: 1 | H14: 5038.6 | I14: IG Tuas Pte Ltd | J14: 5201000 | K14: 1032.231175 | L14: 20 years 10 months | M14: State
A15: 2014-06-24 | B15: 2014-08-26 | C15: 2014-10-09 | D15: Plot 12, Off Tuas South Avenue 7 | E15: Business 2 | F15: 25700 | G15: 2 | H15: 51400 | I15: Hock Lian Seng Holdings Limited | J15: 30988000 | K15: 602.8793774 | L15: 30 | M15: JTC
A16: 2014-04-29 | B16: 2014-07-01 | C16: 2014-07-24 | D16: Tuas Avenue 11 | E16: Business 2 | F16: 8922 | G16: 1.4 | H16: 12490.8 | I16: Soon Hock Realty Pte Ltd | J16: 14388000 | K16: 1151.887789 | L16: 30 | M16: JTC
A17: 2014-04-29 | B17: 2014-07-01 | C17: 2014-07-24 | D17: Plot 39, Tuas South Street 11 | E17: Business 2 | F17: 10000 | G17: 1 | H17: 10000 | I17: Tiong Aik Construction Pte Ltd | J17: 8073000 | K17: 807.3 | L17: 20 years 10 months | M17: JTC
A18: 2014-03-25 | B18: 2014-05-06 | C18: 2014-06-02 | D18: Plot 49, Tuas South Street 9 | E18: Business 2 | F18: 8369 | G18: 1 | H18: 8369 | I18: Pan Marine Blasting Abrasives Pte Ltd | J18: 5925252 | K18: 708 | L18: 21 years 2 months | M18: JTC
A19: 2014-03-25 | B19: 2014-05-06 | C19: 2014-06-02 | D19: Plot 51, Tuas South Street 9 | E19: Business 2 | F19: 8369 | G19: 1 | H19: 8369 | I19: Asiagroup Leasing Pte Ltd | J19: 5948000 | K19: 710.7181264 | L19: 21 years 2 months | M19: JTC
A20: 2014-02-25 | B20: 2014-04-08 | C20: 2014-04-29 | D20: Plot 45, Tuas South Street 6 | E20: Business 2 | F20: 6988 | G20: 1 | H20: 6988 | I20: SH Design & Build Pte Ltd | J20: 5278000 | K20: 755.2947911 | L20: 21 years 3 months | M20: JTC
A21: 2014-02-25 | B21: 2014-04-08 | C21: 2014-04-29 | D21: Plot 47, Tuas South Street 6 | E21: Business 2 | F21: 6988 | G21: 1 | H21: 6988 | I21: Soon Hock Investment Group Pte Ltd | J21: 5115000 | K21: 731.9690899 | L21: 21 years 3 months | M21: JTC
A22: 2013-12-27 | B22: 2014-02-07 | C22: 2014-04-14 | D22: Plot 6, Tuas South Street 6 | E22: Business 2 | F22: 4551.4 | G22: 1 | H22: 4551.4 | I22: H P Construction & Engineering Pte Ltd | J22: 4100000 | K22: 900.8217252 | L22: 21 years 5 months | M22: State
A23: 2013-12-27 | B23: 2014-02-07 | C23: 2014-04-14 | D23: Plot 34, Tuas South Street 13 | E23: Business 2 | F23: 7447.4 | G23: 1 | H23: 7447.4 | I23: Evan Lim & Co. Pte. Ltd. | J23: 4850000 | K23: 651.2339877 | L23: 21 years 5 months | M23: State
A24: 2013-12-27 | B24: 2014-02-07 | C24: 2014-04-14 | D24: Plot 35, Tuas South Street 11 | E24: Business 2 | F24: 7432.1 | G24: 1 | H24: 7432.1 | I24: Toko Tan Equipment Pte Ltd | J24: 4293524.17 | K24: 577.7 | L24: 21 years 5 months | M24: State
A25: 2013-12-27 | B25: 2014-02-07 | C25: 2014-04-14 | D25: Plot 38, Tuas South Street 13 | E25: Business 2 | F25: 7176.5 | G25: 1 | H25: 7176.5 | I25: AEI (China) Holdings Pte. Ltd | J25: 5038888 | K25: 702.1372535 | L25: 21 years 5 months | M25: State
A26: 2013-11-29 | B26: 2014-01-10 | C26: 2014-03-10 | D26: Plot 33, Tuas South Street 11 | E26: Business 2 | F26: 7432.1 | G26: 1 | H26: 7432.1 | I26: United Hudson Investment Pte Ltd | J26: 4808000 | K26: 646.92 | L26: 21 years 6 months | M26: State
A27: 2013-11-29 | B27: 2014-01-10 | C27: 2014-03-10 | D27: Plot 36, Tuas South Street 13 | E27: Business 2 | F27: 7431.7 | G27: 1 | H27: 7431.7 | I27: Quek & Quek Civil Engineering Pte Ltd | J27: 7431700 | K27: 1000 | L27: 21 years 6 months | M27: State
A28: 2013-11-29 | B28: 2014-01-10 | C28: 2014-03-10 | D28: Plot 37, Tuas South Street 11 | E28: Business 2 | F28: 7177 | G28: 1 | H28: 7177 | I28: United Hudson Investment Pte Ltd | J28: 5029200 | K28: 700.74 | L28: 21 years 6 months | M28: State
A29: 2013-11-29 | B29: 2014-01-10 | C29: 2014-03-10 | D29: Woodlands Industrial Park E9 | E29: Business 2 (with an integrated Heavy Vehicle Park) | F29: 18394.1 | G29: 2.5 | H29: 45985.25 | I29: Vantage Properties Pte Ltd | J29: 56180000 | K29: 1221.7 | L29: 30 | M29: State
A30: 2013-10-31 | B30: 2013-12-12 | C30: 2014-01-28 | D30: Plot 20, Tuas South Street 10 | E30: Business 2 | F30: 3036.2 | G30: 1 | H30: 3036.2 | I30: The Hi-Fi Company Pte Ltd | J30: 3104759 | K30: 1022.58 | L30: 21 years 7 months | M30: State
A31: 2013-10-31 | B31: 2013-12-12 | C31: 2014-01-28 | D31: Plot 22, Tuas South Street 10 | E31: Business 2 | F31: 3036 | G31: 1 | H31: 3036 | I31: Brown Metal Engineering Pte Ltd | J31: 3235320 | K31: 1065.65 | L31: 21 years 7 months | M31: State
A32: 2013-10-31 | B32: 2013-12-12 | C32: 2014-01-28 | D32: Plot 24, Tuas South Street 10 | E32: Business 2 | F32: 4551.2 | G32: 1 | H32: 4551.2 | I32: E C Builders Pte Ltd | J32: 4600000 | K32: 1010.72 | L32: 21 years 7 months | M32: State
A33: 2013-09-27 | B33: 2013-11-22 | C33: 2013-12-20 | D33: Tai Seng Street | E33: Business 2 - White | F33: 11,780.0 (Principal Site) | G33: 3.5 (B1-2.5 W-1.0) | H33: =11780*3.5 -> 41230 | I33: Mapletree Trustee Pte Ltd | J33: 120078500 | K33: 2912.41 | L33: 30 | M33: JTC
A34: 2013-09-27 | B34: 2013-11-08 | C34: 2013-12-06 | D34: Plot 2, Tuas South Street 6 | E34: Business 2 | F34: 3036.6 | G34: 1 | H34: =F34*G34 -> 3036.6 | I34: Tiong Lee Huat Machinery & Construction Pte Ltd | J34: 3000000 | K34: 987.95 | L34: 21 years 8 months | M34: State
A35: 2013-09-27 | B35: 2013-11-08 | C35: 2013-12-06 | D35: Plot 29, Tuas South Street 7 | E35: Business 2 | F35: 5033.1 | G35: 1 | H35: 5033.1 | I35: Poh Meng Trading & Cleaning Services Pte Ltd | J35: 4991272.91 | K35: 991.69 | L35: 21 years 8 months | M35: State
A36: 2013-08-29 | B36: 2013-10-10 | C36: 2013-11-08 | D36: Plot 4, Tuas South Street 6 | E36: Business 2 | F36: 3036.7 | G36: 1 | H36: 3036.7 | I36: Derman Aluminum (S) Pte Ltd | J36: 2880917 | K36: 948.7 | L36: 21 years 9 months | M36: State
A37: 2013-08-29 | B37: 2013-10-10 | C37: 2013-11-08 | D37: Plot 28, Tuas South Street 7 | E37: Business 2 | F37: 5047.4 | G37: 1 | H37: 5047.4 | I37: Reclaims Enterprise Pte Ltd | J37: 5330054.4 | K37: 1056 | L37: 21 years 9 months | M37: State
A38: 2013-06-26 | B38: 2013-08-07 | C38: 2013-09-06 | D38: Tuas South Avenue 3 | E38: Business 2 | F38: 39578.5 | G38: 1.4 | H38: 55409.9 | I38: Grow-Tech Properties Pte Ltd | J38: 66777000 | K38: 1205.15 | L38: 30 | M38: State
A39: 2013-06-26 | B39: 2013-08-07 | C39: 2013-09-06 | D39: Plot 19, Tuas South Street 10 | E39: Business 2 | F39: 4526.7 | G39: 1 | H39: 4526.7 | I39: Kian Hock Engineering Pte Ltd | J39: 4485131.29 | K39: 990.82 | L39: 21 years 11 months | M39: State
A40: 2013-06-26 | B40: 2013-08-07 | C40: 2013-09-06 | D40: Plot 21, Tuas South Street 10 | E40: Business 2 | F40: 3035.8 | G40: 1 | H40: 3035.8 | I40: SWHL Pte Ltd | J40: 2783640 | K40: 916.94 | L40: 21 years 11 months | M40: State
A41: 2013-06-26 | B41: 2013-08-07 | C41: 2013-09-06 | D41: Plot 23, Tuas South Street 10 | E41: Business 2 | F41: 3036 | G41: 1 | H41: 3036 | I41: Jay Machinery Pte Ltd | J41: 2680000 | K41: 882.74 | L41: 21 years 11 months | M41: State
A42: 2013-05-31 | B42: 2013-07-12 | C42: 2013-07-31 | D42: Mandai Link | E42: Business 2 (Food only) | F42: 6891.2 | G42: 2.5 | H42: 17228 | I42: Wealth Property Pte Ltd | J42: 21308888 | K42: 1236.88 | L42: 30 | M42: JTC
A43: 2013-04-30 | B43: 2013-06-11 | C43: 2013-07-09 | D43: Plot 1, Tuas South Street 6 | E43: Business 2 | F43: 4550.9 | G43: 1 | H43: =F43*G43 -> 4550.9 | I43: S.H. Stainless Steel Contractor Pte Ltd | J43: 4208000 | K43: 924.65 | L43: 22 years 1 month | M43: State
A44: 2013-04-30 | B44: 2013-06-11 | C44: 2013-07-09 | D44: Plot 3, Tuas South Street 6 | E44: Business 2 | F44: 3036.2 | G44: 1 | H44: =F44*G44 -> 3036.2 | I44: Stallion Development Pte Ltd | J44: 2600000 | K44: 856.33 | L44: 22 years 1 month | M44: State
A45: 2013-04-30 | B45: 2013-06-11 | C45: 2013-07-09 | D45: Plot 5, Tuas South Street 6 | E45: Business 2 | F45: 3035.8 | G45: 1 | H45: =F45*G45 -> 3035.8 | I45: Jin Choon Civil Engineering Pte Ltd | J45: 2490340 | K45: 820.32 | L45: 22 years 1 month | M45: State
A46: 2013-03-28 | B46: 2013-05-09 | C46: 2013-06-07 | D46: Loyang Way | E46: Business 2 | F46: 20633 | G46: 2.5 | H46: =F46*G46 -> 51582.5 | I46: OKH Global Ltd | J46: 61636000 | K46: 1194.9 | L46: 30 | M46: JTC
A47: 2013-02-28 | B47: 2013-04-11 | C47: 2013-05-10 | D47: Tuas Bay Close | E47: Business 2 | F47: 24971 | G47: 1.7 | H47: =F47*G47 -> 42450.7 | I47: Zacd Investments Pte Ltd, Bohai Investments (Sengkang) Pte Ltd | J47: 37100000 | K47: 873.95 | L47: 30 | M47: JTC
A48: 2013-01-31 | B48: 2013-03-28 | C48: 2013-04-23 | D48: Tuas Bay Walk | E48: Business 2 (Food only) | F48: 5808 | G48: 1.7 | H48: 9873.6 | I48: Yee Lee Development Pte Ltd | J48: 8988000 | K48: 910.31 | L48: 30 | M48: JTC
A49: 2013-01-31 | B49: 2013-03-28 | C49: 2013-04-23 | D49: Buroh Crescent | E49: Business 2 | F49: 17681 | G49: 2.5 | H49: 44202.5 | I49: OKH Holdings Pte Ltd | J49: 39017000 | K49: 882.69 | L49: 30 | M49: JTC
A50: 2012-12-27 | B50: 2013-02-07 | C50: 2013-03-21 | D50: Tuas South Avenue 10 | E50: Business 2 | F50: 39616 | G50: 1.4 | H50: 55462.4 | I50: Soon Hock Group Pte Ltd | J50: 60999000 | K50: 1099.83 | L50: 30 | M50: State
A51: 2012-12-27 | B51: 2013-02-07 | C51: 2013-03-21 | D51: Plot 10, Tuas South Street 8 | E51: Business 2 | F51: 3035.6 | G51: 1 | H51: 3035.6 | I51: Boilermaster Holdings Pte Ltd | J51: 2400000 | K51: 790.62 | L51: 22 years 5 months | M51: State
A52: 2012-12-27 | B52: 2013-02-07 | C52: 2013-03-11 | D52: Ubi Avenue 4 | E52: Business 1 | F52: 3503.5 | G52: 2.5 | H52: 8758.75 | I52: BP-Ubi Industrial Pte Ltd | J52: 16216020 | K52: 1851.41 | L52: 30 | M52: JTC
A53: 2012-11-20 | B53: 2013-01-02 | C53: 2013-02-01 | D53: Plot 30, Tuas South Street 6 | E53: Business 2 | F53: 8597.4 | G53: 1 | H53: 8597.4 | I53: Koh Brothers Building & Civil Engineering Contractor (Pte) Ltd | J53: 6570000 | K53: 764.1845209 | L53: 22 years 6 months | M53: State
A54: 2012-11-20 | B54: 2013-01-02 | C54: 2013-02-01 | D54: Plot 32, Tuas South Street 6 | E54: Business 2 | F54: 8732.2 | G54: 1 | H54: 8732.2 | I54: SH Design & Build Pte Ltd | J54: 6650000 | K54: 761.5492087 | L54: 22 years 6 months | M54: State
A55: 2012-11-20 | B55: 2013-01-02 | C55: 2013-01-29 | D55: Buroh Street | E55: Business 2 | F55: 27400 | G55: 2.5 | H55: 68500 | I55: Capital Development Pte Ltd and ZACD Investments Pte Ltd | J55: 82100000 | K55: 1198.540146 | L55: 30 | M55: JTC
A56: 2012-10-31 | B56: 2012-12-26 | C56: 2013-01-29 | D56: Off Woodlands Avenue 10 | E56: Business 2 | F56: 10705 | G56: 2.5 | H56: 26762.5 | I56: Bohai Investments (Sengkang) Pte Ltd and Punggol Drive Investments Pte Ltd | J56: 31700000 | K56: 1184.493227 | L56: 30 | M56: JTC
A57: 2012-10-31 | B57: 2012-12-12 | C57: 2013-01-08 | D57: Plot 8, Tuas South Street 8 | E57: Business 2 | F57: 3035.6 | G57: 1 | H57: 3035.6 | I57: T.M. Transport Contractor Pte Ltd | J57: 2222200 | K57: 732.05 | L57: 22 years 7 months | M57: State
A58: 2012-10-31 | B58: 2012-12-12 | C58: 2013-01-08 | D58: Plot 18, Tuas South Street 8 | E58: Business 2 | F58: 4526.9 | G58: 1 | H58: 4526.9 | I58: LNT Coating Pte Ltd | J58: 3800001 | K58: 839.43 | L58: 22 years 7 months | M58: State
A59: 2012-09-28 | B59: 2012-11-23 | C59: 2012-12-19 | D59: Plot 14, Tuas South Street 8 | E59: Business 2 | F59: 3035.9 | G59: 1 | H59: 3035.9 | I59: Greenway Environmental Waste Management Pte Ltd | J59: 2160000 | K59: 711.49 | L59: 22 years 8 months | M59: State
A60: 2012-09-28 | B60: 2012-11-23 | C60: 2012-12-19 | D60: Plot 16, Tuas South Street 8 | E60: Business 2 | F60: 3036 | G60: 1 | H60: 3036 | I60: Chuan Heng Hardware Trading Pte Ltd | J60: 2076624 | K60: 684 | L60: 22 years 8 months | M60: State
A61: 2012-09-28 | B61: 2012-11-23 | C61: 2012-12-05 | D61: Serangoon North Avenue 5 | E61: Business 1 | F61: 7504 | G61: 2.5 | H61: 18760 | I61: Popular Warehouse and Distribution Pte Ltd | J61: 26999000 | K61: 1439.18 | L61: 30 | M61: JTC
A62: 2012-08-31 | B62: 2012-10-12 | C62: 2012-11-09 | D62: Plot 12, Tuas South Sreet 8 | E62: Business 2 | F62: 4550.7 | G62: 1 | H62: 4550.7 | I62: Teck Leong Industries Pte Ltd | J62: 3200899 | K62: 703.3861 | L62: 22 years 9 months | M62: State
A63: 2012-08-31 | B63: 2012-10-12 | C63: 2012-10-29 | D63: Sunview Road | E63: Business 2 (Clean and Light Uses) | F63: 28173 | G63: 2.5 | H63: 70432.5 | I63: Asendial Pte Ltd | J63: 76571635 | K63: 1087.16 | L63: 30 | M63: JTC
A64: 2012-07-24 | B64: 2012-09-04 | C64: 2012-10-12 | D64: Plot 26, Tuas South Street 7 | E64: Business 2 | F64: 10094.9 | G64: 1 | H64: 10094.9 | I64: 800 Super Holdings Limited | J64: 6300000 | K64: 624.08 | L64: 22 | M64: State
A65: 2012-07-24 | B65: 2012-09-04 | C65: 2012-10-12 | D65: Plot 31, Tuas South Street 6 | E65: Business 2 | F65: 8569.3 | G65: 1 | H65: 8569.3 | I65: Kwong Lee Holdings Pte Ltd | J65: 4900068 | K65: 571.82 | L65: 22 | M65: State
A66: 2012-06-29 | B66: 2012-08-24 | C66: 2012-09-10 | D66: Plot 3, Tampines Industrial Crescent | E66: Business 2 (Clean Uses Only) | F66: 38800 | G66: 1.7 | H66: =F66*G66 -> 65960 | I66: Oxley Bliss Pte Ltd | J66: 55000000 | K66: 833.84 | L66: 30 | M66: JTC
A67: 2012-06-29 | B67: 2012-08-10 | C67: 2012-08-27 | D67: Mandai Link | E67: Business 2 (Clean and Light Uses) | F67: 22366 | G67: 2.5 | H67: =F67*G67 -> 55915 | I67: Soilbuild Group Holdings Ltd | J67: 45289000 | K67: 809.96 | L67: 30 | M67: JTC
A68: 2012-06-29 | B68: 2012-08-10 | C68: 2012-09-28 | D68: Plot 13, Tuas South Street 7 | E68: Business 2 | F68: 4551.1 | G68: 1 | H68: 4551.1 | I68: Chip Eng Seng Contractors (1988) Pte Ltd | J68: 3815188 | K68: 838.3 | L68: 23 | M68: State
A69: 2012-06-29 | B69: 2012-08-10 | C69: 2012-09-28 | D69: Plot 15, Tuas South Street 8 | E69: Business 2 | F69: 3036.1 | G69: 1 | H69: 3036.1 | I69: Transco-Pac Transport & Environmental Pte Ltd | J69: 1788262.9 | K69: 589 | L69: 23 | M69: State
A70: 2012-06-29 | B70: 2012-08-10 | C70: 2012-09-28 | D70: Plot 17, Tuas South Street 7 | E70: Business 2 | F70: 3036 | G70: 1 | H70: 3036 | I70: P-One (S) Pte Ltd | J70: 1489588 | K70: 490.64 | L70: 23 | M70: State
A71: 2012-06-15 | B71: 2012-07-27 | C71: 2012-09-28 | D71: Plot 7, Tuas South Street 9 | E71: Business 2 | F71: 4551.1 | G71: 1 | H71: 4551.1 | I71: Ben Ching Engineering Pte Ltd | J71: 2310001 | K71: 507.57 | L71: 23 | M71: State
A72: 2012-06-15 | B72: 2012-07-27 | C72: 2012-09-28 | D72: Plot 9, Tuas South Street 8 | E72: Business 2 | F72: 3035.8 | G72: 1 | H72: 3035.8 | I72: Eastman Lift Trucks Pte Ltd | J72: 1449291 | K72: 477.4 | L72: 23 | M72: State
A73: 2012-06-15 | B73: 2012-07-27 | C73: 2012-09-28 | D73: Plot 11, Tuas South Street 8 | E73: Business 2 | F73: 3035.7 | G73: 1 | H73: 3035.7 | I73: Westtech Pte Ltd | J73: 1130000 | K73: 372.24 | L73: 23 | M73: State
A74: 2012-06-15 | B74: 2012-07-27 | C74: 2012-09-28 | D74: Plot 25, Tuas South Street 7 | E74: Business 2 | F74: 5738.3 | G74: 1 | H74: 5738.3 | I74: 800 Super Holdings Ltd | J74: 6000800 | K74: 1045.75 | L74: 23 | M74: State
A75: 2012-06-15 | B75: 2012-07-27 | C75: 2012-09-28 | D75: Plot 27, Tuas South Street 7 | E75: Business 2 | F75: 5047.6 | G75: 1 | H75: 5047.6 | I75: 800 Super Holdings Ltd | J75: 3500800 | K75: 693.56 | L75: 23 | M75: State
A76: 2012-04-24 | B76: 2012-06-19 | C76: 2012-07-13 | D76: Tai Seng Link | E76: Business 2 (Clean and Light Uses) | F76: 4336 | G76: 2.5 | H76: =F76*G76 -> 10840 | I76: OKH (Woodlands) Pte Ltd | J76: 23300000 | K76: 2149.45 | L76: 30 | M76: JTC
A77: 2012-01-31 | B77: 2012-03-13 | C77: 2012-04-04 | D77: Serangoon North Avenue 4 (Parcel 1) | E77: Business 1 | F77: 8076 | G77: 2.5 | H77: 20190 | I77: Soon Hock Property Development Pte Ltd | J77: 47088999 | K77: 2332.29 | L77: 58 | M77: JTC
A78: 2011-08-31 | B78: 2011-10-27 | C78: 2011-11-28 | D78: Lavender Street/ Kallang Avenue | E78: Business 1 - White | F78: 28348 | G78: 3.0 (B1-2.5 W-0.5) | H78: 85044 | I78: PLC 8 Development Pte Ltd | J78: 218300000 | K78: 2566.91 | L78: 60 | M78: JTC
A79: 2011-03-25 | B79: 2011-05-20 | C79: 2011-06-08 | D79: Fusionopolis Link, Fusionopolis Phase 3 | E79: Business Park - White 40% (Office) | F79: 6253 | G79: 4 | H79: 25012 | I79: Ascendas Real Estate Investment Trust | J79: 110000000 | K79: 4397.89 | L79: 60 | M79: JTC
A80: 2011-01-24 | B80: 2011-03-07 | C80: 2011-03-15 | D80: Ubi Road 1/ Ubi Avenue 4 | E80: Business 1 | F80: 12378 | G80: 2.5 | H80: 30945 | I80: Oxley Ascend Realty Pte Ltd | J80: 72200000 | K80: 2333.17 | L80: 60 | M80: JTC
A81: 2010-10-29 | B81: 2010-12-10 | C81: 2011-01-17 | D81: Old Toh Tuck Road/ Toh Tuck Avenue | E81: Business 2 | F81: 10083 | G81: 1.6 | H81: 16132.8 | I81: Incorporated Builders Pte Ltd | J81: 8700000 | K81: 539.27 | L81: 30 | M81: JTC
A82: 2010-08-20 | B82: 2010-10-18 | C82: 2010-11-04 | D82: Yishun Street 23/ Yishun Avenue 9 | E82: Business 2 | F82: 46546.9 | G82: 2.5 | H82: 116367.25 | I82: Soilbuild Group Holdings Ltd | J82: 64011800 | K82: 550.08 | L82: 60 | M82: State
A83: 2010-03-31 | B83: 2010-05-12 | C83: 2010-06-01 | D83: Tampines Industrial Avenue 4 | E83: Business 2 | F83: 49999.9 | G83: 0.8 | H83: 39999.92 | I83: Soon Hock Tuas Development Pte Ltd | J83: 33130000 | K83: 828.25 | L83: 30 | M83: State
A84: 2007-09-28 | B84: 2007-11-09 | C84: 2007-11-29 | D84: Jalan Tepong | E84: Business 2 | F84: 20867 | G84: 1.4 | H84: 29213.8 | I84: EL Development Pte Ltd | J84: 9480000 | K84: 324.5 | L84: 23 | M84: JTC
A85: 2007-09-21 | B85: 2007-11-02 | C85: 2007-11-29 | D85: L1 Commonwealth Drive/ Lane | E85: Business 1 | F85: 11175 | G85: 2.5 | H85: 27937.5 | I85: WHB Pte Ltd | J85: 51228228 | K85: 1833.67 | L85: 30 | M85: JTC
A86: 2007-09-06 | B86: 2007-10-18 | C86: 2007-11-12 | D86: L7 Pioneer Road/ Tuas Avenue 11 | E86: Business 2 | F86: 21871 | G86: 1.4 | H86: 30619.4 | I86: Soilbuild Group Holdings Ltd | J86: 12200000 | K86: 398.44 | L86: 30 | M86: JTC
A87: 2006-12-21 | B87: 2007-02-01 | C87: 2007-03-13 | D87: L1 Enterprise Road | E87: Business 2 | F87: 20122 | G87: 1.4 | H87: 28170.8 | I87: CTE Properties Pte Ltd | J87: 11400000 | K87: 404.67 | L87: 30 | M87: JTC
A88: 2006-11-17 | B88: 2006-12-28 | C88: 2007-01-24 | D88: L2 Serangoon North Avenue 4 | E88: Business 1 | F88: 9458 | G88: 1.4 | H88: 13241.2 | I88: First KNG Pte Ltd | J88: 8699000 | K88: 656.96 | L88: 60 | M88: JTC
A89: 2006-09-29 | B89: 2006-11-10 | C89: 2006-12-01 | D89: L14 Changi North Street 1 | E89: Business 2 | F89: 15000 | G89: 1 | H89: 15000 | I89: Global Orion Properties Ltd | J89: 4300228 | K89: 286.68 | L89: 30 | M89: JTC
A90: 2006-06-30 | B90: 2006-08-11 | C90: 2006-09-18 | D90: Ubi Road 2/ Ubi Avenue 3/ Ubi Avenue 4/ Ubi Link | E90: Business 1 | F90: 38577.5 | G90: 2.5 | H90: 96443.75 | I90: Sim Lian Development Pte Ltd | J90: 39999000 | K90: 414.74 | L90: 60 | M90: JTC
A91: 2006-05-16 | B91: 2006-07-04 | C91: 2006-09-18 | D91: Serangoon North Avenue 4 (end) | E91: Business 1 | F91: 29225 | G91: 2.5 | H91: 73062.5 | I91: Orion-One Development Pte Ltd | J91: 22800228 | K91: 312.06 | L91: 60 | M91: JTC
A92: 2005-09-27 | B92: 2005-11-22 | C92: 2006-01-05 | D92: Pioneer Road | E92: Business 2 | F92: 19858 | G92: 1 | H92: 19858 | I92: Soilbuild Group Holdings Ltd | J92: 3028000 | K92: 152.48 | L92: 30 | M92: JTC
A93: 2005-02-17 | B93: 2005-04-12 | C93: 2005-04-15 | D93: Penjuru Road | E93: Business 2 | F93: 20000 | G93: 1 | H93: 20000 | I93: Stagis Pte Ltd | J93: 5300000 | K93: 265 | L93: 30 | M93: JTC

Sheet As at 15 05 2015
A1: Date of Launch | B1: Date of Tender Closing | C1: Date of Award | D1: Location | E1: Type of Development Allowed | F1: Site Area (m2) | G1: Plot Ratio | H1: Maximum Permissible Gross Floor Area (GFA) (m2) | I1: Name of Successful Tenderer | J1: Successful Tender Price | K1: Price Psm Per Gross Plot Ratio | L1: Lease (Years) | M1: Land Owner
A2: 2015-02-24 | B2: 2015-04-21 | C2: 2015-05-15 | D2: Plot 46, Tuas South Street 6 | E2: Business 2 | F2: 6988 | G2: 1 | H2: =F2*G2 -> 6988 | I2: Tean Chay Crane Rental Pte Ltd | J2: 5611365 | K2: 803 | L2: 20 years 3 months | M2: JTC
A3: 2015-01-27 | B3: 2015-03-24 | C3: 2015-04-27 | D3: Plot 43, Tuas South Street 11​ | E3: Business 2 | F3: 8409.8 | G3: 1 | H3: =F3*G3 -> 8409.8 | I3: Ho Lee Construction Pte Ltd | J3: 6996953.6 | K3: 832 | L3: 20 years 4 months | M3: State
A4: 2014-12-29 | B4: 2015-02-09 | C4: 2015-03-25 | D4: Plot 53, Tuas South Street 7 | E4: Business 2 | F4: 5038.6 | G4: 1 | H4: =F4*G4 -> 5038.6 | I4: L & P Blasting Pte Ltd | J4: 5506480 | K4: 1092.86 | L4: 20 years 4 months | M4: State
A5: 2014-12-16 | B5: 2015-02-10 | C5: 2015-03-25 | D5: Plot 42, Tuas South Street 11​ | E5: Business 2 | F5: 8409.2 | G5: 1 | H5: 8409.2 | I5: Ho Lee Construction Pte Ltd | J5: 6744178.4 | K5: 802 | L5: 20 years 5 months | M5: State
A6: 2014-11-25 | B6: 2015-01-20 | C6: 2015-02-27 | D6: Plot 8, Tampines Industrial Drive | E6: Business 2 | F6: 5033 | G6: 1.4 | H6: 7046.2 | I6: Soilbuild Group Holdings Ltd | J6: 5800001 | K6: =J6/H6 -> 823.138855 | L6: 20 years | M6: State
A7: 2014-11-25 | B7: 2015-01-20 | C7: 2015-02-27 | D7: Plot 40, Tuas South Street 11 | E7: Business 2 | F7: 10000 | G7: 1 | H7: 10000 | I7: Tiong Seng Contractors (Pte) Ltd | J7: 8400000 | K7: 840 | L7: 20 years 6 months | M7: State
A8: 2014-10-28 | B8: 2014-12-23 | C8: 2015-01-19 | D8: Plot 52, Tuas South Street 9 | E8: Business 2 | F8: 8369 | G8: 1 | H8: 8369 | I8: Asiaone Logistics & Warehousing Pte Ltd | J8: 7038000 | K8: 840.9606883 | L8: 20 years 7 months | M8: JTC
A9: 2014-09-29 | B9: 2014-11-24 | C9: 2014-12-23 | D9: Plot 50, Tuas South Street 9 | E9: Business 2 | F9: 8369 | G9: 1 | H9: 8369 | I9: Prospaq Group Pte Ltd | J9: 6878000 | K9: 821.842514 | L9: 20 years 8 months | M9: JTC
A10: 2014-09-29 | B10: 2014-11-24 | C10: 2014-12-23 | D10: Plot 1, Tampines North Drive 1 | E10: Business 2 | F10: 27395.2 | G10: 2.5 | H10: 68488 | I10: Goldprime Land Pte Ltd | J10: 64388888 | K10: 940.148464 | L10: 30 | M10: State
A11: 2014-09-16 | B11: 2014-10-28 | C11: 2014-11-27 | D11: Plot 41, Tuas South Street 11 | E11: Business 2 | F11: 9000 | G11: 1 | H11: 9000 | I11: Jian Man Construction Pte Ltd | J11: 7510000 | K11: 834.4444444 | L11: 20 years 10 months | M11: State
A12: 2014-08-26 | B12: 2014-10-21 | C12: 2014-11-21 | D12: Plot 48, Tuas South Street 9 | E12: Business 2 | F12: 8369 | G12: 1 | H12: 8369 | I12: New Hope Singapore Pte Ltd | J12: 6963008 | K12: 832 | L12: 20 years 9 months | M12: JTC
A13: 2014-07-29 | B13: 2014-09-09 | C13: 2014-10-23 | D13: Plot 44, Tuas South Street 7 | E13: Business 2 | F13: 5038.6 | G13: 1 | H13: 5038.6 | I13: IG Tuas Pte Ltd | J13: 5201000 | K13: 1032.231175 | L13: 20 years 10 months | M13: State
A14: 2014-06-24 | B14: 2014-08-26 | C14: 2014-10-09 | D14: Plot 12, Off Tuas South Avenue 7 | E14: Business 2 | F14: 25700 | G14: 2 | H14: 51400 | I14: Hock Lian Seng Holdings Limited | J14: 30988000 | K14: 602.8793774 | L14: 30 | M14: JTC
A15: 2014-04-29 | B15: 2014-07-01 | C15: 2014-07-24 | D15: Tuas Avenue 11 | E15: Business 2 | F15: 8922 | G15: 1.4 | H15: 12490.8 | I15: Soon Hock Realty Pte Ltd | J15: 14388000 | K15: 1151.887789 | L15: 30 | M15: JTC
A16: 2014-04-29 | B16: 2014-07-01 | C16: 2014-07-24 | D16: Plot 39, Tuas South Street 11 | E16: Business 2 | F16: 10000 | G16: 1 | H16: 10000 | I16: Tiong Aik Construction Pte Ltd | J16: 8073000 | K16: 807.3 | L16: 20 years 10 months | M16: JTC
A17: 2014-03-25 | B17: 2014-05-06 | C17: 2014-06-02 | D17: Plot 49, Tuas South Street 9 | E17: Business 2 | F17: 8369 | G17: 1 | H17: 8369 | I17: Pan Marine Blasting Abrasives Pte Ltd | J17: 5925252 | K17: 708 | L17: 21 years 2 months | M17: JTC
A18: 2014-03-25 | B18: 2014-05-06 | C18: 2014-06-02 | D18: Plot 51, Tuas South Street 9 | E18: Business 2 | F18: 8369 | G18: 1 | H18: 8369 | I18: Asiagroup Leasing Pte Ltd | J18: 5948000 | K18: 710.7181264 | L18: 21 years 2 months | M18: JTC
A19: 2014-02-25 | B19: 2014-04-08 | C19: 2014-04-29 | D19: Plot 45, Tuas South Street 6 | E19: Business 2 | F19: 6988 | G19: 1 | H19: 6988 | I19: SH Design & Build Pte Ltd | J19: 5278000 | K19: 755.2947911 | L19: 21 years 3 months | M19: JTC
A20: 2014-02-25 | B20: 2014-04-08 | C20: 2014-04-29 | D20: Plot 47, Tuas South Street 6 | E20: Business 2 | F20: 6988 | G20: 1 | H20: 6988 | I20: Soon Hock Investment Group Pte Ltd | J20: 5115000 | K20: 731.9690899 | L20: 21 years 3 months | M20: JTC
A21: 2013-12-27 | B21: 2014-02-07 | C21: 2014-04-14 | D21: Plot 6, Tuas South Street 6 | E21: Business 2 | F21: 4551.4 | G21: 1 | H21: 4551.4 | I21: H P Construction & Engineering Pte Ltd | J21: 4100000 | K21: 900.8217252 | L21: 21 years 5 months | M21: State
A22: 2013-12-27 | B22: 2014-02-07 | C22: 2014-04-14 | D22: Plot 34, Tuas South Street 13 | E22: Business 2 | F22: 7447.4 | G22: 1 | H22: 7447.4 | I22: Evan Lim & Co. Pte. Ltd. | J22: 4850000 | K22: 651.2339877 | L22: 21 years 5 months | M22: State
A23: 2013-12-27 | B23: 2014-02-07 | C23: 2014-04-14 | D23: Plot 35, Tuas South Street 11 | E23: Business 2 | F23: 7432.1 | G23: 1 | H23: 7432.1 | I23: Toko Tan Equipment Pte Ltd | J23: 4293524.17 | K23: 577.7 | L23: 21 years 5 months | M23: State
A24: 2013-12-27 | B24: 2014-02-07 | C24: 2014-04-14 | D24: Plot 38, Tuas South Street 13 | E24: Business 2 | F24: 7176.5 | G24: 1 | H24: 7176.5 | I24: AEI (China) Holdings Pte. Ltd | J24: 5038888 | K24: 702.1372535 | L24: 21 years 5 months | M24: State
A25: 2013-11-29 | B25: 2014-01-10 | C25: 2014-03-10 | D25: Plot 33, Tuas South Street 11 | E25: Business 2 | F25: 7432.1 | G25: 1 | H25: 7432.1 | I25: United Hudson Investment Pte Ltd | J25: 4808000 | K25: 646.92 | L25: 21 years 6 months | M25: State
A26: 2013-11-29 | B26: 2014-01-10 | C26: 2014-03-10 | D26: Plot 36, Tuas South Street 13 | E26: Business 2 | F26: 7431.7 | G26: 1 | H26: 7431.7 | I26: Quek & Quek Civil Engineering Pte Ltd | J26: 7431700 | K26: 1000 | L26: 21 years 6 months | M26: State
A27: 2013-11-29 | B27: 2014-01-10 | C27: 2014-03-10 | D27: Plot 37, Tuas South Street 11 | E27: Business 2 | F27: 7177 | G27: 1 | H27: 7177 | I27: United Hudson Investment Pte Ltd | J27: 5029200 | K27: 700.74 | L27: 21 years 6 months | M27: State
A28: 2013-11-29 | B28: 2014-01-10 | C28: 2014-03-10 | D28: Woodlands Industrial Park E9 | E28: Business 2 (with an integrated Heavy Vehicle Park) | F28: 18394.1 | G28: 2.5 | H28: 45985.25 | I28: Vantage Properties Pte Ltd | J28: 56180000 | K28: 1221.7 | L28: 30 | M28: State
A29: 2013-10-31 | B29: 2013-12-12 | C29: 2014-01-28 | D29: Plot 20, Tuas South Street 10 | E29: Business 2 | F29: 3036.2 | G29: 1 | H29: 3036.2 | I29: The Hi-Fi Company Pte Ltd | J29: 3104759 | K29: 1022.58 | L29: 21 years 7 months | M29: State
A30: 2013-10-31 | B30: 2013-12-12 | C30: 2014-01-28 | D30: Plot 22, Tuas South Street 10 | E30: Business 2 | F30: 3036 | G30: 1 | H30: 3036 | I30: Brown Metal Engineering Pte Ltd | J30: 3235320 | K30: 1065.65 | L30: 21 years 7 months | M30: State
A31: 2013-10-31 | B31: 2013-12-12 | C31: 2014-01-28 | D31: Plot 24, Tuas South Street 10 | E31: Business 2 | F31: 4551.2 | G31: 1 | H31: 4551.2 | I31: E C Builders Pte Ltd | J31: 4600000 | K31: 1010.72 | L31: 21 years 7 months | M31: State
A32: 2013-09-27 | B32: 2013-11-22 | C32: 2013-12-20 | D32: Tai Seng Street | E32: Business 2 - White | F32: 11,780.0 (Principal Site) | G32: 3.5 (B1-2.5 W-1.0) | H32: =11780*3.5 -> 41230 | I32: Mapletree Trustee Pte Ltd | J32: 120078500 | K32: 2912.41 | L32: 30 | M32: JTC
A33: 2013-09-27 | B33: 2013-11-08 | C33: 2013-12-06 | D33: Plot 2, Tuas South Street 6 | E33: Business 2 | F33: 3036.6 | G33: 1 | H33: =F33*G33 -> 3036.6 | I33: Tiong Lee Huat Machinery & Construction Pte Ltd | J33: 3000000 | K33: 987.95 | L33: 21 years 8 months | M33: State
A34: 2013-09-27 | B34: 2013-11-08 | C34: 2013-12-06 | D34: Plot 29, Tuas South Street 7 | E34: Business 2 | F34: 5033.1 | G34: 1 | H34: 5033.1 | I34: Poh Meng Trading & Cleaning Services Pte Ltd | J34: 4991272.91 | K34: 991.69 | L34: 21 years 8 months | M34: State
A35: 2013-08-29 | B35: 2013-10-10 | C35: 2013-11-08 | D35: Plot 4, Tuas South Street 6 | E35: Business 2 | F35: 3036.7 | G35: 1 | H35: 3036.7 | I35: Derman Aluminum (S) Pte Ltd | J35: 2880917 | K35: 948.7 | L35: 21 years 9 months | M35: State
A36: 2013-08-29 | B36: 2013-10-10 | C36: 2013-11-08 | D36: Plot 28, Tuas South Street 7 | E36: Business 2 | F36: 5047.4 | G36: 1 | H36: 5047.4 | I36: Reclaims Enterprise Pte Ltd | J36: 5330054.4 | K36: 1056 | L36: 21 years 9 months | M36: State
A37: 2013-06-26 | B37: 2013-08-07 | C37: 2013-09-06 | D37: Tuas South Avenue 3 | E37: Business 2 | F37: 39578.5 | G37: 1.4 | H37: 55409.9 | I37: Grow-Tech Properties Pte Ltd | J37: 66777000 | K37: 1205.15 | L37: 30 | M37: State
A38: 2013-06-26 | B38: 2013-08-07 | C38: 2013-09-06 | D38: Plot 19, Tuas South Street 10 | E38: Business 2 | F38: 4526.7 | G38: 1 | H38: 4526.7 | I38: Kian Hock Engineering Pte Ltd | J38: 4485131.29 | K38: 990.82 | L38: 21 years 11 months | M38: State
A39: 2013-06-26 | B39: 2013-08-07 | C39: 2013-09-06 | D39: Plot 21, Tuas South Street 10 | E39: Business 2 | F39: 3035.8 | G39: 1 | H39: 3035.8 | I39: SWHL Pte Ltd | J39: 2783640 | K39: 916.94 | L39: 21 years 11 months | M39: State
A40: 2013-06-26 | B40: 2013-08-07 | C40: 2013-09-06 | D40: Plot 23, Tuas South Street 10 | E40: Business 2 | F40: 3036 | G40: 1 | H40: 3036 | I40: Jay Machinery Pte Ltd | J40: 2680000 | K40: 882.74 | L40: 21 years 11 months | M40: State
A41: 2013-05-31 | B41: 2013-07-12 | C41: 2013-07-31 | D41: Mandai Link | E41: Business 2 (Food only) | F41: 6891.2 | G41: 2.5 | H41: 17228 | I41: Wealth Property Pte Ltd | J41: 21308888 | K41: 1236.88 | L41: 30 | M41: JTC
A42: 2013-04-30 | B42: 2013-06-11 | C42: 2013-07-09 | D42: Plot 1, Tuas South Street 6 | E42: Business 2 | F42: 4550.9 | G42: 1 | H42: =F42*G42 -> 4550.9 | I42: S.H. Stainless Steel Contractor Pte Ltd | J42: 4208000 | K42: 924.65 | L42: 22 years 1 month | M42: State
A43: 2013-04-30 | B43: 2013-06-11 | C43: 2013-07-09 | D43: Plot 3, Tuas South Street 6 | E43: Business 2 | F43: 3036.2 | G43: 1 | H43: =F43*G43 -> 3036.2 | I43: Stallion Development Pte Ltd | J43: 2600000 | K43: 856.33 | L43: 22 years 1 month | M43: State
A44: 2013-04-30 | B44: 2013-06-11 | C44: 2013-07-09 | D44: Plot 5, Tuas South Street 6 | E44: Business 2 | F44: 3035.8 | G44: 1 | H44: =F44*G44 -> 3035.8 | I44: Jin Choon Civil Engineering Pte Ltd | J44: 2490340 | K44: 820.32 | L44: 22 years 1 month | M44: State
A45: 2013-03-28 | B45: 2013-05-09 | C45: 2013-06-07 | D45: Loyang Way | E45: Business 2 | F45: 20633 | G45: 2.5 | H45: =F45*G45 -> 51582.5 | I45: OKH Global Ltd | J45: 61636000 | K45: 1194.9 | L45: 30 | M45: JTC
A46: 2013-02-28 | B46: 2013-04-11 | C46: 2013-05-10 | D46: Tuas Bay Close | E46: Business 2 | F46: 24971 | G46: 1.7 | H46: =F46*G46 -> 42450.7 | I46: Zacd Investments Pte Ltd, Bohai Investments (Sengkang) Pte Ltd | J46: 37100000 | K46: 873.95 | L46: 30 | M46: JTC
A47: 2013-01-31 | B47: 2013-03-28 | C47: 2013-04-23 | D47: Tuas Bay Walk | E47: Business 2 (Food only) | F47: 5808 | G47: 1.7 | H47: 9873.6 | I47: Yee Lee Development Pte Ltd | J47: 8988000 | K47: 910.31 | L47: 30 | M47: JTC
A48: 2013-01-31 | B48: 2013-03-28 | C48: 2013-04-23 | D48: Buroh Crescent | E48: Business 2 | F48: 17681 | G48: 2.5 | H48: 44202.5 | I48: OKH Holdings Pte Ltd | J48: 39017000 | K48: 882.69 | L48: 30 | M48: JTC
A49: 2012-12-27 | B49: 2013-02-07 | C49: 2013-03-21 | D49: Tuas South Avenue 10 | E49: Business 2 | F49: 39616 | G49: 1.4 | H49: 55462.4 | I49: Soon Hock Group Pte Ltd | J49: 60999000 | K49: 1099.83 | L49: 30 | M49: State
A50: 2012-12-27 | B50: 2013-02-07 | C50: 2013-03-21 | D50: Plot 10, Tuas South Street 8 | E50: Business 2 | F50: 3035.6 | G50: 1 | H50: 3035.6 | I50: Boilermaster Holdings Pte Ltd | J50: 2400000 | K50: 790.62 | L50: 22 years 5 months | M50: State
A51: 2012-12-27 | B51: 2013-02-07 | C51: 2013-03-11 | D51: Ubi Avenue 4 | E51: Business 1 | F51: 3503.5 | G51: 2.5 | H51: 8758.75 | I51: BP-Ubi Industrial Pte Ltd | J51: 16216020 | K51: 1851.41 | L51: 30 | M51: JTC
A52: 2012-11-20 | B52: 2013-01-02 | C52: 2013-02-01 | D52: Plot 30, Tuas South Street 6 | E52: Business 2 | F52: 8597.4 | G52: 1 | H52: 8597.4 | I52: Koh Brothers Building & Civil Engineering Contractor (Pte) Ltd | J52: 6570000 | K52: 764.1845209 | L52: 22 years 6 months | M52: State
A53: 2012-11-20 | B53: 2013-01-02 | C53: 2013-02-01 | D53: Plot 32, Tuas South Street 6 | E53: Business 2 | F53: 8732.2 | G53: 1 | H53: 8732.2 | I53: SH Design & Build Pte Ltd | J53: 6650000 | K53: 761.5492087 | L53: 22 years 6 months | M53: State
A54: 2012-11-20 | B54: 2013-01-02 | C54: 2013-01-29 | D54: Buroh Street | E54: Business 2 | F54: 27400 | G54: 2.5 | H54: 68500 | I54: Capital Development Pte Ltd and ZACD Investments Pte Ltd | J54: 82100000 | K54: 1198.540146 | L54: 30 | M54: JTC
A55: 2012-10-31 | B55: 2012-12-26 | C55: 2013-01-29 | D55: Off Woodlands Avenue 10 | E55: Business 2 | F55: 10705 | G55: 2.5 | H55: 26762.5 | I55: Bohai Investments (Sengkang) Pte Ltd and Punggol Drive Investments Pte Ltd | J55: 31700000 | K55: 1184.493227 | L55: 30 | M55: JTC
A56: 2012-10-31 | B56: 2012-12-12 | C56: 2013-01-08 | D56: Plot 8, Tuas South Street 8 | E56: Business 2 | F56: 3035.6 | G56: 1 | H56: 3035.6 | I56: T.M. Transport Contractor Pte Ltd | J56: 2222200 | K56: 732.05 | L56: 22 years 7 months | M56: State
A57: 2012-10-31 | B57: 2012-12-12 | C57: 2013-01-08 | D57: Plot 18, Tuas South Street 8 | E57: Business 2 | F57: 4526.9 | G57: 1 | H57: 4526.9 | I57: LNT Coating Pte Ltd | J57: 3800001 | K57: 839.43 | L57: 22 years 7 months | M57: State
A58: 2012-09-28 | B58: 2012-11-23 | C58: 2012-12-19 | D58: Plot 14. Tuas South Street 8 | E58: Business 2 | F58: 3035.9 | G58: 1 | H58: 3035.9 | I58: Greenway Environmental Waste Management Pte Ltd | J58: 2160000 | K58: 711.49 | L58: 22 years 8 months | M58: State
A59: 2012-09-28 | B59: 2012-11-23 | C59: 2012-12-19 | D59: Plot 16, Tuas South Street 8 | E59: Business 2 | F59: 3036 | G59: 1 | H59: 3036 | I59: Chuan Heng Hardware Trading Pte Ltd | J59: 2076624 | K59: 684 | L59: 22 years 8 months | M59: State
A60: 2012-09-28 | B60: 2012-11-23 | C60: 2012-12-05 | D60: Serangoon North Avenue 5 | E60: Business 1 | F60: 7504 | G60: 2.5 | H60: 18760 | I60: Popular Warehouse and Distribution Pte Ltd | J60: 26999000 | K60: 1439.18 | L60: 30 | M60: JTC
A61: 2012-08-31 | B61: 2012-10-12 | C61: 2012-11-09 | D61: Plot 12, Tuas South Sreet 8 | E61: Business 2 | F61: 4550.7 | G61: 1 | H61: 4550.7 | I61: Teck Leong Industries Pte Ltd | J61: 3200899 | K61: 703.3861 | L61: 22 years 9 months | M61: State
A62: 2012-08-31 | B62: 2012-10-12 | C62: 2012-10-29 | D62: Sunview Road | E62: Business 2 (Clean and Light Uses) | F62: 28173 | G62: 2.5 | H62: 70432.5 | I62: Asendial Pte Ltd | J62: 76571635 | K62: 1087.16 | L62: 30 | M62: JTC
A63: 2012-07-24 | B63: 2012-09-04 | C63: 2012-10-12 | D63: Plot 26, Tuas South Street 7 | E63: Business 2 | F63: 10094.9 | G63: 1 | H63: 10094.9 | I63: 800 Super Holdings Limited | J63: 6300000 | K63: 624.08 | L63: 22 | M63: State
A64: 2012-07-24 | B64: 2012-09-04 | C64: 2012-10-12 | D64: Plot 31, Tuas South Street 6 | E64: Business 2 | F64: 8569.3 | G64: 1 | H64: 8569.3 | I64: Kwong Lee Holdings Pte Ltd | J64: 4900068 | K64: 571.82 | L64: 22 | M64: State
A65: 2012-06-29 | B65: 2012-08-24 | C65: 2012-09-10 | D65: Plot 3, Tampines Industrial Crescent | E65: Business 2 (Clean Uses Only) | F65: 38800 | G65: 1.7 | H65: =F65*G65 -> 65960 | I65: Oxley Bliss Pte Ltd | J65: 55000000 | K65: 833.84 | L65: 30 | M65: JTC
A66: 2012-06-29 | B66: 2012-08-10 | C66: 2012-08-27 | D66: Mandai Link | E66: Business 2 (Clean and Light Uses) | F66: 22366 | G66: 2.5 | H66: =F66*G66 -> 55915 | I66: Soilbuild Group Holdings Ltd | J66: 45289000 | K66: 809.96 | L66: 30 | M66: JTC
A67: 2012-06-29 | B67: 2012-08-10 | C67: 2012-09-28 | D67: Plot 13, Tuas South Street 7 | E67: Business 2 | F67: 4551.1 | G67: 1 | H67: 4551.1 | I67: Chip Eng Seng Contractors (1988) Pte Ltd | J67: 3815188 | K67: 838.3 | L67: 23 | M67: State
A68: 2012-06-29 | B68: 2012-08-10 | C68: 2012-09-28 | D68: Plot 15, Tuas South Street 8 | E68: Business 2 | F68: 3036.1 | G68: 1 | H68: 3036.1 | I68: Transco-Pac Transport & Environmental Pte Ltd | J68: 1788262.9 | K68: 589 | L68: 23 | M68: State
A69: 2012-06-29 | B69: 2012-08-10 | C69: 2012-09-28 | D69: Plot 17, Tuas South Street 7 | E69: Business 2 | F69: 3036 | G69: 1 | H69: 3036 | I69: P-One (S) Pte Ltd | J69: 1489588 | K69: 490.64 | L69: 23 | M69: State
A70: 2012-06-15 | B70: 2012-07-27 | C70: 2012-09-28 | D70: Plot 7, Tuas South Street 9 | E70: Business 2 | F70: 4551.1 | G70: 1 | H70: 4551.1 | I70: Ben Ching Engineering Pte Ltd | J70: 2310001 | K70: 507.57 | L70: 23 | M70: State
A71: 2012-06-15 | B71: 2012-07-27 | C71: 2012-09-28 | D71: Plot 9, Tuas South Street 8 | E71: Business 2 | F71: 3035.8 | G71: 1 | H71: 3035.8 | I71: Eastman Lift Trucks Pte Ltd | J71: 1449291 | K71: 477.4 | L71: 23 | M71: State
A72: 2012-06-15 | B72: 2012-07-27 | C72: 2012-09-28 | D72: Plot 11, Tuas South Street 8 | E72: Business 2 | F72: 3035.7 | G72: 1 | H72: 3035.7 | I72: Westtech Pte Ltd | J72: 1130000 | K72: 372.24 | L72: 23 | M72: State
A73: 2012-06-15 | B73: 2012-07-27 | C73: 2012-09-28 | D73: Plot 25, Tuas South Street 7 | E73: Business 2 | F73: 5738.3 | G73: 1 | H73: 5738.3 | I73: 800 Super Holdings Ltd | J73: 6000800 | K73: 1045.75 | L73: 23 | M73: State
A74: 2012-06-15 | B74: 2012-07-27 | C74: 2012-09-28 | D74: Plot 27, Tuas South Street 7 | E74: Business 2 | F74: 5047.6 | G74: 1 | H74: 5047.6 | I74: 800 Super Holdings Ltd | J74: 3500800 | K74: 693.56 | L74: 23 | M74: State
A75: 2012-04-24 | B75: 2012-06-19 | C75: 2012-07-13 | D75: Tai Seng Link | E75: Business 2 (Clean and Light Uses) | F75: 4336 | G75: 2.5 | H75: =F75*G75 -> 10840 | I75: OKH (Woodlands) Pte Ltd | J75: 23300000 | K75: 2149.45 | L75: 30 | M75: JTC
A76: 2012-01-31 | B76: 2012-03-13 | C76: 2012-04-04 | D76: Serangoon North Avenue 4 (Parcel 1) | E76: Business 1 | F76: 8076 | G76: 2.5 | H76: 20190 | I76: Soon Hock Property Development Pte Ltd | J76: 47088999 | K76: 2332.29 | L76: 58 | M76: JTC
A77: 2011-08-31 | B77: 2011-10-27 | C77: 2011-11-28 | D77: Lavender Street/ Kallang Avenue | E77: Business 1 - White | F77: 28348 | G77: 3.0 (B1-2.5 W-0.5) | H77: 85044 | I77: PLC 8 Development Pte Ltd | J77: 218300000 | K77: 2566.91 | L77: 60 | M77: JTC
A78: 2011-03-25 | B78: 2011-05-20 | C78: 2011-06-08 | D78: Fusionopolis Link, Fusionopolis Phase 3 | E78: Business Park - White 40% (Office) | F78: 6253 | G78: 4 | H78: 25012 | I78: Ascendas Real Estate Investment Trust | J78: 110000000 | K78: 4397.89 | L78: 60 | M78: JTC
A79: 2011-01-24 | B79: 2011-03-07 | C79: 2011-03-15 | D79: Ubi Road 1/ Ubi Avenue 4 | E79: Business 1 | F79: 12378 | G79: 2.5 | H79: 30945 | I79: Oxley Ascend Realty Pte Ltd | J79: 72200000 | K79: 2333.17 | L79: 60 | M79: JTC
A80: 2010-10-29 | B80: 2010-12-10 | C80: 2011-01-17 | D80: Old Toh Tuck Road/ Toh Tuck Avenue | E80: Business 2 | F80: 10083 | G80: 1.6 | H80: 16132.8 | I80: Incorporated Builders Pte Ltd | J80: 8700000 | K80: 539.27 | L80: 30 | M80: JTC
A81: 2010-08-20 | B81: 2010-10-18 | C81: 2010-11-04 | D81: Yishun Street 23/ Yishun Avenue 9 | E81: Business 2 | F81: 46546.9 | G81: 2.5 | H81: 116367.25 | I81: Soilbuild Group Holdings Ltd | J81: 64011800 | K81: 550.08 | L81: 60 | M81: State
A82: 2010-03-31 | B82: 2010-05-12 | C82: 2010-06-01 | D82: Tampines Industrial Avenue 4 | E82: Business 2 | F82: 49999.9 | G82: 0.8 | H82: 39999.92 | I82: Soon Hock Tuas Development Pte Ltd | J82: 33130000 | K82: 828.25 | L82: 30 | M82: State
A83: 2007-09-28 | B83: 2007-11-09 | C83: 2007-11-29 | D83: Jalan Tepong | E83: Business 2 | F83: 20867 | G83: 1.4 | H83: 29213.8 | I83: EL Development Pte Ltd | J83: 9480000 | K83: 324.5 | L83: 23 | M83: JTC
A84: 2007-09-21 | B84: 2007-11-02 | C84: 2007-11-29 | D84: L1 Commonwealth Drive/ Lane | E84: Business 1 | F84: 11175 | G84: 2.5 | H84: 27937.5 | I84: WHB Pte Ltd | J84: 51228228 | K84: 1833.67 | L84: 30 | M84: JTC
A85: 2007-09-06 | B85: 2007-10-18 | C85: 2007-11-12 | D85: L7 Pioneer Road/ Tuas Avenue 11 | E85: Business 2 | F85: 21871 | G85: 1.4 | H85: 30619.4 | I85: Soilbuild Group Holdings Ltd | J85: 12200000 | K85: 398.44 | L85: 30 | M85: JTC
A86: 2006-12-21 | B86: 2007-02-01 | C86: 2007-03-13 | D86: L1 Enterprise Road | E86: Business 2 | F86: 20122 | G86: 1.4 | H86: 28170.8 | I86: CTE Properties Pte Ltd | J86: 11400000 | K86: 404.67 | L86: 30 | M86: JTC
A87: 2006-11-17 | B87: 2006-12-28 | C87: 2007-01-24 | D87: L2 Serangoon North Avenue 4 | E87: Business 1 | F87: 9458 | G87: 1.4 | H87: 13241.2 | I87: First KNG Pte Ltd | J87: 8699000 | K87: 656.96 | L87: 60 | M87: JTC
A88: 2006-09-29 | B88: 2006-11-10 | C88: 2006-12-01 | D88: L14 Changi North Street 1 | E88: Business 2 | F88: 15000 | G88: 1 | H88: 15000 | I88: Global Orion Properties Ltd | J88: 4300228 | K88: 286.68 | L88: 30 | M88: JTC
A89: 2006-06-30 | B89: 2006-08-11 | C89: 2006-09-18 | D89: Ubi Road 2/ Ubi Avenue 3/ Ubi Avenue 4/ Ubi Link | E89: Business 1 | F89: 38577.5 | G89: 2.5 | H89: 96443.75 | I89: Sim Lian Development Pte Ltd | J89: 39999000 | K89: 414.74 | L89: 60 | M89: JTC
A90: 2006-05-16 | B90: 2006-07-04 | C90: 2006-09-18 | D90: Serangoon North Avenue 4 (end) | E90: Business 1 | F90: 29225 | G90: 2.5 | H90: 73062.5 | I90: Orion-One Development Pte Ltd | J90: 22800228 | K90: 312.06 | L90: 60 | M90: JTC
A91: 2005-09-27 | B91: 2005-11-22 | C91: 2006-01-05 | D91: Pioneer Road | E91: Business 2 | F91: 19858 | G91: 1 | H91: 19858 | I91: Soilbuild Group Holdings Ltd | J91: 3028000 | K91: 152.48 | L91: 30 | M91: JTC
A92: 2005-02-17 | B92: 2005-04-12 | C92: 2005-04-15 | D92: Penjuru Road | E92: Business 2 | F92: 20000 | G92: 1 | H92: 20000 | I92: Stagis Pte Ltd | J92: 5300000 | K92: 265 | L92: 30 | M92: JTC

Sheet As at 06 05 2015
A1: Date of Launch | B1: Date of Tender Closing | C1: Date of Award | D1: Location | E1: Type of Development Allowed | F1: Site Area (m2) | G1: Plot Ratio | H1: Maximum Permissible Gross Floor Area (GFA) (m2) | I1: Name of Successful Tenderer | J1: Successful Tender Price | K1: Price Psm Per Gross Plot Ratio | L1: Lease (Years) | M1: Land Owner
A2: 2015-01-27 | B2: 2015-03-24 | C2: 2015-04-27 | D2: Plot 43, Tuas South Street 11​ | E2: Business 2 | F2: 8409.8 | G2: 1 | H2: =F2*G2 -> 8409.8 | I2: Ho Lee Construction Pte Ltd | J2: 6996953.6 | K2: 832 | L2: 20 years 4 months | M2: State
A3: 2014-12-29 | B3: 2015-02-09 | C3: 2015-03-25 | D3: Plot 53, Tuas South Street 7 | E3: Business 2 | F3: 5038.6 | G3: 1 | H3: =F3*G3 -> 5038.6 | I3: L & P Blasting Pte Ltd | J3: 5506480 | K3: 1092.86 | L3: 20 years 4 months | M3: State
A4: 2014-12-16 | B4: 2015-02-10 | C4: 2015-03-25 | D4: Plot 42, Tuas South Street 11​ | E4: Business 2 | F4: 8409.2 | G4: 1 | H4: 8409.2 | I4: Ho Lee Construction Pte Ltd | J4: 6744178.4 | K4: 802 | L4: 20 years 5 months | M4: State
A5: 2014-11-25 | B5: 2015-01-20 | C5: 2015-02-27 | D5: Plot 8, Tampines Industrial Drive | E5: Business 2 | F5: 5033 | G5: 1.4 | H5: 7046.2 | I5: Soilbuild Group Holdings Ltd | J5: 5800001 | K5: =J5/H5 -> 823.138855 | L5: 20 years | M5: State
A6: 2014-11-25 | B6: 2015-01-20 | C6: 2015-02-27 | D6: Plot 40, Tuas South Street 11 | E6: Business 2 | F6: 10000 | G6: 1 | H6: 10000 | I6: Tiong Seng Contractors (Pte) Ltd | J6: 8400000 | K6: 840 | L6: 20 years 6 months | M6: State
A7: 2014-10-28 | B7: 2014-12-23 | C7: 2015-01-19 | D7: Plot 52, Tuas South Street 9 | E7: Business 2 | F7: 8369 | G7: 1 | H7: 8369 | I7: Asiaone Logistics & Warehousing Pte Ltd | J7: 7038000 | K7: 840.9606883 | L7: 20 years 7 months | M7: JTC
A8: 2014-09-29 | B8: 2014-11-24 | C8: 2014-12-23 | D8: Plot 50, Tuas South Street 9 | E8: Business 2 | F8: 8369 | G8: 1 | H8: 8369 | I8: Prospaq Group Pte Ltd | J8: 6878000 | K8: 821.842514 | L8: 20 years 8 months | M8: JTC
A9: 2014-09-29 | B9: 2014-11-24 | C9: 2014-12-23 | D9: Plot 1, Tampines North Drive 1 | E9: Business 2 | F9: 27395.2 | G9: 2.5 | H9: 68488 | I9: Goldprime Land Pte Ltd | J9: 64388888 | K9: 940.148464 | L9: 30 | M9: State
A10: 2014-09-16 | B10: 2014-10-28 | C10: 2014-11-27 | D10: Plot 41, Tuas South Street 11 | E10: Business 2 | F10: 9000 | G10: 1 | H10: 9000 | I10: Jian Man Construction Pte Ltd | J10: 7510000 | K10: 834.4444444 | L10: 20 years 10 months | M10: State
A11: 2014-08-26 | B11: 2014-10-21 | C11: 2014-11-21 | D11: Plot 48, Tuas South Street 9 | E11: Business 2 | F11: 8369 | G11: 1 | H11: 8369 | I11: New Hope Singapore Pte Ltd | J11: 6963008 | K11: 832 | L11: 20 years 9 months | M11: JTC
A12: 2014-07-29 | B12: 2014-09-09 | C12: 2014-10-23 | D12: Plot 44, Tuas South Street 7 | E12: Business 2 | F12: 5038.6 | G12: 1 | H12: 5038.6 | I12: IG Tuas Pte Ltd | J12: 5201000 | K12: 1032.231175 | L12: 20 years 10 months | M12: State
A13: 2014-06-24 | B13: 2014-08-26 | C13: 2014-10-09 | D13: Plot 12, Off Tuas South Avenue 7 | E13: Business 2 | F13: 25700 | G13: 2 | H13: 51400 | I13: Hock Lian Seng Holdings Limited | J13: 30988000 | K13: 602.8793774 | L13: 30 | M13: JTC
A14: 2014-04-29 | B14: 2014-07-01 | C14: 2014-07-24 | D14: Tuas Avenue 11 | E14: Business 2 | F14: 8922 | G14: 1.4 | H14: 12490.8 | I14: Soon Hock Realty Pte Ltd | J14: 14388000 | K14: 1151.887789 | L14: 30 | M14: JTC
A15: 2014-04-29 | B15: 2014-07-01 | C15: 2014-07-24 | D15: Plot 39, Tuas South Street 11 | E15: Business 2 | F15: 10000 | G15: 1 | H15: 10000 | I15: Tiong Aik Construction Pte Ltd | J15: 8073000 | K15: 807.3 | L15: 20 years 10 months | M15: JTC
A16: 2014-03-25 | B16: 2014-05-06 | C16: 2014-06-02 | D16: Plot 49, Tuas South Street 9 | E16: Business 2 | F16: 8369 | G16: 1 | H16: 8369 | I16: Pan Marine Blasting Abrasives Pte Ltd | J16: 5925252 | K16: 708 | L16: 21 years 2 months | M16: JTC
A17: 2014-03-25 | B17: 2014-05-06 | C17: 2014-06-02 | D17: Plot 51, Tuas South Street 9 | E17: Business 2 | F17: 8369 | G17: 1 | H17: 8369 | I17: Asiagroup Leasing Pte Ltd | J17: 5948000 | K17: 710.7181264 | L17: 21 years 2 months | M17: JTC
A18: 2014-02-25 | B18: 2014-04-08 | C18: 2014-04-29 | D18: Plot 45, Tuas South Street 6 | E18: Business 2 | F18: 6988 | G18: 1 | H18: 6988 | I18: SH Design & Build Pte Ltd | J18: 5278000 | K18: 755.2947911 | L18: 21 years 3 months | M18: JTC
A19: 2014-02-25 | B19: 2014-04-08 | C19: 2014-04-29 | D19: Plot 47, Tuas South Street 6 | E19: Business 2 | F19: 6988 | G19: 1 | H19: 6988 | I19: Soon Hock Investment Group Pte Ltd | J19: 5115000 | K19: 731.9690899 | L19: 21 years 3 months | M19: JTC
A20: 2013-12-27 | B20: 2014-02-07 | C20: 2014-04-14 | D20: Plot 6, Tuas South Street 6 | E20: Business 2 | F20: 4551.4 | G20: 1 | H20: 4551.4 | I20: H P Construction & Engineering Pte Ltd | J20: 4100000 | K20: 900.8217252 | L20: 21 years 5 months | M20: State
A21: 2013-12-27 | B21: 2014-02-07 | C21: 2014-04-14 | D21: Plot 34, Tuas South Street 13 | E21: Business 2 | F21: 7447.4 | G21: 1 | H21: 7447.4 | I21: Evan Lim & Co. Pte. Ltd. | J21: 4850000 | K21: 651.2339877 | L21: 21 years 5 months | M21: State
A22: 2013-12-27 | B22: 2014-02-07 | C22: 2014-04-14 | D22: Plot 35, Tuas South Street 11 | E22: Business 2 | F22: 7432.1 | G22: 1 | H22: 7432.1 | I22: Toko Tan Equipment Pte Ltd | J22: 4293524.17 | K22: 577.7 | L22: 21 years 5 months | M22: State
A23: 2013-12-27 | B23: 2014-02-07 | C23: 2014-04-14 | D23: Plot 38, Tuas South Street 13 | E23: Business 2 | F23: 7176.5 | G23: 1 | H23: 7176.5 | I23: AEI (China) Holdings Pte. Ltd | J23: 5038888 | K23: 702.1372535 | L23: 21 years 5 months | M23: State
A24: 2013-11-29 | B24: 2014-01-10 | C24: 2014-03-10 | D24: Plot 33, Tuas South Street 11 | E24: Business 2 | F24: 7432.1 | G24: 1 | H24: 7432.1 | I24: United Hudson Investment Pte Ltd | J24: 4808000 | K24: 646.92 | L24: 21 years 6 months | M24: State
A25: 2013-11-29 | B25: 2014-01-10 | C25: 2014-03-10 | D25: Plot 36, Tuas South Street 13 | E25: Business 2 | F25: 7431.7 | G25: 1 | H25: 7431.7 | I25: Quek & Quek Civil Engineering Pte Ltd | J25: 7431700 | K25: 1000 | L25: 21 years 6 months | M25: State
A26: 2013-11-29 | B26: 2014-01-10 | C26: 2014-03-10 | D26: Plot 37, Tuas South Street 11 | E26: Business 2 | F26: 7177 | G26: 1 | H26: 7177 | I26: United Hudson Investment Pte Ltd | J26: 5029200 | K26: 700.74 | L26: 21 years 6 months | M26: State
A27: 2013-11-29 | B27: 2014-01-10 | C27: 2014-03-10 | D27: Woodlands Industrial Park E9 | E27: Business 2 (with an integrated Heavy Vehicle Park) | F27: 18394.1 | G27: 2.5 | H27: 45985.25 | I27: Vantage Properties Pte Ltd | J27: 56180000 | K27: 1221.7 | L27: 30 | M27: State
A28: 2013-10-31 | B28: 2013-12-12 | C28: 2014-01-28 | D28: Plot 20, Tuas South Street 10 | E28: Business 2 | F28: 3036.2 | G28: 1 | H28: 3036.2 | I28: The Hi-Fi Company Pte Ltd | J28: 3104759 | K28: 1022.58 | L28: 21 years 7 months | M28: State
A29: 2013-10-31 | B29: 2013-12-12 | C29: 2014-01-28 | D29: Plot 22, Tuas South Street 10 | E29: Business 2 | F29: 3036 | G29: 1 | H29: 3036 | I29: Brown Metal Engineering Pte Ltd | J29: 3235320 | K29: 1065.65 | L29: 21 years 7 months | M29: State
A30: 2013-10-31 | B30: 2013-12-12 | C30: 2014-01-28 | D30: Plot 24, Tuas South Street 10 | E30: Business 2 | F30: 4551.2 | G30: 1 | H30: 4551.2 | I30: E C Builders Pte Ltd | J30: 4600000 | K30: 1010.72 | L30: 21 years 7 months | M30: State
A31: 2013-09-27 | B31: 2013-11-22 | C31: 2013-12-20 | D31: Tai Seng Street | E31: Business 2 - White | F31: 11,780.0 (Principal Site) | G31: 3.5 (B1-2.5 W-1.0) | H31: =11780*3.5 -> 41230 | I31: Mapletree Trustee Pte Ltd | J31: 120078500 | K31: 2912.41 | L31: 30 | M31: JTC
A32: 2013-09-27 | B32: 2013-11-08 | C32: 2013-12-06 | D32: Plot 2, Tuas South Street 6 | E32: Business 2 | F32: 3036.6 | G32: 1 | H32: =F32*G32 -> 3036.6 | I32: Tiong Lee Huat Machinery & Construction Pte Ltd | J32: 3000000 | K32: 987.95 | L32: 21 years 8 months | M32: State
A33: 2013-09-27 | B33: 2013-11-08 | C33: 2013-12-06 | D33: Plot 29, Tuas South Street 7 | E33: Business 2 | F33: 5033.1 | G33: 1 | H33: 5033.1 | I33: Poh Meng Trading & Cleaning Services Pte Ltd | J33: 4991272.91 | K33: 991.69 | L33: 21 years 8 months | M33: State
A34: 2013-08-29 | B34: 2013-10-10 | C34: 2013-11-08 | D34: Plot 4, Tuas South Street 6 | E34: Business 2 | F34: 3036.7 | G34: 1 | H34: 3036.7 | I34: Derman Aluminum (S) Pte Ltd | J34: 2880917 | K34: 948.7 | L34: 21 years 9 months | M34: State
A35: 2013-08-29 | B35: 2013-10-10 | C35: 2013-11-08 | D35: Plot 28, Tuas South Street 7 | E35: Business 2 | F35: 5047.4 | G35: 1 | H35: 5047.4 | I35: Reclaims Enterprise Pte Ltd | J35: 5330054.4 | K35: 1056 | L35: 21 years 9 months | M35: State
A36: 2013-06-26 | B36: 2013-08-07 | C36: 2013-09-06 | D36: Tuas South Avenue 3 | E36: Business 2 | F36: 39578.5 | G36: 1.4 | H36: 55409.9 | I36: Grow-Tech Properties Pte Ltd | J36: 66777000 | K36: 1205.15 | L36: 30 | M36: State
A37: 2013-06-26 | B37: 2013-08-07 | C37: 2013-09-06 | D37: Plot 19, Tuas South Street 10 | E37: Business 2 | F37: 4526.7 | G37: 1 | H37: 4526.7 | I37: Kian Hock Engineering Pte Ltd | J37: 4485131.29 | K37: 990.82 | L37: 21 years 11 months | M37: State
A38: 2013-06-26 | B38: 2013-08-07 | C38: 2013-09-06 | D38: Plot 21, Tuas South Street 10 | E38: Business 2 | F38: 3035.8 | G38: 1 | H38: 3035.8 | I38: SWHL Pte Ltd | J38: 2783640 | K38: 916.94 | L38: 21 years 11 months | M38: State
A39: 2013-06-26 | B39: 2013-08-07 | C39: 2013-09-06 | D39: Plot 23, Tuas South Street 10 | E39: Business 2 | F39: 3036 | G39: 1 | H39: 3036 | I39: Jay Machinery Pte Ltd | J39: 2680000 | K39: 882.74 | L39: 21 years 11 months | M39: State
A40: 2013-05-31 | B40: 2013-07-12 | C40: 2013-07-31 | D40: Mandai Link | E40: Business 2 (Food only) | F40: 6891.2 | G40: 2.5 | H40: 17228 | I40: Wealth Property Pte Ltd | J40: 21308888 | K40: 1236.88 | L40: 30 | M40: JTC
A41: 2013-04-30 | B41: 2013-06-11 | C41: 2013-07-09 | D41: Plot 1, Tuas South Street 6 | E41: Business 2 | F41: 4550.9 | G41: 1 | H41: =F41*G41 -> 4550.9 | I41: S.H. Stainless Steel Contractor Pte Ltd | J41: 4208000 | K41: 924.65 | L41: 22 years 1 month | M41: State
A42: 2013-04-30 | B42: 2013-06-11 | C42: 2013-07-09 | D42: Plot 3, Tuas South Street 6 | E42: Business 2 | F42: 3036.2 | G42: 1 | H42: =F42*G42 -> 3036.2 | I42: Stallion Development Pte Ltd | J42: 2600000 | K42: 856.33 | L42: 22 years 1 month | M42: State
A43: 2013-04-30 | B43: 2013-06-11 | C43: 2013-07-09 | D43: Plot 5, Tuas South Street 6 | E43: Business 2 | F43: 3035.8 | G43: 1 | H43: =F43*G43 -> 3035.8 | I43: Jin Choon Civil Engineering Pte Ltd | J43: 2490340 | K43: 820.32 | L43: 22 years 1 month | M43: State
A44: 2013-03-28 | B44: 2013-05-09 | C44: 2013-06-07 | D44: Loyang Way | E44: Business 2 | F44: 20633 | G44: 2.5 | H44: =F44*G44 -> 51582.5 | I44: OKH Global Ltd | J44: 61636000 | K44: 1194.9 | L44: 30 | M44: JTC
A45: 2013-02-28 | B45: 2013-04-11 | C45: 2013-05-10 | D45: Tuas Bay Close | E45: Business 2 | F45: 24971 | G45: 1.7 | H45: =F45*G45 -> 42450.7 | I45: Zacd Investments Pte Ltd, Bohai Investments (Sengkang) Pte Ltd | J45: 37100000 | K45: 873.95 | L45: 30 | M45: JTC
A46: 2013-01-31 | B46: 2013-03-28 | C46: 2013-04-23 | D46: Tuas Bay Walk | E46: Business 2 (Food only) | F46: 5808 | G46: 1.7 | H46: 9873.6 | I46: Yee Lee Development Pte Ltd | J46: 8988000 | K46: 910.31 | L46: 30 | M46: JTC
A47: 2013-01-31 | B47: 2013-03-28 | C47: 2013-04-23 | D47: Buroh Crescent | E47: Business 2 | F47: 17681 | G47: 2.5 | H47: 44202.5 | I47: OKH Holdings Pte Ltd | J47: 39017000 | K47: 882.69 | L47: 30 | M47: JTC
A48: 2012-12-27 | B48: 2013-02-07 | C48: 2013-03-21 | D48: Tuas South Avenue 10 | E48: Business 2 | F48: 39616 | G48: 1.4 | H48: 55462.4 | I48: Soon Hock Group Pte Ltd | J48: 60999000 | K48: 1099.83 | L48: 30 | M48: State
A49: 2012-12-27 | B49: 2013-02-07 | C49: 2013-03-21 | D49: Plot 10, Tuas South Street 8 | E49: Business 2 | F49: 3035.6 | G49: 1 | H49: 3035.6 | I49: Boilermaster Holdings Pte Ltd | J49: 2400000 | K49: 790.62 | L49: 22 years 5 months | M49: State
A50: 2012-12-27 | B50: 2013-02-07 | C50: 2013-03-11 | D50: Ubi Avenue 4 | E50: Business 1 | F50: 3503.5 | G50: 2.5 | H50: 8758.75 | I50: BP-Ubi Industrial Pte Ltd | J50: 16216020 | K50: 1851.41 | L50: 30 | M50: JTC
A51: 2012-11-20 | B51: 2013-01-02 | C51: 2013-02-01 | D51: Plot 30, Tuas South Street 6 | E51: Business 2 | F51: 8597.4 | G51: 1 | H51: 8597.4 | I51: Koh Brothers Building & Civil Engineering Contractor (Pte) Ltd | J51: 6570000 | K51: 764.1845209 | L51: 22 years 6 months | M51: State
A52: 2012-11-20 | B52: 2013-01-02 | C52: 2013-02-01 | D52: Plot 32, Tuas South Street 6 | E52: Business 2 | F52: 8732.2 | G52: 1 | H52: 8732.2 | I52: SH Design & Build Pte Ltd | J52: 6650000 | K52: 761.5492087 | L52: 22 years 6 months | M52: State
A53: 2012-11-20 | B53: 2013-01-02 | C53: 2013-01-29 | D53: Buroh Street | E53: Business 2 | F53: 27400 | G53: 2.5 | H53: 68500 | I53: Capital Development Pte Ltd and ZACD Investments Pte Ltd | J53: 82100000 | K53: 1198.540146 | L53: 30 | M53: JTC
A54: 2012-10-31 | B54: 2012-12-26 | C54: 2013-01-29 | D54: Off Woodlands Avenue 10 | E54: Business 2 | F54: 10705 | G54: 2.5 | H54: 26762.5 | I54: Bohai Investments (Sengkang) Pte Ltd and Punggol Drive Investments Pte Ltd | J54: 31700000 | K54: 1184.493227 | L54: 30 | M54: JTC
A55: 2012-10-31 | B55: 2012-12-12 | C55: 2013-01-08 | D55: Plot 8, Tuas South Street 8 | E55: Business 2 | F55: 3035.6 | G55: 1 | H55: 3035.6 | I55: T.M. Transport Contractor Pte Ltd | J55: 2222200 | K55: 732.05 | L55: 22 years 7 months | M55: State
A56: 2012-10-31 | B56: 2012-12-12 | C56: 2013-01-08 | D56: Plot 18, Tuas South Street 8 | E56: Business 2 | F56: 4526.9 | G56: 1 | H56: 4526.9 | I56: LNT Coating Pte Ltd | J56: 3800001 | K56: 839.43 | L56: 22 years 7 months | M56: State
A57: 2012-09-28 | B57: 2012-11-23 | C57: 2012-12-19 | D57: Plot 14. Tuas South Street 8 | E57: Business 2 | F57: 3035.9 | G57: 1 | H57: 3035.9 | I57: Greenway Environmental Waste Management Pte Ltd | J57: 2160000 | K57: 711.49 | L57: 22 years 8 months | M57: State
A58: 2012-09-28 | B58: 2012-11-23 | C58: 2012-12-19 | D58: Plot 16, Tuas South Street 8 | E58: Business 2 | F58: 3036 | G58: 1 | H58: 3036 | I58: Chuan Heng Hardware Trading Pte Ltd | J58: 2076624 | K58: 684 | L58: 22 years 8 months | M58: State
A59: 2012-09-28 | B59: 2012-11-23 | C59: 2012-12-05 | D59: Serangoon North Avenue 5 | E59: Business 1 | F59: 7504 | G59: 2.5 | H59: 18760 | I59: Popular Warehouse and Distribution Pte Ltd | J59: 26999000 | K59: 1439.18 | L59: 30 | M59: JTC
A60: 2012-08-31 | B60: 2012-10-12 | C60: 2012-11-09 | D60: Plot 12, Tuas South Sreet 8 | E60: Business 2 | F60: 4550.7 | G60: 1 | H60: 4550.7 | I60: Teck Leong Industries Pte Ltd | J60: 3200899 | K60: 703.3861 | L60: 22 years 9 months | M60: State
A61: 2012-08-31 | B61: 2012-10-12 | C61: 2012-10-29 | D61: Sunview Road | E61: Business 2 (Clean and Light Uses) | F61: 28173 | G61: 2.5 | H61: 70432.5 | I61: Asendial Pte Ltd | J61: 76571635 | K61: 1087.16 | L61: 30 | M61: JTC
A62: 2012-07-24 | B62: 2012-09-04 | C62: 2012-10-12 | D62: Plot 26, Tuas South Street 7 | E62: Business 2 | F62: 10094.9 | G62: 1 | H62: 10094.9 | I62: 800 Super Holdings Limited | J62: 6300000 | K62: 624.08 | L62: 22 | M62: State
A63: 2012-07-24 | B63: 2012-09-04 | C63: 2012-10-12 | D63: Plot 31, Tuas South Street 6 | E63: Business 2 | F63: 8569.3 | G63: 1 | H63: 8569.3 | I63: Kwong Lee Holdings Pte Ltd | J63: 4900068 | K63: 571.82 | L63: 22 | M63: State
A64: 2012-06-29 | B64: 2012-08-24 | C64: 2012-09-10 | D64: Plot 3, Tampines Industrial Crescent | E64: Business 2 (Clean Uses Only) | F64: 38800 | G64: 1.7 | H64: =F64*G64 -> 65960 | I64: Oxley Bliss Pte Ltd | J64: 55000000 | K64: 833.84 | L64: 30 | M64: JTC
A65: 2012-06-29 | B65: 2012-08-10 | C65: 2012-08-27 | D65: Mandai Link | E65: Business 2 (Clean and Light Uses) | F65: 22366 | G65: 2.5 | H65: =F65*G65 -> 55915 | I65: Soilbuild Group Holdings Ltd | J65: 45289000 | K65: 809.96 | L65: 30 | M65: JTC
A66: 2012-06-29 | B66: 2012-08-10 | C66: 2012-09-28 | D66: Plot 13, Tuas South Street 7 | E66: Business 2 | F66: 4551.1 | G66: 1 | H66: 4551.1 | I66: Chip Eng Seng Contractors (1988) Pte Ltd | J66: 3815188 | K66: 838.3 | L66: 23 | M66: State
A67: 2012-06-29 | B67: 2012-08-10 | C67: 2012-09-28 | D67: Plot 15, Tuas South Street 8 | E67: Business 2 | F67: 3036.1 | G67: 1 | H67: 3036.1 | I67: Transco-Pac Transport & Environmental Pte Ltd | J67: 1788262.9 | K67: 589 | L67: 23 | M67: State
A68: 2012-06-29 | B68: 2012-08-10 | C68: 2012-09-28 | D68: Plot 17, Tuas South Street 7 | E68: Business 2 | F68: 3036 | G68: 1 | H68: 3036 | I68: P-One (S) Pte Ltd | J68: 1489588 | K68: 490.64 | L68: 23 | M68: State
A69: 2012-06-15 | B69: 2012-07-27 | C69: 2012-09-28 | D69: Plot 7, Tuas South Street 9 | E69: Business 2 | F69: 4551.1 | G69: 1 | H69: 4551.1 | I69: Ben Ching Engineering Pte Ltd | J69: 2310001 | K69: 507.57 | L69: 23 | M69: State
A70: 2012-06-15 | B70: 2012-07-27 | C70: 2012-09-28 | D70: Plot 9, Tuas South Street 8 | E70: Business 2 | F70: 3035.8 | G70: 1 | H70: 3035.8 | I70: Eastman Lift Trucks Pte Ltd | J70: 1449291 | K70: 477.4 | L70: 23 | M70: State
A71: 2012-06-15 | B71: 2012-07-27 | C71: 2012-09-28 | D71: Plot 11, Tuas South Street 8 | E71: Business 2 | F71: 3035.7 | G71: 1 | H71: 3035.7 | I71: Westtech Pte Ltd | J71: 1130000 | K71: 372.24 | L71: 23 | M71: State
A72: 2012-06-15 | B72: 2012-07-27 | C72: 2012-09-28 | D72: Plot 25, Tuas South Street 7 | E72: Business 2 | F72: 5738.3 | G72: 1 | H72: 5738.3 | I72: 800 Super Holdings Ltd | J72: 6000800 | K72: 1045.75 | L72: 23 | M72: State
A73: 2012-06-15 | B73: 2012-07-27 | C73: 2012-09-28 | D73: Plot 27, Tuas South Street 7 | E73: Business 2 | F73: 5047.6 | G73: 1 | H73: 5047.6 | I73: 800 Super Holdings Ltd | J73: 3500800 | K73: 693.56 | L73: 23 | M73: State
A74: 2012-04-24 | B74: 2012-06-19 | C74: 2012-07-13 | D74: Tai Seng Link | E74: Business 2 (Clean and Light Uses) | F74: 4336 | G74: 2.5 | H74: =F74*G74 -> 10840 | I74: OKH (Woodlands) Pte Ltd | J74: 23300000 | K74: 2149.45 | L74: 30 | M74: JTC
A75: 2012-01-31 | B75: 2012-03-13 | C75: 2012-04-04 | D75: Serangoon North Avenue 4 (Parcel 1) | E75: Business 1 | F75: 8076 | G75: 2.5 | H75: 20190 | I75: Soon Hock Property Development Pte Ltd | J75: 47088999 | K75: 2332.29 | L75: 58 | M75: JTC
A76: 2011-08-31 | B76: 2011-10-27 | C76: 2011-11-28 | D76: Lavender Street/ Kallang Avenue | E76: Business 1 - White | F76: 28348 | G76: 3.0 (B1-2.5 W-0.5) | H76: 85044 | I76: PLC 8 Development Pte Ltd | J76: 218300000 | K76: 2566.91 | L76: 60 | M76: JTC
A77: 2011-03-25 | B77: 2011-05-20 | C77: 2011-06-08 | D77: Fusionopolis Link, Fusionopolis Phase 3 | E77: Business Park - White 40% (Office) | F77: 6253 | G77: 4 | H77: 25012 | I77: Ascendas Real Estate Investment Trust | J77: 110000000 | K77: 4397.89 | L77: 60 | M77: JTC
A78: 2011-01-24 | B78: 2011-03-07 | C78: 2011-03-15 | D78: Ubi Road 1/ Ubi Avenue 4 | E78: Business 1 | F78: 12378 | G78: 2.5 | H78: 30945 | I78: Oxley Ascend Realty Pte Ltd | J78: 72200000 | K78: 2333.17 | L78: 60 | M78: JTC
A79: 2010-10-29 | B79: 2010-12-10 | C79: 2011-01-17 | D79: Old Toh Tuck Road/ Toh Tuck Avenue | E79: Business 2 | F79: 10083 | G79: 1.6 | H79: 16132.8 | I79: Incorporated Builders Pte Ltd | J79: 8700000 | K79: 539.27 | L79: 30 | M79: JTC
A80: 2010-08-20 | B80: 2010-10-18 | C80: 2010-11-04 | D80: Yishun Street 23/ Yishun Avenue 9 | E80: Business 2 | F80: 46546.9 | G80: 2.5 | H80: 116367.25 | I80: Soilbuild Group Holdings Ltd | J80: 64011800 | K80: 550.08 | L80: 60 | M80: State
A81: 2010-03-31 | B81: 2010-05-12 | C81: 2010-06-01 | D81: Tampines Industrial Avenue 4 | E81: Business 2 | F81: 49999.9 | G81: 0.8 | H81: 39999.92 | I81: Soon Hock Tuas Development Pte Ltd | J81: 33130000 | K81: 828.25 | L81: 30 | M81: State
A82: 2007-09-28 | B82: 2007-11-09 | C82: 2007-11-29 | D82: Jalan Tepong | E82: Business 2 | F82: 20867 | G82: 1.4 | H82: 29213.8 | I82: EL Development Pte Ltd | J82: 9480000 | K82: 324.5 | L82: 23 | M82: JTC
A83: 2007-09-21 | B83: 2007-11-02 | C83: 2007-11-29 | D83: L1 Commonwealth Drive/ Lane | E83: Business 1 | F83: 11175 | G83: 2.5 | H83: 27937.5 | I83: WHB Pte Ltd | J83: 51228228 | K83: 1833.67 | L83: 30 | M83: JTC
A84: 2007-09-06 | B84: 2007-10-18 | C84: 2007-11-12 | D84: L7 Pioneer Road/ Tuas Avenue 11 | E84: Business 2 | F84: 21871 | G84: 1.4 | H84: 30619.4 | I84: Soilbuild Group Holdings Ltd | J84: 12200000 | K84: 398.44 | L84: 30 | M84: JTC
A85: 2006-12-21 | B85: 2007-02-01 | C85: 2007-03-13 | D85: L1 Enterprise Road | E85: Business 2 | F85: 20122 | G85: 1.4 | H85: 28170.8 | I85: CTE Properties Pte Ltd | J85: 11400000 | K85: 404.67 | L85: 30 | M85: JTC
A86: 2006-11-17 | B86: 2006-12-28 | C86: 2007-01-24 | D86: L2 Serangoon North Avenue 4 | E86: Business 1 | F86: 9458 | G86: 1.4 | H86: 13241.2 | I86: First KNG Pte Ltd | J86: 8699000 | K86: 656.96 | L86: 60 | M86: JTC
A87: 2006-09-29 | B87: 2006-11-10 | C87: 2006-12-01 | D87: L14 Changi North Street 1 | E87: Business 2 | F87: 15000 | G87: 1 | H87: 15000 | I87: Global Orion Properties Ltd | J87: 4300228 | K87: 286.68 | L87: 30 | M87: JTC
A88: 2006-06-30 | B88: 2006-08-11 | C88: 2006-09-18 | D88: Ubi Road 2/ Ubi Avenue 3/ Ubi Avenue 4/ Ubi Link | E88: Business 1 | F88: 38577.5 | G88: 2.5 | H88: 96443.75 | I88: Sim Lian Development Pte Ltd | J88: 39999000 | K88: 414.74 | L88: 60 | M88: JTC
A89: 2006-05-16 | B89: 2006-07-04 | C89: 2006-09-18 | D89: Serangoon North Avenue 4 (end) | E89: Business 1 | F89: 29225 | G89: 2.5 | H89: 73062.5 | I89: Orion-One Development Pte Ltd | J89: 22800228 | K89: 312.06 | L89: 60 | M89: JTC
A90: 2005-09-27 | B90: 2005-11-22 | C90: 2006-01-05 | D90: Pioneer Road | E90: Business 2 | F90: 19858 | G90: 1 | H90: 19858 | I90: Soilbuild Group Holdings Ltd | J90: 3028000 | K90: 152.48 | L90: 30 | M90: JTC
A91: 2005-02-17 | B91: 2005-04-12 | C91: 2005-04-15 | D91: Penjuru Road | E91: Business 2 | F91: 20000 | G91: 1 | H91: 20000 | I91: Stagis Pte Ltd | J91: 5300000 | K91: 265 | L91: 30 | M91: JTC

Sheet As at 06 04 2015
A1: Date of Launch | B1: Date of Tender Closing | C1: Date of Award | D1: Location | E1: Type of Development Allowed | F1: Site Area (m2) | G1: Plot Ratio | H1: Maximum Permissible Gross Floor Area (GFA) (m2) | I1: Name of Successful Tenderer | J1: Successful Tender Price | K1: Price Psm Per Gross Plot Ratio | L1: Lease (Years) | M1: Land Owner
A2: 2014-12-29 | B2: 2015-02-09 | C2: 2015-03-25 | D2: Plot 53, Tuas South Street 7 | E2: Business 2 | F2: 5038.6 | G2: 1 | H2: =F2*G2 -> 5038.6 | I2: L & P Blasting Pte Ltd | J2: 5506480 | K2: 1092.86 | L2: 20 years 4 months | M2: State
A3: 2014-12-16 | B3: 2015-02-10 | C3: 2015-03-25 | D3: Plot 42, Tuas South Street 11​ | E3: Business 2 | F3: 8409.2 | G3: 1 | H3: 8409.2 | I3: Ho Lee Construction Pte Ltd | J3: 6744178.4 | K3: 802 | L3: 20 years 5 months | M3: State
A4: 2014-11-25 | B4: 2015-01-20 | C4: 2015-02-27 | D4: Plot 8, Tampines Industrial Drive | E4: Business 2 | F4: 5033 | G4: 1.4 | H4: 7046.2 | I4: Soilbuild Group Holdings Ltd | J4: 5800001 | K4: =J4/H4 -> 823.138855 | L4: 20 years | M4: State
A5: 2014-11-25 | B5: 2015-01-20 | C5: 2015-02-27 | D5: Plot 40, Tuas South Street 11 | E5: Business 2 | F5: 10000 | G5: 1 | H5: 10000 | I5: Tiong Seng Contractors (Pte) Ltd | J5: 8400000 | K5: 840 | L5: 20 years 6 months | M5: State
A6: 2014-10-28 | B6: 2014-12-23 | C6: 2015-01-19 | D6: Plot 52, Tuas South Street 9 | E6: Business 2 | F6: 8369 | G6: 1 | H6: 8369 | I6: Asiaone Logistics & Warehousing Pte Ltd | J6: 7038000 | K6: 840.9606883 | L6: 20 years 7 months | M6: JTC
A7: 2014-09-29 | B7: 2014-11-24 | C7: 2014-12-23 | D7: Plot 50, Tuas South Street 9 | E7: Business 2 | F7: 8369 | G7: 1 | H7: 8369 | I7: Prospaq Group Pte Ltd | J7: 6878000 | K7: 821.842514 | L7: 20 years 8 months | M7: JTC
A8: 2014-09-29 | B8: 2014-11-24 | C8: 2014-12-23 | D8: Plot 1, Tampines North Drive 1 | E8: Business 2 | F8: 27395.2 | G8: 2.5 | H8: 68488 | I8: Goldprime Land Pte Ltd | J8: 64388888 | K8: 940.148464 | L8: 30 | M8: State
A9: 2014-09-16 | B9: 2014-10-28 | C9: 2014-11-27 | D9: Plot 41, Tuas South Street 11 | E9: Business 2 | F9: 9000 | G9: 1 | H9: 9000 | I9: Jian Man Construction Pte Ltd | J9: 7510000 | K9: 834.4444444 | L9: 20 years 10 months | M9: State
A10: 2014-08-26 | B10: 2014-10-21 | C10: 2014-11-21 | D10: Plot 48, Tuas South Street 9 | E10: Business 2 | F10: 8369 | G10: 1 | H10: 8369 | I10: New Hope Singapore Pte Ltd | J10: 6963008 | K10: 832 | L10: 20 years 9 months | M10: JTC
A11: 2014-07-29 | B11: 2014-09-09 | C11: 2014-10-23 | D11: Plot 44, Tuas South Street 7 | E11: Business 2 | F11: 5038.6 | G11: 1 | H11: =F11*G11 -> 5038.6 | I11: IG Tuas Pte Ltd | J11: 5201000 | K11: =J11/H11 -> 1032.231175 | L11: 20 years 10 months | M11: State
A12: 2014-06-24 | B12: 2014-08-26 | C12: 2014-10-09 | D12: Plot 12, Off Tuas South Avenue 7 | E12: Business 2 | F12: 25700 | G12: 2 | H12: 51400 | I12: Hock Lian Seng Holdings Limited | J12: 30988000 | K12: 602.8793774 | L12: 30 | M12: JTC
A13: 2014-04-29 | B13: 2014-07-01 | C13: 2014-07-24 | D13: Tuas Avenue 11 | E13: Business 2 | F13: 8922 | G13: 1.4 | H13: 12490.8 | I13: Soon Hock Realty Pte Ltd | J13: 14388000 | K13: 1151.887789 | L13: 30 | M13: JTC
A14: 2014-04-29 | B14: 2014-07-01 | C14: 2014-07-24 | D14: Plot 39, Tuas South Street 11 | E14: Business 2 | F14: 10000 | G14: 1 | H14: 10000 | I14: Tiong Aik Construction Pte Ltd | J14: 8073000 | K14: 807.3 | L14: 20 years 10 months | M14: JTC
A15: 2014-03-25 | B15: 2014-05-06 | C15: 2014-06-02 | D15: Plot 49, Tuas South Street 9 | E15: Business 2 | F15: 8369 | G15: 1 | H15: 8369 | I15: Pan Marine Blasting Abrasives Pte Ltd | J15: 5925252 | K15: 708 | L15: 21 years 2 months | M15: JTC
A16: 2014-03-25 | B16: 2014-05-06 | C16: 2014-06-02 | D16: Plot 51, Tuas South Street 9 | E16: Business 2 | F16: 8369 | G16: 1 | H16: 8369 | I16: Asiagroup Leasing Pte Ltd | J16: 5948000 | K16: 710.7181264 | L16: 21 years 2 months | M16: JTC
A17: 2014-02-25 | B17: 2014-04-08 | C17: 2014-04-29 | D17: Plot 45, Tuas South Street 6 | E17: Business 2 | F17: 6988 | G17: 1 | H17: 6988 | I17: SH Design & Build Pte Ltd | J17: 5278000 | K17: 755.2947911 | L17: 21 years 3 months | M17: JTC
A18: 2014-02-25 | B18: 2014-04-08 | C18: 2014-04-29 | D18: Plot 47, Tuas South Street 6 | E18: Business 2 | F18: 6988 | G18: 1 | H18: 6988 | I18: Soon Hock Investment Group Pte Ltd | J18: 5115000 | K18: 731.9690899 | L18: 21 years 3 months | M18: JTC
A19: 2013-12-27 | B19: 2014-02-07 | C19: 2014-04-14 | D19: Plot 6, Tuas South Street 6 | E19: Business 2 | F19: 4551.4 | G19: 1 | H19: 4551.4 | I19: H P Construction & Engineering Pte Ltd | J19: 4100000 | K19: 900.8217252 | L19: 21 years 5 months | M19: State
A20: 2013-12-27 | B20: 2014-02-07 | C20: 2014-04-14 | D20: Plot 34, Tuas South Street 13 | E20: Business 2 | F20: 7447.4 | G20: 1 | H20: 7447.4 | I20: Evan Lim & Co. Pte. Ltd. | J20: 4850000 | K20: 651.2339877 | L20: 21 years 5 months | M20: State
A21: 2013-12-27 | B21: 2014-02-07 | C21: 2014-04-14 | D21: Plot 35, Tuas South Street 11 | E21: Business 2 | F21: 7432.1 | G21: 1 | H21: 7432.1 | I21: Toko Tan Equipment Pte Ltd | J21: 4293524.17 | K21: 577.7 | L21: 21 years 5 months | M21: State
A22: 2013-12-27 | B22: 2014-02-07 | C22: 2014-04-14 | D22: Plot 38, Tuas South Street 13 | E22: Business 2 | F22: 7176.5 | G22: 1 | H22: 7176.5 | I22: AEI (China) Holdings Pte. Ltd | J22: 5038888 | K22: 702.1372535 | L22: 21 years 5 months | M22: State
A23: 2013-11-29 | B23: 2014-01-10 | C23: 2014-03-10 | D23: Plot 33, Tuas South Street 11 | E23: Business 2 | F23: 7432.1 | G23: 1 | H23: 7432.1 | I23: United Hudson Investment Pte Ltd | J23: 4808000 | K23: 646.92 | L23: 21 years 6 months | M23: State
A24: 2013-11-29 | B24: 2014-01-10 | C24: 2014-03-10 | D24: Plot 36, Tuas South Street 13 | E24: Business 2 | F24: 7431.7 | G24: 1 | H24: 7431.7 | I24: Quek & Quek Civil Engineering Pte Ltd | J24: 7431700 | K24: 1000 | L24: 21 years 6 months | M24: State
A25: 2013-11-29 | B25: 2014-01-10 | C25: 2014-03-10 | D25: Plot 37, Tuas South Street 11 | E25: Business 2 | F25: 7177 | G25: 1 | H25: 7177 | I25: United Hudson Investment Pte Ltd | J25: 5029200 | K25: 700.74 | L25: 21 years 6 months | M25: State
A26: 2013-11-29 | B26: 2014-01-10 | C26: 2014-03-10 | D26: Woodlands Industrial Park E9 | E26: Business 2 (with an integrated Heavy Vehicle Park) | F26: 18394.1 | G26: 2.5 | H26: 45985.25 | I26: Vantage Properties Pte Ltd | J26: 56180000 | K26: 1221.7 | L26: 30 | M26: State
A27: 2013-10-31 | B27: 2013-12-12 | C27: 2014-01-28 | D27: Plot 20, Tuas South Street 10 | E27: Business 2 | F27: 3036.2 | G27: 1 | H27: 3036.2 | I27: The Hi-Fi Company Pte Ltd | J27: 3104759 | K27: 1022.58 | L27: 21 years 7 months | M27: State
A28: 2013-10-31 | B28: 2013-12-12 | C28: 2014-01-28 | D28: Plot 22, Tuas South Street 10 | E28: Business 2 | F28: 3036 | G28: 1 | H28: 3036 | I28: Brown Metal Engineering Pte Ltd | J28: 3235320 | K28: 1065.65 | L28: 21 years 7 months | M28: State
A29: 2013-10-31 | B29: 2013-12-12 | C29: 2014-01-28 | D29: Plot 24, Tuas South Street 10 | E29: Business 2 | F29: 4551.2 | G29: 1 | H29: 4551.2 | I29: E C Builders Pte Ltd | J29: 4600000 | K29: 1010.72 | L29: 21 years 7 months | M29: State
A30: 2013-09-27 | B30: 2013-11-22 | C30: 2013-12-20 | D30: Tai Seng Street | E30: Business 2 - White | F30: 11,780.0 (Principal Site) | G30: 3.5 (B1-2.5 W-1.0) | H30: =11780*3.5 -> 41230 | I30: Mapletree Trustee Pte Ltd | J30: 120078500 | K30: 2912.41 | L30: 30 | M30: JTC
A31: 2013-09-27 | B31: 2013-11-08 | C31: 2013-12-06 | D31: Plot 2, Tuas South Street 6 | E31: Business 2 | F31: 3036.6 | G31: 1 | H31: =F31*G31 -> 3036.6 | I31: Tiong Lee Huat Machinery & Construction Pte Ltd | J31: 3000000 | K31: 987.95 | L31: 21 years 8 months | M31: State
A32: 2013-09-27 | B32: 2013-11-08 | C32: 2013-12-06 | D32: Plot 29, Tuas South Street 7 | E32: Business 2 | F32: 5033.1 | G32: 1 | H32: 5033.1 | I32: Poh Meng Trading & Cleaning Services Pte Ltd | J32: 4991272.91 | K32: 991.69 | L32: 21 years 8 months | M32: State
A33: 2013-08-29 | B33: 2013-10-10 | C33: 2013-11-08 | D33: Plot 4, Tuas South Street 6 | E33: Business 2 | F33: 3036.7 | G33: 1 | H33: 3036.7 | I33: Derman Aluminum (S) Pte Ltd | J33: 2880917 | K33: 948.7 | L33: 21 years 9 months | M33: State
A34: 2013-08-29 | B34: 2013-10-10 | C34: 2013-11-08 | D34: Plot 28, Tuas South Street 7 | E34: Business 2 | F34: 5047.4 | G34: 1 | H34: 5047.4 | I34: Reclaims Enterprise Pte Ltd | J34: 5330054.4 | K34: 1056 | L34: 21 years 9 months | M34: State
A35: 2013-06-26 | B35: 2013-08-07 | C35: 2013-09-06 | D35: Tuas South Avenue 3 | E35: Business 2 | F35: 39578.5 | G35: 1.4 | H35: 55409.9 | I35: Grow-Tech Properties Pte Ltd | J35: 66777000 | K35: 1205.15 | L35: 30 | M35: State
A36: 2013-06-26 | B36: 2013-08-07 | C36: 2013-09-06 | D36: Plot 19, Tuas South Street 10 | E36: Business 2 | F36: 4526.7 | G36: 1 | H36: 4526.7 | I36: Kian Hock Engineering Pte Ltd | J36: 4485131.29 | K36: 990.82 | L36: 21 years 11 months | M36: State
A37: 2013-06-26 | B37: 2013-08-07 | C37: 2013-09-06 | D37: Plot 21, Tuas South Street 10 | E37: Business 2 | F37: 3035.8 | G37: 1 | H37: 3035.8 | I37: SWHL Pte Ltd | J37: 2783640 | K37: 916.94 | L37: 21 years 11 months | M37: State
A38: 2013-06-26 | B38: 2013-08-07 | C38: 2013-09-06 | D38: Plot 23, Tuas South Street 10 | E38: Business 2 | F38: 3036 | G38: 1 | H38: 3036 | I38: Jay Machinery Pte Ltd | J38: 2680000 | K38: 882.74 | L38: 21 years 11 months | M38: State
A39: 2013-05-31 | B39: 2013-07-12 | C39: 2013-07-31 | D39: Mandai Link | E39: Business 2 (Food only) | F39: 6891.2 | G39: 2.5 | H39: 17228 | I39: Wealth Property Pte Ltd | J39: 21308888 | K39: 1236.88 | L39: 30 | M39: JTC
A40: 2013-04-30 | B40: 2013-06-11 | C40: 2013-07-09 | D40: Plot 1, Tuas South Street 6 | E40: Business 2 | F40: 4550.9 | G40: 1 | H40: =F40*G40 -> 4550.9 | I40: S.H. Stainless Steel Contractor Pte Ltd | J40: 4208000 | K40: 924.65 | L40: 22 years 1 month | M40: State
A41: 2013-04-30 | B41: 2013-06-11 | C41: 2013-07-09 | D41: Plot 3, Tuas South Street 6 | E41: Business 2 | F41: 3036.2 | G41: 1 | H41: =F41*G41 -> 3036.2 | I41: Stallion Development Pte Ltd | J41: 2600000 | K41: 856.33 | L41: 22 years 1 month | M41: State
A42: 2013-04-30 | B42: 2013-06-11 | C42: 2013-07-09 | D42: Plot 5, Tuas South Street 6 | E42: Business 2 | F42: 3035.8 | G42: 1 | H42: =F42*G42 -> 3035.8 | I42: Jin Choon Civil Engineering Pte Ltd | J42: 2490340 | K42: 820.32 | L42: 22 years 1 month | M42: State
A43: 2013-03-28 | B43: 2013-05-09 | C43: 2013-06-07 | D43: Loyang Way | E43: Business 2 | F43: 20633 | G43: 2.5 | H43: =F43*G43 -> 51582.5 | I43: OKH Global Ltd | J43: 61636000 | K43: 1194.9 | L43: 30 | M43: JTC
A44: 2013-02-28 | B44: 2013-04-11 | C44: 2013-05-10 | D44: Tuas Bay Close | E44: Business 2 | F44: 24971 | G44: 1.7 | H44: =F44*G44 -> 42450.7 | I44: Zacd Investments Pte Ltd, Bohai Investments (Sengkang) Pte Ltd | J44: 37100000 | K44: 873.95 | L44: 30 | M44: JTC
A45: 2013-01-31 | B45: 2013-03-28 | C45: 2013-04-23 | D45: Tuas Bay Walk | E45: Business 2 (Food only) | F45: 5808 | G45: 1.7 | H45: 9873.6 | I45: Yee Lee Development Pte Ltd | J45: 8988000 | K45: 910.31 | L45: 30 | M45: JTC
A46: 2013-01-31 | B46: 2013-03-28 | C46: 2013-04-23 | D46: Buroh Crescent | E46: Business 2 | F46: 17681 | G46: 2.5 | H46: 44202.5 | I46: OKH Holdings Pte Ltd | J46: 39017000 | K46: 882.69 | L46: 30 | M46: JTC
A47: 2012-12-27 | B47: 2013-02-07 | C47: 2013-03-21 | D47: Tuas South Avenue 10 | E47: Business 2 | F47: 39616 | G47: 1.4 | H47: 55462.4 | I47: Soon Hock Group Pte Ltd | J47: 60999000 | K47: 1099.83 | L47: 30 | M47: State
A48: 2012-12-27 | B48: 2013-02-07 | C48: 2013-03-21 | D48: Plot 10, Tuas South Street 8 | E48: Business 2 | F48: 3035.6 | G48: 1 | H48: 3035.6 | I48: Boilermaster Holdings Pte Ltd | J48: 2400000 | K48: 790.62 | L48: 22 years 5 months | M48: State
A49: 2012-12-27 | B49: 2013-02-07 | C49: 2013-03-11 | D49: Ubi Avenue 4 | E49: Business 1 | F49: 3503.5 | G49: 2.5 | H49: 8758.75 | I49: BP-Ubi Industrial Pte Ltd | J49: 16216020 | K49: 1851.41 | L49: 30 | M49: JTC
A50: 2012-11-20 | B50: 2013-01-02 | C50: 2013-02-01 | D50: Plot 30, Tuas South Street 6 | E50: Business 2 | F50: 8597.4 | G50: 1 | H50: 8597.4 | I50: Koh Brothers Building & Civil Engineering Contractor (Pte) Ltd | J50: 6570000 | K50: 764.1845209 | L50: 22 years 6 months | M50: State
A51: 2012-11-20 | B51: 2013-01-02 | C51: 2013-02-01 | D51: Plot 32, Tuas South Street 6 | E51: Business 2 | F51: 8732.2 | G51: 1 | H51: 8732.2 | I51: SH Design & Build Pte Ltd | J51: 6650000 | K51: 761.5492087 | L51: 22 years 6 months | M51: State
A52: 2012-11-20 | B52: 2013-01-02 | C52: 2013-01-29 | D52: Buroh Street | E52: Business 2 | F52: 27400 | G52: 2.5 | H52: 68500 | I52: Capital Development Pte Ltd and ZACD Investments Pte Ltd | J52: 82100000 | K52: 1198.540146 | L52: 30 | M52: JTC
A53: 2012-10-31 | B53: 2012-12-26 | C53: 2013-01-29 | D53: Off Woodlands Avenue 10 | E53: Business 2 | F53: 10705 | G53: 2.5 | H53: 26762.5 | I53: Bohai Investments (Sengkang) Pte Ltd and Punggol Drive Investments Pte Ltd | J53: 31700000 | K53: 1184.493227 | L53: 30 | M53: JTC
A54: 2012-10-31 | B54: 2012-12-12 | C54: 2013-01-08 | D54: Plot 8, Tuas South Street 8 | E54: Business 2 | F54: 3035.6 | G54: 1 | H54: 3035.6 | I54: T.M. Transport Contractor Pte Ltd | J54: 2222200 | K54: 732.05 | L54: 22 years 7 months | M54: State
A55: 2012-10-31 | B55: 2012-12-12 | C55: 2013-01-08 | D55: Plot 18, Tuas South Street 8 | E55: Business 2 | F55: 4526.9 | G55: 1 | H55: 4526.9 | I55: LNT Coating Pte Ltd | J55: 3800001 | K55: 839.43 | L55: 22 years 7 months | M55: State
A56: 2012-09-28 | B56: 2012-11-23 | C56: 2012-12-19 | D56: Plot 14. Tuas South Street 8 | E56: Business 2 | F56: 3035.9 | G56: 1 | H56: 3035.9 | I56: Greenway Environmental Waste Management Pte Ltd | J56: 2160000 | K56: 711.49 | L56: 22 years 8 months | M56: State
A57: 2012-09-28 | B57: 2012-11-23 | C57: 2012-12-19 | D57: Plot 16, Tuas South Street 8 | E57: Business 2 | F57: 3036 | G57: 1 | H57: 3036 | I57: Chuan Heng Hardware Trading Pte Ltd | J57: 2076624 | K57: 684 | L57: 22 years 8 months | M57: State
A58: 2012-09-28 | B58: 2012-11-23 | C58: 2012-12-05 | D58: Serangoon North Avenue 5 | E58: Business 1 | F58: 7504 | G58: 2.5 | H58: 18760 | I58: Popular Warehouse and Distribution Pte Ltd | J58: 26999000 | K58: 1439.18 | L58: 30 | M58: JTC
A59: 2012-08-31 | B59: 2012-10-12 | C59: 2012-11-09 | D59: Plot 12, Tuas South Sreet 8 | E59: Business 2 | F59: 4550.7 | G59: 1 | H59: 4550.7 | I59: Teck Leong Industries Pte Ltd | J59: 3200899 | K59: 703.3861 | L59: 22 years 9 months | M59: State
A60: 2012-08-31 | B60: 2012-10-12 | C60: 2012-10-29 | D60: Sunview Road | E60: Business 2 (Clean and Light Uses) | F60: 28173 | G60: 2.5 | H60: 70432.5 | I60: Asendial Pte Ltd | J60: 76571635 | K60: 1087.16 | L60: 30 | M60: JTC
A61: 2012-07-24 | B61: 2012-09-04 | C61: 2012-10-12 | D61: Plot 26, Tuas South Street 7 | E61: Business 2 | F61: 10094.9 | G61: 1 | H61: 10094.9 | I61: 800 Super Holdings Limited | J61: 6300000 | K61: 624.08 | L61: 22 | M61: State
A62: 2012-07-24 | B62: 2012-09-04 | C62: 2012-10-12 | D62: Plot 31, Tuas South Street 6 | E62: Business 2 | F62: 8569.3 | G62: 1 | H62: 8569.3 | I62: Kwong Lee Holdings Pte Ltd | J62: 4900068 | K62: 571.82 | L62: 22 | M62: State
A63: 2012-06-29 | B63: 2012-08-24 | C63: 2012-09-10 | D63: Plot 3, Tampines Industrial Crescent | E63: Business 2 (Clean Uses Only) | F63: 38800 | G63: 1.7 | H63: =F63*G63 -> 65960 | I63: Oxley Bliss Pte Ltd | J63: 55000000 | K63: 833.84 | L63: 30 | M63: JTC
A64: 2012-06-29 | B64: 2012-08-10 | C64: 2012-08-27 | D64: Mandai Link | E64: Business 2 (Clean and Light Uses) | F64: 22366 | G64: 2.5 | H64: =F64*G64 -> 55915 | I64: Soilbuild Group Holdings Ltd | J64: 45289000 | K64: 809.96 | L64: 30 | M64: JTC
A65: 2012-06-29 | B65: 2012-08-10 | C65: 2012-09-28 | D65: Plot 13, Tuas South Street 7 | E65: Business 2 | F65: 4551.1 | G65: 1 | H65: 4551.1 | I65: Chip Eng Seng Contractors (1988) Pte Ltd | J65: 3815188 | K65: 838.3 | L65: 23 | M65: State
A66: 2012-06-29 | B66: 2012-08-10 | C66: 2012-09-28 | D66: Plot 15, Tuas South Street 8 | E66: Business 2 | F66: 3036.1 | G66: 1 | H66: 3036.1 | I66: Transco-Pac Transport & Environmental Pte Ltd | J66: 1788262.9 | K66: 589 | L66: 23 | M66: State
A67: 2012-06-29 | B67: 2012-08-10 | C67: 2012-09-28 | D67: Plot 17, Tuas South Street 7 | E67: Business 2 | F67: 3036 | G67: 1 | H67: 3036 | I67: P-One (S) Pte Ltd | J67: 1489588 | K67: 490.64 | L67: 23 | M67: State
A68: 2012-06-15 | B68: 2012-07-27 | C68: 2012-09-28 | D68: Plot 7, Tuas South Street 9 | E68: Business 2 | F68: 4551.1 | G68: 1 | H68: 4551.1 | I68: Ben Ching Engineering Pte Ltd | J68: 2310001 | K68: 507.57 | L68: 23 | M68: State
A69: 2012-06-15 | B69: 2012-07-27 | C69: 2012-09-28 | D69: Plot 9, Tuas South Street 8 | E69: Business 2 | F69: 3035.8 | G69: 1 | H69: 3035.8 | I69: Eastman Lift Trucks Pte Ltd | J69: 1449291 | K69: 477.4 | L69: 23 | M69: State
A70: 2012-06-15 | B70: 2012-07-27 | C70: 2012-09-28 | D70: Plot 11, Tuas South Street 8 | E70: Business 2 | F70: 3035.7 | G70: 1 | H70: 3035.7 | I70: Westtech Pte Ltd | J70: 1130000 | K70: 372.24 | L70: 23 | M70: State
A71: 2012-06-15 | B71: 2012-07-27 | C71: 2012-09-28 | D71: Plot 25, Tuas South Street 7 | E71: Business 2 | F71: 5738.3 | G71: 1 | H71: 5738.3 | I71: 800 Super Holdings Ltd | J71: 6000800 | K71: 1045.75 | L71: 23 | M71: State
A72: 2012-06-15 | B72: 2012-07-27 | C72: 2012-09-28 | D72: Plot 27, Tuas South Street 7 | E72: Business 2 | F72: 5047.6 | G72: 1 | H72: 5047.6 | I72: 800 Super Holdings Ltd | J72: 3500800 | K72: 693.56 | L72: 23 | M72: State
A73: 2012-04-24 | B73: 2012-06-19 | C73: 2012-07-13 | D73: Tai Seng Link | E73: Business 2 (Clean and Light Uses) | F73: 4336 | G73: 2.5 | H73: =F73*G73 -> 10840 | I73: OKH (Woodlands) Pte Ltd | J73: 23300000 | K73: 2149.45 | L73: 30 | M73: JTC
A74: 2012-01-31 | B74: 2012-03-13 | C74: 2012-04-04 | D74: Serangoon North Avenue 4 (Parcel 1) | E74: Business 1 | F74: 8076 | G74: 2.5 | H74: 20190 | I74: Soon Hock Property Development Pte Ltd | J74: 47088999 | K74: 2332.29 | L74: 58 | M74: JTC
A75: 2011-08-31 | B75: 2011-10-27 | C75: 2011-11-28 | D75: Lavender Street/ Kallang Avenue | E75: Business 1 - White | F75: 28348 | G75: 3.0 (B1-2.5 W-0.5) | H75: 85044 | I75: PLC 8 Development Pte Ltd | J75: 218300000 | K75: 2566.91 | L75: 60 | M75: JTC
A76: 2011-03-25 | B76: 2011-05-20 | C76: 2011-06-08 | D76: Fusionopolis Link, Fusionopolis Phase 3 | E76: Business Park - White 40% (Office) | F76: 6253 | G76: 4 | H76: 25012 | I76: Ascendas Real Estate Investment Trust | J76: 110000000 | K76: 4397.89 | L76: 60 | M76: JTC
A77: 2011-01-24 | B77: 2011-03-07 | C77: 2011-03-15 | D77: Ubi Road 1/ Ubi Avenue 4 | E77: Business 1 | F77: 12378 | G77: 2.5 | H77: 30945 | I77: Oxley Ascend Realty Pte Ltd | J77: 72200000 | K77: 2333.17 | L77: 60 | M77: JTC
A78: 2010-10-29 | B78: 2010-12-10 | C78: 2011-01-17 | D78: Old Toh Tuck Road/ Toh Tuck Avenue | E78: Business 2 | F78: 10083 | G78: 1.6 | H78: 16132.8 | I78: Incorporated Builders Pte Ltd | J78: 8700000 | K78: 539.27 | L78: 30 | M78: JTC
A79: 2010-08-20 | B79: 2010-10-18 | C79: 2010-11-04 | D79: Yishun Street 23/ Yishun Avenue 9 | E79: Business 2 | F79: 46546.9 | G79: 2.5 | H79: 116367.25 | I79: Soilbuild Group Holdings Ltd | J79: 64011800 | K79: 550.08 | L79: 60 | M79: State
A80: 2010-03-31 | B80: 2010-05-12 | C80: 2010-06-01 | D80: Tampines Industrial Avenue 4 | E80: Business 2 | F80: 49999.9 | G80: 0.8 | H80: 39999.92 | I80: Soon Hock Tuas Development Pte Ltd | J80: 33130000 | K80: 828.25 | L80: 30 | M80: State
A81: 2007-09-28 | B81: 2007-11-09 | C81: 2007-11-29 | D81: Jalan Tepong | E81: Business 2 | F81: 20867 | G81: 1.4 | H81: 29213.8 | I81: EL Development Pte Ltd | J81: 9480000 | K81: 324.5 | L81: 23 | M81: JTC
A82: 2007-09-21 | B82: 2007-11-02 | C82: 2007-11-29 | D82: L1 Commonwealth Drive/ Lane | E82: Business 1 | F82: 11175 | G82: 2.5 | H82: 27937.5 | I82: WHB Pte Ltd | J82: 51228228 | K82: 1833.67 | L82: 30 | M82: JTC
A83: 2007-09-06 | B83: 2007-10-18 | C83: 2007-11-12 | D83: L7 Pioneer Road/ Tuas Avenue 11 | E83: Business 2 | F83: 21871 | G83: 1.4 | H83: 30619.4 | I83: Soilbuild Group Holdings Ltd | J83: 12200000 | K83: 398.44 | L83: 30 | M83: JTC
A84: 2006-12-21 | B84: 2007-02-01 | C84: 2007-03-13 | D84: L1 Enterprise Road | E84: Business 2 | F84: 20122 | G84: 1.4 | H84: 28170.8 | I84: CTE Properties Pte Ltd | J84: 11400000 | K84: 404.67 | L84: 30 | M84: JTC
A85: 2006-11-17 | B85: 2006-12-28 | C85: 2007-01-24 | D85: L2 Serangoon North Avenue 4 | E85: Business 1 | F85: 9458 | G85: 1.4 | H85: 13241.2 | I85: First KNG Pte Ltd | J85: 8699000 | K85: 656.96 | L85: 60 | M85: JTC
A86: 2006-09-29 | B86: 2006-11-10 | C86: 2006-12-01 | D86: L14 Changi North Street 1 | E86: Business 2 | F86: 15000 | G86: 1 | H86: 15000 | I86: Global Orion Properties Ltd | J86: 4300228 | K86: 286.68 | L86: 30 | M86: JTC
A87: 2006-06-30 | B87: 2006-08-11 | C87: 2006-09-18 | D87: Ubi Road 2/ Ubi Avenue 3/ Ubi Avenue 4/ Ubi Link | E87: Business 1 | F87: 38577.5 | G87: 2.5 | H87: 96443.75 | I87: Sim Lian Development Pte Ltd | J87: 39999000 | K87: 414.74 | L87: 60 | M87: JTC
A88: 2006-05-16 | B88: 2006-07-04 | C88: 2006-09-18 | D88: Serangoon North Avenue 4 (end) | E88: Business 1 | F88: 29225 | G88: 2.5 | H88: 73062.5 | I88: Orion-One Development Pte Ltd | J88: 22800228 | K88: 312.06 | L88: 60 | M88: JTC
A89: 2005-09-27 | B89: 2005-11-22 | C89: 2006-01-05 | D89: Pioneer Road | E89: Business 2 | F89: 19858 | G89: 1 | H89: 19858 | I89: Soilbuild Group Holdings Ltd | J89: 3028000 | K89: 152.48 | L89: 30 | M89: JTC
A90: 2005-02-17 | B90: 2005-04-12 | C90: 2005-04-15 | D90: Penjuru Road | E90: Business 2 | F90: 20000 | G90: 1 | H90: 20000 | I90: Stagis Pte Ltd | J90: 5300000 | K90: 265 | L90: 30 | M90: JTC

Sheet As at 29 12 2014
A1: Date of Launch | B1: Date of Tender Closing | C1: Date of Award | D1: Location | E1: Type of Development Allowed | F1: Site Area (m2) | G1: Plot Ratio | H1: Maximum Permissible Gross Floor Area (GFA) (m2) | I1: Name of Successful Tenderer | J1: Successful Tender Price | K1: Price Psm Per Gross Plot Ratio | L1: Lease (Years) | M1: Land Owner
A2: 2014-09-29 | B2: 2014-11-24 | C2: 2014-12-23 | D2: Plot 50, Tuas South Street 9 | E2: Business 2 | F2: 8369 | G2: 1 | H2: =F2*G2 -> 8369 | I2: Prospaq Group Pte Ltd | J2: 6878000 | K2: =J2/H2 -> 821.842514 | L2: 20 years 8 months | M2: JTC
A3: 2014-09-29 | B3: 2014-11-24 | C3: 2014-12-23 | D3: Plot 1, Tampines North Drive 1 | E3: Business 2 | F3: 27395.2 | G3: 2.5 | H3: =F3*G3 -> 68488 | I3: Goldprime Land Pte Ltd | J3: 64388888 | K3: =J3/H3 -> 940.148464 | L3: 30 | M3: State
A4: 2014-09-16 | B4: 2014-10-28 | C4: 2014-11-27 | D4: Plot 41, Tuas South Street 11 | E4: Business 2 | F4: 9000 | G4: 1 | H4: =F4*G4 -> 9000 | I4: Jian Man Construction Pte Ltd | J4: 7510000 | K4: =J4/H4 -> 834.4444444 | L4: 20 years 10 months | M4: State
A5: 2014-08-26 | B5: 2014-10-21 | C5: 2014-11-21 | D5: Plot 48, Tuas South Street 9 | E5: Business 2 | F5: 8369 | G5: 1 | H5: =F5*G5 -> 8369 | I5: New Hope Singapore Pte Ltd | J5: 6963008 | K5: =J5/H5 -> 832 | L5: 20 years 9 months | M5: JTC
A6: 2014-07-29 | B6: 2014-09-09 | C6: 2014-10-23 | D6: Plot 44, Tuas South Street 7 | E6: Business 2 | F6: 5038.6 | G6: 1 | H6: =F6*G6 -> 5038.6 | I6: IG Tuas Pte Ltd | J6: 5201000 | K6: =J6/H6 -> 1032.231175 | L6: 20 years 10 months | M6: State
A7: 2014-06-24 | B7: 2014-08-26 | C7: 2014-10-09 | D7: Plot 12, Off Tuas South Avenue 7 | E7: Business 2 | F7: 25700 | G7: 2 | H7: 51400 | I7: Hock Lian Seng Holdings Limited | J7: 30988000 | K7: 602.8793774 | L7: 30 | M7: JTC
A8: 2014-04-29 | B8: 2014-07-01 | C8: 2014-07-24 | D8: Tuas Avenue 11 | E8: Business 2 | F8: 8922 | G8: 1.4 | H8: 12490.8 | I8: Soon Hock Realty Pte Ltd | J8: 14388000 | K8: 1151.887789 | L8: 30 | M8: JTC
A9: 2014-04-29 | B9: 2014-07-01 | C9: 2014-07-24 | D9: Plot 39, Tuas South Street 11 | E9: Business 2 | F9: 10000 | G9: 1 | H9: 10000 | I9: Tiong Aik Construction Pte Ltd | J9: 8073000 | K9: 807.3 | L9: 20 years 10 months | M9: JTC
A10: 2014-03-25 | B10: 2014-05-06 | C10: 2014-06-02 | D10: Plot 49, Tuas South Street 9 | E10: Business 2 | F10: 8369 | G10: 1 | H10: 8369 | I10: Pan Marine Blasting Abrasives Pte Ltd | J10: 5925252 | K10: 708 | L10: 21 years 2 months | M10: JTC
A11: 2014-03-25 | B11: 2014-05-06 | C11: 2014-06-02 | D11: Plot 51, Tuas South Street 9 | E11: Business 2 | F11: 8369 | G11: 1 | H11: 8369 | I11: Asiagroup Leasing Pte Ltd | J11: 5948000 | K11: 710.7181264 | L11: 21 years 2 months | M11: JTC
A12: 2014-02-25 | B12: 2014-04-08 | C12: 2014-04-29 | D12: Plot 45, Tuas South Street 6 | E12: Business 2 | F12: 6988 | G12: 1 | H12: 6988 | I12: SH Design & Build Pte Ltd | J12: 5278000 | K12: 755.2947911 | L12: 21 years 3 months | M12: JTC
A13: 2014-02-25 | B13: 2014-04-08 | C13: 2014-04-29 | D13: Plot 47, Tuas South Street 6 | E13: Business 2 | F13: 6988 | G13: 1 | H13: 6988 | I13: Soon Hock Investment Group Pte Ltd | J13: 5115000 | K13: 731.9690899 | L13: 21 years 3 months | M13: JTC
A14: 2013-12-27 | B14: 2014-02-07 | C14: 2014-04-14 | D14: Plot 6, Tuas South Street 6 | E14: Business 2 | F14: 4551.4 | G14: 1 | H14: 4551.4 | I14: H P Construction & Engineering Pte Ltd | J14: 4100000 | K14: 900.8217252 | L14: 21 years 5 months | M14: State
A15: 2013-12-27 | B15: 2014-02-07 | C15: 2014-04-14 | D15: Plot 34, Tuas South Street 13 | E15: Business 2 | F15: 7447.4 | G15: 1 | H15: 7447.4 | I15: Evan Lim & Co. Pte. Ltd. | J15: 4850000 | K15: 651.2339877 | L15: 21 years 5 months | M15: State
A16: 2013-12-27 | B16: 2014-02-07 | C16: 2014-04-14 | D16: Plot 35, Tuas South Street 11 | E16: Business 2 | F16: 7432.1 | G16: 1 | H16: 7432.1 | I16: Toko Tan Equipment Pte Ltd | J16: 4293524.17 | K16: 577.7 | L16: 21 years 5 months | M16: State
A17: 2013-12-27 | B17: 2014-02-07 | C17: 2014-04-14 | D17: Plot 38, Tuas South Street 13 | E17: Business 2 | F17: 7176.5 | G17: 1 | H17: 7176.5 | I17: AEI (China) Holdings Pte. Ltd | J17: 5038888 | K17: 702.1372535 | L17: 21 years 5 months | M17: State
A18: 2013-11-29 | B18: 2014-01-10 | C18: 2014-03-10 | D18: Plot 33, Tuas South Street 11 | E18: Business 2 | F18: 7432.1 | G18: 1 | H18: 7432.1 | I18: United Hudson Investment Pte Ltd | J18: 4808000 | K18: 646.92 | L18: 21 years 6 months | M18: State
A19: 2013-11-29 | B19: 2014-01-10 | C19: 2014-03-10 | D19: Plot 36, Tuas South Street 13 | E19: Business 2 | F19: 7431.7 | G19: 1 | H19: 7431.7 | I19: Quek & Quek Civil Engineering Pte Ltd | J19: 7431700 | K19: 1000 | L19: 21 years 6 months | M19: State
A20: 2013-11-29 | B20: 2014-01-10 | C20: 2014-03-10 | D20: Plot 37, Tuas South Street 11 | E20: Business 2 | F20: 7177 | G20: 1 | H20: 7177 | I20: United Hudson Investment Pte Ltd | J20: 5029200 | K20: 700.74 | L20: 21 years 6 months | M20: State
A21: 2013-11-29 | B21: 2014-01-10 | C21: 2014-03-10 | D21: Woodlands Industrial Park E9 | E21: Business 2 (with an integrated Heavy Vehicle Park) | F21: 18394.1 | G21: 2.5 | H21: 45985.25 | I21: Vantage Properties Pte Ltd | J21: 56180000 | K21: 1221.7 | L21: 30 | M21: State
A22: 2013-10-31 | B22: 2013-12-12 | C22: 2014-01-28 | D22: Plot 20, Tuas South Street 10 | E22: Business 2 | F22: 3036.2 | G22: 1 | H22: 3036.2 | I22: The Hi-Fi Company Pte Ltd | J22: 3104759 | K22: 1022.58 | L22: 21 years 7 months | M22: State
A23: 2013-10-31 | B23: 2013-12-12 | C23: 2014-01-28 | D23: Plot 22, Tuas South Street 10 | E23: Business 2 | F23: 3036 | G23: 1 | H23: 3036 | I23: Brown Metal Engineering Pte Ltd | J23: 3235320 | K23: 1065.65 | L23: 21 years 7 months | M23: State
A24: 2013-10-31 | B24: 2013-12-12 | C24: 2014-01-28 | D24: Plot 24, Tuas South Street 10 | E24: Business 2 | F24: 4551.2 | G24: 1 | H24: 4551.2 | I24: E C Builders Pte Ltd | J24: 4600000 | K24: 1010.72 | L24: 21 years 7 months | M24: State
A25: 2013-09-27 | B25: 2013-11-22 | C25: 2013-12-20 | D25: Tai Seng Street | E25: Business 2 - White | F25: 11,780.0 (Principal Site) | G25: 3.5 (B1-2.5 W-1.0) | H25: =11780*3.5 -> 41230 | I25: Mapletree Trustee Pte Ltd | J25: 120078500 | K25: 2912.41 | L25: 30 | M25: JTC
A26: 2013-09-27 | B26: 2013-11-08 | C26: 2013-12-06 | D26: Plot 2, Tuas South Street 6 | E26: Business 2 | F26: 3036.6 | G26: 1 | H26: =F26*G26 -> 3036.6 | I26: Tiong Lee Huat Machinery & Construction Pte Ltd | J26: 3000000 | K26: 987.95 | L26: 21 years 8 months | M26: State
A27: 2013-09-27 | B27: 2013-11-08 | C27: 2013-12-06 | D27: Plot 29, Tuas South Street 7 | E27: Business 2 | F27: 5033.1 | G27: 1 | H27: 5033.1 | I27: Poh Meng Trading & Cleaning Services Pte Ltd | J27: 4991272.91 | K27: 991.69 | L27: 21 years 8 months | M27: State
A28: 2013-08-29 | B28: 2013-10-10 | C28: 2013-11-08 | D28: Plot 4, Tuas South Street 6 | E28: Business 2 | F28: 3036.7 | G28: 1 | H28: 3036.7 | I28: Derman Aluminum (S) Pte Ltd | J28: 2880917 | K28: 948.7 | L28: 21 years 9 months | M28: State
A29: 2013-08-29 | B29: 2013-10-10 | C29: 2013-11-08 | D29: Plot 28, Tuas South Street 7 | E29: Business 2 | F29: 5047.4 | G29: 1 | H29: 5047.4 | I29: Reclaims Enterprise Pte Ltd | J29: 5330054.4 | K29: 1056 | L29: 21 years 9 months | M29: State
A30: 2013-06-26 | B30: 2013-08-07 | C30: 2013-09-06 | D30: Tuas South Avenue 3 | E30: Business 2 | F30: 39578.5 | G30: 1.4 | H30: 55409.9 | I30: Grow-Tech Properties Pte Ltd | J30: 66777000 | K30: 1205.15 | L30: 30 | M30: State
A31: 2013-06-26 | B31: 2013-08-07 | C31: 2013-09-06 | D31: Plot 19, Tuas South Street 10 | E31: Business 2 | F31: 4526.7 | G31: 1 | H31: 4526.7 | I31: Kian Hock Engineering Pte Ltd | J31: 4485131.29 | K31: 990.82 | L31: 21 years 11 months | M31: State
A32: 2013-06-26 | B32: 2013-08-07 | C32: 2013-09-06 | D32: Plot 21, Tuas South Street 10 | E32: Business 2 | F32: 3035.8 | G32: 1 | H32: 3035.8 | I32: SWHL Pte Ltd | J32: 2783640 | K32: 916.94 | L32: 21 years 11 months | M32: State
A33: 2013-06-26 | B33: 2013-08-07 | C33: 2013-09-06 | D33: Plot 23, Tuas South Street 10 | E33: Business 2 | F33: 3036 | G33: 1 | H33: 3036 | I33: Jay Machinery Pte Ltd | J33: 2680000 | K33: 882.74 | L33: 21 years 11 months | M33: State
A34: 2013-05-31 | B34: 2013-07-12 | C34: 2013-07-31 | D34: Mandai Link | E34: Business 2 (Food only) | F34: 6891.2 | G34: 2.5 | H34: 17228 | I34: Wealth Property Pte Ltd | J34: 21308888 | K34: 1236.88 | L34: 30 | M34: JTC
A35: 2013-04-30 | B35: 2013-06-11 | C35: 2013-07-09 | D35: Plot 1, Tuas South Street 6 | E35: Business 2 | F35: 4550.9 | G35: 1 | H35: =F35*G35 -> 4550.9 | I35: S.H. Stainless Steel Contractor Pte Ltd | J35: 4208000 | K35: 924.65 | L35: 22 years 1 month | M35: State
A36: 2013-04-30 | B36: 2013-06-11 | C36: 2013-07-09 | D36: Plot 3, Tuas South Street 6 | E36: Business 2 | F36: 3036.2 | G36: 1 | H36: =F36*G36 -> 3036.2 | I36: Stallion Development Pte Ltd | J36: 2600000 | K36: 856.33 | L36: 22 years 1 month | M36: State
A37: 2013-04-30 | B37: 2013-06-11 | C37: 2013-07-09 | D37: Plot 5, Tuas South Street 6 | E37: Business 2 | F37: 3035.8 | G37: 1 | H37: =F37*G37 -> 3035.8 | I37: Jin Choon Civil Engineering Pte Ltd | J37: 2490340 | K37: 820.32 | L37: 22 years 1 month | M37: State
A38: 2013-03-28 | B38: 2013-05-09 | C38: 2013-06-07 | D38: Loyang Way | E38: Business 2 | F38: 20633 | G38: 2.5 | H38: =F38*G38 -> 51582.5 | I38: OKH Global Ltd | J38: 61636000 | K38: 1194.9 | L38: 30 | M38: JTC
A39: 2013-02-28 | B39: 2013-04-11 | C39: 2013-05-10 | D39: Tuas Bay Close | E39: Business 2 | F39: 24971 | G39: 1.7 | H39: =F39*G39 -> 42450.7 | I39: Zacd Investments Pte Ltd, Bohai Investments (Sengkang) Pte Ltd | J39: 37100000 | K39: 873.95 | L39: 30 | M39: JTC
A40: 2013-01-31 | B40: 2013-03-28 | C40: 2013-04-23 | D40: Tuas Bay Walk | E40: Business 2 (Food only) | F40: 5808 | G40: 1.7 | H40: 9873.6 | I40: Yee Lee Development Pte Ltd | J40: 8988000 | K40: 910.31 | L40: 30 | M40: JTC
A41: 2013-01-31 | B41: 2013-03-28 | C41: 2013-04-23 | D41: Buroh Crescent | E41: Business 2 | F41: 17681 | G41: 2.5 | H41: 44202.5 | I41: OKH Holdings Pte Ltd | J41: 39017000 | K41: 882.69 | L41: 30 | M41: JTC
A42: 2012-12-27 | B42: 2013-02-07 | C42: 2013-03-21 | D42: Tuas South Avenue 10 | E42: Business 2 | F42: 39616 | G42: 1.4 | H42: 55462.4 | I42: Soon Hock Group Pte Ltd | J42: 60999000 | K42: 1099.83 | L42: 30 | M42: State
A43: 2012-12-27 | B43: 2013-02-07 | C43: 2013-03-21 | D43: Plot 10, Tuas South Street 8 | E43: Business 2 | F43: 3035.6 | G43: 1 | H43: 3035.6 | I43: Boilermaster Holdings Pte Ltd | J43: 2400000 | K43: 790.62 | L43: 22 years 5 months | M43: State
A44: 2012-12-27 | B44: 2013-02-07 | C44: 2013-03-11 | D44: Ubi Avenue 4 | E44: Business 1 | F44: 3503.5 | G44: 2.5 | H44: 8758.75 | I44: BP-Ubi Industrial Pte Ltd | J44: 16216020 | K44: 1851.41 | L44: 30 | M44: JTC
A45: 2012-11-20 | B45: 2013-01-02 | C45: 2013-02-01 | D45: Plot 30, Tuas South Street 6 | E45: Business 2 | F45: 8597.4 | G45: 1 | H45: 8597.4 | I45: Koh Brothers Building & Civil Engineering Contractor (Pte) Ltd | J45: 6570000 | K45: 764.1845209 | L45: 22 years 6 months | M45: State
A46: 2012-11-20 | B46: 2013-01-02 | C46: 2013-02-01 | D46: Plot 32, Tuas South Street 6 | E46: Business 2 | F46: 8732.2 | G46: 1 | H46: 8732.2 | I46: SH Design & Build Pte Ltd | J46: 6650000 | K46: 761.5492087 | L46: 22 years 6 months | M46: State
A47: 2012-11-20 | B47: 2013-01-02 | C47: 2013-01-29 | D47: Buroh Street | E47: Business 2 | F47: 27400 | G47: 2.5 | H47: 68500 | I47: Capital Development Pte Ltd and ZACD Investments Pte Ltd | J47: 82100000 | K47: 1198.540146 | L47: 30 | M47: JTC
A48: 2012-10-31 | B48: 2012-12-26 | C48: 2013-01-29 | D48: Off Woodlands Avenue 10 | E48: Business 2 | F48: 10705 | G48: 2.5 | H48: 26762.5 | I48: Bohai Investments (Sengkang) Pte Ltd and Punggol Drive Investments Pte Ltd | J48: 31700000 | K48: 1184.493227 | L48: 30 | M48: JTC
A49: 2012-10-31 | B49: 2012-12-12 | C49: 2013-01-08 | D49: Plot 8, Tuas South Street 8 | E49: Business 2 | F49: 3035.6 | G49: 1 | H49: 3035.6 | I49: T.M. Transport Contractor Pte Ltd | J49: 2222200 | K49: 732.05 | L49: 22 years 7 months | M49: State
A50: 2012-10-31 | B50: 2012-12-12 | C50: 2013-01-08 | D50: Plot 18, Tuas South Street 8 | E50: Business 2 | F50: 4526.9 | G50: 1 | H50: 4526.9 | I50: LNT Coating Pte Ltd | J50: 3800001 | K50: 839.43 | L50: 22 years 7 months | M50: State
A51: 2012-09-28 | B51: 2012-11-23 | C51: 2012-12-19 | D51: Plot 14. Tuas South Street 8 | E51: Business 2 | F51: 3035.9 | G51: 1 | H51: 3035.9 | I51: Greenway Environmental Waste Management Pte Ltd | J51: 2160000 | K51: 711.49 | L51: 22 years 8 months | M51: State
A52: 2012-09-28 | B52: 2012-11-23 | C52: 2012-12-19 | D52: Plot 16, Tuas South Street 8 | E52: Business 2 | F52: 3036 | G52: 1 | H52: 3036 | I52: Chuan Heng Hardware Trading Pte Ltd | J52: 2076624 | K52: 684 | L52: 22 years 8 months | M52: State
A53: 2012-09-28 | B53: 2012-11-23 | C53: 2012-12-05 | D53: Serangoon North Avenue 5 | E53: Business 1 | F53: 7504 | G53: 2.5 | H53: 18760 | I53: Popular Warehouse and Distribution Pte Ltd | J53: 26999000 | K53: 1439.18 | L53: 30 | M53: JTC
A54: 2012-08-31 | B54: 2012-10-12 | C54: 2012-11-09 | D54: Plot 12, Tuas South Sreet 8 | E54: Business 2 | F54: 4550.7 | G54: 1 | H54: 4550.7 | I54: Teck Leong Industries Pte Ltd | J54: 3200899 | K54: 703.3861 | L54: 22 years 9 months | M54: State
A55: 2012-08-31 | B55: 2012-10-12 | C55: 2012-10-29 | D55: Sunview Road | E55: Business 2 (Clean and Light Uses) | F55: 28173 | G55: 2.5 | H55: 70432.5 | I55: Asendial Pte Ltd | J55: 76571635 | K55: 1087.16 | L55: 30 | M55: JTC
A56: 2012-07-24 | B56: 2012-09-04 | C56: 2012-10-12 | D56: Plot 26, Tuas South Street 7 | E56: Business 2 | F56: 10094.9 | G56: 1 | H56: 10094.9 | I56: 800 Super Holdings Limited | J56: 6300000 | K56: 624.08 | L56: 22 | M56: State
A57: 2012-07-24 | B57: 2012-09-04 | C57: 2012-10-12 | D57: Plot 31, Tuas South Street 6 | E57: Business 2 | F57: 8569.3 | G57: 1 | H57: 8569.3 | I57: Kwong Lee Holdings Pte Ltd | J57: 4900068 | K57: 571.82 | L57: 22 | M57: State
A58: 2012-06-29 | B58: 2012-08-24 | C58: 2012-09-10 | D58: Plot 3, Tampines Industrial Crescent | E58: Business 2 (Clean Uses Only) | F58: 38800 | G58: 1.7 | H58: =F58*G58 -> 65960 | I58: Oxley Bliss Pte Ltd | J58: 55000000 | K58: 833.84 | L58: 30 | M58: JTC
A59: 2012-06-29 | B59: 2012-08-10 | C59: 2012-08-27 | D59: Mandai Link | E59: Business 2 (Clean and Light Uses) | F59: 22366 | G59: 2.5 | H59: =F59*G59 -> 55915 | I59: Soilbuild Group Holdings Ltd | J59: 45289000 | K59: 809.96 | L59: 30 | M59: JTC
A60: 2012-06-29 | B60: 2012-08-10 | C60: 2012-09-28 | D60: Plot 13, Tuas South Street 7 | E60: Business 2 | F60: 4551.1 | G60: 1 | H60: 4551.1 | I60: Chip Eng Seng Contractors (1988) Pte Ltd | J60: 3815188 | K60: 838.3 | L60: 23 | M60: State
A61: 2012-06-29 | B61: 2012-08-10 | C61: 2012-09-28 | D61: Plot 15, Tuas South Street 8 | E61: Business 2 | F61: 3036.1 | G61: 1 | H61: 3036.1 | I61: Transco-Pac Transport & Environmental Pte Ltd | J61: 1788262.9 | K61: 589 | L61: 23 | M61: State
A62: 2012-06-29 | B62: 2012-08-10 | C62: 2012-09-28 | D62: Plot 17, Tuas South Street 7 | E62: Business 2 | F62: 3036 | G62: 1 | H62: 3036 | I62: P-One (S) Pte Ltd | J62: 1489588 | K62: 490.64 | L62: 23 | M62: State
A63: 2012-06-15 | B63: 2012-07-27 | C63: 2012-09-28 | D63: Plot 7, Tuas South Street 9 | E63: Business 2 | F63: 4551.1 | G63: 1 | H63: 4551.1 | I63: Ben Ching Engineering Pte Ltd | J63: 2310001 | K63: 507.57 | L63: 23 | M63: State
A64: 2012-06-15 | B64: 2012-07-27 | C64: 2012-09-28 | D64: Plot 9, Tuas South Street 8 | E64: Business 2 | F64: 3035.8 | G64: 1 | H64: 3035.8 | I64: Eastman Lift Trucks Pte Ltd | J64: 1449291 | K64: 477.4 | L64: 23 | M64: State
A65: 2012-06-15 | B65: 2012-07-27 | C65: 2012-09-28 | D65: Plot 11, Tuas South Street 8 | E65: Business 2 | F65: 3035.7 | G65: 1 | H65: 3035.7 | I65: Westtech Pte Ltd | J65: 1130000 | K65: 372.24 | L65: 23 | M65: State
A66: 2012-06-15 | B66: 2012-07-27 | C66: 2012-09-28 | D66: Plot 25, Tuas South Street 7 | E66: Business 2 | F66: 5738.3 | G66: 1 | H66: 5738.3 | I66: 800 Super Holdings Ltd | J66: 6000800 | K66: 1045.75 | L66: 23 | M66: State
A67: 2012-06-15 | B67: 2012-07-27 | C67: 2012-09-28 | D67: Plot 27, Tuas South Street 7 | E67: Business 2 | F67: 5047.6 | G67: 1 | H67: 5047.6 | I67: 800 Super Holdings Ltd | J67: 3500800 | K67: 693.56 | L67: 23 | M67: State
A68: 2012-04-24 | B68: 2012-06-19 | C68: 2012-07-13 | D68: Tai Seng Link | E68: Business 2 (Clean and Light Uses) | F68: 4336 | G68: 2.5 | H68: =F68*G68 -> 10840 | I68: OKH (Woodlands) Pte Ltd | J68: 23300000 | K68: 2149.45 | L68: 30 | M68: JTC
A69: 2012-01-31 | B69: 2012-03-13 | C69: 2012-04-04 | D69: Serangoon North Avenue 4 (Parcel 1) | E69: Business 1 | F69: 8076 | G69: 2.5 | H69: 20190 | I69: Soon Hock Property Development Pte Ltd | J69: 47088999 | K69: 2332.29 | L69: 58 | M69: JTC
A70: 2011-08-31 | B70: 2011-10-27 | C70: 2011-11-28 | D70: Lavender Street/ Kallang Avenue | E70: Business 1 - White | F70: 28348 | G70: 3.0 (B1-2.5 W-0.5) | H70: 85044 | I70: PLC 8 Development Pte Ltd | J70: 218300000 | K70: 2566.91 | L70: 60 | M70: JTC
A71: 2011-03-25 | B71: 2011-05-20 | C71: 2011-06-08 | D71: Fusionopolis Link, Fusionopolis Phase 3 | E71: Business Park - White 40% (Office) | F71: 6253 | G71: 4 | H71: 25012 | I71: Ascendas Real Estate Investment Trust | J71: 110000000 | K71: 4397.89 | L71: 60 | M71: JTC
A72: 2011-01-24 | B72: 2011-03-07 | C72: 2011-03-15 | D72: Ubi Road 1/ Ubi Avenue 4 | E72: Business 1 | F72: 12378 | G72: 2.5 | H72: 30945 | I72: Oxley Ascend Realty Pte Ltd | J72: 72200000 | K72: 2333.17 | L72: 60 | M72: JTC
A73: 2010-10-29 | B73: 2010-12-10 | C73: 2011-01-17 | D73: Old Toh Tuck Road/ Toh Tuck Avenue | E73: Business 2 | F73: 10083 | G73: 1.6 | H73: 16132.8 | I73: Incorporated Builders Pte Ltd | J73: 8700000 | K73: 539.27 | L73: 30 | M73: JTC
A74: 2010-08-20 | B74: 2010-10-18 | C74: 2010-11-04 | D74: Yishun Street 23/ Yishun Avenue 9 | E74: Business 2 | F74: 46546.9 | G74: 2.5 | H74: 116367.25 | I74: Soilbuild Group Holdings Ltd | J74: 64011800 | K74: 550.08 | L74: 60 | M74: State
A75: 2010-03-31 | B75: 2010-05-12 | C75: 2010-06-01 | D75: Tampines Industrial Avenue 4 | E75: Business 2 | F75: 49999.9 | G75: 0.8 | H75: 39999.92 | I75: Soon Hock Tuas Development Pte Ltd | J75: 33130000 | K75: 828.25 | L75: 30 | M75: State
A76: 2007-09-28 | B76: 2007-11-09 | C76: 2007-11-29 | D76: Jalan Tepong | E76: Business 2 | F76: 20867 | G76: 1.4 | H76: 29213.8 | I76: EL Development Pte Ltd | J76: 9480000 | K76: 324.5 | L76: 23 | M76: JTC
A77: 2007-09-21 | B77: 2007-11-02 | C77: 2007-11-29 | D77: L1 Commonwealth Drive/ Lane | E77: Business 1 | F77: 11175 | G77: 2.5 | H77: 27937.5 | I77: WHB Pte Ltd | J77: 51228228 | K77: 1833.67 | L77: 30 | M77: JTC
A78: 2007-09-06 | B78: 2007-10-18 | C78: 2007-11-12 | D78: L7 Pioneer Road/ Tuas Avenue 11 | E78: Business 2 | F78: 21871 | G78: 1.4 | H78: 30619.4 | I78: Soilbuild Group Holdings Ltd | J78: 12200000 | K78: 398.44 | L78: 30 | M78: JTC
A79: 2006-12-21 | B79: 2007-02-01 | C79: 2007-03-13 | D79: L1 Enterprise Road | E79: Business 2 | F79: 20122 | G79: 1.4 | H79: 28170.8 | I79: CTE Properties Pte Ltd | J79: 11400000 | K79: 404.67 | L79: 30 | M79: JTC
A80: 2006-11-17 | B80: 2006-12-28 | C80: 2007-01-24 | D80: L2 Serangoon North Avenue 4 | E80: Business 1 | F80: 9458 | G80: 1.4 | H80: 13241.2 | I80: First KNG Pte Ltd | J80: 8699000 | K80: 656.96 | L80: 60 | M80: JTC
A81: 2006-09-29 | B81: 2006-11-10 | C81: 2006-12-01 | D81: L14 Changi North Street 1 | E81: Business 2 | F81: 15000 | G81: 1 | H81: 15000 | I81: Global Orion Properties Ltd | J81: 4300228 | K81: 286.68 | L81: 30 | M81: JTC
A82: 2006-06-30 | B82: 2006-08-11 | C82: 2006-09-18 | D82: Ubi Road 2/ Ubi Avenue 3/ Ubi Avenue 4/ Ubi Link | E82: Business 1 | F82: 38577.5 | G82: 2.5 | H82: 96443.75 | I82: Sim Lian Development Pte Ltd | J82: 39999000 | K82: 414.74 | L82: 60 | M82: JTC
A83: 2006-05-16 | B83: 2006-07-04 | C83: 2006-09-18 | D83: Serangoon North Avenue 4 (end) | E83: Business 1 | F83: 29225 | G83: 2.5 | H83: 73062.5 | I83: Orion-One Development Pte Ltd | J83: 22800228 | K83: 312.06 | L83: 60 | M83: JTC
A84: 2005-09-27 | B84: 2005-11-22 | C84: 2006-01-05 | D84: Pioneer Road | E84: Business 2 | F84: 19858 | G84: 1 | H84: 19858 | I84: Soilbuild Group Holdings Ltd | J84: 3028000 | K84: 152.48 | L84: 30 | M84: JTC
A85: 2005-02-17 | B85: 2005-04-12 | C85: 2005-04-15 | D85: Penjuru Road | E85: Business 2 | F85: 20000 | G85: 1 | H85: 20000 | I85: Stagis Pte Ltd | J85: 5300000 | K85: 265 | L85: 30 | M85: JTC
A87: Please click here for Press Releases on recent Industrial Government Land Sales sites sold by JTC.

Sheet As at 01 12 2014
A1: Date of Launch | B1: Date of Tender Closing | C1: Date of Award | D1: Location | E1: Type of Development Allowed | F1: Site Area (m2) | G1: Plot Ratio | H1: Maximum Permissible Gross Floor Area (GFA) (m2) | I1: Name of Successful Tenderer | J1: Successful Tender Price | K1: Price Psm Per Gross Plot Ratio | L1: Lease (Years) | M1: Land Owner
A2: 2014-09-16 | B2: 2014-10-28 | C2: 2014-11-27 | D2: Plot 41, Tuas South Street 11 | E2: Business 2 | F2: 9000 | G2: 1 | H2: =F2*G2 -> 9000 | I2: Jian Man Construction Pte Ltd | J2: 7510000 | K2: =J2/H2 -> 834.4444444 | L2: 20 years 10 months | M2: State
A3: 2014-08-26 | B3: 2014-10-21 | C3: 2014-11-21 | D3: Plot 48, Tuas South Street 9 | E3: Business 2 | F3: 8369 | G3: 1 | H3: =F3*G3 -> 8369 | I3: New Hope Singapore Pte Ltd | J3: 6963008 | K3: =J3/H3 -> 832 | L3: 20 years 9 months | M3: JTC
A4: 2014-07-29 | B4: 2014-09-09 | C4: 2014-10-23 | D4: Plot 44, Tuas South Street 7 | E4: Business 2 | F4: 5038.6 | G4: 1 | H4: =F4*G4 -> 5038.6 | I4: IG Tuas Pte Ltd | J4: 5201000 | K4: =J4/H4 -> 1032.231175 | L4: 20 years 10 months | M4: State
A5: 2014-06-24 | B5: 2014-08-26 | C5: 2014-10-09 | D5: Plot 12, Off Tuas South Avenue 7 | E5: Business 2 | F5: 25700 | G5: 2 | H5: 51400 | I5: Hock Lian Seng Holdings Limited | J5: 30988000 | K5: 602.8793774 | L5: 30 | M5: JTC
A6: 2014-04-29 | B6: 2014-07-01 | C6: 2014-07-24 | D6: Tuas Avenue 11 | E6: Business 2 | F6: 8922 | G6: 1.4 | H6: 12490.8 | I6: Soon Hock Realty Pte Ltd | J6: 14388000 | K6: 1151.887789 | L6: 30 | M6: JTC
A7: 2014-04-29 | B7: 2014-07-01 | C7: 2014-07-24 | D7: Plot 39, Tuas South Street 11 | E7: Business 2 | F7: 10000 | G7: 1 | H7: 10000 | I7: Tiong Aik Construction Pte Ltd | J7: 8073000 | K7: 807.3 | L7: 20 years 10 months | M7: JTC
A8: 2014-03-25 | B8: 2014-05-06 | C8: 2014-06-02 | D8: Plot 49, Tuas South Street 9 | E8: Business 2 | F8: 8369 | G8: 1 | H8: 8369 | I8: Pan Marine Blasting Abrasives Pte Ltd | J8: 5925252 | K8: 708 | L8: 21 years 2 months | M8: JTC
A9: 2014-03-25 | B9: 2014-05-06 | C9: 2014-06-02 | D9: Plot 51, Tuas South Street 9 | E9: Business 2 | F9: 8369 | G9: 1 | H9: 8369 | I9: Asiagroup Leasing Pte Ltd | J9: 5948000 | K9: 710.7181264 | L9: 21 years 2 months | M9: JTC
A10: 2014-02-25 | B10: 2014-04-08 | C10: 2014-04-29 | D10: Plot 45, Tuas South Street 6 | E10: Business 2 | F10: 6988 | G10: 1 | H10: 6988 | I10: SH Design & Build Pte Ltd | J10: 5278000 | K10: 755.2947911 | L10: 21 years 3 months | M10: JTC
A11: 2014-02-25 | B11: 2014-04-08 | C11: 2014-04-29 | D11: Plot 47, Tuas South Street 6 | E11: Business 2 | F11: 6988 | G11: 1 | H11: 6988 | I11: Soon Hock Investment Group Pte Ltd | J11: 5115000 | K11: 731.9690899 | L11: 21 years 3 months | M11: JTC
A12: 2013-12-27 | B12: 2014-02-07 | C12: 2014-04-14 | D12: Plot 6, Tuas South Street 6 | E12: Business 2 | F12: 4551.4 | G12: 1 | H12: 4551.4 | I12: H P Construction & Engineering Pte Ltd | J12: 4100000 | K12: 900.8217252 | L12: 21 years 5 months | M12: State
A13: 2013-12-27 | B13: 2014-02-07 | C13: 2014-04-14 | D13: Plot 34, Tuas South Street 13 | E13: Business 2 | F13: 7447.4 | G13: 1 | H13: 7447.4 | I13: Evan Lim & Co. Pte. Ltd. | J13: 4850000 | K13: 651.2339877 | L13: 21 years 5 months | M13: State
A14: 2013-12-27 | B14: 2014-02-07 | C14: 2014-04-14 | D14: Plot 35, Tuas South Street 11 | E14: Business 2 | F14: 7432.1 | G14: 1 | H14: 7432.1 | I14: Toko Tan Equipment Pte Ltd | J14: 4293524.17 | K14: 577.7 | L14: 21 years 5 months | M14: State
A15: 2013-12-27 | B15: 2014-02-07 | C15: 2014-04-14 | D15: Plot 38, Tuas South Street 13 | E15: Business 2 | F15: 7176.5 | G15: 1 | H15: 7176.5 | I15: AEI (China) Holdings Pte. Ltd | J15: 5038888 | K15: 702.1372535 | L15: 21 years 5 months | M15: State
A16: 2013-11-29 | B16: 2014-01-10 | C16: 2014-03-10 | D16: Plot 33, Tuas South Street 11 | E16: Business 2 | F16: 7432.1 | G16: 1 | H16: 7432.1 | I16: United Hudson Investment Pte Ltd | J16: 4808000 | K16: 646.92 | L16: 21 years 6 months | M16: State
A17: 2013-11-29 | B17: 2014-01-10 | C17: 2014-03-10 | D17: Plot 36, Tuas South Street 13 | E17: Business 2 | F17: 7431.7 | G17: 1 | H17: 7431.7 | I17: Quek & Quek Civil Engineering Pte Ltd | J17: 7431700 | K17: 1000 | L17: 21 years 6 months | M17: State
A18: 2013-11-29 | B18: 2014-01-10 | C18: 2014-03-10 | D18: Plot 37, Tuas South Street 11 | E18: Business 2 | F18: 7177 | G18: 1 | H18: 7177 | I18: United Hudson Investment Pte Ltd | J18: 5029200 | K18: 700.74 | L18: 21 years 6 months | M18: State
A19: 2013-11-29 | B19: 2014-01-10 | C19: 2014-03-10 | D19: Woodlands Industrial Park E9 | E19: Business 2 (with an integrated Heavy Vehicle Park) | F19: 18394.1 | G19: 2.5 | H19: 45985.25 | I19: Vantage Properties Pte Ltd | J19: 56180000 | K19: 1221.7 | L19: 30 | M19: State
A20: 2013-10-31 | B20: 2013-12-12 | C20: 2014-01-28 | D20: Plot 20, Tuas South Street 10 | E20: Business 2 | F20: 3036.2 | G20: 1 | H20: 3036.2 | I20: The Hi-Fi Company Pte Ltd | J20: 3104759 | K20: 1022.58 | L20: 21 years 7 months | M20: State
A21: 2013-10-31 | B21: 2013-12-12 | C21: 2014-01-28 | D21: Plot 22, Tuas South Street 10 | E21: Business 2 | F21: 3036 | G21: 1 | H21: 3036 | I21: Brown Metal Engineering Pte Ltd | J21: 3235320 | K21: 1065.65 | L21: 21 years 7 months | M21: State
A22: 2013-10-31 | B22: 2013-12-12 | C22: 2014-01-28 | D22: Plot 24, Tuas South Street 10 | E22: Business 2 | F22: 4551.2 | G22: 1 | H22: 4551.2 | I22: E C Builders Pte Ltd | J22: 4600000 | K22: 1010.72 | L22: 21 years 7 months | M22: State
A23: 2013-09-27 | B23: 2013-11-22 | C23: 2013-12-20 | D23: Tai Seng Street | E23: Business 2 - White | F23: 11,780.0 (Principal Site) | G23: 3.5 (B1-2.5 W-1.0) | H23: =11780*3.5 -> 41230 | I23: Mapletree Trustee Pte Ltd | J23: 120078500 | K23: 2912.41 | L23: 30 | M23: JTC
A24: 2013-09-27 | B24: 2013-11-08 | C24: 2013-12-06 | D24: Plot 2, Tuas South Street 6 | E24: Business 2 | F24: 3036.6 | G24: 1 | H24: =F24*G24 -> 3036.6 | I24: Tiong Lee Huat Machinery & Construction Pte Ltd | J24: 3000000 | K24: 987.95 | L24: 21 years 8 months | M24: State
A25: 2013-09-27 | B25: 2013-11-08 | C25: 2013-12-06 | D25: Plot 29, Tuas South Street 7 | E25: Business 2 | F25: 5033.1 | G25: 1 | H25: 5033.1 | I25: Poh Meng Trading & Cleaning Services Pte Ltd | J25: 4991272.91 | K25: 991.69 | L25: 21 years 8 months | M25: State
A26: 2013-08-29 | B26: 2013-10-10 | C26: 2013-11-08 | D26: Plot 4, Tuas South Street 6 | E26: Business 2 | F26: 3036.7 | G26: 1 | H26: 3036.7 | I26: Derman Aluminum (S) Pte Ltd | J26: 2880917 | K26: 948.7 | L26: 21 years 9 months | M26: State
A27: 2013-08-29 | B27: 2013-10-10 | C27: 2013-11-08 | D27: Plot 28, Tuas South Street 7 | E27: Business 2 | F27: 5047.4 | G27: 1 | H27: 5047.4 | I27: Reclaims Enterprise Pte Ltd | J27: 5330054.4 | K27: 1056 | L27: 21 years 9 months | M27: State
A28: 2013-06-26 | B28: 2013-08-07 | C28: 2013-09-06 | D28: Tuas South Avenue 3 | E28: Business 2 | F28: 39578.5 | G28: 1.4 | H28: 55409.9 | I28: Grow-Tech Properties Pte Ltd | J28: 66777000 | K28: 1205.15 | L28: 30 | M28: State
A29: 2013-06-26 | B29: 2013-08-07 | C29: 2013-09-06 | D29: Plot 19, Tuas South Street 10 | E29: Business 2 | F29: 4526.7 | G29: 1 | H29: 4526.7 | I29: Kian Hock Engineering Pte Ltd | J29: 4485131.29 | K29: 990.82 | L29: 21 years 11 months | M29: State
A30: 2013-06-26 | B30: 2013-08-07 | C30: 2013-09-06 | D30: Plot 21, Tuas South Street 10 | E30: Business 2 | F30: 3035.8 | G30: 1 | H30: 3035.8 | I30: SWHL Pte Ltd | J30: 2783640 | K30: 916.94 | L30: 21 years 11 months | M30: State
A31: 2013-06-26 | B31: 2013-08-07 | C31: 2013-09-06 | D31: Plot 23, Tuas South Street 10 | E31: Business 2 | F31: 3036 | G31: 1 | H31: 3036 | I31: Jay Machinery Pte Ltd | J31: 2680000 | K31: 882.74 | L31: 21 years 11 months | M31: State
A32: 2013-05-31 | B32: 2013-07-12 | C32: 2013-07-31 | D32: Mandai Link | E32: Business 2 (Food only) | F32: 6891.2 | G32: 2.5 | H32: 17228 | I32: Wealth Property Pte Ltd | J32: 21308888 | K32: 1236.88 | L32: 30 | M32: JTC
A33: 2013-04-30 | B33: 2013-06-11 | C33: 2013-07-09 | D33: Plot 1, Tuas South Street 6 | E33: Business 2 | F33: 4550.9 | G33: 1 | H33: =F33*G33 -> 4550.9 | I33: S.H. Stainless Steel Contractor Pte Ltd | J33: 4208000 | K33: 924.65 | L33: 22 years 1 month | M33: State
A34: 2013-04-30 | B34: 2013-06-11 | C34: 2013-07-09 | D34: Plot 3, Tuas South Street 6 | E34: Business 2 | F34: 3036.2 | G34: 1 | H34: =F34*G34 -> 3036.2 | I34: Stallion Development Pte Ltd | J34: 2600000 | K34: 856.33 | L34: 22 years 1 month | M34: State
A35: 2013-04-30 | B35: 2013-06-11 | C35: 2013-07-09 | D35: Plot 5, Tuas South Street 6 | E35: Business 2 | F35: 3035.8 | G35: 1 | H35: =F35*G35 -> 3035.8 | I35: Jin Choon Civil Engineering Pte Ltd | J35: 2490340 | K35: 820.32 | L35: 22 years 1 month | M35: State
A36: 2013-03-28 | B36: 2013-05-09 | C36: 2013-06-07 | D36: Loyang Way | E36: Business 2 | F36: 20633 | G36: 2.5 | H36: =F36*G36 -> 51582.5 | I36: OKH Global Ltd | J36: 61636000 | K36: 1194.9 | L36: 30 | M36: JTC
A37: 2013-02-28 | B37: 2013-04-11 | C37: 2013-05-10 | D37: Tuas Bay Close | E37: Business 2 | F37: 24971 | G37: 1.7 | H37: =F37*G37 -> 42450.7 | I37: Zacd Investments Pte Ltd, Bohai Investments (Sengkang) Pte Ltd | J37: 37100000 | K37: 873.95 | L37: 30 | M37: JTC
A38: 2013-01-31 | B38: 2013-03-28 | C38: 2013-04-23 | D38: Tuas Bay Walk | E38: Business 2 (Food only) | F38: 5808 | G38: 1.7 | H38: 9873.6 | I38: Yee Lee Development Pte Ltd | J38: 8988000 | K38: 910.31 | L38: 30 | M38: JTC
A39: 2013-01-31 | B39: 2013-03-28 | C39: 2013-04-23 | D39: Buroh Crescent | E39: Business 2 | F39: 17681 | G39: 2.5 | H39: 44202.5 | I39: OKH Holdings Pte Ltd | J39: 39017000 | K39: 882.69 | L39: 30 | M39: JTC
A40: 2012-12-27 | B40: 2013-02-07 | C40: 2013-03-21 | D40: Tuas South Avenue 10 | E40: Business 2 | F40: 39616 | G40: 1.4 | H40: 55462.4 | I40: Soon Hock Group Pte Ltd | J40: 60999000 | K40: 1099.83 | L40: 30 | M40: State
A41: 2012-12-27 | B41: 2013-02-07 | C41: 2013-03-21 | D41: Plot 10, Tuas South Street 8 | E41: Business 2 | F41: 3035.6 | G41: 1 | H41: 3035.6 | I41: Boilermaster Holdings Pte Ltd | J41: 2400000 | K41: 790.62 | L41: 22 years 5 months | M41: State
A42: 2012-12-27 | B42: 2013-02-07 | C42: 2013-03-11 | D42: Ubi Avenue 4 | E42: Business 1 | F42: 3503.5 | G42: 2.5 | H42: 8758.75 | I42: BP-Ubi Industrial Pte Ltd | J42: 16216020 | K42: 1851.41 | L42: 30 | M42: JTC
A43: 2012-11-20 | B43: 2013-01-02 | C43: 2013-02-01 | D43: Plot 30, Tuas South Street 6 | E43: Business 2 | F43: 8597.4 | G43: 1 | H43: 8597.4 | I43: Koh Brothers Building & Civil Engineering Contractor (Pte) Ltd | J43: 6570000 | K43: 764.1845209 | L43: 22 years 6 months | M43: State
A44: 2012-11-20 | B44: 2013-01-02 | C44: 2013-02-01 | D44: Plot 32, Tuas South Street 6 | E44: Business 2 | F44: 8732.2 | G44: 1 | H44: 8732.2 | I44: SH Design & Build Pte Ltd | J44: 6650000 | K44: 761.5492087 | L44: 22 years 6 months | M44: State
A45: 2012-11-20 | B45: 2013-01-02 | C45: 2013-01-29 | D45: Buroh Street | E45: Business 2 | F45: 27400 | G45: 2.5 | H45: 68500 | I45: Capital Development Pte Ltd and ZACD Investments Pte Ltd | J45: 82100000 | K45: 1198.540146 | L45: 30 | M45: JTC
A46: 2012-10-31 | B46: 2012-12-26 | C46: 2013-01-29 | D46: Off Woodlands Avenue 10 | E46: Business 2 | F46: 10705 | G46: 2.5 | H46: 26762.5 | I46: Bohai Investments (Sengkang) Pte Ltd and Punggol Drive Investments Pte Ltd | J46: 31700000 | K46: 1184.493227 | L46: 30 | M46: JTC
A47: 2012-10-31 | B47: 2012-12-12 | C47: 2013-01-08 | D47: Plot 8, Tuas South Street 8 | E47: Business 2 | F47: 3035.6 | G47: 1 | H47: 3035.6 | I47: T.M. Transport Contractor Pte Ltd | J47: 2222200 | K47: 732.05 | L47: 22 years 7 months | M47: State
A48: 2012-10-31 | B48: 2012-12-12 | C48: 2013-01-08 | D48: Plot 18, Tuas South Street 8 | E48: Business 2 | F48: 4526.9 | G48: 1 | H48: 4526.9 | I48: LNT Coating Pte Ltd | J48: 3800001 | K48: 839.43 | L48: 22 years 7 months | M48: State
A49: 2012-09-28 | B49: 2012-11-23 | C49: 2012-12-19 | D49: Plot 14. Tuas South Street 8 | E49: Business 2 | F49: 3035.9 | G49: 1 | H49: 3035.9 | I49: Greenway Environmental Waste Management Pte Ltd | J49: 2160000 | K49: 711.49 | L49: 22 years 8 months | M49: State
A50: 2012-09-28 | B50: 2012-11-23 | C50: 2012-12-19 | D50: Plot 16, Tuas South Street 8 | E50: Business 2 | F50: 3036 | G50: 1 | H50: 3036 | I50: Chuan Heng Hardware Trading Pte Ltd | J50: 2076624 | K50: 684 | L50: 22 years 8 months | M50: State
A51: 2012-09-28 | B51: 2012-11-23 | C51: 2012-12-05 | D51: Serangoon North Avenue 5 | E51: Business 1 | F51: 7504 | G51: 2.5 | H51: 18760 | I51: Popular Warehouse and Distribution Pte Ltd | J51: 26999000 | K51: 1439.18 | L51: 30 | M51: JTC
A52: 2012-08-31 | B52: 2012-10-12 | C52: 2012-11-09 | D52: Plot 12, Tuas South Sreet 8 | E52: Business 2 | F52: 4550.7 | G52: 1 | H52: 4550.7 | I52: Teck Leong Industries Pte Ltd | J52: 3200899 | K52: 703.3861 | L52: 22 years 9 months | M52: State
A53: 2012-08-31 | B53: 2012-10-12 | C53: 2012-10-29 | D53: Sunview Road | E53: Business 2 (Clean and Light Uses) | F53: 28173 | G53: 2.5 | H53: 70432.5 | I53: Asendial Pte Ltd | J53: 76571635 | K53: 1087.16 | L53: 30 | M53: JTC
A54: 2012-07-24 | B54: 2012-09-04 | C54: 2012-10-12 | D54: Plot 26, Tuas South Street 7 | E54: Business 2 | F54: 10094.9 | G54: 1 | H54: 10094.9 | I54: 800 Super Holdings Limited | J54: 6300000 | K54: 624.08 | L54: 22 | M54: State
A55: 2012-07-24 | B55: 2012-09-04 | C55: 2012-10-12 | D55: Plot 31, Tuas South Street 6 | E55: Business 2 | F55: 8569.3 | G55: 1 | H55: 8569.3 | I55: Kwong Lee Holdings Pte Ltd | J55: 4900068 | K55: 571.82 | L55: 22 | M55: State
A56: 2012-06-29 | B56: 2012-08-24 | C56: 2012-09-10 | D56: Plot 3, Tampines Industrial Crescent | E56: Business 2 (Clean Uses Only) | F56: 38800 | G56: 1.7 | H56: =F56*G56 -> 65960 | I56: Oxley Bliss Pte Ltd | J56: 55000000 | K56: 833.84 | L56: 30 | M56: JTC
A57: 2012-06-29 | B57: 2012-08-10 | C57: 2012-08-27 | D57: Mandai Link | E57: Business 2 (Clean and Light Uses) | F57: 22366 | G57: 2.5 | H57: =F57*G57 -> 55915 | I57: Soilbuild Group Holdings Ltd | J57: 45289000 | K57: 809.96 | L57: 30 | M57: JTC
A58: 2012-06-29 | B58: 2012-08-10 | C58: 2012-09-28 | D58: Plot 13, Tuas South Street 7 | E58: Business 2 | F58: 4551.1 | G58: 1 | H58: 4551.1 | I58: Chip Eng Seng Contractors (1988) Pte Ltd | J58: 3815188 | K58: 838.3 | L58: 23 | M58: State
A59: 2012-06-29 | B59: 2012-08-10 | C59: 2012-09-28 | D59: Plot 15, Tuas South Street 8 | E59: Business 2 | F59: 3036.1 | G59: 1 | H59: 3036.1 | I59: Transco-Pac Transport & Environmental Pte Ltd | J59: 1788262.9 | K59: 589 | L59: 23 | M59: State
A60: 2012-06-29 | B60: 2012-08-10 | C60: 2012-09-28 | D60: Plot 17, Tuas South Street 7 | E60: Business 2 | F60: 3036 | G60: 1 | H60: 3036 | I60: P-One (S) Pte Ltd | J60: 1489588 | K60: 490.64 | L60: 23 | M60: State
A61: 2012-06-15 | B61: 2012-07-27 | C61: 2012-09-28 | D61: Plot 7, Tuas South Street 9 | E61: Business 2 | F61: 4551.1 | G61: 1 | H61: 4551.1 | I61: Ben Ching Engineering Pte Ltd | J61: 2310001 | K61: 507.57 | L61: 23 | M61: State
A62: 2012-06-15 | B62: 2012-07-27 | C62: 2012-09-28 | D62: Plot 9, Tuas South Street 8 | E62: Business 2 | F62: 3035.8 | G62: 1 | H62: 3035.8 | I62: Eastman Lift Trucks Pte Ltd | J62: 1449291 | K62: 477.4 | L62: 23 | M62: State
A63: 2012-06-15 | B63: 2012-07-27 | C63: 2012-09-28 | D63: Plot 11, Tuas South Street 8 | E63: Business 2 | F63: 3035.7 | G63: 1 | H63: 3035.7 | I63: Westtech Pte Ltd | J63: 1130000 | K63: 372.24 | L63: 23 | M63: State
A64: 2012-06-15 | B64: 2012-07-27 | C64: 2012-09-28 | D64: Plot 25, Tuas South Street 7 | E64: Business 2 | F64: 5738.3 | G64: 1 | H64: 5738.3 | I64: 800 Super Holdings Ltd | J64: 6000800 | K64: 1045.75 | L64: 23 | M64: State
A65: 2012-06-15 | B65: 2012-07-27 | C65: 2012-09-28 | D65: Plot 27, Tuas South Street 7 | E65: Business 2 | F65: 5047.6 | G65: 1 | H65: 5047.6 | I65: 800 Super Holdings Ltd | J65: 3500800 | K65: 693.56 | L65: 23 | M65: State
A66: 2012-04-24 | B66: 2012-06-19 | C66: 2012-07-13 | D66: Tai Seng Link | E66: Business 2 (Clean and Light Uses) | F66: 4336 | G66: 2.5 | H66: =F66*G66 -> 10840 | I66: OKH (Woodlands) Pte Ltd | J66: 23300000 | K66: 2149.45 | L66: 30 | M66: JTC
A67: 2012-01-31 | B67: 2012-03-13 | C67: 2012-04-04 | D67: Serangoon North Avenue 4 (Parcel 1) | E67: Business 1 | F67: 8076 | G67: 2.5 | H67: 20190 | I67: Soon Hock Property Development Pte Ltd | J67: 47088999 | K67: 2332.29 | L67: 58 | M67: JTC
A68: 2011-08-31 | B68: 2011-10-27 | C68: 2011-11-28 | D68: Lavender Street/ Kallang Avenue | E68: Business 1 - White | F68: 28348 | G68: 3.0 (B1-2.5 W-0.5) | H68: 85044 | I68: PLC 8 Development Pte Ltd | J68: 218300000 | K68: 2566.91 | L68: 60 | M68: JTC
A69: 2011-03-25 | B69: 2011-05-20 | C69: 2011-06-08 | D69: Fusionopolis Link, Fusionopolis Phase 3 | E69: Business Park - White 40% (Office) | F69: 6253 | G69: 4 | H69: 25012 | I69: Ascendas Real Estate Investment Trust | J69: 110000000 | K69: 4397.89 | L69: 60 | M69: JTC
A70: 2011-01-24 | B70: 2011-03-07 | C70: 2011-03-15 | D70: Ubi Road 1/ Ubi Avenue 4 | E70: Business 1 | F70: 12378 | G70: 2.5 | H70: 30945 | I70: Oxley Ascend Realty Pte Ltd | J70: 72200000 | K70: 2333.17 | L70: 60 | M70: JTC
A71: 2010-10-29 | B71: 2010-12-10 | C71: 2011-01-17 | D71: Old Toh Tuck Road/ Toh Tuck Avenue | E71: Business 2 | F71: 10083 | G71: 1.6 | H71: 16132.8 | I71: Incorporated Builders Pte Ltd | J71: 8700000 | K71: 539.27 | L71: 30 | M71: JTC
A72: 2010-08-20 | B72: 2010-10-18 | C72: 2010-11-04 | D72: Yishun Street 23/ Yishun Avenue 9 | E72: Business 2 | F72: 46546.9 | G72: 2.5 | H72: 116367.25 | I72: Soilbuild Group Holdings Ltd | J72: 64011800 | K72: 550.08 | L72: 60 | M72: State
A73: 2010-03-31 | B73: 2010-05-12 | C73: 2010-06-01 | D73: Tampines Industrial Avenue 4 | E73: Business 2 | F73: 49999.9 | G73: 0.8 | H73: 39999.92 | I73: Soon Hock Tuas Development Pte Ltd | J73: 33130000 | K73: 828.25 | L73: 30 | M73: State
A74: 2007-09-28 | B74: 2007-11-09 | C74: 2007-11-29 | D74: Jalan Tepong | E74: Business 2 | F74: 20867 | G74: 1.4 | H74: 29213.8 | I74: EL Development Pte Ltd | J74: 9480000 | K74: 324.5 | L74: 23 | M74: JTC
A75: 2007-09-21 | B75: 2007-11-02 | C75: 2007-11-29 | D75: L1 Commonwealth Drive/ Lane | E75: Business 1 | F75: 11175 | G75: 2.5 | H75: 27937.5 | I75: WHB Pte Ltd | J75: 51228228 | K75: 1833.67 | L75: 30 | M75: JTC
A76: 2007-09-06 | B76: 2007-10-18 | C76: 2007-11-12 | D76: L7 Pioneer Road/ Tuas Avenue 11 | E76: Business 2 | F76: 21871 | G76: 1.4 | H76: 30619.4 | I76: Soilbuild Group Holdings Ltd | J76: 12200000 | K76: 398.44 | L76: 30 | M76: JTC
A77: 2006-12-21 | B77: 2007-02-01 | C77: 2007-03-13 | D77: L1 Enterprise Road | E77: Business 2 | F77: 20122 | G77: 1.4 | H77: 28170.8 | I77: CTE Properties Pte Ltd | J77: 11400000 | K77: 404.67 | L77: 30 | M77: JTC
A78: 2006-11-17 | B78: 2006-12-28 | C78: 2007-01-24 | D78: L2 Serangoon North Avenue 4 | E78: Business 1 | F78: 9458 | G78: 1.4 | H78: 13241.2 | I78: First KNG Pte Ltd | J78: 8699000 | K78: 656.96 | L78: 60 | M78: JTC
A79: 2006-09-29 | B79: 2006-11-10 | C79: 2006-12-01 | D79: L14 Changi North Street 1 | E79: Business 2 | F79: 15000 | G79: 1 | H79: 15000 | I79: Global Orion Properties Ltd | J79: 4300228 | K79: 286.68 | L79: 30 | M79: JTC
A80: 2006-06-30 | B80: 2006-08-11 | C80: 2006-09-18 | D80: Ubi Road 2/ Ubi Avenue 3/ Ubi Avenue 4/ Ubi Link | E80: Business 1 | F80: 38577.5 | G80: 2.5 | H80: 96443.75 | I80: Sim Lian Development Pte Ltd | J80: 39999000 | K80: 414.74 | L80: 60 | M80: JTC
A81: 2006-05-16 | B81: 2006-07-04 | C81: 2006-09-18 | D81: Serangoon North Avenue 4 (end) | E81: Business 1 | F81: 29225 | G81: 2.5 | H81: 73062.5 | I81: Orion-One Development Pte Ltd | J81: 22800228 | K81: 312.06 | L81: 60 | M81: JTC
A82: 2005-09-27 | B82: 2005-11-22 | C82: 2006-01-05 | D82: Pioneer Road | E82: Business 2 | F82: 19858 | G82: 1 | H82: 19858 | I82: Soilbuild Group Holdings Ltd | J82: 3028000 | K82: 152.48 | L82: 30 | M82: JTC
A83: 2005-02-17 | B83: 2005-04-12 | C83: 2005-04-15 | D83: Penjuru Road | E83: Business 2 | F83: 20000 | G83: 1 | H83: 20000 | I83: Stagis Pte Ltd | J83: 5300000 | K83: 265 | L83: 30 | M83: JTC
A85: Please click here for Press Releases on recent Industrial Government Land Sales sites sold by JTC.

Sheet As at 30 10 2014
A1: Date of Launch | B1: Date of Tender Closing | C1: Date of Award | D1: Location | E1: Type of Development Allowed | F1: Site Area (m2) | G1: Plot Ratio | H1: Maximum Permissible Gross Floor Area (GFA) (m2) | I1: Name of Successful Tenderer | J1: Successful Tender Price | K1: Price Psm Per Gross Plot Ratio | L1: Lease (Years) | M1: Land Owner
A2: 2014-07-29 | B2: 2014-09-09 | C2: 2014-10-23 | D2: Plot 44, Tuas South Street 7 | E2: Business 2 | F2: 5038.6 | G2: 1 | H2: =F2*G2 -> 5038.6 | I2: IG Tuas Pte Ltd | J2: 5201000 | K2: =J2/H2 -> 1032.231175 | L2: 20 years 10 months | M2: State
A3: 2014-06-24 | B3: 2014-08-26 | C3: 2014-10-09 | D3: Plot 12, Off Tuas South Avenue 7 | E3: Business 2 | F3: 25700 | G3: 2 | H3: 51400 | I3: Hock Lian Seng Holdings Limited | J3: 30988000 | K3: 602.8793774 | L3: 30 | M3: JTC
A4: 2014-04-29 | B4: 2014-07-01 | C4: 2014-07-24 | D4: Tuas Avenue 11 | E4: Business 2 | F4: 8922 | G4: 1.4 | H4: 12490.8 | I4: Soon Hock Realty Pte Ltd | J4: 14388000 | K4: 1151.887789 | L4: 30 | M4: JTC
A5: 2014-04-29 | B5: 2014-07-01 | C5: 2014-07-24 | D5: Plot 39, Tuas South Street 11 | E5: Business 2 | F5: 10000 | G5: 1 | H5: 10000 | I5: Tiong Aik Construction Pte Ltd | J5: 8073000 | K5: 807.3 | L5: 20 years 10 months | M5: JTC
A6: 2014-03-25 | B6: 2014-05-06 | C6: 2014-06-02 | D6: Plot 49, Tuas South Street 9 | E6: Business 2 | F6: 8369 | G6: 1 | H6: 8369 | I6: Pan Marine Blasting Abrasives Pte Ltd | J6: 5925252 | K6: 708 | L6: 21 years 2 months | M6: JTC
A7: 2014-03-25 | B7: 2014-05-06 | C7: 2014-06-02 | D7: Plot 51, Tuas South Street 9 | E7: Business 2 | F7: 8369 | G7: 1 | H7: 8369 | I7: Asiagroup Leasing Pte Ltd | J7: 5948000 | K7: 710.7181264 | L7: 21 years 2 months | M7: JTC
A8: 2014-02-25 | B8: 2014-04-08 | C8: 2014-04-29 | D8: Plot 45, Tuas South Street 6 | E8: Business 2 | F8: 6988 | G8: 1 | H8: 6988 | I8: SH Design & Build Pte Ltd | J8: 5278000 | K8: =J8/H8 -> 755.2947911 | L8: 21 years 3 months | M8: JTC
A9: 2014-02-25 | B9: 2014-04-08 | C9: 2014-04-29 | D9: Plot 47, Tuas South Street 6 | E9: Business 2 | F9: 6988 | G9: 1 | H9: 6988 | I9: Soon Hock Investment Group Pte Ltd | J9: 5115000 | K9: 731.9690899 | L9: 21 years 3 months | M9: JTC
A10: 2013-12-27 | B10: 2014-02-07 | C10: 2014-04-14 | D10: Plot 6, Tuas South Street 6 | E10: Business 2 | F10: 4551.4 | G10: 1 | H10: 4551.4 | I10: H P Construction & Engineering Pte Ltd | J10: 4100000 | K10: 900.8217252 | L10: 21 years 5 months | M10: State
A11: 2013-12-27 | B11: 2014-02-07 | C11: 2014-04-14 | D11: Plot 34, Tuas South Street 13 | E11: Business 2 | F11: 7447.4 | G11: 1 | H11: 7447.4 | I11: Evan Lim & Co. Pte. Ltd. | J11: 4850000 | K11: 651.2339877 | L11: 21 years 5 months | M11: State
A12: 2013-12-27 | B12: 2014-02-07 | C12: 2014-04-14 | D12: Plot 35, Tuas South Street 11 | E12: Business 2 | F12: 7432.1 | G12: 1 | H12: 7432.1 | I12: Toko Tan Equipment Pte Ltd | J12: 4293524.17 | K12: 577.7 | L12: 21 years 5 months | M12: State
A13: 2013-12-27 | B13: 2014-02-07 | C13: 2014-04-14 | D13: Plot 38, Tuas South Street 13 | E13: Business 2 | F13: 7176.5 | G13: 1 | H13: 7176.5 | I13: AEI (China) Holdings Pte. Ltd | J13: 5038888 | K13: 702.1372535 | L13: 21 years 5 months | M13: State
A14: 2013-11-29 | B14: 2014-01-10 | C14: 2014-03-10 | D14: Plot 33, Tuas South Street 11 | E14: Business 2 | F14: 7432.1 | G14: 1 | H14: 7432.1 | I14: United Hudson Investment Pte Ltd | J14: 4808000 | K14: 646.92 | L14: 21 years 6 months | M14: State
A15: 2013-11-29 | B15: 2014-01-10 | C15: 2014-03-10 | D15: Plot 36, Tuas South Street 13 | E15: Business 2 | F15: 7431.7 | G15: 1 | H15: 7431.7 | I15: Quek & Quek Civil Engineering Pte Ltd | J15: 7431700 | K15: 1000 | L15: 21 years 6 months | M15: State
A16: 2013-11-29 | B16: 2014-01-10 | C16: 2014-03-10 | D16: Plot 37, Tuas South Street 11 | E16: Business 2 | F16: 7177 | G16: 1 | H16: 7177 | I16: United Hudson Investment Pte Ltd | J16: 5029200 | K16: 700.74 | L16: 21 years 6 months | M16: State
A17: 2013-11-29 | B17: 2014-01-10 | C17: 2014-03-10 | D17: Woodlands Industrial Park E9 | E17: Business 2 (with an integrated Heavy Vehicle Park) | F17: 18394.1 | G17: 2.5 | H17: 45985.25 | I17: Vantage Properties Pte Ltd | J17: 56180000 | K17: 1221.7 | L17: 30 | M17: State
A18: 2013-10-31 | B18: 2013-12-12 | C18: 2014-01-28 | D18: Plot 20, Tuas South Street 10 | E18: Business 2 | F18: 3036.2 | G18: 1 | H18: 3036.2 | I18: The Hi-Fi Company Pte Ltd | J18: 3104759 | K18: 1022.58 | L18: 21 years 7 months | M18: State
A19: 2013-10-31 | B19: 2013-12-12 | C19: 2014-01-28 | D19: Plot 22, Tuas South Street 10 | E19: Business 2 | F19: 3036 | G19: 1 | H19: 3036 | I19: Brown Metal Engineering Pte Ltd | J19: 3235320 | K19: 1065.65 | L19: 21 years 7 months | M19: State
A20: 2013-10-31 | B20: 2013-12-12 | C20: 2014-01-28 | D20: Plot 24, Tuas South Street 10 | E20: Business 2 | F20: 4551.2 | G20: 1 | H20: 4551.2 | I20: E C Builders Pte Ltd | J20: 4600000 | K20: 1010.72 | L20: 21 years 7 months | M20: State
A21: 2013-09-27 | B21: 2013-11-22 | C21: 2013-12-20 | D21: Tai Seng Street | E21: Business 2 - White | F21: 11,780.0 (Principal Site) | G21: 3.5 (B1-2.5 W-1.0) | H21: =11780*3.5 -> 41230 | I21: Mapletree Trustee Pte Ltd | J21: 120078500 | K21: 2912.41 | L21: 30 | M21: JTC
A22: 2013-09-27 | B22: 2013-11-08 | C22: 2013-12-06 | D22: Plot 2, Tuas South Street 6 | E22: Business 2 | F22: 3036.6 | G22: 1 | H22: =F22*G22 -> 3036.6 | I22: Tiong Lee Huat Machinery & Construction Pte Ltd | J22: 3000000 | K22: 987.95 | L22: 21 years 8 months | M22: State
A23: 2013-09-27 | B23: 2013-11-08 | C23: 2013-12-06 | D23: Plot 29, Tuas South Street 7 | E23: Business 2 | F23: 5033.1 | G23: 1 | H23: 5033.1 | I23: Poh Meng Trading & Cleaning Services Pte Ltd | J23: 4991272.91 | K23: 991.69 | L23: 21 years 8 months | M23: State
A24: 2013-08-29 | B24: 2013-10-10 | C24: 2013-11-08 | D24: Plot 4, Tuas South Street 6 | E24: Business 2 | F24: 3036.7 | G24: 1 | H24: 3036.7 | I24: Derman Aluminum (S) Pte Ltd | J24: 2880917 | K24: 948.7 | L24: 21 years 9 months | M24: State
A25: 2013-08-29 | B25: 2013-10-10 | C25: 2013-11-08 | D25: Plot 28, Tuas South Street 7 | E25: Business 2 | F25: 5047.4 | G25: 1 | H25: 5047.4 | I25: Reclaims Enterprise Pte Ltd | J25: 5330054.4 | K25: 1056 | L25: 21 years 9 months | M25: State
A26: 2013-06-26 | B26: 2013-08-07 | C26: 2013-09-06 | D26: Tuas South Avenue 3 | E26: Business 2 | F26: 39578.5 | G26: 1.4 | H26: 55409.9 | I26: Grow-Tech Properties Pte Ltd | J26: 66777000 | K26: 1205.15 | L26: 30 | M26: State
A27: 2013-06-26 | B27: 2013-08-07 | C27: 2013-09-06 | D27: Plot 19, Tuas South Street 10 | E27: Business 2 | F27: 4526.7 | G27: 1 | H27: 4526.7 | I27: Kian Hock Engineering Pte Ltd | J27: 4485131.29 | K27: 990.82 | L27: 21 years 11 months | M27: State
A28: 2013-06-26 | B28: 2013-08-07 | C28: 2013-09-06 | D28: Plot 21, Tuas South Street 10 | E28: Business 2 | F28: 3035.8 | G28: 1 | H28: 3035.8 | I28: SWHL Pte Ltd | J28: 2783640 | K28: 916.94 | L28: 21 years 11 months | M28: State
A29: 2013-06-26 | B29: 2013-08-07 | C29: 2013-09-06 | D29: Plot 23, Tuas South Street 10 | E29: Business 2 | F29: 3036 | G29: 1 | H29: 3036 | I29: Jay Machinery Pte Ltd | J29: 2680000 | K29: 882.74 | L29: 21 years 11 months | M29: State
A30: 2013-05-31 | B30: 2013-07-12 | C30: 2013-07-31 | D30: Mandai Link | E30: Business 2 (Food only) | F30: 6891.2 | G30: 2.5 | H30: 17228 | I30: Wealth Property Pte Ltd | J30: 21308888 | K30: 1236.88 | L30: 30 | M30: JTC
A31: 2013-04-30 | B31: 2013-06-11 | C31: 2013-07-09 | D31: Plot 1, Tuas South Street 6 | E31: Business 2 | F31: 4550.9 | G31: 1 | H31: =F31*G31 -> 4550.9 | I31: S.H. Stainless Steel Contractor Pte Ltd | J31: 4208000 | K31: 924.65 | L31: 22 years 1 month | M31: State
A32: 2013-04-30 | B32: 2013-06-11 | C32: 2013-07-09 | D32: Plot 3, Tuas South Street 6 | E32: Business 2 | F32: 3036.2 | G32: 1 | H32: =F32*G32 -> 3036.2 | I32: Stallion Development Pte Ltd | J32: 2600000 | K32: 856.33 | L32: 22 years 1 month | M32: State
A33: 2013-04-30 | B33: 2013-06-11 | C33: 2013-07-09 | D33: Plot 5, Tuas South Street 6 | E33: Business 2 | F33: 3035.8 | G33: 1 | H33: =F33*G33 -> 3035.8 | I33: Jin Choon Civil Engineering Pte Ltd | J33: 2490340 | K33: 820.32 | L33: 22 years 1 month | M33: State
